Workbook

Sheet 400 et 70 t
A1: Colonne1 | B1: jour | C1: date_ | D1: Colonne2 | E1: Colonne3 | F1: Colonne4 | G1: Colonne5 | H1: Colonne6 | I1: chance | J1: nbr fin | K1: Colonne7 | L1: fin iden | M1: Colonne8 | N1: Colonne9 | O1: Colonne10 | P1: Colonne11 | Q1: N-1 | R1: Colonne12 | S1: Colonne13 | T1: Colonne14 | U1: Colonne15 | V1: ok | W1: T | X1: Imp | Y1: 1 | Z1: 2 | AA1: 3 | AB1: 4 | AC1: 5 | AD1: 6 | AE1: 7 | AF1: 8 | AG1: 9 | AH1: 0 | AI1: 11 | AJ1: 12 | AK1: 13 | AL1: 14 | AM1: 15 | AN1: 16 | AO1: 17 | AP1: 18 | AQ1: 19 | AR1: 20 | AS1: 21 | AT1: 22 | AU1: 23 | AV1: 24 | AW1: 25 | AX1: 26 | AY1: 27 | AZ1: 28 | BA1: 29 | BB1: 30 | BC1: 31 | BD1: 32 | BE1: 33 | BF1: 34 | BG1: 35 | BH1: 36 | BI1: 37 | BJ1: 38 | BK1: 39 | BL1: 40 | BM1: 41 | BN1: 42 | BO1: 43 | BP1: 44 | BQ1: 45 | BR1: 46 | BS1: 47 | BT1: 48 | BU1: 49 | BV1: 0-9 | BW1: 10:19 | BX1: 20:29 | BY1: 30:39 | BZ1: 40:39 | CA1: Colonne16 | CB1: Colonne17 | CC1: Colonne18 | CD1: Colonne19 | CE1: Colonne20 | CF1: Colonne21 | CG1: 1 1 1 1 1 | CH1: 01111 | CI1: 10111 | CJ1: 11011 | CK1: 11101 | CL1: 11110 | CM1: 10110 | CN1: 00111 | CO1: 11001 | CP1: 10011 | CQ1: 11100 | CR1: 01011 | CS1: 00110 | CT1: 11010 | CU1: 01001 | CV1: 10101 | CW1: 01110 | CX1: 01101 | CY1: 10100 | CZ1: 01100 | DA1: 01000 | DB1: 00011 | DC1: 01010 | DD1: 00101 | DE1: 11000 | DF1: 00001 | DG1: 10001 | DH1: Colonne22 | DI1: Colonne23 | DJ1: Colonne24 | DK1: 10010 | DL1: 125 | DM1: 226 | DN1: 327 | DO1: 428 | DP1: 529 | DQ1: 630 | DR1: 731 | DS1: 832 | DT1: 933 | DU1: 10 | DV1: Colonne34 | DW1: N-135 | DX1: Colonne36 | DY1: Colonne37 | DZ1: Colonne38 | EA1: Colonne39 | EB1: Colonne40 | EC1: Colonne41 | ED1: Colonne42 | EE1: Colonne43 | EF1: Colonne44 | EG1: Colonne45 | EH1: Colonne46 | EI1: N-147 | EJ1: Colonne48 | EK1: Colonne49 | EL1: Colonne50 | EM1: Colonne51 | EN1: Colonne52 | EO1: Colonne53 | EP1: Colonne54 | EQ1: Colonne55 | ER1: Colonne56 | ES1: cpl | ET1: imp57 | EU1: suite N° | EV1: fin id | EW1: amplitude | EX1: Colonne58 | EY1: Colonne59 | EZ1: Colonne60 | FA1: Colonne61 | FB1: Colonne62 | FC1: Colonne63 | FD1: Colonne64 | FE1: fin cpl | FF1: comparatif fin Cpl/N) | FG1: Colonne65 | FH1: Colonne66 | FI1: Colonne67 | FJ1: Colonne68 | FK1: suite 1/2 | FL1: suite 2/3 | FM1: suite 3/4 | FN1: suite 4/5 | FO1: Colonne69 | FP1: Colonne70 | FQ1: Colonne71 | FR1: Colonne72 | FS1: Colonne73 | FT1: Colonne74 | FU1: Colonne75 | FV1: Colonne76 | FW1: Colonne77 | FX1: Colonne78 | FY1: Colonne79 | FZ1: Colonne80 | GA1: Colonne81 | GB1: Colonne82 | GC1: Colonne83 | GD1: Colonne84 | GE1: Colonne85 | GF1: Colonne86 | GG1: Colonne87 | GH1: Colonne88 | GI1: Colonne89 | GJ1: Colonne90 | GK1: Colonne91 | GL1: Colonne92 | GM1: Colonne93 | GN1: Colonne94 | GO1: Colonne95 | GP1: Colonne96 | GQ1: Colonne97 | GR1: Colonne98 | GS1: Colonne99 | GT1: Colonne100 | GU1: Colonne101 | GV1: Colonne102 | GW1: Colonne103 | GX1: Colonne104 | GY1: Colonne105 | GZ1: Colonne106 | HA1: Colonne107 | HB1: Colonne108 | HC1: Colonne109 | HD1: 1110 | HE1: 2111 | HF1: 3112 | HG1: 4113 | HH1: 5114 | HI1: 6115 | HJ1: 7116 | HK1: 8117 | HL1: 9118 | HM1: 10119 | HN1: 11120 | HO1: 12121 | HP1: 13122 | HQ1: 14123 | HR1: 15124 | HS1: 16125 | HT1: 17126 | HU1: 18127 | HV1: 19128 | HW1: 20129 | HX1: 21130 | HY1: 22131 | HZ1: 23132 | IA1: 24133 | IB1: 25134 | IC1: 26135 | ID1: 27136 | IE1: 28137 | IF1: 29138 | IG1: 30139 | IH1: 31140 | II1: 32141 | IJ1: 33142 | IK1: 34143 | IL1: 35144 | IM1: 36145 | IN1: 37146 | IO1: 38147 | IP1: 39148 | IQ1: 40149 | IR1: 41150 | IS1: 42151 | IT1: 43152 | IU1: 44153 | IV1: 45154 | IW1: 46155 | IX1: 47156 | IY1: 48157 | IZ1: 49158 | JA1: 1159 | JB1: 2160 | JC1: 3161 | JD1: 4162 | JE1: 5163 | JF1: 6164 | JG1: 7165 | JH1: 8166 | JI1: 9167 | JJ1: 10168 | JK1: 11169 | JL1: 12170 | JM1: 13171 | JN1: 14172 | JO1: 15173 | JP1: 16174 | JQ1: 17175 | JR1: 18176 | JS1: 19177 | JT1: 20178 | JU1: 21179 | JV1: 22180 | JW1: 23181 | JX1: 24182 | JY1: 25183 | JZ1: 26184 | KA1: 27185 | KB1: 28186 | KC1: 29187 | KD1: 30188 | KE1: 31189 | KF1: 32190 | KG1: 33191 | KH1: 34192 | KI1: 35193 | KJ1: 36194 | KK1: 37195 | KL1: 38196 | KM1: 39197 | KN1: 40198 | KO1: 41199 | KP1: 42200 | KQ1: 43201 | KR1: 44202 | KS1: 45203 | KT1: 46204 | KU1: 47205 | KV1: 48206 | KW1: 49207 | KX1: Colonne208
FC3: fin= cpl
V4: ><1 2 3 4 | Y4: fin des nombre | CC4: =SUM(CC5:CC315) -> 214 | CD4: =SUM(CD5:CD315) -> 223 | CE4: =SUM(CE5:CE315) -> 227 | CF4: =SUM(CF5:CF315) -> 210 | CG4: 1 1 1 1 1 | CH4: 1111 | CI4: 10111 | CJ4: 11011 | CK4: 11101 | CL4: 11110 | CM4: 10110 | CN4: 111 | CO4: 11001 | CP4: 10011 | CQ4: 11100 | CR4: 1011 | CS4: 110 | CT4: 11010 | CU4: 1001 | CV4: 10101 | CW4: 1110 | CX4: 1101 | CY4: 10100 | CZ4: 1100 | DA4: 1000 | DB4: 11 | DC4: 1010 | DD4: 101 | DE4: 11000 | DF4: 1 | DG4: 10001 | DH4: 10 | DJ4: 100 | DK4: 10010 | DL4: Nombre de fois etoile 1,2,3,,,10 | EI4: traduit en 1 | ES4: n-1 | ET4: cpl | EW4: tous | EX4: fin des nombres | FC4: fin cpl/fin tous | FW4: a | FX4: b | FY4: c | FZ4: d | GA4: e | GE4: ab | GF4: bc | GG4: cd | GH4: de | GL4: ac | GM4: bd | GN4: ce | GR4: ad | GS4: be | GW4: ae | JA4: nombre de fois 1 2 3 4,,,
A5: =A6+1 -> 407 | B5: SAMEDI | C5: 2022-06-18 | D5: 1 | E5: 12 | F5: 28 | G5: 31 | H5: 32 | I5: 9 | J5: =(MID(H5,2,1)*1) -> 2 | K5: =IF(J5=0,"a",IF(J5=1,"b",IF(J5=2,"c",IF(J5=3,"d",IF(J5=4,"e",IF(J5=5,"f",IF(J5=6,"g",IF(J5=7,"h",IF(J5=8,"i",IF(J5=9,"j",)))))))))) -> c | L5: =COUNTIF(M5:P5,">0") -> 0 | M5: =_xlfn.LET(_xlpm.comp,RIGHT(D5:H5,1),_xlfn._xlws.FILTER(D5:H5,_xlfn.XMATCH(_xlpm.comp,_xlpm.comp)<>_xlfn.XMATCH(_xlpm.comp,_xlpm.comp,,-1))) ->  | Q5: =COUNTIF(#REF!,D5:H5) ->  | V5: =IF(AND(W5>69,W5<164,OR(X5={1;2;3;4})),1,0) -> 1 | W5: =D5+E5+F5+G5+H5 -> 104 | X5: =SUMPRODUCT(( MOD(D5:H5,2)>0)*1) -> 2 | Y5: =COUNTIF(EX5:FB5,$Y$1) -> 2 | Z5: =COUNTIF(EX5:FB5,Z$1) -> 2 | AA5: =COUNTIF(EX5:FB5,$AA$1) -> 0 | AB5: =COUNTIF(EX5:FB5,$AB$1) -> 0 | AC5: =COUNTIF(EX5:FB5,AC$1) -> 0 | AD5: =COUNTIF(EX5:FB5,AD$1) -> 0 | AE5: =COUNTIF(EX5:FB5,AE$1) -> 0 | AF5: =COUNTIF(EX5:FB5,AF$1) -> 1 | AG5: =COUNTIF(EX5:FB5,AG$1) -> 0 | AH5: =COUNTIF(EX5:FB5,AH$1) -> 0 | AI5: =COUNTIF(($D5:$H5),AI$1) -> 0 | AJ5: 1 | AK5: 0 | AL5: 0 | AM5: 0 | AN5: =COUNTIF(($D5:$H5),AN$1) -> 0 | AO5: 0 | AP5: 0 | AQ5: 0 | AR5: 0 | AS5: 0 | AT5: 0 | AU5: 0 | AV5: =COUNTIF(($D5:$H5),AV$1) -> 0 | AW5: 0 | AX5: 0 | AY5: 0 | AZ5: 1 | BA5: 0 | BB5: 0 | BC5: =COUNTIF(($D5:$H5),BC$1) -> 1 | BD5: 1 | BE5: 0 | BF5: 0 | BG5: 0 | BH5: 0 | BI5: =COUNTIF((D5:H5),BI$1) -> 0 | BJ5: =COUNTIF((D5:H5),BJ$1) -> 0 | BK5: =COUNTIF((D5:H5),BK$1) -> 0 | BL5: =COUNTIF((D5:H5),BL$1) -> 0 | BM5: =COUNTIF((D5:H5),BM$1) -> 0 | BN5: =COUNTIF((D5:H5),BN$1) -> 0 | BO5: =COUNTIF((D5:H5),BO$1) -> 0 | BP5: =COUNTIF((D5:H5),BP$1) -> 0 | BQ5: =COUNTIF((D5:H5),BQ$1) -> 0 | BR5: =COUNTIF((D5:H5),BR$1) -> 0 | BS5: =COUNTIF((D5:H5),BS$1) -> 0 | BT5: =COUNTIF((D5:H5),BT$1) -> 0 | BU5: =COUNTIF((D5:H5),BU$1) -> 0 | BV5: =COUNTIF(D5:H5,"<10") -> 1 | BW5: =(COUNTIF(D5:H5,"<20")-BV5) -> 1 | BX5: =((COUNTIF(D5:H5,"<30")))-(BV5+BW5) -> 1 | BY5: =((COUNTIF(D5:H5,"<40")))-(BW5+BX5+BV5) -> 2 | BZ5: =((COUNTIF(D5:H5,"<50")))-(BX5+BY5+BW5+BV5) -> 0 | CA5: =IF((CB5+CC5+CD5+CE5+CF5)=5,"1","") ->  | CB5: =COUNTIF(BV5,">0") -> 1 | CC5: =COUNTIF(BW5,">0") -> 1 | CD5: =COUNTIF(BX5,">0") -> 1 | CE5: =COUNTIF(BY5,">0") -> 1 | CF5: =COUNTIF(BZ5,">0") -> 0 | CG5: =COUNTIF(CB5,">0")*+(COUNTIF(CC5,">0")*+(COUNTIF(CD5,">0")*+(COUNTIF(CE5,">0")*+(COUNTIF(CF5,">0"))))) -> 0 | CH5: =COUNTIF(CB5,"=0")*+(COUNTIF(CC5,">0")*+(COUNTIF(CD5,">0")*+(COUNTIF(CE5,">0")*+(COUNTIF(CF5,">0"))))) -> 0 | CI5: =COUNTIF(CB5,">0")*+(COUNTIF(CC5,"=0")*+(COUNTIF(CD5,">0")*+(COUNTIF(CE5,">0")*+(COUNTIF(CF5,">0"))))) -> 0 | CJ5: =COUNTIF(CB5,">0")*+(COUNTIF(CC5,">0")*+(COUNTIF(CD5,"=0")*+(COUNTIF(CE5,">0")*+(COUNTIF(CF5,">0"))))) -> 0 | CK5: =COUNTIF(CB5,">0")*+(COUNTIF(CC5,">0")*+(COUNTIF(CD5,">0")*+(COUNTIF(CE5,"=0")*+(COUNTIF(CF5,">0"))))) -> 0 | CL5: =COUNTIF(CB5,">0")*+(COUNTIF(CC5,">0")*+(COUNTIF(CD5,">0")*+(COUNTIF(CE5,">0")*+(COUNTIF(CF5,"=0"))))) -> 1 | CM5: =COUNTIF(CB5,">0")*+(COUNTIF(CC5,"=0")*+(COUNTIF(CD5,">0")*+(COUNTIF(CE5,">0")*+(COUNTIF(CF5,"=0"))))) -> 0 | CN5: =COUNTIF(CB5,"=0")*+(COUNTIF(CC5,"=0")*+(COUNTIF(CD5,">0")*+(COUNTIF(CE5,">0")*+(COUNTIF(CF5,">0"))))) -> 0 | CO5: =COUNTIF(CB5,">0")*+(COUNTIF(CC5,">0")*+(COUNTIF(CD5,"=0")*+(COUNTIF(CE5,"=0")*+(COUNTIF(CF5,">0"))))) -> 0 | CP5: =COUNTIF(CB5,">0")*+(COUNTIF(CC5,"=0")*+(COUNTIF(CD5,"=0")*+(COUNTIF(CE5,">0")*+(COUNTIF(CF5,">0"))))) -> 0 | CQ5: =COUNTIF(CB5,">0")*+(COUNTIF(CC5,">0")*+(COUNTIF(CD5,">0")*+(COUNTIF(CE5,"=0")*+(COUNTIF(CF5,"=0"))))) -> 0 | CR5: =COUNTIF(CB5,"=0")*+(COUNTIF(CC5,">0")*+(COUNTIF(CD5,"=0")*+(COUNTIF(CE5,">0")*+(COUNTIF(CF5,">0"))))) -> 0 | CS5: =COUNTIF(CB5,"=0")*+(COUNTIF(CC5,"=0")*+(COUNTIF(CD5,">0")*+(COUNTIF(CE5,">0")*+(COUNTIF(CF5,"=0"))))) -> 0 | CT5: =COUNTIF(CB5,">0")*+(COUNTIF(CC5,">0")*+(COUNTIF(CD5,"=0")*+(COUNTIF(CE5,">0")*+(COUNTIF(CF5,"=0"))))) -> 0 | CU5: =COUNTIF(CB5,"=0")*+(COUNTIF(CC5,">0")*+(COUNTIF(CD5,"=0")*+(COUNTIF(CE5,"=0")*+(COUNTIF(CF5,">0"))))) -> 0 | CV5: =COUNTIF(CB5,">0")*+(COUNTIF(CC5,"=0")*+(COUNTIF(CD5,">0")*+(COUNTIF(CE5,"=0")*+(COUNTIF(CF5,">0"))))) -> 0 | CW5: =COUNTIF(CB5,"=0")*+(COUNTIF(CC5,">0")*+(COUNTIF(CD5,">0")*+(COUNTIF(CE5,">0")*+(COUNTIF(CF5,"=0"))))) -> 0 | CX5: =COUNTIF(CB5,"=0")*+(COUNTIF(CC5,">0")*+(COUNTIF(CD5,">0")*+(COUNTIF(CE5,"=0")*+(COUNTIF(CF5,">0"))))) -> 0 | CY5: =COUNTIF(CB5,">0")*+(COUNTIF(CC5,"=0")*+(COUNTIF(CD5,">0")*+(COUNTIF(CE5,"=0")*+(COUNTIF(CF5,"=0"))))) -> 0 | CZ5: =COUNTIF(CB5,"=0")*+(COUNTIF(CC5,">0")*+(COUNTIF(CD5,">0")*+(COUNTIF(CE5,"=0")*+(COUNTIF(CF5,"=0"))))) -> 0 | DA5: =COUNTIF(CB5,"=0")*+(COUNTIF(CC5,">0")*+(COUNTIF(CD5,"=0")*+(COUNTIF(CE5,"=0")*+(COUNTIF(CF5,"=0"))))) -> 0 | DB5: =COUNTIF(CB5,"=0")*+(COUNTIF(CC5,"=0")*+(COUNTIF(CD5,"=0")*+(COUNTIF(CE5,">0")*+(COUNTIF(CF5,">0"))))) -> 0 | DC5: =COUNTIF(CB5,"=0")*+(COUNTIF(CC5,">0")*+(COUNTIF(CD5,"=0")*+(COUNTIF(CE5,">0")*+(COUNTIF(CF5,"=0"))))) -> 0 | DD5: =COUNTIF(CB5,"=0")*+(COUNTIF(CC5,"=0")*+(COUNTIF(CD5,">0")*+(COUNTIF(CE5,"=0")*+(COUNTIF(CF5,">0"))))) -> 0 | DE5: =COUNTIF(CB5,">0")*+(COUNTIF(CC5,">0")*+(COUNTIF(CD5,"=0")*+(COUNTIF(CE5,"=0")*+(COUNTIF(CF5,"=0"))))) -> 0 | DF5: =COUNTIF(CB5,"=0")*+(COUNTIF(CC5,"=0")*+(COUNTIF(CD5,"=0")*+(COUNTIF(CE5,"=0")*+(COUNTIF(CF5,">0"))))) -> 0 | DG5: =COUNTIF(CB5,">0")*+(COUNTIF(CC5,"=0")*+(COUNTIF(CD5,"=0")*+(COUNTIF(CE5,"=0")*+(COUNTIF(CF5,">0"))))) -> 0 | DH5: =COUNTIF(CB5,"=0")*+(COUNTIF(CC5,"=0")*+(COUNTIF(CD5,"=0")*+(COUNTIF(CE5,">0")*+(COUNTIF(CF5,"=0"))))) -> 0 | DJ5: =COUNTIF(CB5,"=0")*+(COUNTIF(CC5,"=0")*+(COUNTIF(CD5,">0")*+(COUNTIF(CE5,"=0")*+(COUNTIF(CF5,"=0"))))) -> 0 | DK5: =COUNTIF(CB5,">0")*+(COUNTIF(CC5,"=0")*+(COUNTIF(CD5,"=0")*+(COUNTIF(CE5,">0")*+(COUNTIF(CF5,"=0"))))) -> 0 | DL5: =COUNTIF((I5),$DL$1) -> 0 | DM5: =COUNTIF((I5),$DM$1) -> 0 | DN5: =COUNTIF((I5),$DN$1) -> 0 | DO5: =COUNTIF((I5),$DO$1) -> 0 | DP5: =COUNTIF((I5),$DP$1) -> 0 | DQ5: =COUNTIF((I5),$DQ$1) -> 0 | DR5: =COUNTIF((I5),$DR$1) -> 0 | DS5: =COUNTIF((I5),$DS$1) -> 0 | DT5: =COUNTIF((I5),$DT$1) -> 0 | DU5: =COUNTIF((I5),$DU$1) -> 0 | DW5: =COUNTIF(#REF!,DL5) ->  | DX5: =COUNTIF(#REF!,DM5) ->  | DY5: =COUNTIF(#REF!,DN5) ->  | DZ5: =COUNTIF(#REF!,DO5) ->  | EA5: =COUNTIF(#REF!,DP5) ->  | EB5: =COUNTIF(#REF!,DQ5) ->  | EC5: =COUNTIF(#REF!,DR5) ->  | ED5: =COUNTIF(#REF!,DS5) ->  | EE5: =COUNTIF(#REF!,DT5) ->  | EF5: =COUNTIF(#REF!,DU5) ->  | EI5: =COUNTIF(DW5,"=1") -> 0 | EJ5: =COUNTIF(DX5,"=1") -> 0 | EK5: =COUNTIF(DY5,"=1") -> 0 | EL5: =COUNTIF(DZ5,"=1") -> 0 | EM5: =COUNTIF(EA5,"=1") -> 0 | EN5: =COUNTIF(EB5,"=1") -> 0 | EO5: =COUNTIF(EC5,"=1") -> 0 | EP5: =COUNTIF(ED5,"=1") -> 0 | EQ5: =COUNTIF(EE5,"=1") -> 0 | ER5: =COUNTIF(EF5,"=1") -> 0 | ES5: =COUNTIF(#REF!,I5) ->  | ET5: =SUMPRODUCT(( MOD(I5,2)>0)*1) -> 1 | EU5: =IF((E5=D5+1)+(F5=E5+1)+(G5=F5+1)+(H5=G5+1),("1")*1,("")) -> 1 | EV5: =IF((M5+N5+O5+P5)>0,("1"),("")) ->  | EW5: =H5-D5 -> 31 | EX5: =(MID(D5,1,2)*1) -> 1 | EY5: =(MID(E5,2,1)*1) -> 2 | EZ5: =(MID(F5,2,1)*1) -> 8 | FA5: =(MID(G5,2,1)*1) -> 1 | FB5: =(MID(H5,2,1)*1) -> 2 | FC5: =COUNTIF(EX5:FB5,FE5) -> 0 | FD5: =IF(FE5<10,("1"),("0")) -> 1 | FE5: =I5 -> 9 | FF5: =COUNTIF(EX5,FE5) -> 0 | FG5: =COUNTIF(EY5,FE5) -> 0 | FH5: =COUNTIF(EZ5,FE5) -> 0 | FI5: =COUNTIF(FA5,FE5) -> 0 | FJ5: =COUNTIF(FB5,FE5) -> 0 | FK5: =IF(E5=D5+1,("1")*1,("")) ->  | FL5: =IF(F5=E5+1,("1")*1,("")) ->  | FM5: =IF(G5=F5+1,("1")*1,("")) ->  | FN5: =IF(H5=G5+1,("1")*1,("")) -> 1 | FW5: =SUMPRODUCT(( MOD(D5,2)>0)*1) -> 1 | FX5: =SUMPRODUCT(( MOD(E5,2)>0)*1) -> 0 | FY5: =SUMPRODUCT(( MOD(F5,2)>0)*1) -> 0 | FZ5: =SUMPRODUCT(( MOD(G5,2)>0)*1) -> 1 | GA5: =SUMPRODUCT(( MOD(H5,2)>0)*1) -> 0 | GE5: =COUNTIF(FW5,">0")*AND(COUNTIF(FX5,">0")) -> 0 | GF5: =COUNTIF(FX5,">0")*AND(COUNTIF(FY5,">0")) -> 0 | GG5: =COUNTIF(FY5,">0")*AND(COUNTIF(FZ5,">0")) -> 0 | GH5: =COUNTIF(FZ5,">0")*AND(COUNTIF(GA5,">0")) -> 0 | GL5: =COUNTIF(FW5,">0")*AND(COUNTIF(FY5,">0")) -> 0 | GM5: =COUNTIF(FX4,">0")*AND(COUNTIF(FZ4,">0")) -> 0 | GN5: =COUNTIF(FY5,">0")*AND(COUNTIF(GA5,">0")) -> 0 | GR5: =COUNTIF(FW5,">0")*AND(COUNTIF(FZ5,">0")) -> 1 | GS5: =COUNTIF(FX5,">0")*AND(COUNTIF(GA5,">0")) -> 0 | GW5: =COUNTIF(FW5,">0")*AND(COUNTIF(GA5,">0")) -> 0 | HA5: =COUNTIF(FW5,GA5)*COUNTIF(FX5,FZ5) -> 0 | HC5: en 4 | HM5: =COUNTIF($G$321:$G$390,HM1) -> 0 | HO5: =COUNTIF($G$321:$G$390,HO1) -> 0 | HS5: =COUNTIF($G$321:$G$390,HS1) -> 0 | HU5: =COUNTIF($G$321:$G$390,HU1) -> 0 | HV5: 0 | HW5: 0 | HX5: 0 | HY5: 0 | HZ5: 0 | IA5: 0 | IC5: =COUNTIF($G$321:$G$390,IC1) -> 0 | ID5: 0 | IE5: 0 | IF5: 0 | IG5: 0 | IH5: 0 | II5: 0 | IJ5: 0 | IK5: 0 | IL5: 0 | IM5: 0 | IN5: 0 | IO5: 0 | IQ5: =COUNTIF($G$321:$G$390,IQ1) -> 0 | IR5: 0 | IS5: 0 | IT5: 0 | IU5: 0 | IV5: 0 | IW5: 0 | IX5: 0 | IY5: 0 | JA5: =COUNTIF(D5,$JA$1)+(COUNTIF(E5,$JA$1)+(COUNTIF(F5,$JA$1)+(COUNTIF(G5,$JA$1)+(COUNTIF(H5,$JA$1))))) -> 0 | JB5: =COUNTIF(D5,$JB$1)+(COUNTIF(E5,$JB$1)+(COUNTIF(F5,$JB$1)+(COUNTIF(G5,$JB$1)+(COUNTIF(H5,$JB$1))))) -> 0 | JC5: =COUNTIF(D5,$JC$1)+(COUNTIF(E5,$JC$1)+(COUNTIF(F5,$JC$1)+(COUNTIF(G5,$JC$1)+(COUNTIF(H5,$JC$1))))) -> 0 | JD5: =COUNTIF(D5,$JD$1)+(COUNTIF(E5,$JD$1)+(COUNTIF(F5,$JD$1)+(COUNTIF(G5,$JD$1)+(COUNTIF(H5,$JD$1))))) -> 0 | JE5: =COUNTIF(D5,$JE$1)+(COUNTIF(E5,$JE$1)+(COUNTIF(F5,$JE$1)+(COUNTIF(G5,$JE$1)+(COUNTIF(H5,$JE$1))))) -> 0 | JF5: =COUNTIF(D5,$JF$1)+(COUNTIF(E5,$JF$1)+(COUNTIF(F5,$JF$1)+(COUNTIF(G5,$JF$1)+(COUNTIF(H5,$JF$1))))) -> 0 | JG5: =COUNTIF(D5,$JG$1)+(COUNTIF(E5,$JG$1)+(COUNTIF(F5,$JG$1)+(COUNTIF(G5,$JG$1)+(COUNTIF(H5,$JG$1))))) -> 0 | JH5: =COUNTIF(D5,$JH$1)+(COUNTIF(E5,$JH$1)+(COUNTIF(F5,$JH$1)+(COUNTIF(G5,$JH$1)+(COUNTIF(H5,$JH$1))))) -> 0 | JI5: =COUNTIF(D5,$JI$1)+(COUNTIF(E5,$JI$1)+(COUNTIF(F5,$JI$1)+(COUNTIF(G5,$JI$1)+(COUNTIF(H5,$JI$1))))) -> 0 | JJ5: =COUNTIF(D5,$JJ$1)+(COUNTIF(E5,$JJ$1)+(COUNTIF(F5,$JJ$1)+(COUNTIF(G5,$JJ$1)+(COUNTIF(H5,$JJ$1))))) -> 0 | JK5: =COUNTIF(D5,$JK$1)+(COUNTIF(E5,$JK$1)+(COUNTIF(F5,$JK$1)+(COUNTIF(G5,$JK$1)+(COUNTIF(H5,$JK$1))))) -> 0 | JL5: =COUNTIF(D5,$JL$1)+(COUNTIF(E5,$JL$1)+(COUNTIF(F5,$JL$1)+(COUNTIF(G5,$JL$1)+(COUNTIF(H5,$JL$1))))) -> 0 | JM5: =COUNTIF(D5,$JM$1)+(COUNTIF(E5,$JM$1)+(COUNTIF(F5,$JM$1)+(COUNTIF(G5,$JM$1)+(COUNTIF(H5,$JM$1))))) -> 0 | JN5: =COUNTIF(D5,$JN$1)+(COUNTIF(E5,$JN$1)+(COUNTIF(F5,$JN$1)+(COUNTIF(G5,$JN$1)+(COUNTIF(H5,$JN$1))))) -> 0 | JO5: =COUNTIF(D5,$JO$1)+(COUNTIF(E5,$JO$1)+(COUNTIF(F5,$JO$1)+(COUNTIF(G5,$JO$1)+(COUNTIF(H5,$JO$1))))) -> 0 | JP5: =COUNTIF(D5,$JP$1)+(COUNTIF(E5,$JP$1)+(COUNTIF(F5,$JP$1)+(COUNTIF(G5,$JP$1)+(COUNTIF(H5,$JP$1))))) -> 0 | JQ5: =COUNTIF(D5,$JQ$1)+(COUNTIF(E5,$JQ$1)+(COUNTIF(F5,$JQ$1)+(COUNTIF(G5,$JQ$1)+(COUNTIF(H5,$JQ$1))))) -> 0 | JR5: =COUNTIF(D5,$JR$1)+(COUNTIF(E5,$JR$1)+(COUNTIF(F5,$JR$1)+(COUNTIF(G5,$JR$1)+(COUNTIF(H5,$JR$1))))) -> 0 | JS5: =COUNTIF(D5,$JS$1)+(COUNTIF(E5,$JS$1)+(COUNTIF(F5,$JS$1)+(COUNTIF(G5,$JS$1)+(COUNTIF(H5,$JS$1))))) -> 0 | JT5: =COUNTIF(D5,$JT$1)+(COUNTIF(E5,$JT$1)+(COUNTIF(F5,$JT$1)+(COUNTIF(G5,$JT$1)+(COUNTIF(H5,$JT$1))))) -> 0 | JU5: =COUNTIF(D5,$JU$1)+(COUNTIF(E5,$JU$1)+(COUNTIF(F5,$JU$1)+(COUNTIF(G5,$JU$1)+(COUNTIF(H5,$JU$1))))) -> 0 | JV5: =COUNTIF(D5,$JV$1)+(COUNTIF(E5,$JV$1)+(COUNTIF(F5,$JV$1)+(COUNTIF(G5,$JV$1)+(COUNTIF(H5,$JV$1))))) -> 0 | JW5: =COUNTIF(D5,$JW$1)+(COUNTIF(E5,$JW$1)+(COUNTIF(F5,$JW$1)+(COUNTIF(G5,$JW$1)+(COUNTIF(H5,$JW$1))))) -> 0 | JX5: =COUNTIF(D5,$JX$1)+(COUNTIF(E5,$JX$1)+(COUNTIF(F5,$JX$1)+(COUNTIF(G5,$JX$1)+(COUNTIF(H5,$JX$1))))) -> 0 | JY5: =COUNTIF(D5,$JY$1)+(COUNTIF(E5,$JY$1)+(COUNTIF(F5,$JY$1)+(COUNTIF(G5,$JY$1)+(COUNTIF(H5,$JY$1))))) -> 0 | JZ5: =COUNTIF(D5,$JZ$1)+(COUNTIF(E5,$JZ$1)+(COUNTIF(F5,$JZ$1)+(COUNTIF(G5,$JZ$1)+(COUNTIF(H5,$JZ$1))))) -> 0 | KA5: =COUNTIF(D5,$KA$1)+(COUNTIF(E5,$KA$1)+(COUNTIF(F5,$KA$1)+(COUNTIF(G5,$KA$1)+(COUNTIF(H5,$KA$1))))) -> 0 | KB5: =COUNTIF(D5,$KB$1)+(COUNTIF(E5,$KB$1)+(COUNTIF(F5,$KB$1)+(COUNTIF(G5,$KB$1)+(COUNTIF(H5,$KB$1))))) -> 0 | KC5: =COUNTIF(D5,$KC$1)+(COUNTIF(E5,$KC$1)+(COUNTIF(F5,$KC$1)+(COUNTIF(G5,$KC$1)+(COUNTIF(H5,$KC$1))))) -> 0 | KD5: =COUNTIF(D5,$KD$1)+(COUNTIF(E5,$KD$1)+(COUNTIF(F5,$KD$1)+(COUNTIF(G5,$KD$1)+(COUNTIF(H5,$KD$1))))) -> 0 | KE5: =COUNTIF(D5,$KE$1)+(COUNTIF(E5,$KE$1)+(COUNTIF(F5,$KE$1)+(COUNTIF(G5,$KE$1)+(COUNTIF(H5,$KE$1))))) -> 0 | KF5: =COUNTIF(D5,$KF$1)+(COUNTIF(E5,$KF$1)+(COUNTIF(F5,$KF$1)+(COUNTIF(G5,$KF$1)+(COUNTIF(H5,$KF$1))))) -> 0 | KG5: =COUNTIF(D5,$KG$1)+(COUNTIF(E5,$KG$1)+(COUNTIF(F5,$KG$1)+(COUNTIF(G5,$KG$1)+(COUNTIF(H5,$KG$1))))) -> 0 | KH5: =COUNTIF(D5,$KH$1)+(COUNTIF(E5,$KH$1)+(COUNTIF(F5,$KH$1)+(COUNTIF(G5,$KH$1)+(COUNTIF(H5,$KH$1))))) -> 0 | KI5: =COUNTIF(D5,$KI$1)+(COUNTIF(E5,$KI$1)+(COUNTIF(F5,$KI$1)+(COUNTIF(G5,$KI$1)+(COUNTIF(H5,$KI$1))))) -> 0 | KJ5: =COUNTIF(D5,$KJ$1)+(COUNTIF(E5,$KJ$1)+(COUNTIF(F5,$KJ$1)+(COUNTIF(G5,$KJ$1)+(COUNTIF(H5,$KJ$1))))) -> 0 | KK5: =COUNTIF(D5,$KK$1)+(COUNTIF(E5,$KK$1)+(COUNTIF(F5,$KK$1)+(COUNTIF(G5,$KK$1)+(COUNTIF(H5,$KK$1))))) -> 0 | KL5: =COUNTIF(D5,$KL$1)+(COUNTIF(E5,$KL$1)+(COUNTIF(F5,$KL$1)+(COUNTIF(G5,$KL$1)+(COUNTIF(H5,$KL$1))))) -> 0 | KM5: =COUNTIF(D5,$KM$1)+(COUNTIF(E5,$KM$1)+(COUNTIF(F5,$KM$1)+(COUNTIF(G5,$KM$1)+(COUNTIF(H5,$KM$1))))) -> 0 | KN5: =COUNTIF(D5,$KN$1)+(COUNTIF(E5,$KN$1)+(COUNTIF(F5,$KN$1)+(COUNTIF(G5,$KN$1)+(COUNTIF(H5,$KN$1))))) -> 0 | KO5: =COUNTIF(D5,$KO$1)+(COUNTIF(E5,$KO$1)+(COUNTIF(F5,$KO$1)+(COUNTIF(G5,$KO$1)+(COUNTIF(H5,$KO$1))))) -> 0 | KP5: =COUNTIF(D5,$KP$1)+(COUNTIF(E5,$KP$1)+(COUNTIF(F5,$KP$1)+(COUNTIF(G5,$KP$1)+(COUNTIF(H5,$KP$1))))) -> 0 | KQ5: =COUNTIF(D5,$KQ$1)+(COUNTIF(E5,$KQ$1)+(COUNTIF(F5,$KQ$1)+(COUNTIF(G5,$KQ$1)+(COUNTIF(H5,$KQ$1))))) -> 0 | KR5: =COUNTIF(D5,$KR$1)+(COUNTIF(E5,$KR$1)+(COUNTIF(F5,$KR$1)+(COUNTIF(G5,$KR$1)+(COUNTIF(H5,$KR$1))))) -> 0 | KS5: =COUNTIF(D5,$KS$1)+(COUNTIF(E5,$KS$1)+(COUNTIF(F5,$KS$1)+(COUNTIF(G5,$KS$1)+(COUNTIF(H5,$KS$1))))) -> 0 | KT5: =COUNTIF(D5,$KT$1)+(COUNTIF(E5,$KT$1)+(COUNTIF(F5,$KT$1)+(COUNTIF(G5,$KT$1)+(COUNTIF(H5,$KT$1))))) -> 0 | KU5: =COUNTIF(D5,$KU$1)+(COUNTIF(E5,$KU$1)+(COUNTIF(F5,$KU$1)+(COUNTIF(G5,$KU$1)+(COUNTIF(H5,$KU$1))))) -> 0 | KV5: =COUNTIF(D5,$KV$1)+(COUNTIF(E5,$KV$1)+(COUNTIF(F5,$KV$1)+(COUNTIF(G5,$KV$1)+(COUNTIF(H5,$KV$1))))) -> 0 | KW5: =COUNTIF(D5,$KW$1)+(COUNTIF(E5,$KW$1)+(COUNTIF(F5,$KW$1)+(COUNTIF(G5,$KW$1)+(COUNTIF(H5,$KW$1))))) -> 0
A6: 406 | B6: MERCREDI | C6: 2022-06-22 | D6: 10 | E6: 17 | F6: 23 | G6: 27 | H6: 40 | I6: 2 | J6: 0 | K6: a | L6: 0 | M6: =_xlfn.LET(_xlpm.comp,RIGHT(D6:H6,1),_xlfn._xlws.FILTER(D6:H6,_xlfn.XMATCH(_xlpm.comp,_xlpm.comp)<>_xlfn.XMATCH(_xlpm.comp,_xlpm.comp,,-1))) ->  | Q6: =COUNTIF(#REF!,D6:H6) ->  | V6: =IF(AND(W6>69,W6<164,OR(X6={1;2;3;4})),1,0) -> 1 | W6: 117 | X6: =SUMPRODUCT(( MOD(D6:H6,2)>0)*1) -> 3 | Y6: 0 | Z6: 0 | AA6: 1 | AB6: 0 | AC6: 0 | AD6: 0 | AE6: 2 | AF6: 0 | AG6: 0 | AH6: 2 | AI6: 0 | AJ6: 0 | AK6: 0 | AL6: 0 | AM6: 0 | AN6: 0 | AO6: 1 | AP6: 0 | AQ6: 0 | AR6: 0 | AS6: 0 | AT6: 0 | AU6: 1 | AV6: 0 | AW6: 0 | AX6: 0 | AY6: 1 | AZ6: 0 | BA6: 0 | BB6: 0 | BC6: 0 | BD6: 0 | BE6: 0 | BF6: 0 | BG6: 0 | BH6: 0 | BI6: 0 | BJ6: 0 | BK6: 0 | BL6: 1 | BM6: 0 | BN6: 0 | BO6: 0 | BP6: 0 | BQ6: 0 | BR6: 0 | BS6: 0 | BT6: 0 | BU6: 0 | BV6: 0 | BW6: 2 | BX6: 2 | BY6: 0 | BZ6: 1 | CB6: 0 | CC6: 1 | CD6: 1 | CE6: 0 | CF6: 1 | CG6: 0 | CH6: 0 | CI6: 0 | CJ6: 0 | CK6: 0 | CL6: 0 | CM6: 0 | CN6: 0 | CO6: 0 | CP6: 0 | CQ6: 0 | CR6: 0 | CS6: 0 | CT6: 0 | CU6: 0 | CV6: 0 | CW6: 0 | CX6: 1 | CY6: 0 | CZ6: 0 | DA6: 0 | DB6: 0 | DC6: 0 | DD6: 0 | DE6: 0 | DF6: 0 | DG6: 0 | DH6: 0 | DJ6: 0 | DK6: 0 | DL6: 0 | DM6: 0 | DN6: 0 | DO6: 0 | DP6: 0 | DQ6: 0 | DR6: 0 | DS6: 0 | DT6: 0 | DU6: 0 | DW6: =COUNTIF(#REF!,DL6) ->  | DX6: =COUNTIF(#REF!,DM6) ->  | DY6: =COUNTIF(#REF!,DN6) ->  | DZ6: =COUNTIF(#REF!,DO6) ->  | EA6: =COUNTIF(#REF!,DP6) ->  | EB6: =COUNTIF(#REF!,DQ6) ->  | EC6: =COUNTIF(#REF!,DR6) ->  | ED6: =COUNTIF(#REF!,DS6) ->  | EE6: =COUNTIF(#REF!,DT6) ->  | EF6: =COUNTIF(#REF!,DU6) ->  | EI6: 0 | EJ6: 0 | EK6: 0 | EL6: 0 | EM6: 0 | EN6: 0 | EO6: 0 | EP6: 0 | EQ6: 0 | ER6: 0 | ES6: =COUNTIF(#REF!,I6) ->  | ET6: 0 | EW6: 30 | EX6: =(MID(D6,2,2)*1) -> 0 | EY6: 7 | EZ6: 3 | FA6: 7 | FB6: 0 | FC6: 0 | FD6: 1 | FE6: 2 | FF6: =COUNTIF(EX6,FE6) -> 0 | FG6: =COUNTIF(EY6,FE6) -> 0 | FH6: =COUNTIF(EZ6,FE6) -> 0 | FI6: =COUNTIF(FA6,FE6) -> 0 | FJ6: 0 | FW6: 0 | FX6: 1 | FY6: 1 | FZ6: 1 | GA6: 0 | GE6: =COUNTIF(FW6,">0")*AND(COUNTIF(FX6,">0")) -> 0 | GF6: =COUNTIF(FX6,">0")*AND(COUNTIF(FY6,">0")) -> 1 | GG6: =COUNTIF(FY6,">0")*AND(COUNTIF(FZ6,">0")) -> 1 | GH6: =COUNTIF(FZ6,">0")*AND(COUNTIF(GA6,">0")) -> 0 | GL6: =COUNTIF(FW6,">0")*AND(COUNTIF(FY6,">0")) -> 0 | GM6: =COUNTIF(FX5,">0")*AND(COUNTIF(FZ5,">0")) -> 0 | GN6: =COUNTIF(FY6,">0")*AND(COUNTIF(GA6,">0")) -> 0 | GR6: =COUNTIF(FW6,">0")*AND(COUNTIF(FZ6,">0")) -> 0 | GS6: =COUNTIF(FX6,">0")*AND(COUNTIF(GA6,">0")) -> 0 | GW6: =COUNTIF(FW6,">0")*AND(COUNTIF(GA6,">0")) -> 0 | HA6: 1 | JA6: 0 | JB6: 0 | JC6: 0 | JD6: 0 | JE6: 0 | JF6: 0 | JG6: 0 | JH6: 0 | JI6: 0 | JJ6: 0 | JK6: 0 | JL6: 0 | JM6: 0 | JN6: 0 | JO6: 0 | JP6: 0 | JQ6: 0 | JR6: 0 | JS6: 0 | JT6: 0 | JU6: 0 | JV6: 0 | JW6: 0 | JX6: 0 | JY6: 0 | JZ6: 0 | KA6: 0 | KB6: 0 | KC6: 0 | KD6: 0 | KE6: 0 | KF6: 0 | KG6: 0 | KH6: 0 | KI6: 0 | KJ6: 0 | KK6: 0 | KL6: 0 | KM6: 0 | KN6: 0 | KO6: 0 | KP6: 0 | KQ6: 0 | KR6: 0 | KS6: 0 | KT6: =COUNTIF(D6,$KT$1)+(COUNTIF(E6,$KT$1)+(COUNTIF(F6,$KT$1)+(COUNTIF(G6,$KT$1)+(COUNTIF(H6,$KT$1))))) -> 0 | KU6: =COUNTIF(D6,$KU$1)+(COUNTIF(E6,$KU$1)+(COUNTIF(F6,$KU$1)+(COUNTIF(G6,$KU$1)+(COUNTIF(H6,$KU$1))))) -> 0 | KV6: 0 | KW6: 0
A7: 405 | B7: SAMEDI | C7: 2022-06-25 | D7: 2 | E7: 31 | F7: 40 | G7: 47 | H7: 49 | I7: 9 | J7: 9 | K7: j | L7: 0 | M7: =_xlfn.LET(_xlpm.comp,RIGHT(D7:H7,1),_xlfn._xlws.FILTER(D7:H7,_xlfn.XMATCH(_xlpm.comp,_xlpm.comp)<>_xlfn.XMATCH(_xlpm.comp,_xlpm.comp,,-1))) ->  | Q7: =COUNTIF(D6:H6,D7:H7) ->  | V7: =IF(AND(W7>69,W7<164,OR(X7={1;2;3;4})),1,0) -> 0 | W7: 169 | X7: =SUMPRODUCT(( MOD(D7:H7,2)>0)*1) -> 3 | Y7: 1 | Z7: 1 | AA7: 0 | AB7: 0 | AC7: 0 | AD7: 0 | AE7: 1 | AF7: 0 | AG7: 1 | AH7: 1 | AI7: 0 | AJ7: 0 | AK7: 0 | AL7: 0 | AM7: 0 | AN7: 0 | AO7: 0 | AP7: 0 | AQ7: 0 | AR7: 0 | AS7: 0 | AT7: 0 | AU7: 0 | AV7: 0 | AW7: 0 | AX7: 0 | AY7: 0 | AZ7: 0 | BA7: 0 | BB7: 0 | BC7: 1 | BD7: 0 | BE7: 0 | BF7: 0 | BG7: 0 | BH7: 0 | BI7: 0 | BJ7: 0 | BK7: 0 | BL7: 1 | BM7: 0 | BN7: 0 | BO7: 0 | BP7: 0 | BQ7: 0 | BR7: 0 | BS7: 1 | BT7: 0 | BU7: 1 | BV7: 1 | BW7: 0 | BX7: 0 | BY7: 1 | BZ7: 3 | CB7: 1 | CC7: 0 | CD7: 0 | CE7: 1 | CF7: 1 | CG7: 0 | CH7: 0 | CI7: 0 | CJ7: 0 | CK7: 0 | CL7: 0 | CM7: 0 | CN7: 0 | CO7: 0 | CP7: 1 | CQ7: 0 | CR7: 0 | CS7: 0 | CT7: 0 | CU7: 0 | CV7: 0 | CW7: 0 | CX7: 0 | CY7: 0 | CZ7: 0 | DA7: 0 | DB7: 0 | DC7: 0 | DD7: 0 | DE7: 0 | DF7: 0 | DG7: 0 | DH7: 0 | DJ7: 0 | DK7: 0 | DL7: 0 | DM7: 0 | DN7: 0 | DO7: 0 | DP7: 0 | DQ7: 0 | DR7: 0 | DS7: 0 | DT7: 0 | DU7: 0 | DW7: =COUNTIF(DL6,DL7) -> 1 | DX7: =COUNTIF(DM6,DM7) -> 1 | DY7: =COUNTIF(DN6,DN7) -> 1 | DZ7: =COUNTIF(DO6,DO7) -> 1 | EA7: =COUNTIF(DP6,DP7) -> 1 | EB7: =COUNTIF(DQ6,DQ7) -> 1 | EC7: =COUNTIF(DR6,DR7) -> 1 | ED7: =COUNTIF(DS6,DS7) -> 1 | EE7: =COUNTIF(DT6,DT7) -> 1 | EF7: =COUNTIF(DU6,DU7) -> 1 | EI7: 1 | EJ7: 1 | EK7: 1 | EL7: 1 | EM7: 1 | EN7: 1 | EO7: 1 | EP7: 1 | EQ7: 1 | ER7: 1 | ES7: =COUNTIF(I6,I7) -> 0 | ET7: 1 | EW7: 47 | EX7: =(MID(D7,1,2)*1) -> 2 | EY7: 1 | EZ7: 0 | FA7: 7 | FB7: 9 | FC7: 1 | FD7: 1 | FE7: 9 | FF7: 0 | FG7: 0 | FH7: 0 | FI7: 0 | FJ7: 1 | FW7: 0 | FX7: 1 | FY7: 0 | FZ7: 1 | GA7: 1 | GE7: 0 | GF7: 0 | GG7: 0 | GH7: 1 | GL7: 0 | GM7: 1 | GN7: 0 | GR7: 0 | GS7: 1 | GW7: 0 | HA7: 0 | HD7: 1 | HE7: 2 | HF7: 3 | HG7: 4 | HH7: 5 | HI7: 6 | HJ7: 7 | HK7: 8 | HL7: 9 | HM7: 10 | HN7: 11 | HO7: 12 | HP7: 13 | HQ7: 14 | HR7: 15 | HS7: 16 | HT7: 17 | HU7: 18 | HV7: 19 | HW7: 20 | HX7: 21 | HY7: 22 | HZ7: 23 | IA7: 24 | IB7: 25 | IC7: 26 | ID7: 27 | IE7: 28 | IF7: 29 | IG7: 30 | IH7: 31 | II7: 32 | IJ7: 33 | IK7: 34 | IL7: 35 | IM7: 36 | IN7: 37 | IO7: 38 | IP7: 39 | IQ7: 40 | IR7: 41 | IS7: 42 | IT7: 43 | IU7: 44 | IV7: 45 | IW7: 46 | IX7: 47 | IY7: 48 | IZ7: 49 | JA7: 0 | JB7: 0 | JC7: 0 | JD7: 0 | JE7: 0 | JF7: 0 | JG7: 0 | JH7: 0 | JI7: 0 | JJ7: 0 | JK7: 0 | JL7: 0 | JM7: 0 | JN7: 0 | JO7: 0 | JP7: 0 | JQ7: 0 | JR7: 0 | JS7: 0 | JT7: 0 | JU7: 0 | JV7: 0 | JW7: 0 | JX7: 0 | JY7: 0 | JZ7: 0 | KA7: 0 | KB7: 0 | KC7: 0 | KD7: 0 | KE7: 0 | KF7: 0 | KG7: 0 | KH7: 0 | KI7: 0 | KJ7: 0 | KK7: 0 | KL7: 0 | KM7: 0 | KN7: 0 | KO7: 0 | KP7: 0 | KQ7: 0 | KR7: 0 | KS7: 0 | KT7: 0 | KU7: 0 | KV7: 0 | KW7: 0
A8: 404 | B8: LUNDI | C8: 2022-06-27 | D8: 24 | E8: 31 | F8: 34 | G8: 36 | H8: 37 | I8: 1 | J8: 7 | K8: h | L8: 0 | M8: =_xlfn.LET(_xlpm.comp,RIGHT(D8:H8,1),_xlfn._xlws.FILTER(D8:H8,_xlfn.XMATCH(_xlpm.comp,_xlpm.comp)<>_xlfn.XMATCH(_xlpm.comp,_xlpm.comp,,-1))) ->  | Q8: =COUNTIF(D7:H7,D8:H8) ->  | V8: =IF(AND(W8>69,W8<164,OR(X8={1;2;3;4})),1,0) -> 1 | W8: 162 | X8: =SUMPRODUCT(( MOD(D8:H8,2)>0)*1) -> 2 | Y8: 1 | Z8: 0 | AA8: 0 | AB8: 2 | AC8: 0 | AD8: 1 | AE8: 1 | AF8: 0 | AG8: 0 | AH8: 0 | AI8: 0 | AJ8: 0 | AK8: 0 | AL8: 0 | AM8: 0 | AN8: 0 | AO8: 0 | AP8: 0 | AQ8: 0 | AR8: 0 | AS8: 0 | AT8: 0 | AU8: 0 | AV8: 1 | AW8: 0 | AX8: 0 | AY8: 0 | AZ8: 0 | BA8: 0 | BB8: 0 | BC8: 1 | BD8: 0 | BE8: 0 | BF8: 1 | BG8: 0 | BH8: 1 | BI8: 1 | BJ8: 0 | BK8: 0 | BL8: 0 | BM8: 0 | BN8: 0 | BO8: 0 | BP8: 0 | BQ8: 0 | BR8: 0 | BS8: 0 | BT8: 0 | BU8: 0 | BV8: 0 | BW8: 0 | BX8: 1 | BY8: 4 | BZ8: 0 | CB8: 0 | CC8: 0 | CD8: 1 | CE8: 1 | CF8: 0 | CG8: 0 | CH8: 0 | CI8: 0 | CJ8: 0 | CK8: 0 | CL8: 0 | CM8: 0 | CN8: 0 | CO8: 0 | CP8: 0 | CQ8: 0 | CR8: 0 | CS8: 1 | CT8: 0 | CU8: 0 | CV8: 0 | CW8: 0 | CX8: 0 | CY8: 0 | CZ8: 0 | DA8: 0 | DB8: 0 | DC8: 0 | DD8: 0 | DE8: 0 | DF8: 0 | DG8: 0 | DH8: 0 | DJ8: 0 | DK8: 0 | DL8: 0 | DM8: 0 | DN8: 0 | DO8: 0 | DP8: 0 | DQ8: 0 | DR8: 0 | DS8: 0 | DT8: 0 | DU8: 0 | DW8: 1 | DX8: 1 | DY8: 1 | DZ8: 1 | EA8: 1 | EB8: 1 | EC8: 1 | ED8: 1 | EE8: 1 | EF8: 1 | EI8: 1 | EJ8: 1 | EK8: 1 | EL8: 1 | EM8: 1 | EN8: 1 | EO8: 1 | EP8: 1 | EQ8: 1 | ER8: 1 | ES8: 0 | ET8: 1 | EU8: 1 | EW8: 13 | EX8: =(MID(D8,2,2)*1) -> 4 | EY8: 1 | EZ8: 4 | FA8: 6 | FB8: 7 | FC8: 1 | FD8: 1 | FE8: 1 | FF8: 0 | FG8: 1 | FH8: 0 | FI8: 0 | FJ8: 0 | FN8: 1 | FW8: 0 | FX8: 1 | FY8: 0 | FZ8: 0 | GA8: 1 | GE8: 0 | GF8: 0 | GG8: 0 | GH8: 0 | GL8: 0 | GM8: 1 | GN8: 0 | GR8: 0 | GS8: 1 | GW8: 0 | HA8: 0 | HC8: en 1 | HY8: x | HZ8: x | IC8: x | ID8: x | IE8: x | IF8: x | IG8: x | IH8: x | II8: x | IJ8: x | IK8: x | IL8: x | IM8: x | IN8: x | IO8: x | IP8: x | IQ8: x | IR8: x | IS8: x | JA8: 0 | JB8: 0 | JC8: 0 | JD8: 0 | JE8: 0 | JF8: 0 | JG8: 0 | JH8: 0 | JI8: 0 | JJ8: 0 | JK8: 0 | JL8: 0 | JM8: 0 | JN8: 0 | JO8: 0 | JP8: 0 | JQ8: 0 | JR8: 0 | JS8: 0 | JT8: 0 | JU8: 0 | JV8: 0 | JW8: 0 | JX8: 0 | JY8: 0 | JZ8: 0 | KA8: 0 | KB8: 0 | KC8: 0 | KD8: 0 | KE8: 0 | KF8: 0 | KG8: 0 | KH8: 0 | KI8: 0 | KJ8: 0 | KK8: 0 | KL8: 0 | KM8: 0 | KN8: 0 | KO8: 0 | KP8: 0 | KQ8: 0 | KR8: 0 | KS8: 0 | KT8: 0 | KU8: 0 | KV8: 0 | KW8: 0
A9: 403 | B9: MERCREDI | C9: 2022-06-29 | D9: 16 | E9: 24 | F9: 26 | G9: 43 | H9: 47 | I9: 9 | J9: 7 | K9: h | L9: 0 | M9: =_xlfn.LET(_xlpm.comp,RIGHT(D9:H9,1),_xlfn._xlws.FILTER(D9:H9,_xlfn.XMATCH(_xlpm.comp,_xlpm.comp)<>_xlfn.XMATCH(_xlpm.comp,_xlpm.comp,,-1))) ->  | Q9: =COUNTIF(D8:H8,D9:H9) ->  | V9: =IF(AND(W9>69,W9<164,OR(X9={1;2;3;4})),1,0) -> 1 | W9: 156 | X9: =SUMPRODUCT(( MOD(D9:H9,2)>0)*1) -> 2 | Y9: 0 | Z9: 0 | AA9: 1 | AB9: 1 | AC9: 0 | AD9: 2 | AE9: 1 | AF9: 0 | AG9: 0 | AH9: 0 | AI9: 0 | AJ9: 0 | AK9: 0 | AL9: 0 | AM9: 0 | AN9: 1 | AO9: 0 | AP9: 0 | AQ9: 0 | AR9: 0 | AS9: 0 | AT9: 0 | AU9: 0 | AV9: 1 | AW9: 0 | AX9: 1 | AY9: 0 | AZ9: 0 | BA9: 0 | BB9: 0 | BC9: 0 | BD9: 0 | BE9: 0 | BF9: 0 | BG9: 0 | BH9: 0 | BI9: 0 | BJ9: 0 | BK9: 0 | BL9: 0 | BM9: 0 | BN9: 0 | BO9: 1 | BP9: 0 | BQ9: 0 | BR9: 0 | BS9: 1 | BT9: 0 | BU9: 0 | BV9: 0 | BW9: 1 | BX9: 2 | BY9: 0 | BZ9: 2 | CB9: 0 | CC9: 1 | CD9: 1 | CE9: 0 | CF9: 1 | CG9: 0 | CH9: 0 | CI9: 0 | CJ9: 0 | CK9: 0 | CL9: 0 | CM9: 0 | CN9: 0 | CO9: 0 | CP9: 0 | CQ9: 0 | CR9: 0 | CS9: 0 | CT9: 0 | CU9: 0 | CV9: 0 | CW9: 0 | CX9: 1 | CY9: 0 | CZ9: 0 | DA9: 0 | DB9: 0 | DC9: 0 | DD9: 0 | DE9: 0 | DF9: 0 | DG9: 0 | DH9: 0 | DJ9: 0 | DK9: 0 | DL9: 0 | DM9: 0 | DN9: 0 | DO9: 0 | DP9: 0 | DQ9: 0 | DR9: 0 | DS9: 0 | DT9: 0 | DU9: 0 | DW9: 1 | DX9: 1 | DY9: 1 | DZ9: 1 | EA9: 1 | EB9: 1 | EC9: 1 | ED9: 1 | EE9: 1 | EF9: 1 | EI9: 1 | EJ9: 1 | EK9: 1 | EL9: 1 | EM9: 1 | EN9: 1 | EO9: 1 | EP9: 1 | EQ9: 1 | ER9: 1 | ES9: 0 | ET9: 1 | EW9: 31 | EX9: =(MID(D9,2,2)*1) -> 6 | EY9: 4 | EZ9: 6 | FA9: 3 | FB9: 7 | FC9: 0 | FD9: 1 | FE9: 9 | FF9: 0 | FG9: 0 | FH9: 0 | FI9: 0 | FJ9: 0 | FW9: 0 | FX9: 0 | FY9: 0 | FZ9: 1 | GA9: 1 | GE9: 0 | GF9: 0 | GG9: 0 | GH9: 1 | GL9: 0 | GM9: 0 | GN9: 0 | GR9: 0 | GS9: 0 | GW9: 0 | HA9: 0 | HC9: en 2 | IF9: x | II9: x | IJ9: x | IK9: x | IL9: x | IM9: x | IN9: x | IO9: x | IP9: x | IQ9: x | IR9: x | IS9: x | JA9: 0 | JB9: 0 | JC9: 0 | JD9: 0 | JE9: 0 | JF9: 0 | JG9: 0 | JH9: 0 | JI9: 0 | JJ9: 0 | JK9: 0 | JL9: 0 | JM9: 0 | JN9: 0 | JO9: 0 | JP9: 0 | JQ9: 0 | JR9: 0 | JS9: 0 | JT9: 0 | JU9: 0 | JV9: 0 | JW9: 0 | JX9: 0 | JY9: 0 | JZ9: 0 | KA9: 0 | KB9: 0 | KC9: 0 | KD9: 0 | KE9: 0 | KF9: 0 | KG9: 0 | KH9: 0 | KI9: 0 | KJ9: 0 | KK9: 0 | KL9: 0 | KM9: 0 | KN9: 0 | KO9: 0 | KP9: 0 | KQ9: 0 | KR9: 0 | KS9: 0 | KT9: 0 | KU9: 0 | KV9: 0 | KW9: 0
A10: 402 | B10: SAMEDI | C10: 2022-07-02 | D10: 20 | E10: 22 | F10: 32 | G10: 34 | H10: 46 | I10: 9 | J10: 6 | K10: g | L10: 0 | M10: =_xlfn.LET(_xlpm.comp,RIGHT(D10:H10,1),_xlfn._xlws.FILTER(D10:H10,_xlfn.XMATCH(_xlpm.comp,_xlpm.comp)<>_xlfn.XMATCH(_xlpm.comp,_xlpm.comp,,-1))) ->  | Q10: =COUNTIF(D9:H9,D10:H10) ->  | V10: =IF(AND(W10>69,W10<164,OR(X10={1;2;3;4})),1,0) -> 0 | W10: 154 | X10: =SUMPRODUCT(( MOD(D10:H10,2)>0)*1) -> 0 | Y10: 0 | Z10: 2 | AA10: 0 | AB10: 1 | AC10: 0 | AD10: 1 | AE10: 0 | AF10: 0 | AG10: 0 | AH10: 1 | AI10: 0 | AJ10: 0 | AK10: 0 | AL10: 0 | AM10: 0 | AN10: 0 | AO10: 0 | AP10: 0 | AQ10: 0 | AR10: 1 | AS10: 0 | AT10: 1 | AU10: 0 | AV10: 0 | AW10: 0 | AX10: 0 | AY10: 0 | AZ10: 0 | BA10: 0 | BB10: 0 | BC10: 0 | BD10: 1 | BE10: 0 | BF10: 1 | BG10: 0 | BH10: 0 | BI10: 0 | BJ10: 0 | BK10: 0 | BL10: 0 | BM10: 0 | BN10: 0 | BO10: 0 | BP10: 0 | BQ10: 0 | BR10: 1 | BS10: 0 | BT10: 0 | BU10: 0 | BV10: 0 | BW10: 0 | BX10: 2 | BY10: 2 | BZ10: 1 | CB10: 0 | CC10: 0 | CD10: 1 | CE10: 1 | CF10: 1 | CG10: 0 | CH10: 0 | CI10: 0 | CJ10: 0 | CK10: 0 | CL10: 0 | CM10: 0 | CN10: 1 | CO10: 0 | CP10: 0 | CQ10: 0 | CR10: 0 | CS10: 0 | CT10: 0 | CU10: 0 | CV10: 0 | CW10: 0 | CX10: 0 | CY10: 0 | CZ10: 0 | DA10: 0 | DB10: 0 | DC10: 0 | DD10: 0 | DE10: 0 | DF10: 0 | DG10: 0 | DH10: 0 | DJ10: 0 | DK10: 0 | DL10: 0 | DM10: 0 | DN10: 0 | DO10: 0 | DP10: 0 | DQ10: 0 | DR10: 0 | DS10: 0 | DT10: 0 | DU10: 0 | DW10: 1 | DX10: 1 | DY10: 1 | DZ10: 1 | EA10: 1 | EB10: 1 | EC10: 1 | ED10: 1 | EE10: 1 | EF10: 1 | EI10: 1 | EJ10: 1 | EK10: 1 | EL10: 1 | EM10: 1 | EN10: 1 | EO10: 1 | EP10: 1 | EQ10: 1 | ER10: 1 | ES10: 1 | ET10: 1 | EW10: 26 | EX10: =(MID(D10,2,2)*1) -> 0 | EY10: 2 | EZ10: 2 | FA10: 4 | FB10: 6 | FC10: 0 | FD10: 1 | FE10: 9 | FF10: 0 | FG10: 0 | FH10: 0 | FI10: 0 | FJ10: 0 | FW10: 0 | FX10: 0 | FY10: 0 | FZ10: 0 | GA10: 0 | GE10: 0 | GF10: 0 | GG10: 0 | GH10: 0 | GL10: 0 | GM10: 0 | GN10: 0 | GR10: 0 | GS10: 0 | GW10: 0 | HA10: 1 | HC10: en 3 | HF10: x | HG10: x | HH10: x | HI10: x | HJ10: x | HK10: x | HL10: x | JA10: 0 | JB10: 0 | JC10: 0 | JD10: 0 | JE10: 0 | JF10: 0 | JG10: 0 | JH10: 0 | JI10: 0 | JJ10: 0 | JK10: 0 | JL10: 0 | JM10: 0 | JN10: 0 | JO10: 0 | JP10: 0 | JQ10: 0 | JR10: 0 | JS10: 0 | JT10: 0 | JU10: 0 | JV10: 0 | JW10: 0 | JX10: 0 | JY10: 0 | JZ10: 0 | KA10: 0 | KB10: 0 | KC10: 0 | KD10: 0 | KE10: 0 | KF10: 0 | KG10: 0 | KH10: 0 | KI10: 0 | KJ10: 0 | KK10: 0 | KL10: 0 | KM10: 0 | KN10: 0 | KO10: 0 | KP10: 0 | KQ10: 0 | KR10: 0 | KS10: 0 | KT10: 0 | KU10: 0 | KV10: 0 | KW10: 0
A11: 401 | B11: LUNDI | C11: 2022-07-04 | D11: 4 | E11: 12 | F11: 18 | G11: 20 | H11: 26 | I11: 8 | J11: 6 | K11: g | L11: 0 | M11: =_xlfn.LET(_xlpm.comp,RIGHT(D11:H11,1),_xlfn._xlws.FILTER(D11:H11,_xlfn.XMATCH(_xlpm.comp,_xlpm.comp)<>_xlfn.XMATCH(_xlpm.comp,_xlpm.comp,,-1))) ->  | Q11: =COUNTIF(D10:H10,D11:H11) ->  | V11: =IF(AND(W11>69,W11<164,OR(X11={1;2;3;4})),1,0) -> 0 | W11: 80 | X11: =SUMPRODUCT(( MOD(D11:H11,2)>0)*1) -> 0 | Y11: 0 | Z11: 1 | AA11: 0 | AB11: 1 | AC11: 0 | AD11: 1 | AE11: 0 | AF11: 1 | AG11: 0 | AH11: 1 | AI11: 0 | AJ11: 1 | AK11: 0 | AL11: 0 | AM11: 0 | AN11: 0 | AO11: 0 | AP11: 1 | AQ11: 0 | AR11: 1 | AS11: 0 | AT11: 0 | AU11: 0 | AV11: 0 | AW11: 0 | AX11: 1 | AY11: 0 | AZ11: 0 | BA11: 0 | BB11: 0 | BC11: 0 | BD11: 0 | BE11: 0 | BF11: 0 | BG11: 0 | BH11: 0 | BI11: =COUNTIF((D11:H11),BI$1) -> 0 | BJ11: =COUNTIF((D11:H11),BJ$1) -> 0 | BK11: =COUNTIF((D11:H11),BK$1) -> 0 | BL11: =COUNTIF((D11:H11),BL$1) -> 0 | BM11: =COUNTIF((D11:H11),BM$1) -> 0 | BN11: =COUNTIF((D11:H11),BN$1) -> 0 | BO11: =COUNTIF((D11:H11),BO$1) -> 0 | BP11: =COUNTIF((D11:H11),BP$1) -> 0 | BQ11: =COUNTIF((D11:H11),BQ$1) -> 0 | BR11: =COUNTIF((D11:H11),BR$1) -> 0 | BS11: =COUNTIF((D11:H11),BS$1) -> 0 | BT11: =COUNTIF((D11:H11),BT$1) -> 0 | BU11: =COUNTIF((D11:H11),BU$1) -> 0 | BV11: 1 | BW11: 2 | BX11: 2 | BY11: 0 | BZ11: 0 | CB11: 1 | CC11: 1 | CD11: 1 | CE11: 0 | CF11: 0 | CG11: 0 | CH11: 0 | CI11: 0 | CJ11: 0 | CK11: 0 | CL11: 0 | CM11: 0 | CN11: 0 | CO11: 0 | CP11: 0 | CQ11: 1 | CR11: 0 | CS11: 0 | CT11: 0 | CU11: 0 | CV11: 0 | CW11: 0 | CX11: 0 | CY11: 0 | CZ11: 0 | DA11: 0 | DB11: 0 | DC11: 0 | DD11: 0 | DE11: 0 | DF11: 0 | DG11: 0 | DH11: 0 | DJ11: 0 | DK11: 0 | DL11: 0 | DM11: 0 | DN11: 0 | DO11: 0 | DP11: 0 | DQ11: 0 | DR11: 0 | DS11: 0 | DT11: 0 | DU11: 0 | DW11: 1 | DX11: 1 | DY11: 1 | DZ11: 1 | EA11: 1 | EB11: 1 | EC11: 1 | ED11: 1 | EE11: 1 | EF11: 1 | EI11: 1 | EJ11: 1 | EK11: 1 | EL11: 1 | EM11: 1 | EN11: 1 | EO11: 1 | EP11: 1 | EQ11: 1 | ER11: 1 | ES11: 0 | ET11: 0 | EW11: 22 | EX11: =(MID(D11,1,2)*1) -> 4 | EY11: 2 | EZ11: 8 | FA11: 0 | FB11: 6 | FC11: 1 | FD11: 1 | FE11: 8 | FF11: 0 | FG11: 0 | FH11: 1 | FI11: 0 | FJ11: 0 | FW11: 0 | FX11: 0 | FY11: 0 | FZ11: 0 | GA11: 0 | GE11: 0 | GF11: 0 | GG11: 0 | GH11: 0 | GL11: 0 | GM11: 0 | GN11: 0 | GR11: 0 | GS11: 0 | GW11: 0 | HA11: 1 | HC11: en 4 | HG11: x | HH11: x | HI11: x | HJ11: x | HK11: x | HL11: x | HM11: x | HN11: x | HO11: x | HQ11: x | HR11: x | HU11: x | JA11: 0 | JB11: 0 | JC11: 0 | JD11: 0 | JE11: 0 | JF11: 0 | JG11: 0 | JH11: 0 | JI11: 0 | JJ11: 0 | JK11: 0 | JL11: 0 | JM11: 0 | JN11: 0 | JO11: 0 | JP11: 0 | JQ11: 0 | JR11: 0 | JS11: 0 | JT11: 0 | JU11: 0 | JV11: 0 | JW11: 0 | JX11: 0 | JY11: 0 | JZ11: 0 | KA11: 0 | KB11: 0 | KC11: 0 | KD11: 0 | KE11: 0 | KF11: 0 | KG11: 0 | KH11: 0 | KI11: 0 | KJ11: =COUNTIF(D11,$KJ$1)+(COUNTIF(E11,$KJ$1)+(COUNTIF(F11,$KJ$1)+(COUNTIF(G11,$KJ$1)+(COUNTIF(H11,$KJ$1))))) -> 0 | KK11: =COUNTIF(D11,$KK$1)+(COUNTIF(E11,$KK$1)+(COUNTIF(F11,$KK$1)+(COUNTIF(G11,$KK$1)+(COUNTIF(H11,$KK$1))))) -> 0 | KL11: =COUNTIF(D11,$KL$1)+(COUNTIF(E11,$KL$1)+(COUNTIF(F11,$KL$1)+(COUNTIF(G11,$KL$1)+(COUNTIF(H11,$KL$1))))) -> 0 | KM11: =COUNTIF(D11,$KM$1)+(COUNTIF(E11,$KM$1)+(COUNTIF(F11,$KM$1)+(COUNTIF(G11,$KM$1)+(COUNTIF(H11,$KM$1))))) -> 0 | KN11: 0 | KO11: 0 | KP11: 0 | KQ11: 0 | KR11: 0 | KS11: 0 | KT11: 0 | KU11: 0 | KV11: 0 | KW11: 0
A12: 400 | B12: MERCREDI | C12: 2022-07-06 | D12: 10 | E12: 16 | F12: 25 | G12: 43 | H12: 44 | I12: 4 | J12: 4 | K12: e | L12: 0 | M12: =_xlfn.LET(_xlpm.comp,RIGHT(D12:H12,1),_xlfn._xlws.FILTER(D12:H12,_xlfn.XMATCH(_xlpm.comp,_xlpm.comp)<>_xlfn.XMATCH(_xlpm.comp,_xlpm.comp,,-1))) ->  | Q12: =COUNTIF(D11:H11,D12:H12) ->  | V12: =IF(AND(W12>69,W12<164,OR(X12={1;2;3;4})),1,0) -> 1 | W12: 138 | X12: =SUMPRODUCT(( MOD(D12:H12,2)>0)*1) -> 2 | Y12: 0 | Z12: 0 | AA12: 1 | AB12: 1 | AC12: 1 | AD12: 1 | AE12: 0 | AF12: 0 | AG12: 0 | AH12: 1 | AI12: 0 | AJ12: 0 | AK12: 0 | AL12: 0 | AM12: 0 | AN12: 1 | AO12: 0 | AP12: 0 | AQ12: 0 | AR12: 0 | AS12: 0 | AT12: 0 | AU12: 0 | AV12: 0 | AW12: 1 | AX12: 0 | AY12: 0 | AZ12: 0 | BA12: 0 | BB12: 0 | BC12: 0 | BD12: 0 | BE12: 0 | BF12: 0 | BG12: 0 | BH12: 0 | BI12: 0 | BJ12: 0 | BK12: 0 | BL12: 0 | BM12: 0 | BN12: 0 | BO12: 1 | BP12: 1 | BQ12: 0 | BR12: 0 | BS12: 0 | BT12: 0 | BU12: 0 | BV12: 0 | BW12: 2 | BX12: 1 | BY12: 0 | BZ12: 2 | CB12: 0 | CC12: 1 | CD12: 1 | CE12: 0 | CF12: 1 | CG12: 0 | CH12: 0 | CI12: 0 | CJ12: 0 | CK12: 0 | CL12: 0 | CM12: 0 | CN12: 0 | CO12: 0 | CP12: 0 | CQ12: 0 | CR12: 0 | CS12: 0 | CT12: 0 | CU12: 0 | CV12: 0 | CW12: 0 | CX12: 1 | CY12: 0 | CZ12: 0 | DA12: 0 | DB12: 0 | DC12: 0 | DD12: 0 | DE12: 0 | DF12: 0 | DG12: 0 | DH12: 0 | DJ12: 0 | DK12: 0 | DL12: 0 | DM12: 0 | DN12: 0 | DO12: 0 | DP12: 0 | DQ12: 0 | DR12: 0 | DS12: 0 | DT12: 0 | DU12: 0 | DW12: 1 | DX12: 1 | DY12: 1 | DZ12: 1 | EA12: 1 | EB12: 1 | EC12: 1 | ED12: 1 | EE12: 1 | EF12: 1 | EI12: 1 | EJ12: 1 | EK12: 1 | EL12: 1 | EM12: 1 | EN12: 1 | EO12: 1 | EP12: 1 | EQ12: 1 | ER12: 1 | ES12: 0 | ET12: 0 | EU12: 1 | EW12: 34 | EX12: =(MID(D12,2,2)*1) -> 0 | EY12: 6 | EZ12: 5 | FA12: 3 | FB12: 4 | FC12: 1 | FD12: 1 | FE12: 4 | FF12: 0 | FG12: 0 | FH12: 0 | FI12: 0 | FJ12: 1 | FN12: 1 | FW12: 0 | FX12: 0 | FY12: 1 | FZ12: 1 | GA12: 0 | GE12: 0 | GF12: 0 | GG12: 1 | GH12: 0 | GL12: 0 | GM12: 0 | GN12: 0 | GR12: 0 | GS12: 0 | GW12: 0 | HA12: 0 | HC12: en 5 | HH12: x | HI12: x | HJ12: x | HK12: x | HL12: x | HM12: x | HN12: x | HO12: x | HP12: x | HQ12: x | HR12: x | HS12: x | HU12: x | HV12: x | HW12: x | HX12: x | HZ12: x | IB12: x | IJ12: x | JA12: 0 | JB12: 0 | JC12: 0 | JD12: 0 | JE12: 0 | JF12: 0 | JG12: 0 | JH12: 0 | JI12: 0 | JJ12: 0 | JK12: 0 | JL12: 0 | JM12: 0 | JN12: 0 | JO12: 0 | JP12: 0 | JQ12: 0 | JR12: 0 | JS12: 0 | JT12: 0 | JU12: 0 | JV12: 0 | JW12: 0 | JX12: 0 | JY12: 0 | JZ12: 0 | KA12: 0 | KB12: 0 | KC12: 0 | KD12: 0 | KE12: 0 | KF12: 0 | KG12: 0 | KH12: 0 | KI12: 0 | KJ12: 0 | KK12: 0 | KL12: 0 | KM12: 0 | KN12: 0 | KO12: 0 | KP12: 0 | KQ12: 0 | KR12: 0 | KS12: 0 | KT12: 0 | KU12: 0 | KV12: 0 | KW12: 0
A13: 399 | B13: SAMEDI | C13: 2022-07-09 | D13: 8 | E13: 9 | F13: 24 | G13: 34 | H13: 37 | I13: 2 | J13: 7 | K13: h | L13: 0 | M13: =_xlfn.LET(_xlpm.comp,RIGHT(D13:H13,1),_xlfn._xlws.FILTER(D13:H13,_xlfn.XMATCH(_xlpm.comp,_xlpm.comp)<>_xlfn.XMATCH(_xlpm.comp,_xlpm.comp,,-1))) ->  | Q13: =COUNTIF(D12:H12,D13:H13) ->  | V13: =IF(AND(W13>69,W13<164,OR(X13={1;2;3;4})),1,0) -> 1 | W13: 112 | X13: =SUMPRODUCT(( MOD(D13:H13,2)>0)*1) -> 2 | Y13: 0 | Z13: 0 | AA13: 0 | AB13: 2 | AC13: 0 | AD13: 0 | AE13: 1 | AF13: 1 | AG13: 1 | AH13: 0 | AI13: 0 | AJ13: 0 | AK13: 0 | AL13: 0 | AM13: 0 | AN13: 0 | AO13: 0 | AP13: 0 | AQ13: 0 | AR13: 0 | AS13: 0 | AT13: 0 | AU13: 0 | AV13: 1 | AW13: 0 | AX13: 0 | AY13: 0 | AZ13: 0 | BA13: 0 | BB13: 0 | BC13: 0 | BD13: 0 | BE13: 0 | BF13: 1 | BG13: 0 | BH13: 0 | BI13: 1 | BJ13: 0 | BK13: 0 | BL13: 0 | BM13: 0 | BN13: 0 | BO13: 0 | BP13: 0 | BQ13: 0 | BR13: 0 | BS13: 0 | BT13: 0 | BU13: 0 | BV13: 2 | BW13: 0 | BX13: 1 | BY13: 2 | BZ13: 0 | CB13: 1 | CC13: 0 | CD13: 1 | CE13: 1 | CF13: 0 | CG13: 0 | CH13: 0 | CI13: 0 | CJ13: 0 | CK13: 0 | CL13: 0 | CM13: 1 | CN13: 0 | CO13: 0 | CP13: 0 | CQ13: 0 | CR13: 0 | CS13: 0 | CT13: 0 | CU13: 0 | CV13: 0 | CW13: 0 | CX13: 0 | CY13: 0 | CZ13: 0 | DA13: 0 | DB13: 0 | DC13: 0 | DD13: 0 | DE13: 0 | DF13: 0 | DG13: 0 | DH13: 0 | DJ13: 0 | DK13: 0 | DL13: 0 | DM13: 0 | DN13: 0 | DO13: 0 | DP13: 0 | DQ13: 0 | DR13: 0 | DS13: 0 | DT13: 0 | DU13: 0 | DW13: 1 | DX13: 1 | DY13: 1 | DZ13: 1 | EA13: 1 | EB13: 1 | EC13: 1 | ED13: 1 | EE13: 1 | EF13: 1 | EI13: 1 | EJ13: 1 | EK13: 1 | EL13: 1 | EM13: 1 | EN13: 1 | EO13: 1 | EP13: 1 | EQ13: 1 | ER13: 1 | ES13: 0 | ET13: 0 | EU13: 1 | EW13: 29 | EX13: =(MID(D13,1,2)*1) -> 8 | EY13: =(MID(E13,1,1)*1) -> 9 | EZ13: 4 | FA13: 4 | FB13: 7 | FC13: 0 | FD13: 1 | FE13: 2 | FF13: 0 | FG13: 0 | FH13: 0 | FI13: 0 | FJ13: 0 | FK13: 1 | FW13: 0 | FX13: 1 | FY13: 0 | FZ13: 0 | GA13: 1 | GE13: 0 | GF13: 0 | GG13: 0 | GH13: 0 | GL13: 0 | GM13: 0 | GN13: 0 | GR13: 0 | GS13: 1 | GW13: 0 | HA13: 0 | JA13: 0 | JB13: 0 | JC13: 0 | JD13: 0 | JE13: 0 | JF13: 0 | JG13: 0 | JH13: 0 | JI13: 0 | JJ13: 0 | JK13: 0 | JL13: 0 | JM13: 0 | JN13: 0 | JO13: 0 | JP13: 0 | JQ13: 0 | JR13: 0 | JS13: 0 | JT13: 0 | JU13: 0 | JV13: 0 | JW13: 0 | JX13: 0 | JY13: 0 | JZ13: 0 | KA13: 0 | KB13: 0 | KC13: 0 | KD13: 0 | KE13: 0 | KF13: 0 | KG13: 0 | KH13: 0 | KI13: 0 | KJ13: 0 | KK13: 0 | KL13: 0 | KM13: 0 | KN13: 0 | KO13: 0 | KP13: 0 | KQ13: 0 | KR13: 0 | KS13: 0 | KT13: 0 | KU13: 0 | KV13: 0 | KW13: 0
A14: 398 | B14: LUNDI | C14: 2022-07-11 | D14: 1 | E14: 5 | F14: 10 | G14: 47 | H14: 49 | I14: 1 | J14: 9 | K14: j | L14: 0 | M14: =_xlfn.LET(_xlpm.comp,RIGHT(D14:H14,1),_xlfn._xlws.FILTER(D14:H14,_xlfn.XMATCH(_xlpm.comp,_xlpm.comp)<>_xlfn.XMATCH(_xlpm.comp,_xlpm.comp,,-1))) ->  | Q14: =COUNTIF(D13:H13,D14:H14) ->  | V14: =IF(AND(W14>69,W14<164,OR(X14={1;2;3;4})),1,0) -> 1 | W14: 112 | X14: =SUMPRODUCT(( MOD(D14:H14,2)>0)*1) -> 4 | Y14: 1 | Z14: 0 | AA14: 0 | AB14: 0 | AC14: 1 | AD14: 0 | AE14: 1 | AF14: 0 | AG14: 1 | AH14: 1 | AI14: 0 | AJ14: 0 | AK14: 0 | AL14: 0 | AM14: 0 | AN14: 0 | AO14: 0 | AP14: 0 | AQ14: 0 | AR14: 0 | AS14: 0 | AT14: 0 | AU14: 0 | AV14: 0 | AW14: 0 | AX14: 0 | AY14: 0 | AZ14: 0 | BA14: 0 | BB14: 0 | BC14: 0 | BD14: 0 | BE14: 0 | BF14: 0 | BG14: 0 | BH14: 0 | BI14: 0 | BJ14: 0 | BK14: 0 | BL14: 0 | BM14: 0 | BN14: 0 | BO14: 0 | BP14: 0 | BQ14: 0 | BR14: 0 | BS14: 1 | BT14: 0 | BU14: 1 | BV14: 2 | BW14: 1 | BX14: 0 | BY14: 0 | BZ14: 2 | CB14: 1 | CC14: 1 | CD14: 0 | CE14: 0 | CF14: 1 | CG14: 0 | CH14: 0 | CI14: 0 | CJ14: 0 | CK14: 0 | CL14: 0 | CM14: 0 | CN14: 0 | CO14: 1 | CP14: 0 | CQ14: 0 | CR14: 0 | CS14: 0 | CT14: 0 | CU14: 0 | CV14: 0 | CW14: 0 | CX14: 0 | CY14: 0 | CZ14: 0 | DA14: 0 | DB14: 0 | DC14: 0 | DD14: 0 | DE14: 0 | DF14: 0 | DG14: 0 | DH14: 0 | DJ14: 0 | DK14: 0 | DL14: 0 | DM14: 0 | DN14: 0 | DO14: 0 | DP14: 0 | DQ14: 0 | DR14: 0 | DS14: 0 | DT14: 0 | DU14: 0 | DW14: 1 | DX14: 1 | DY14: 1 | DZ14: 1 | EA14: 1 | EB14: 1 | EC14: 1 | ED14: 1 | EE14: 1 | EF14: 1 | EI14: 1 | EJ14: 1 | EK14: 1 | EL14: 1 | EM14: 1 | EN14: 1 | EO14: 1 | EP14: 1 | EQ14: 1 | ER14: 1 | ES14: 0 | ET14: 1 | EW14: 48 | EX14: =(MID(D14,1,2)*1) -> 1 | EY14: =(MID(E14,1,1)*1) -> 5 | EZ14: 0 | FA14: 7 | FB14: 9 | FC14: 1 | FD14: 1 | FE14: 1 | FF14: 1 | FG14: 0 | FH14: 0 | FI14: 0 | FJ14: 0 | FW14: 1 | FX14: 1 | FY14: 0 | FZ14: 1 | GA14: 1 | GE14: 1 | GF14: 0 | GG14: 0 | GH14: 1 | GL14: 0 | GM14: 0 | GN14: 0 | GR14: 1 | GS14: 1 | GW14: 1 | HA14: 1 | JA14: 0 | JB14: 0 | JC14: 0 | JD14: 0 | JE14: 0 | JF14: 0 | JG14: 0 | JH14: 0 | JI14: 0 | JJ14: 0 | JK14: 0 | JL14: 0 | JM14: 0 | JN14: 0 | JO14: 0 | JP14: 0 | JQ14: 0 | JR14: 0 | JS14: 0 | JT14: 0 | JU14: 0 | JV14: 0 | JW14: 0 | JX14: 0 | JY14: 0 | JZ14: 0 | KA14: 0 | KB14: 0 | KC14: 0 | KD14: 0 | KE14: 0 | KF14: 0 | KG14: 0 | KH14: 0 | KI14: 0 | KJ14: 0 | KK14: 0 | KL14: 0 | KM14: 0 | KN14: 0 | KO14: 0 | KP14: 0 | KQ14: 0 | KR14: 0 | KS14: 0 | KT14: 0 | KU14: 0 | KV14: 0 | KW14: 0
A15: 397 | B15: MERCREDI | C15: 2022-07-13 | D15: 7 | E15: 30 | F15: 31 | G15: 46 | H15: 48 | I15: 3 | J15: 8 | K15: i | L15: 0 | M15: =_xlfn.LET(_xlpm.comp,RIGHT(D15:H15,1),_xlfn._xlws.FILTER(D15:H15,_xlfn.XMATCH(_xlpm.comp,_xlpm.comp)<>_xlfn.XMATCH(_xlpm.comp,_xlpm.comp,,-1))) ->  | Q15: =COUNTIF(D14:H14,D15:H15) ->  | V15: =IF(AND(W15>69,W15<164,OR(X15={1;2;3;4})),1,0) -> 1 | W15: 162 | X15: =SUMPRODUCT(( MOD(D15:H15,2)>0)*1) -> 2 | Y15: 1 | Z15: 0 | AA15: 0 | AB15: 0 | AC15: 0 | AD15: 1 | AE15: 1 | AF15: 1 | AG15: 0 | AH15: 1 | AI15: 0 | AJ15: 0 | AK15: 0 | AL15: 0 | AM15: 0 | AN15: 0 | AO15: 0 | AP15: 0 | AQ15: =COUNTIF(($D15:$H15),AQ$1) -> 0 | AR15: 0 | AS15: 0 | AT15: 0 | AU15: 0 | AV15: 0 | AW15: 0 | AX15: 0 | AY15: 0 | AZ15: 0 | BA15: 0 | BB15: 1 | BC15: 1 | BD15: 0 | BE15: 0 | BF15: 0 | BG15: 0 | BH15: 0 | BI15: 0 | BJ15: 0 | BK15: 0 | BL15: 0 | BM15: 0 | BN15: 0 | BO15: 0 | BP15: 0 | BQ15: 0 | BR15: 1 | BS15: 0 | BT15: 1 | BU15: 0 | BV15: 1 | BW15: 0 | BX15: 0 | BY15: 2 | BZ15: 2 | CB15: 1 | CC15: 0 | CD15: 0 | CE15: 1 | CF15: 1 | CG15: 0 | CH15: 0 | CI15: 0 | CJ15: 0 | CK15: 0 | CL15: 0 | CM15: 0 | CN15: 0 | CO15: 0 | CP15: 1 | CQ15: 0 | CR15: 0 | CS15: 0 | CT15: 0 | CU15: 0 | CV15: 0 | CW15: 0 | CX15: 0 | CY15: 0 | CZ15: 0 | DA15: 0 | DB15: 0 | DC15: 0 | DD15: 0 | DE15: 0 | DF15: 0 | DG15: 0 | DH15: 0 | DJ15: 0 | DK15: 0 | DL15: 0 | DM15: 0 | DN15: 0 | DO15: 0 | DP15: 0 | DQ15: 0 | DR15: 0 | DS15: 0 | DT15: 0 | DU15: 0 | DW15: 1 | DX15: 1 | DY15: 1 | DZ15: 1 | EA15: 1 | EB15: 1 | EC15: 1 | ED15: 1 | EE15: 1 | EF15: 1 | EI15: 1 | EJ15: 1 | EK15: 1 | EL15: 1 | EM15: 1 | EN15: 1 | EO15: 1 | EP15: 1 | EQ15: 1 | ER15: 1 | ES15: 0 | ET15: 1 | EU15: 1 | EW15: 41 | EX15: =(MID(D15,1,2)*1) -> 7 | EY15: 0 | EZ15: 1 | FA15: 6 | FB15: 8 | FC15: 0 | FD15: 1 | FE15: 3 | FF15: 0 | FG15: 0 | FH15: 0 | FI15: 0 | FJ15: 0 | FL15: 1 | FW15: 1 | FX15: 0 | FY15: 1 | FZ15: 0 | GA15: 0 | GE15: 0 | GF15: 0 | GG15: 0 | GH15: 0 | GL15: 1 | GM15: 1 | GN15: 0 | GR15: 0 | GS15: 0 | GW15: 0 | HA15: 0 | JA15: 0 | JB15: 0 | JC15: 0 | JD15: 0 | JE15: 0 | JF15: 0 | JG15: 0 | JH15: 0 | JI15: 0 | JJ15: 0 | JK15: 0 | JL15: 0 | JM15: 0 | JN15: 0 | JO15: 0 | JP15: 0 | JQ15: 0 | JR15: 0 | JS15: 0 | JT15: 0 | JU15: 0 | JV15: 0 | JW15: 0 | JX15: 0 | JY15: 0 | JZ15: 0 | KA15: 0 | KB15: 0 | KC15: 0 | KD15: 0 | KE15: 0 | KF15: 0 | KG15: 0 | KH15: 0 | KI15: 0 | KJ15: 0 | KK15: 0 | KL15: 0 | KM15: 0 | KN15: 0 | KO15: 0 | KP15: 0 | KQ15: 0 | KR15: 0 | KS15: 0 | KT15: 0 | KU15: 0 | KV15: 0 | KW15: 0
A16: 396 | B16: SAMEDI | C16: 2022-07-16 | D16: 3 | E16: 4 | F16: 14 | G16: 33 | H16: 49 | I16: 3 | J16: 9 | K16: j | L16: 0 | M16: =_xlfn.LET(_xlpm.comp,RIGHT(D16:H16,1),_xlfn._xlws.FILTER(D16:H16,_xlfn.XMATCH(_xlpm.comp,_xlpm.comp)<>_xlfn.XMATCH(_xlpm.comp,_xlpm.comp,,-1))) ->  | Q16: =COUNTIF(D15:H15,D16:H16) ->  | V16: =IF(AND(W16>69,W16<164,OR(X16={1;2;3;4})),1,0) -> 1 | W16: 103 | X16: =SUMPRODUCT(( MOD(D16:H16,2)>0)*1) -> 3 | Y16: 0 | Z16: 0 | AA16: 2 | AB16: 2 | AC16: 0 | AD16: 0 | AE16: 0 | AF16: 0 | AG16: 1 | AH16: 0 | AI16: 0 | AJ16: 0 | AK16: 0 | AL16: 1 | AM16: 0 | AN16: 0 | AO16: 0 | AP16: 0 | AQ16: 0 | AR16: 0 | AS16: 0 | AT16: 0 | AU16: 0 | AV16: 0 | AW16: 0 | AX16: 0 | AY16: 0 | AZ16: 0 | BA16: 0 | BB16: 0 | BC16: 0 | BD16: 0 | BE16: 1 | BF16: 0 | BG16: 0 | BH16: 0 | BI16: 0 | BJ16: 0 | BK16: 0 | BL16: 0 | BM16: 0 | BN16: 0 | BO16: 0 | BP16: 0 | BQ16: 0 | BR16: 0 | BS16: 0 | BT16: 0 | BU16: 1 | BV16: 2 | BW16: 1 | BX16: 0 | BY16: 1 | BZ16: 1 | CB16: 1 | CC16: 1 | CD16: 0 | CE16: 1 | CF16: 1 | CG16: 0 | CH16: 0 | CI16: 0 | CJ16: 1 | CK16: 0 | CL16: 0 | CM16: 0 | CN16: 0 | CO16: 0 | CP16: 0 | CQ16: 0 | CR16: 0 | CS16: 0 | CT16: 0 | CU16: 0 | CV16: 0 | CW16: 0 | CX16: 0 | CY16: 0 | CZ16: 0 | DA16: 0 | DB16: 0 | DC16: 0 | DD16: 0 | DE16: 0 | DF16: 0 | DG16: 0 | DH16: 0 | DJ16: 0 | DK16: 0 | DL16: 0 | DM16: 0 | DN16: 0 | DO16: 0 | DP16: 0 | DQ16: 0 | DR16: 0 | DS16: 0 | DT16: 0 | DU16: 0 | DW16: 1 | DX16: 1 | DY16: 1 | DZ16: 1 | EA16: 1 | EB16: 1 | EC16: 1 | ED16: 1 | EE16: 1 | EF16: 1 | EI16: 1 | EJ16: 1 | EK16: 1 | EL16: 1 | EM16: 1 | EN16: 1 | EO16: 1 | EP16: 1 | EQ16: 1 | ER16: 1 | ES16: 1 | ET16: 1 | EU16: 1 | EW16: 46 | EX16: =(MID(D16,1,2)*1) -> 3 | EY16: =(MID(E16,1,1)*1) -> 4 | EZ16: 4 | FA16: 3 | FB16: 9 | FC16: 2 | FD16: 1 | FE16: 3 | FF16: 1 | FG16: 0 | FH16: 0 | FI16: 1 | FJ16: 0 | FK16: 1 | FW16: 1 | FX16: 0 | FY16: 0 | FZ16: 1 | GA16: 1 | GE16: 0 | GF16: 0 | GG16: 0 | GH16: 1 | GL16: 0 | GM16: 0 | GN16: 0 | GR16: 1 | GS16: 0 | GW16: 1 | HA16: 0 | JA16: 0 | JB16: 0 | JC16: 0 | JD16: 0 | JE16: 0 | JF16: 0 | JG16: 0 | JH16: 0 | JI16: 0 | JJ16: 0 | JK16: 0 | JL16: 0 | JM16: 0 | JN16: 0 | JO16: 0 | JP16: 0 | JQ16: 0 | JR16: 0 | JS16: 0 | JT16: 0 | JU16: 0 | JV16: 0 | JW16: 0 | JX16: 0 | JY16: 0 | JZ16: 0 | KA16: 0 | KB16: 0 | KC16: 0 | KD16: 0 | KE16: 0 | KF16: 0 | KG16: 0 | KH16: 0 | KI16: 0 | KJ16: 0 | KK16: 0 | KL16: 0 | KM16: 0 | KN16: 0 | KO16: 0 | KP16: 0 | KQ16: 0 | KR16: 0 | KS16: 0 | KT16: 0 | KU16: 0 | KV16: 0 | KW16: 0
A17: 395 | B17: LUNDI | C17: 2022-07-18 | D17: 5 | E17: 18 | F17: 29 | G17: 37 | H17: 49 | I17: 8 | J17: 9 | K17: j | L17: 0 | M17: =_xlfn.LET(_xlpm.comp,RIGHT(D17:H17,1),_xlfn._xlws.FILTER(D17:H17,_xlfn.XMATCH(_xlpm.comp,_xlpm.comp)<>_xlfn.XMATCH(_xlpm.comp,_xlpm.comp,,-1))) ->  | Q17: =COUNTIF(D16:H16,D17:H17) ->  | V17: =IF(AND(W17>69,W17<164,OR(X17={1;2;3;4})),1,0) -> 1 | W17: 138 | X17: =SUMPRODUCT(( MOD(D17:H17,2)>0)*1) -> 4 | Y17: 0 | Z17: 0 | AA17: 0 | AB17: 0 | AC17: 1 | AD17: 0 | AE17: 1 | AF17: 1 | AG17: 2 | AH17: 0 | AI17: 0 | AJ17: 0 | AK17: 0 | AL17: 0 | AM17: 0 | AN17: 0 | AO17: 0 | AP17: 1 | AQ17: 0 | AR17: 0 | AS17: 0 | AT17: 0 | AU17: 0 | AV17: 0 | AW17: 0 | AX17: 0 | AY17: 0 | AZ17: 0 | BA17: 1 | BB17: 0 | BC17: 0 | BD17: 0 | BE17: 0 | BF17: 0 | BG17: 0 | BH17: 0 | BI17: 1 | BJ17: 0 | BK17: 0 | BL17: 0 | BM17: 0 | BN17: 0 | BO17: 0 | BP17: 0 | BQ17: 0 | BR17: 0 | BS17: 0 | BT17: 0 | BU17: 1 | BV17: 1 | BW17: 1 | BX17: 1 | BY17: 1 | BZ17: 1 | CA17: 1 | CB17: 1 | CC17: 1 | CD17: 1 | CE17: 1 | CF17: 1 | CG17: 1 | CH17: 0 | CI17: 0 | CJ17: 0 | CK17: 0 | CL17: 0 | CM17: 0 | CN17: 0 | CO17: 0 | CP17: 0 | CQ17: 0 | CR17: 0 | CS17: 0 | CT17: 0 | CU17: 0 | CV17: 0 | CW17: 0 | CX17: 0 | CY17: 0 | CZ17: 0 | DA17: 0 | DB17: 0 | DC17: 0 | DD17: 0 | DE17: 0 | DF17: 0 | DG17: 0 | DH17: 0 | DJ17: 0 | DK17: 0 | DL17: 0 | DM17: 0 | DN17: 0 | DO17: 0 | DP17: 0 | DQ17: 0 | DR17: 0 | DS17: 0 | DT17: 0 | DU17: 0 | DW17: 1 | DX17: 1 | DY17: 1 | DZ17: 1 | EA17: 1 | EB17: 1 | EC17: 1 | ED17: 1 | EE17: 1 | EF17: 1 | EI17: =COUNTIF(DW17,"=1") -> 1 | EJ17: =COUNTIF(DX17,"=1") -> 1 | EK17: =COUNTIF(DY17,"=1") -> 1 | EL17: =COUNTIF(DZ17,"=1") -> 1 | EM17: =COUNTIF(EA17,"=1") -> 1 | EN17: =COUNTIF(EB17,"=1") -> 1 | EO17: =COUNTIF(EC17,"=1") -> 1 | EP17: =COUNTIF(ED17,"=1") -> 1 | EQ17: =COUNTIF(EE17,"=1") -> 1 | ER17: =COUNTIF(EF17,"=1") -> 1 | ES17: 0 | ET17: 0 | EW17: 44 | EX17: =(MID(D17,1,2)*1) -> 5 | EY17: 8 | EZ17: 9 | FA17: 7 | FB17: 9 | FC17: 1 | FD17: 1 | FE17: 8 | FF17: 0 | FG17: 1 | FH17: 0 | FI17: 0 | FJ17: 0 | FW17: 1 | FX17: 0 | FY17: 1 | FZ17: 1 | GA17: 1 | GE17: 0 | GF17: 0 | GG17: 1 | GH17: 1 | GL17: 1 | GM17: 0 | GN17: 1 | GR17: 1 | GS17: 0 | GW17: 1 | HA17: 0 | JA17: 0 | JB17: 0 | JC17: 0 | JD17: 0 | JE17: 0 | JF17: 0 | JG17: 0 | JH17: 0 | JI17: 0 | JJ17: 0 | JK17: 0 | JL17: 0 | JM17: 0 | JN17: 0 | JO17: 0 | JP17: 0 | JQ17: 0 | JR17: 0 | JS17: 0 | JT17: 0 | JU17: 0 | JV17: 0 | JW17: 0 | JX17: 0 | JY17: 0 | JZ17: 0 | KA17: 0 | KB17: 0 | KC17: 0 | KD17: 0 | KE17: 0 | KF17: 0 | KG17: 0 | KH17: 0 | KI17: 0 | KJ17: 0 | KK17: 0 | KL17: 0 | KM17: 0 | KN17: 0 | KO17: 0 | KP17: 0 | KQ17: 0 | KR17: 0 | KS17: 0 | KT17: 0 | KU17: 0 | KV17: 0 | KW17: 0
A18: 394 | B18: MERCREDI | C18: 2022-07-20 | D18: 17 | E18: 21 | F18: 29 | G18: 31 | H18: 47 | I18: 4 | J18: 7 | K18: h | L18: 0 | M18: =_xlfn.LET(_xlpm.comp,RIGHT(D18:H18,1),_xlfn._xlws.FILTER(D18:H18,_xlfn.XMATCH(_xlpm.comp,_xlpm.comp)<>_xlfn.XMATCH(_xlpm.comp,_xlpm.comp,,-1))) ->  | Q18: =COUNTIF(D17:H17,D18:H18) ->  | V18: =IF(AND(W18>69,W18<164,OR(X18={1;2;3;4})),1,0) -> 0 | W18: 145 | X18: =SUMPRODUCT(( MOD(D18:H18,2)>0)*1) -> 5 | Y18: 2 | Z18: 0 | AA18: 0 | AB18: 0 | AC18: 0 | AD18: 0 | AE18: 2 | AF18: 0 | AG18: 1 | AH18: 0 | AI18: 0 | AJ18: 0 | AK18: 0 | AL18: 0 | AM18: 0 | AN18: 0 | AO18: 1 | AP18: 0 | AQ18: 0 | AR18: 0 | AS18: 1 | AT18: 0 | AU18: 0 | AV18: 0 | AW18: 0 | AX18: 0 | AY18: 0 | AZ18: 0 | BA18: 1 | BB18: 0 | BC18: 1 | BD18: 0 | BE18: 0 | BF18: 0 | BG18: 0 | BH18: 0 | BI18: 0 | BJ18: 0 | BK18: 0 | BL18: 0 | BM18: 0 | BN18: 0 | BO18: 0 | BP18: 0 | BQ18: 0 | BR18: 0 | BS18: 1 | BT18: 0 | BU18: 0 | BV18: 0 | BW18: 1 | BX18: 2 | BY18: 1 | BZ18: 1 | CB18: 0 | CC18: 1 | CD18: 1 | CE18: 1 | CF18: 1 | CG18: 0 | CH18: 1 | CI18: 0 | CJ18: 0 | CK18: 0 | CL18: 0 | CM18: 0 | CN18: 0 | CO18: 0 | CP18: 0 | CQ18: 0 | CR18: 0 | CS18: 0 | CT18: 0 | CU18: 0 | CV18: 0 | CW18: 0 | CX18: 0 | CY18: 0 | CZ18: 0 | DA18: 0 | DB18: 0 | DC18: 0 | DD18: 0 | DE18: 0 | DF18: 0 | DG18: 0 | DH18: 0 | DJ18: 0 | DK18: 0 | DL18: 0 | DM18: 0 | DN18: 0 | DO18: 0 | DP18: 0 | DQ18: 0 | DR18: 0 | DS18: 0 | DT18: 0 | DU18: 0 | DW18: 1 | DX18: 1 | DY18: 1 | DZ18: 1 | EA18: 1 | EB18: 1 | EC18: 1 | ED18: 1 | EE18: 1 | EF18: 1 | EI18: 1 | EJ18: 1 | EK18: 1 | EL18: 1 | EM18: 1 | EN18: 1 | EO18: 1 | EP18: 1 | EQ18: 1 | ER18: 1 | ES18: 0 | ET18: 0 | EW18: 30 | EX18: =(MID(D18,2,2)*1) -> 7 | EY18: 1 | EZ18: 9 | FA18: 1 | FB18: 7 | FC18: 0 | FD18: 1 | FE18: 4 | FF18: 0 | FG18: 0 | FH18: 0 | FI18: 0 | FJ18: 0 | FW18: 1 | FX18: 1 | FY18: 1 | FZ18: 1 | GA18: 1 | GE18: 1 | GF18: 1 | GG18: 1 | GH18: 1 | GL18: 1 | GM18: 0 | GN18: 1 | GR18: 1 | GS18: 1 | GW18: 1 | HA18: 1 | JA18: 0 | JB18: 0 | JC18: 0 | JD18: 0 | JE18: 0 | JF18: 0 | JG18: 0 | JH18: 0 | JI18: 0 | JJ18: 0 | JK18: 0 | JL18: 0 | JM18: 0 | JN18: 0 | JO18: 0 | JP18: 0 | JQ18: 0 | JR18: 0 | JS18: 0 | JT18: 0 | JU18: 0 | JV18: 0 | JW18: 0 | JX18: 0 | JY18: 0 | JZ18: 0 | KA18: 0 | KB18: 0 | KC18: 0 | KD18: 0 | KE18: 0 | KF18: 0 | KG18: 0 | KH18: 0 | KI18: 0 | KJ18: 0 | KK18: 0 | KL18: 0 | KM18: 0 | KN18: 0 | KO18: 0 | KP18: 0 | KQ18: 0 | KR18: 0 | KS18: 0 | KT18: 0 | KU18: 0 | KV18: 0 | KW18: 0
A19: 393 | B19: SAMEDI | C19: 2022-07-23 | D19: 15 | E19: 25 | F19: 39 | G19: 41 | H19: 47 | I19: 9 | J19: 7 | K19: h | L19: 0 | M19: =_xlfn.LET(_xlpm.comp,RIGHT(D19:H19,1),_xlfn._xlws.FILTER(D19:H19,_xlfn.XMATCH(_xlpm.comp,_xlpm.comp)<>_xlfn.XMATCH(_xlpm.comp,_xlpm.comp,,-1))) ->  | Q19: =COUNTIF(D18:H18,D19:H19) ->  | V19: =IF(AND(W19>69,W19<164,OR(X19={1;2;3;4})),1,0) -> 0 | W19: 167 | X19: =SUMPRODUCT(( MOD(D19:H19,2)>0)*1) -> 5 | Y19: 1 | Z19: 0 | AA19: 0 | AB19: 0 | AC19: 2 | AD19: 0 | AE19: 1 | AF19: 0 | AG19: 1 | AH19: 0 | AI19: 0 | AJ19: 0 | AK19: 0 | AL19: 0 | AM19: 1 | AN19: 0 | AO19: 0 | AP19: 0 | AQ19: 0 | AR19: 0 | AS19: 0 | AT19: 0 | AU19: 0 | AV19: 0 | AW19: 1 | AX19: 0 | AY19: 0 | AZ19: 0 | BA19: 0 | BB19: 0 | BC19: 0 | BD19: 0 | BE19: 0 | BF19: 0 | BG19: 0 | BH19: 0 | BI19: 0 | BJ19: 0 | BK19: 1 | BL19: 0 | BM19: 1 | BN19: 0 | BO19: 0 | BP19: 0 | BQ19: 0 | BR19: 0 | BS19: 1 | BT19: 0 | BU19: 0 | BV19: 0 | BW19: 1 | BX19: 1 | BY19: 1 | BZ19: 2 | CB19: 0 | CC19: 1 | CD19: 1 | CE19: 1 | CF19: 1 | CG19: 0 | CH19: 1 | CI19: 0 | CJ19: 0 | CK19: 0 | CL19: 0 | CM19: 0 | CN19: 0 | CO19: 0 | CP19: 0 | CQ19: 0 | CR19: 0 | CS19: 0 | CT19: 0 | CU19: 0 | CV19: 0 | CW19: 0 | CX19: 0 | CY19: 0 | CZ19: 0 | DA19: 0 | DB19: 0 | DC19: 0 | DD19: 0 | DE19: 0 | DF19: 0 | DG19: 0 | DH19: 0 | DJ19: 0 | DK19: 0 | DL19: 0 | DM19: 0 | DN19: 0 | DO19: 0 | DP19: 0 | DQ19: 0 | DR19: 0 | DS19: 0 | DT19: 0 | DU19: 0 | DW19: 1 | DX19: 1 | DY19: 1 | DZ19: 1 | EA19: 1 | EB19: 1 | EC19: 1 | ED19: 1 | EE19: 1 | EF19: 1 | EI19: 1 | EJ19: 1 | EK19: 1 | EL19: 1 | EM19: 1 | EN19: 1 | EO19: 1 | EP19: 1 | EQ19: 1 | ER19: 1 | ES19: 0 | ET19: 1 | EW19: 32 | EX19: =(MID(D19,2,2)*1) -> 5 | EY19: 5 | EZ19: 9 | FA19: 1 | FB19: 7 | FC19: 1 | FD19: 1 | FE19: 9 | FF19: 0 | FG19: 0 | FH19: 1 | FI19: 0 | FJ19: 0 | FW19: 1 | FX19: 1 | FY19: 1 | FZ19: 1 | GA19: 1 | GE19: 1 | GF19: 1 | GG19: 1 | GH19: 1 | GL19: 1 | GM19: 1 | GN19: 1 | GR19: 1 | GS19: 1 | GW19: 1 | HA19: 1 | JA19: 0 | JB19: 0 | JC19: 0 | JD19: 0 | JE19: 0 | JF19: 0 | JG19: 0 | JH19: 0 | JI19: 0 | JJ19: 0 | JK19: 0 | JL19: 0 | JM19: 0 | JN19: 0 | JO19: 0 | JP19: 0 | JQ19: 0 | JR19: 0 | JS19: 0 | JT19: 0 | JU19: 0 | JV19: 0 | JW19: 0 | JX19: 0 | JY19: 0 | JZ19: 0 | KA19: 0 | KB19: 0 | KC19: 0 | KD19: 0 | KE19: 0 | KF19: 0 | KG19: 0 | KH19: 0 | KI19: 0 | KJ19: 0 | KK19: 0 | KL19: 0 | KM19: 0 | KN19: 0 | KO19: 0 | KP19: 0 | KQ19: 0 | KR19: 0 | KS19: 0 | KT19: 0 | KU19: 0 | KV19: 0 | KW19: 0
A20: 392 | B20: LUNDI | C20: 2022-07-25 | D20: 7 | E20: 13 | F20: 24 | G20: 26 | H20: 42 | I20: 2 | J20: 2 | K20: c | L20: 0 | M20: =_xlfn.LET(_xlpm.comp,RIGHT(D20:H20,1),_xlfn._xlws.FILTER(D20:H20,_xlfn.XMATCH(_xlpm.comp,_xlpm.comp)<>_xlfn.XMATCH(_xlpm.comp,_xlpm.comp,,-1))) ->  | Q20: =COUNTIF(D19:H19,D20:H20) ->  | V20: =IF(AND(W20>69,W20<164,OR(X20={1;2;3;4})),1,0) -> 1 | W20: 112 | X20: =SUMPRODUCT(( MOD(D20:H20,2)>0)*1) -> 2 | Y20: 0 | Z20: 1 | AA20: 1 | AB20: 1 | AC20: 0 | AD20: 1 | AE20: 1 | AF20: 0 | AG20: 0 | AH20: 0 | AI20: 0 | AJ20: 0 | AK20: 1 | AL20: 0 | AM20: 0 | AN20: 0 | AO20: 0 | AP20: 0 | AQ20: 0 | AR20: 0 | AS20: 0 | AT20: 0 | AU20: 0 | AV20: 1 | AW20: 0 | AX20: 1 | AY20: 0 | AZ20: 0 | BA20: 0 | BB20: 0 | BC20: 0 | BD20: 0 | BE20: 0 | BF20: 0 | BG20: 0 | BH20: 0 | BI20: 0 | BJ20: 0 | BK20: 0 | BL20: 0 | BM20: 0 | BN20: 1 | BO20: 0 | BP20: 0 | BQ20: 0 | BR20: 0 | BS20: 0 | BT20: 0 | BU20: 0 | BV20: 1 | BW20: 1 | BX20: 2 | BY20: 0 | BZ20: 1 | CB20: 1 | CC20: 1 | CD20: 1 | CE20: 0 | CF20: 1 | CG20: 0 | CH20: 0 | CI20: 0 | CJ20: 0 | CK20: 1 | CL20: 0 | CM20: 0 | CN20: 0 | CO20: 0 | CP20: 0 | CQ20: 0 | CR20: 0 | CS20: 0 | CT20: 0 | CU20: 0 | CV20: 0 | CW20: 0 | CX20: 0 | CY20: 0 | CZ20: 0 | DA20: 0 | DB20: 0 | DC20: 0 | DD20: 0 | DE20: 0 | DF20: 0 | DG20: 0 | DH20: 0 | DJ20: 0 | DK20: 0 | DL20: 0 | DM20: 0 | DN20: 0 | DO20: 0 | DP20: 0 | DQ20: 0 | DR20: 0 | DS20: 0 | DT20: 0 | DU20: 0 | DW20: 1 | DX20: 1 | DY20: 1 | DZ20: 1 | EA20: 1 | EB20: 1 | EC20: 1 | ED20: 1 | EE20: 1 | EF20: 1 | EI20: 1 | EJ20: 1 | EK20: 1 | EL20: 1 | EM20: 1 | EN20: 1 | EO20: 1 | EP20: 1 | EQ20: 1 | ER20: 1 | ES20: 0 | ET20: 0 | EW20: 35 | EX20: =(MID(D20,1,2)*1) -> 7 | EY20: 3 | EZ20: 4 | FA20: 6 | FB20: 2 | FC20: 1 | FD20: 1 | FE20: 2 | FF20: 0 | FG20: 0 | FH20: 0 | FI20: 0 | FJ20: 1 | FW20: 1 | FX20: 1 | FY20: 0 | FZ20: 0 | GA20: 0 | GE20: 1 | GF20: 0 | GG20: 0 | GH20: 0 | GL20: 0 | GM20: 1 | GN20: 0 | GR20: 0 | GS20: 0 | GW20: 0 | HA20: 0 | JA20: 0 | JB20: 0 | JC20: 0 | JD20: 0 | JE20: 0 | JF20: 0 | JG20: 0 | JH20: 0 | JI20: 0 | JJ20: 0 | JK20: 0 | JL20: 0 | JM20: 0 | JN20: 0 | JO20: 0 | JP20: 0 | JQ20: 0 | JR20: 0 | JS20: 0 | JT20: 0 | JU20: 0 | JV20: 0 | JW20: 0 | JX20: 0 | JY20: 0 | JZ20: 0 | KA20: 0 | KB20: 0 | KC20: 0 | KD20: 0 | KE20: 0 | KF20: 0 | KG20: 0 | KH20: 0 | KI20: 0 | KJ20: 0 | KK20: 0 | KL20: 0 | KM20: 0 | KN20: 0 | KO20: 0 | KP20: 0 | KQ20: 0 | KR20: 0 | KS20: 0 | KT20: 0 | KU20: 0 | KV20: 0 | KW20: 0
A21: 391 | B21: MERCREDI | C21: 2022-07-27 | D21: 13 | E21: 31 | F21: 43 | G21: 46 | H21: 47 | I21: 10 | J21: 7 | K21: h | L21: 0 | M21: =_xlfn.LET(_xlpm.comp,RIGHT(D21:H21,1),_xlfn._xlws.FILTER(D21:H21,_xlfn.XMATCH(_xlpm.comp,_xlpm.comp)<>_xlfn.XMATCH(_xlpm.comp,_xlpm.comp,,-1))) ->  | Q21: =COUNTIF(D20:H20,D21:H21) ->  | V21: =IF(AND(W21>69,W21<164,OR(X21={1;2;3;4})),1,0) -> 0 | W21: 180 | X21: =SUMPRODUCT(( MOD(D21:H21,2)>0)*1) -> 4 | Y21: 1 | Z21: 0 | AA21: 2 | AB21: 0 | AC21: 0 | AD21: 1 | AE21: 1 | AF21: 0 | AG21: 0 | AH21: 0 | AI21: 0 | AJ21: 0 | AK21: 1 | AL21: 0 | AM21: 0 | AN21: 0 | AO21: =COUNTIF(($D21:$H21),AO$1) -> 0 | AP21: 0 | AQ21: 0 | AR21: 0 | AS21: 0 | AT21: 0 | AU21: 0 | AV21: 0 | AW21: 0 | AX21: 0 | AY21: 0 | AZ21: 0 | BA21: 0 | BB21: 0 | BC21: 1 | BD21: 0 | BE21: 0 | BF21: 0 | BG21: 0 | BH21: 0 | BI21: 0 | BJ21: 0 | BK21: 0 | BL21: 0 | BM21: 0 | BN21: 0 | BO21: 1 | BP21: 0 | BQ21: 0 | BR21: 1 | BS21: 1 | BT21: 0 | BU21: 0 | BV21: 0 | BW21: 1 | BX21: 0 | BY21: 1 | BZ21: 3 | CB21: 0 | CC21: 1 | CD21: 0 | CE21: 1 | CF21: 1 | CG21: 0 | CH21: 0 | CI21: 0 | CJ21: 0 | CK21: 0 | CL21: 0 | CM21: 0 | CN21: 0 | CO21: 0 | CP21: 0 | CQ21: 0 | CR21: 1 | CS21: 0 | CT21: 0 | CU21: 0 | CV21: 0 | CW21: 0 | CX21: 0 | CY21: 0 | CZ21: 0 | DA21: 0 | DB21: 0 | DC21: 0 | DD21: 0 | DE21: 0 | DF21: 0 | DG21: 0 | DH21: 0 | DJ21: 0 | DK21: 0 | DL21: 0 | DM21: 0 | DN21: 0 | DO21: 0 | DP21: 0 | DQ21: 0 | DR21: 0 | DS21: 0 | DT21: 0 | DU21: 1 | DW21: 1 | DX21: 1 | DY21: 1 | DZ21: 1 | EA21: 1 | EB21: 1 | EC21: 1 | ED21: 1 | EE21: 1 | EF21: 0 | EI21: 1 | EJ21: 1 | EK21: 1 | EL21: 1 | EM21: 1 | EN21: 1 | EO21: 1 | EP21: 1 | EQ21: 1 | ER21: 0 | ES21: 0 | ET21: 0 | EU21: 1 | EW21: 34 | EX21: =(MID(D21,2,2)*1) -> 3 | EY21: 1 | EZ21: 3 | FA21: 6 | FB21: 7 | FC21: 0 | FD21: 1 | FE21: 0 | FF21: 0 | FG21: 0 | FH21: 0 | FI21: 0 | FJ21: 0 | FN21: 1 | FW21: 1 | FX21: 1 | FY21: 1 | FZ21: 0 | GA21: 1 | GE21: 1 | GF21: 1 | GG21: 0 | GH21: 0 | GL21: 1 | GM21: 0 | GN21: 1 | GR21: 0 | GS21: 1 | GW21: 1 | HA21: 0 | JA21: 0 | JB21: 0 | JC21: 0 | JD21: 0 | JE21: 0 | JF21: 0 | JG21: 0 | JH21: 0 | JI21: 0 | JJ21: 0 | JK21: 0 | JL21: 0 | JM21: 0 | JN21: 0 | JO21: 0 | JP21: 0 | JQ21: 0 | JR21: 0 | JS21: 0 | JT21: 0 | JU21: 0 | JV21: 0 | JW21: 0 | JX21: 0 | JY21: 0 | JZ21: 0 | KA21: 0 | KB21: 0 | KC21: 0 | KD21: 0 | KE21: 0 | KF21: 0 | KG21: 0 | KH21: 0 | KI21: 0 | KJ21: 0 | KK21: 0 | KL21: 0 | KM21: 0 | KN21: 0 | KO21: 0 | KP21: 0 | KQ21: 0 | KR21: 0 | KS21: 0 | KT21: 0 | KU21: 0 | KV21: 0 | KW21: 0
A22: 390 | B22: SAMEDI | C22: 2022-07-30 | D22: 2 | E22: 14 | F22: 21 | G22: 24 | H22: 38 | I22: 6 | J22: 8 | K22: i | L22: 0 | M22: =_xlfn.LET(_xlpm.comp,RIGHT(D22:H22,1),_xlfn._xlws.FILTER(D22:H22,_xlfn.XMATCH(_xlpm.comp,_xlpm.comp)<>_xlfn.XMATCH(_xlpm.comp,_xlpm.comp,,-1))) ->  | Q22: =COUNTIF(D21:H21,D22:H22) ->  | V22: =IF(AND(W22>69,W22<164,OR(X22={1;2;3;4})),1,0) -> 1 | W22: 99 | X22: =SUMPRODUCT(( MOD(D22:H22,2)>0)*1) -> 1 | Y22: 1 | Z22: 1 | AA22: 0 | AB22: 2 | AC22: 0 | AD22: 0 | AE22: 0 | AF22: 1 | AG22: 0 | AH22: 0 | AI22: =COUNTIF(($D22:$H22),AI$1) -> 0 | AJ22: 0 | AK22: 0 | AL22: 1 | AM22: 0 | AN22: 0 | AO22: 0 | AP22: 0 | AQ22: 0 | AR22: 0 | AS22: 1 | AT22: 0 | AU22: 0 | AV22: 1 | AW22: 0 | AX22: 0 | AY22: 0 | AZ22: 0 | BA22: 0 | BB22: 0 | BC22: 0 | BD22: 0 | BE22: 0 | BF22: 0 | BG22: 0 | BH22: 0 | BI22: 0 | BJ22: 1 | BK22: 0 | BL22: 0 | BM22: 0 | BN22: 0 | BO22: 0 | BP22: 0 | BQ22: 0 | BR22: 0 | BS22: 0 | BT22: 0 | BU22: 0 | BV22: 1 | BW22: 1 | BX22: 2 | BY22: 1 | BZ22: 0 | CB22: 1 | CC22: 1 | CD22: 1 | CE22: 1 | CF22: 0 | CG22: 0 | CH22: 0 | CI22: 0 | CJ22: 0 | CK22: 0 | CL22: 1 | CM22: 0 | CN22: 0 | CO22: 0 | CP22: 0 | CQ22: 0 | CR22: 0 | CS22: 0 | CT22: 0 | CU22: 0 | CV22: 0 | CW22: 0 | CX22: 0 | CY22: 0 | CZ22: 0 | DA22: 0 | DB22: 0 | DC22: 0 | DD22: 0 | DE22: 0 | DF22: 0 | DG22: 0 | DH22: 0 | DJ22: 0 | DK22: 0 | DL22: 0 | DM22: 0 | DN22: 0 | DO22: 0 | DP22: 0 | DQ22: 0 | DR22: 0 | DS22: 0 | DT22: 0 | DU22: 0 | DW22: 1 | DX22: 1 | DY22: 1 | DZ22: 1 | EA22: 1 | EB22: 1 | EC22: 1 | ED22: 1 | EE22: 1 | EF22: 0 | EI22: 1 | EJ22: 1 | EK22: 1 | EL22: 1 | EM22: 1 | EN22: 1 | EO22: 1 | EP22: 1 | EQ22: 1 | ER22: 0 | ES22: 0 | ET22: 0 | EW22: 36 | EX22: =(MID(D22,1,2)*1) -> 2 | EY22: 4 | EZ22: 1 | FA22: 4 | FB22: 8 | FC22: 0 | FD22: 1 | FE22: 6 | FF22: 0 | FG22: 0 | FH22: 0 | FI22: 0 | FJ22: 0 | FW22: 0 | FX22: 0 | FY22: 1 | FZ22: 0 | GA22: 0 | GE22: 0 | GF22: 0 | GG22: 0 | GH22: 0 | GL22: 0 | GM22: 0 | GN22: 0 | GR22: 0 | GS22: 0 | GW22: 0 | HA22: 1 | JA22: 0 | JB22: 0 | JC22: 0 | JD22: 0 | JE22: 0 | JF22: 0 | JG22: 0 | JH22: 0 | JI22: 0 | JJ22: 0 | JK22: 0 | JL22: 0 | JM22: 0 | JN22: 0 | JO22: 0 | JP22: 0 | JQ22: 0 | JR22: 0 | JS22: 0 | JT22: 0 | JU22: 0 | JV22: 0 | JW22: 0 | JX22: 0 | JY22: 0 | JZ22: 0 | KA22: 0 | KB22: 0 | KC22: 0 | KD22: 0 | KE22: 0 | KF22: 0 | KG22: 0 | KH22: 0 | KI22: 0 | KJ22: 0 | KK22: 0 | KL22: 0 | KM22: 0 | KN22: 0 | KO22: 0 | KP22: 0 | KQ22: 0 | KR22: 0 | KS22: 0 | KT22: 0 | KU22: 0 | KV22: 0 | KW22: 0
A23: 389 | B23: LUNDI | C23: 2022-08-01 | D23: 1 | E23: 4 | F23: 23 | G23: 30 | H23: 38 | I23: 6 | J23: 8 | K23: i | L23: 0 | M23: =_xlfn.LET(_xlpm.comp,RIGHT(D23:H23,1),_xlfn._xlws.FILTER(D23:H23,_xlfn.XMATCH(_xlpm.comp,_xlpm.comp)<>_xlfn.XMATCH(_xlpm.comp,_xlpm.comp,,-1))) ->  | Q23: =COUNTIF(D22:H22,D23:H23) ->  | V23: =IF(AND(W23>69,W23<164,OR(X23={1;2;3;4})),1,0) -> 1 | W23: 96 | X23: =SUMPRODUCT(( MOD(D23:H23,2)>0)*1) -> 2 | Y23: 1 | Z23: 0 | AA23: 1 | AB23: 1 | AC23: 0 | AD23: 0 | AE23: 0 | AF23: 1 | AG23: 0 | AH23: 1 | AI23: 0 | AJ23: 0 | AK23: 0 | AL23: 0 | AM23: 0 | AN23: 0 | AO23: 0 | AP23: 0 | AQ23: 0 | AR23: 0 | AS23: 0 | AT23: 0 | AU23: 1 | AV23: 0 | AW23: 0 | AX23: 0 | AY23: 0 | AZ23: 0 | BA23: 0 | BB23: 1 | BC23: 0 | BD23: 0 | BE23: 0 | BF23: 0 | BG23: 0 | BH23: 0 | BI23: 0 | BJ23: 1 | BK23: 0 | BL23: 0 | BM23: 0 | BN23: 0 | BO23: 0 | BP23: 0 | BQ23: 0 | BR23: 0 | BS23: 0 | BT23: 0 | BU23: 0 | BV23: 2 | BW23: 0 | BX23: 1 | BY23: 2 | BZ23: 0 | CB23: 1 | CC23: 0 | CD23: 1 | CE23: 1 | CF23: 0 | CG23: 0 | CH23: 0 | CI23: 0 | CJ23: 0 | CK23: 0 | CL23: 0 | CM23: 1 | CN23: 0 | CO23: 0 | CP23: 0 | CQ23: 0 | CR23: 0 | CS23: 0 | CT23: 0 | CU23: 0 | CV23: 0 | CW23: 0 | CX23: 0 | CY23: 0 | CZ23: 0 | DA23: 0 | DB23: 0 | DC23: 0 | DD23: 0 | DE23: 0 | DF23: 0 | DG23: 0 | DH23: 0 | DJ23: 0 | DK23: 0 | DL23: 0 | DM23: 0 | DN23: 0 | DO23: 0 | DP23: 0 | DQ23: 0 | DR23: 0 | DS23: 0 | DT23: 0 | DU23: 0 | DW23: 1 | DX23: 1 | DY23: 1 | DZ23: 1 | EA23: 1 | EB23: 1 | EC23: 1 | ED23: 1 | EE23: 1 | EF23: 1 | EI23: 1 | EJ23: 1 | EK23: 1 | EL23: 1 | EM23: 1 | EN23: 1 | EO23: 1 | EP23: 1 | EQ23: 1 | ER23: 1 | ES23: 1 | ET23: 0 | EW23: 37 | EX23: 1 | EY23: =(MID(E23,1,1)*1) -> 4 | EZ23: 3 | FA23: 0 | FB23: 8 | FC23: 0 | FD23: 1 | FE23: 6 | FF23: 0 | FG23: 0 | FH23: 0 | FI23: 0 | FJ23: 0 | FW23: 1 | FX23: 0 | FY23: 1 | FZ23: 0 | GA23: 0 | GE23: 0 | GF23: 0 | GG23: 0 | GH23: 0 | GL23: 1 | GM23: 0 | GN23: 0 | GR23: 0 | GS23: 0 | GW23: 0 | HA23: 0 | JA23: 0 | JB23: 0 | JC23: 0 | JD23: 0 | JE23: 0 | JF23: 0 | JG23: 0 | JH23: 0 | JI23: 0 | JJ23: 0 | JK23: 0 | JL23: 0 | JM23: 0 | JN23: 0 | JO23: 0 | JP23: 0 | JQ23: 0 | JR23: 0 | JS23: 0 | JT23: 0 | JU23: 0 | JV23: 0 | JW23: 0 | JX23: 0 | JY23: 0 | JZ23: 0 | KA23: 0 | KB23: 0 | KC23: 0 | KD23: 0 | KE23: 0 | KF23: 0 | KG23: 0 | KH23: 0 | KI23: 0 | KJ23: 0 | KK23: 0 | KL23: 0 | KM23: 0 | KN23: 0 | KO23: 0 | KP23: 0 | KQ23: 0 | KR23: 0 | KS23: 0 | KT23: 0 | KU23: 0 | KV23: 0 | KW23: 0
A24: 388 | B24: MERCREDI | C24: 2022-08-03 | D24: 5 | E24: 10 | F24: 32 | G24: 40 | H24: 45 | I24: 5 | J24: 5 | K24: f | L24: 0 | M24: =_xlfn.LET(_xlpm.comp,RIGHT(D24:H24,1),_xlfn._xlws.FILTER(D24:H24,_xlfn.XMATCH(_xlpm.comp,_xlpm.comp)<>_xlfn.XMATCH(_xlpm.comp,_xlpm.comp,,-1))) ->  | Q24: =COUNTIF(D23:H23,D24:H24) ->  | V24: =IF(AND(W24>69,W24<164,OR(X24={1;2;3;4})),1,0) -> 1 | W24: 132 | X24: =SUMPRODUCT(( MOD(D24:H24,2)>0)*1) -> 2 | Y24: 0 | Z24: 1 | AA24: 0 | AB24: 0 | AC24: 2 | AD24: 0 | AE24: 0 | AF24: 0 | AG24: 0 | AH24: 2 | AI24: 0 | AJ24: 0 | AK24: 0 | AL24: 0 | AM24: 0 | AN24: 0 | AO24: 0 | AP24: 0 | AQ24: 0 | AR24: 0 | AS24: 0 | AT24: 0 | AU24: 0 | AV24: 0 | AW24: 0 | AX24: 0 | AY24: 0 | AZ24: 0 | BA24: 0 | BB24: 0 | BC24: 0 | BD24: 1 | BE24: 0 | BF24: 0 | BG24: 0 | BH24: 0 | BI24: 0 | BJ24: 0 | BK24: 0 | BL24: 1 | BM24: 0 | BN24: 0 | BO24: 0 | BP24: 0 | BQ24: 1 | BR24: 0 | BS24: 0 | BT24: 0 | BU24: 0 | BV24: 1 | BW24: 1 | BX24: 0 | BY24: 1 | BZ24: 2 | CB24: 1 | CC24: 1 | CD24: 0 | CE24: 1 | CF24: 1 | CG24: 0 | CH24: 0 | CI24: 0 | CJ24: 1 | CK24: 0 | CL24: 0 | CM24: 0 | CN24: 0 | CO24: 0 | CP24: 0 | CQ24: 0 | CR24: 0 | CS24: 0 | CT24: 0 | CU24: 0 | CV24: 0 | CW24: 0 | CX24: 0 | CY24: 0 | CZ24: 0 | DA24: 0 | DB24: 0 | DC24: 0 | DD24: 0 | DE24: 0 | DF24: 0 | DG24: 0 | DH24: 0 | DJ24: 0 | DK24: 0 | DL24: 0 | DM24: 0 | DN24: 0 | DO24: 0 | DP24: 0 | DQ24: 0 | DR24: 0 | DS24: 0 | DT24: 0 | DU24: 0 | DW24: 1 | DX24: 1 | DY24: 1 | DZ24: 1 | EA24: 1 | EB24: 1 | EC24: 1 | ED24: 1 | EE24: 1 | EF24: 1 | EI24: 1 | EJ24: 1 | EK24: 1 | EL24: 1 | EM24: 1 | EN24: 1 | EO24: 1 | EP24: 1 | EQ24: 1 | ER24: 1 | ES24: 0 | ET24: 1 | EW24: 40 | EX24: 5 | EY24: 0 | EZ24: 2 | FA24: 0 | FB24: 5 | FC24: 2 | FD24: 1 | FE24: 5 | FF24: 1 | FG24: 0 | FH24: 0 | FI24: 0 | FJ24: 1 | FW24: 1 | FX24: 0 | FY24: 0 | FZ24: 0 | GA24: 1 | GE24: 0 | GF24: 0 | GG24: 0 | GH24: 0 | GL24: 0 | GM24: 0 | GN24: 0 | GR24: 0 | GS24: 0 | GW24: 1 | HA24: 1 | JA24: 0 | JB24: 0 | JC24: 0 | JD24: 0 | JE24: 0 | JF24: 0 | JG24: 0 | JH24: 0 | JI24: 0 | JJ24: 0 | JK24: 0 | JL24: 0 | JM24: 0 | JN24: 0 | JO24: 0 | JP24: 0 | JQ24: 0 | JR24: 0 | JS24: 0 | JT24: 0 | JU24: 0 | JV24: 0 | JW24: 0 | JX24: 0 | JY24: 0 | JZ24: 0 | KA24: 0 | KB24: 0 | KC24: 0 | KD24: 0 | KE24: 0 | KF24: 0 | KG24: 0 | KH24: 0 | KI24: 0 | KJ24: 0 | KK24: 0 | KL24: 0 | KM24: 0 | KN24: 0 | KO24: 0 | KP24: 0 | KQ24: 0 | KR24: 0 | KS24: 0 | KT24: 0 | KU24: 0 | KV24: 0 | KW24: 0
A25: 387 | B25: SAMEDI | C25: 2022-08-06 | D25: 6 | E25: 23 | F25: 28 | G25: 37 | H25: 38 | I25: 1 | J25: 8 | K25: i | L25: 0 | M25: =_xlfn.LET(_xlpm.comp,RIGHT(D25:H25,1),_xlfn._xlws.FILTER(D25:H25,_xlfn.XMATCH(_xlpm.comp,_xlpm.comp)<>_xlfn.XMATCH(_xlpm.comp,_xlpm.comp,,-1))) ->  | Q25: =COUNTIF(D24:H24,D25:H25) ->  | V25: =IF(AND(W25>69,W25<164,OR(X25={1;2;3;4})),1,0) -> 1 | W25: 132 | X25: =SUMPRODUCT(( MOD(D25:H25,2)>0)*1) -> 2 | Y25: 0 | Z25: 0 | AA25: 1 | AB25: 0 | AC25: 0 | AD25: 1 | AE25: 1 | AF25: 2 | AG25: 0 | AH25: 0 | AI25: 0 | AJ25: 0 | AK25: 0 | AL25: 0 | AM25: 0 | AN25: 0 | AO25: 0 | AP25: 0 | AQ25: 0 | AR25: 0 | AS25: 0 | AT25: 0 | AU25: 1 | AV25: 0 | AW25: 0 | AX25: 0 | AY25: 0 | AZ25: 1 | BA25: 0 | BB25: 0 | BC25: 0 | BD25: 0 | BE25: 0 | BF25: 0 | BG25: 0 | BH25: 0 | BI25: 1 | BJ25: 1 | BK25: 0 | BL25: 0 | BM25: 0 | BN25: 0 | BO25: 0 | BP25: 0 | BQ25: 0 | BR25: 0 | BS25: 0 | BT25: 0 | BU25: 0 | BV25: 1 | BW25: 0 | BX25: 2 | BY25: 2 | BZ25: 0 | CB25: 1 | CC25: 0 | CD25: 1 | CE25: 1 | CF25: 0 | CG25: 0 | CH25: 0 | CI25: 0 | CJ25: 0 | CK25: 0 | CL25: 0 | CM25: 1 | CN25: 0 | CO25: 0 | CP25: 0 | CQ25: 0 | CR25: 0 | CS25: 0 | CT25: 0 | CU25: 0 | CV25: 0 | CW25: 0 | CX25: 0 | CY25: 0 | CZ25: 0 | DA25: 0 | DB25: 0 | DC25: 0 | DD25: 0 | DE25: 0 | DF25: 0 | DG25: 0 | DH25: 0 | DJ25: 0 | DK25: 0 | DL25: 0 | DM25: 0 | DN25: 0 | DO25: 0 | DP25: 0 | DQ25: 0 | DR25: 0 | DS25: 0 | DT25: 0 | DU25: 0 | DW25: 1 | DX25: 1 | DY25: 1 | DZ25: 1 | EA25: 1 | EB25: 1 | EC25: 1 | ED25: 1 | EE25: 1 | EF25: 1 | EI25: 1 | EJ25: 1 | EK25: 1 | EL25: 1 | EM25: 1 | EN25: 1 | EO25: 1 | EP25: 1 | EQ25: 1 | ER25: 1 | ES25: 0 | ET25: 1 | EU25: 1 | EW25: 32 | EX25: 6 | EY25: 3 | EZ25: 8 | FA25: 7 | FB25: 8 | FC25: 0 | FD25: 1 | FE25: 1 | FF25: 0 | FG25: 0 | FH25: 0 | FI25: 0 | FJ25: 0 | FN25: 1 | FW25: 0 | FX25: 1 | FY25: 0 | FZ25: 1 | GA25: 0 | GE25: 0 | GF25: 0 | GG25: 0 | GH25: 0 | GL25: 0 | GM25: 0 | GN25: 0 | GR25: 0 | GS25: 0 | GW25: 0 | HA25: 1 | JA25: 0 | JB25: 0 | JC25: 0 | JD25: 0 | JE25: 0 | JF25: 0 | JG25: 0 | JH25: 0 | JI25: 0 | JJ25: 0 | JK25: 0 | JL25: 0 | JM25: 0 | JN25: 0 | JO25: 0 | JP25: 0 | JQ25: 0 | JR25: 0 | JS25: 0 | JT25: 0 | JU25: 0 | JV25: 0 | JW25: 0 | JX25: 0 | JY25: 0 | JZ25: 0 | KA25: 0 | KB25: 0 | KC25: 0 | KD25: 0 | KE25: 0 | KF25: 0 | KG25: 0 | KH25: 0 | KI25: 0 | KJ25: 0 | KK25: 0 | KL25: 0 | KM25: 0 | KN25: 0 | KO25: 0 | KP25: 0 | KQ25: 0 | KR25: 0 | KS25: 0 | KT25: 0 | KU25: 0 | KV25: 0 | KW25: 0
A26: 386 | B26: LUNDI | C26: 2022-08-08 | D26: 3 | E26: 22 | F26: 37 | G26: 40 | H26: 41 | I26: 2 | J26: 1 | K26: b | L26: 0 | M26: =_xlfn.LET(_xlpm.comp,RIGHT(D26:H26,1),_xlfn._xlws.FILTER(D26:H26,_xlfn.XMATCH(_xlpm.comp,_xlpm.comp)<>_xlfn.XMATCH(_xlpm.comp,_xlpm.comp,,-1))) ->  | Q26: =COUNTIF(D25:H25,D26:H26) ->  | V26: =IF(AND(W26>69,W26<164,OR(X26={1;2;3;4})),1,0) -> 1 | W26: 143 | X26: =SUMPRODUCT(( MOD(D26:H26,2)>0)*1) -> 3 | Y26: 1 | Z26: 1 | AA26: 1 | AB26: 0 | AC26: 0 | AD26: 0 | AE26: 1 | AF26: 0 | AG26: 0 | AH26: 1 | AI26: 0 | AJ26: 0 | AK26: 0 | AL26: 0 | AM26: 0 | AN26: 0 | AO26: 0 | AP26: 0 | AQ26: 0 | AR26: 0 | AS26: 0 | AT26: 1 | AU26: 0 | AV26: 0 | AW26: 0 | AX26: 0 | AY26: 0 | AZ26: 0 | BA26: 0 | BB26: 0 | BC26: 0 | BD26: 0 | BE26: 0 | BF26: 0 | BG26: 0 | BH26: 0 | BI26: 1 | BJ26: 0 | BK26: 0 | BL26: 1 | BM26: 1 | BN26: 0 | BO26: 0 | BP26: 0 | BQ26: 0 | BR26: 0 | BS26: 0 | BT26: 0 | BU26: 0 | BV26: 1 | BW26: 0 | BX26: 1 | BY26: 1 | BZ26: 2 | CB26: 1 | CC26: 0 | CD26: 1 | CE26: 1 | CF26: 1 | CG26: 0 | CH26: 0 | CI26: 1 | CJ26: 0 | CK26: 0 | CL26: 0 | CM26: 0 | CN26: 0 | CO26: 0 | CP26: 0 | CQ26: 0 | CR26: 0 | CS26: 0 | CT26: 0 | CU26: 0 | CV26: 0 | CW26: 0 | CX26: 0 | CY26: 0 | CZ26: 0 | DA26: 0 | DB26: 0 | DC26: 0 | DD26: 0 | DE26: 0 | DF26: 0 | DG26: 0 | DH26: 0 | DJ26: 0 | DK26: 0 | DL26: 0 | DM26: 0 | DN26: 0 | DO26: 0 | DP26: 0 | DQ26: 0 | DR26: 0 | DS26: 0 | DT26: 0 | DU26: 0 | DW26: 1 | DX26: 1 | DY26: 1 | DZ26: 1 | EA26: 1 | EB26: 1 | EC26: 1 | ED26: 1 | EE26: 1 | EF26: 1 | EI26: 1 | EJ26: 1 | EK26: 1 | EL26: 1 | EM26: 1 | EN26: 1 | EO26: 1 | EP26: 1 | EQ26: 1 | ER26: 1 | ES26: 0 | ET26: 0 | EU26: 1 | EW26: 38 | EX26: 3 | EY26: 2 | EZ26: 7 | FA26: 0 | FB26: 1 | FC26: =COUNTIF(EX26:FB26,FE26) -> 1 | FD26: 1 | FE26: 2 | FF26: 0 | FG26: 1 | FH26: 0 | FI26: 0 | FJ26: 0 | FN26: 1 | FW26: 1 | FX26: 0 | FY26: 1 | FZ26: 0 | GA26: 1 | GE26: 0 | GF26: 0 | GG26: 0 | GH26: 0 | GL26: 1 | GM26: 1 | GN26: 1 | GR26: 0 | GS26: 0 | GW26: 1 | HA26: 1 | JA26: 0 | JB26: 0 | JC26: 0 | JD26: 0 | JE26: 0 | JF26: 0 | JG26: 0 | JH26: 0 | JI26: 0 | JJ26: 0 | JK26: 0 | JL26: 0 | JM26: 0 | JN26: 0 | JO26: 0 | JP26: 0 | JQ26: 0 | JR26: 0 | JS26: 0 | JT26: 0 | JU26: 0 | JV26: 0 | JW26: 0 | JX26: 0 | JY26: 0 | JZ26: 0 | KA26: 0 | KB26: 0 | KC26: 0 | KD26: 0 | KE26: 0 | KF26: 0 | KG26: 0 | KH26: 0 | KI26: 0 | KJ26: 0 | KK26: 0 | KL26: 0 | KM26: 0 | KN26: 0 | KO26: 0 | KP26: 0 | KQ26: 0 | KR26: 0 | KS26: 0 | KT26: 0 | KU26: 0 | KV26: 0 | KW26: 0
A27: 385 | B27: MERCREDI | C27: 2022-08-10 | D27: 9 | E27: 11 | F27: 15 | G27: 28 | H27: 35 | I27: 2 | J27: 5 | K27: f | L27: 0 | M27: =_xlfn.LET(_xlpm.comp,RIGHT(D27:H27,1),_xlfn._xlws.FILTER(D27:H27,_xlfn.XMATCH(_xlpm.comp,_xlpm.comp)<>_xlfn.XMATCH(_xlpm.comp,_xlpm.comp,,-1))) ->  | Q27: =COUNTIF(D26:H26,D27:H27) ->  | V27: =IF(AND(W27>69,W27<164,OR(X27={1;2;3;4})),1,0) -> 1 | W27: 98 | X27: =SUMPRODUCT(( MOD(D27:H27,2)>0)*1) -> 4 | Y27: 1 | Z27: 0 | AA27: 0 | AB27: 0 | AC27: 2 | AD27: 0 | AE27: 0 | AF27: 1 | AG27: 1 | AH27: 0 | AI27: 1 | AJ27: 0 | AK27: 0 | AL27: 0 | AM27: 1 | AN27: 0 | AO27: 0 | AP27: 0 | AQ27: 0 | AR27: 0 | AS27: 0 | AT27: 0 | AU27: 0 | AV27: 0 | AW27: 0 | AX27: 0 | AY27: 0 | AZ27: 1 | BA27: 0 | BB27: 0 | BC27: 0 | BD27: 0 | BE27: 0 | BF27: 0 | BG27: 1 | BH27: 0 | BI27: 0 | BJ27: 0 | BK27: 0 | BL27: 0 | BM27: 0 | BN27: 0 | BO27: 0 | BP27: 0 | BQ27: 0 | BR27: 0 | BS27: 0 | BT27: 0 | BU27: 0 | BV27: 1 | BW27: 2 | BX27: 1 | BY27: 1 | BZ27: 0 | CB27: 1 | CC27: 1 | CD27: 1 | CE27: 1 | CF27: 0 | CG27: 0 | CH27: 0 | CI27: 0 | CJ27: 0 | CK27: 0 | CL27: 1 | CM27: 0 | CN27: 0 | CO27: 0 | CP27: 0 | CQ27: 0 | CR27: 0 | CS27: 0 | CT27: 0 | CU27: 0 | CV27: 0 | CW27: 0 | CX27: 0 | CY27: 0 | CZ27: 0 | DA27: 0 | DB27: 0 | DC27: 0 | DD27: 0 | DE27: 0 | DF27: 0 | DG27: 0 | DH27: 0 | DJ27: 0 | DK27: 0 | DL27: 0 | DM27: 0 | DN27: 0 | DO27: 0 | DP27: 0 | DQ27: 0 | DR27: 0 | DS27: 0 | DT27: 0 | DU27: 0 | DW27: 1 | DX27: 1 | DY27: 1 | DZ27: 1 | EA27: 1 | EB27: 1 | EC27: 1 | ED27: 1 | EE27: 1 | EF27: 1 | EI27: 1 | EJ27: 1 | EK27: 1 | EL27: 1 | EM27: 1 | EN27: 1 | EO27: 1 | EP27: 1 | EQ27: 1 | ER27: 1 | ES27: 1 | ET27: 0 | EW27: 26 | EX27: 9 | EY27: 1 | EZ27: 5 | FA27: 8 | FB27: 5 | FC27: 0 | FD27: 1 | FE27: 2 | FF27: 0 | FG27: 0 | FH27: 0 | FI27: 0 | FJ27: 0 | FW27: 1 | FX27: 1 | FY27: 1 | FZ27: 0 | GA27: 1 | GE27: 1 | GF27: 1 | GG27: 0 | GH27: 0 | GL27: 1 | GM27: 0 | GN27: 1 | GR27: 0 | GS27: 1 | GW27: 1 | HA27: 0 | JA27: 0 | JB27: 0 | JC27: 0 | JD27: 0 | JE27: 0 | JF27: 0 | JG27: 0 | JH27: 0 | JI27: 0 | JJ27: 0 | JK27: 0 | JL27: 0 | JM27: 0 | JN27: 0 | JO27: 0 | JP27: 0 | JQ27: 0 | JR27: 0 | JS27: 0 | JT27: 0 | JU27: 0 | JV27: 0 | JW27: 0 | JX27: 0 | JY27: 0 | JZ27: 0 | KA27: 0 | KB27: 0 | KC27: 0 | KD27: 0 | KE27: 0 | KF27: 0 | KG27: 0 | KH27: 0 | KI27: 0 | KJ27: 0 | KK27: 0 | KL27: 0 | KM27: 0 | KN27: 0 | KO27: 0 | KP27: 0 | KQ27: 0 | KR27: 0 | KS27: 0 | KT27: 0 | KU27: 0 | KV27: 0 | KW27: 0
A28: 384 | B28: SAMEDI | C28: 2022-08-13 | D28: 11 | E28: 17 | F28: 37 | G28: 38 | H28: 39 | I28: 2 | J28: 9 | K28: j | L28: 0 | M28: =_xlfn.LET(_xlpm.comp,RIGHT(D28:H28,1),_xlfn._xlws.FILTER(D28:H28,_xlfn.XMATCH(_xlpm.comp,_xlpm.comp)<>_xlfn.XMATCH(_xlpm.comp,_xlpm.comp,,-1))) ->  | Q28: =COUNTIF(D27:H27,D28:H28) ->  | V28: =IF(AND(W28>69,W28<164,OR(X28={1;2;3;4})),1,0) -> 1 | W28: 142 | X28: =SUMPRODUCT(( MOD(D28:H28,2)>0)*1) -> 4 | Y28: 1 | Z28: 0 | AA28: 0 | AB28: 0 | AC28: 0 | AD28: 0 | AE28: 2 | AF28: 1 | AG28: 1 | AH28: 0 | AI28: 1 | AJ28: 0 | AK28: 0 | AL28: 0 | AM28: 0 | AN28: 0 | AO28: 1 | AP28: 0 | AQ28: 0 | AR28: 0 | AS28: 0 | AT28: 0 | AU28: 0 | AV28: 0 | AW28: 0 | AX28: 0 | AY28: 0 | AZ28: 0 | BA28: 0 | BB28: 0 | BC28: 0 | BD28: 0 | BE28: 0 | BF28: 0 | BG28: 0 | BH28: 0 | BI28: 1 | BJ28: 1 | BK28: 1 | BL28: 0 | BM28: 0 | BN28: 0 | BO28: 0 | BP28: 0 | BQ28: 0 | BR28: 0 | BS28: 0 | BT28: 0 | BU28: 0 | BV28: 0 | BW28: 2 | BX28: 0 | BY28: 3 | BZ28: 0 | CB28: 0 | CC28: 1 | CD28: 0 | CE28: 1 | CF28: 0 | CG28: 0 | CH28: 0 | CI28: 0 | CJ28: 0 | CK28: 0 | CL28: 0 | CM28: 0 | CN28: 0 | CO28: 0 | CP28: 0 | CQ28: 0 | CR28: 0 | CS28: 0 | CT28: 0 | CU28: 0 | CV28: 0 | CW28: 0 | CX28: 0 | CY28: 0 | CZ28: 0 | DA28: 0 | DB28: 0 | DC28: 1 | DD28: 0 | DE28: 0 | DF28: 0 | DG28: 0 | DH28: 0 | DJ28: 0 | DK28: 0 | DL28: 0 | DM28: 0 | DN28: 0 | DO28: 0 | DP28: 0 | DQ28: 0 | DR28: 0 | DS28: 0 | DT28: 0 | DU28: 0 | DW28: 1 | DX28: 1 | DY28: 1 | DZ28: 1 | EA28: 1 | EB28: 1 | EC28: 1 | ED28: 1 | EE28: 1 | EF28: 1 | EI28: 1 | EJ28: 1 | EK28: 1 | EL28: 1 | EM28: 1 | EN28: 1 | EO28: 1 | EP28: 1 | EQ28: 1 | ER28: 1 | ES28: 1 | ET28: 0 | EU28: 1 | EW28: 28 | EX28: =(MID(D28,2,2)*1) -> 1 | EY28: 7 | EZ28: 7 | FA28: 8 | FB28: 9 | FC28: 0 | FD28: 1 | FE28: 2 | FF28: 0 | FG28: 0 | FH28: 0 | FI28: 0 | FJ28: 0 | FM28: 1 | FN28: 1 | FW28: 1 | FX28: 1 | FY28: 1 | FZ28: 0 | GA28: 1 | GE28: 1 | GF28: 1 | GG28: 0 | GH28: 0 | GL28: 1 | GM28: 0 | GN28: 1 | GR28: 0 | GS28: 1 | GW28: 1 | HA28: 0 | JA28: 0 | JB28: 0 | JC28: 0 | JD28: 0 | JE28: 0 | JF28: 0 | JG28: 0 | JH28: 0 | JI28: 0 | JJ28: 0 | JK28: 0 | JL28: 0 | JM28: 0 | JN28: 0 | JO28: 0 | JP28: 0 | JQ28: 0 | JR28: 0 | JS28: 0 | JT28: 0 | JU28: 0 | JV28: 0 | JW28: 0 | JX28: 0 | JY28: 0 | JZ28: 0 | KA28: 0 | KB28: 0 | KC28: 0 | KD28: 0 | KE28: 0 | KF28: 0 | KG28: 0 | KH28: 0 | KI28: 0 | KJ28: 0 | KK28: 0 | KL28: 0 | KM28: 0 | KN28: 0 | KO28: 0 | KP28: 0 | KQ28: 0 | KR28: 0 | KS28: 0 | KT28: 0 | KU28: 0 | KV28: 0 | KW28: 0
A29: 383 | B29: LUNDI | C29: 2022-08-15 | D29: 4 | E29: 22 | F29: 34 | G29: 42 | H29: 48 | I29: 3 | J29: 8 | K29: i | L29: 0 | M29: =_xlfn.LET(_xlpm.comp,RIGHT(D29:H29,1),_xlfn._xlws.FILTER(D29:H29,_xlfn.XMATCH(_xlpm.comp,_xlpm.comp)<>_xlfn.XMATCH(_xlpm.comp,_xlpm.comp,,-1))) ->  | Q29: =COUNTIF(D28:H28,D29:H29) ->  | V29: =IF(AND(W29>69,W29<164,OR(X29={1;2;3;4})),1,0) -> 0 | W29: 150 | X29: =SUMPRODUCT(( MOD(D29:H29,2)>0)*1) -> 0 | Y29: 0 | Z29: 2 | AA29: 0 | AB29: 2 | AC29: 0 | AD29: 0 | AE29: 0 | AF29: 1 | AG29: 0 | AH29: 0 | AI29: 0 | AJ29: 0 | AK29: 0 | AL29: 0 | AM29: 0 | AN29: 0 | AO29: 0 | AP29: 0 | AQ29: 0 | AR29: 0 | AS29: 0 | AT29: 1 | AU29: 0 | AV29: 0 | AW29: 0 | AX29: 0 | AY29: 0 | AZ29: 0 | BA29: 0 | BB29: 0 | BC29: 0 | BD29: 0 | BE29: 0 | BF29: 1 | BG29: 0 | BH29: 0 | BI29: 0 | BJ29: 0 | BK29: 0 | BL29: 0 | BM29: 0 | BN29: 1 | BO29: 0 | BP29: 0 | BQ29: 0 | BR29: 0 | BS29: 0 | BT29: 1 | BU29: 0 | BV29: 1 | BW29: 0 | BX29: 1 | BY29: 1 | BZ29: 2 | CB29: 1 | CC29: 0 | CD29: 1 | CE29: 1 | CF29: 1 | CG29: 0 | CH29: 0 | CI29: 1 | CJ29: 0 | CK29: 0 | CL29: 0 | CM29: 0 | CN29: 0 | CO29: 0 | CP29: 0 | CQ29: 0 | CR29: 0 | CS29: 0 | CT29: 0 | CU29: 0 | CV29: 0 | CW29: 0 | CX29: 0 | CY29: 0 | CZ29: 0 | DA29: 0 | DB29: 0 | DC29: 0 | DD29: 0 | DE29: 0 | DF29: 0 | DG29: 0 | DH29: 0 | DJ29: 0 | DK29: 0 | DL29: 0 | DM29: 0 | DN29: 0 | DO29: 0 | DP29: 0 | DQ29: 0 | DR29: 0 | DS29: 0 | DT29: 0 | DU29: 0 | DW29: 1 | DX29: 1 | DY29: 1 | DZ29: 1 | EA29: 1 | EB29: 1 | EC29: 1 | ED29: 1 | EE29: 1 | EF29: 1 | EI29: 1 | EJ29: 1 | EK29: 1 | EL29: 1 | EM29: 1 | EN29: 1 | EO29: 1 | EP29: 1 | EQ29: 1 | ER29: 1 | ES29: 0 | ET29: 1 | EW29: 44 | EX29: =(MID(D29,1,2)*1) -> 4 | EY29: 2 | EZ29: 4 | FA29: 2 | FB29: 8 | FC29: 0 | FD29: 1 | FE29: 3 | FF29: 0 | FG29: 0 | FH29: 0 | FI29: 0 | FJ29: 0 | FW29: 0 | FX29: 0 | FY29: 0 | FZ29: 0 | GA29: 0 | GE29: 0 | GF29: 0 | GG29: 0 | GH29: 0 | GL29: 0 | GM29: 0 | GN29: 0 | GR29: 0 | GS29: 0 | GW29: 0 | HA29: 1 | JA29: 0 | JB29: 0 | JC29: 0 | JD29: 0 | JE29: 0 | JF29: 0 | JG29: 0 | JH29: 0 | JI29: 0 | JJ29: 0 | JK29: 0 | JL29: 0 | JM29: 0 | JN29: 0 | JO29: 0 | JP29: 0 | JQ29: 0 | JR29: 0 | JS29: 0 | JT29: 0 | JU29: 0 | JV29: 0 | JW29: 0 | JX29: 0 | JY29: 0 | JZ29: 0 | KA29: 0 | KB29: 0 | KC29: 0 | KD29: 0 | KE29: 0 | KF29: 0 | KG29: 0 | KH29: 0 | KI29: 0 | KJ29: 0 | KK29: 0 | KL29: 0 | KM29: 0 | KN29: 0 | KO29: 0 | KP29: 0 | KQ29: 0 | KR29: 0 | KS29: 0 | KT29: 0 | KU29: 0 | KV29: 0 | KW29: 0
A30: 382 | B30: MERCREDI | C30: 2022-08-17 | D30: 5 | E30: 14 | F30: 16 | G30: 17 | H30: 29 | I30: 3 | J30: 9 | K30: j | L30: 0 | M30: =_xlfn.LET(_xlpm.comp,RIGHT(D30:H30,1),_xlfn._xlws.FILTER(D30:H30,_xlfn.XMATCH(_xlpm.comp,_xlpm.comp)<>_xlfn.XMATCH(_xlpm.comp,_xlpm.comp,,-1))) ->  | Q30: =COUNTIF(D29:H29,D30:H30) ->  | V30: =IF(AND(W30>69,W30<164,OR(X30={1;2;3;4})),1,0) -> 1 | W30: 81 | X30: =SUMPRODUCT(( MOD(D30:H30,2)>0)*1) -> 3 | Y30: 0 | Z30: 0 | AA30: 0 | AB30: 1 | AC30: 1 | AD30: 1 | AE30: 1 | AF30: 0 | AG30: 1 | AH30: 0 | AI30: 0 | AJ30: 0 | AK30: 0 | AL30: 1 | AM30: 0 | AN30: 1 | AO30: 1 | AP30: 0 | AQ30: 0 | AR30: 0 | AS30: 0 | AT30: 0 | AU30: 0 | AV30: =COUNTIF(($D30:$H30),AV$1) -> 0 | AW30: 0 | AX30: 0 | AY30: 0 | AZ30: 0 | BA30: 1 | BB30: 0 | BC30: 0 | BD30: 0 | BE30: 0 | BF30: 0 | BG30: 0 | BH30: 0 | BI30: 0 | BJ30: 0 | BK30: 0 | BL30: 0 | BM30: 0 | BN30: 0 | BO30: 0 | BP30: 0 | BQ30: 0 | BR30: 0 | BS30: 0 | BT30: 0 | BU30: 0 | BV30: 1 | BW30: 3 | BX30: 1 | BY30: 0 | BZ30: 0 | CB30: 1 | CC30: 1 | CD30: 1 | CE30: 0 | CF30: 0 | CG30: 0 | CH30: 0 | CI30: 0 | CJ30: 0 | CK30: 0 | CL30: 0 | CM30: 0 | CN30: 0 | CO30: 0 | CP30: 0 | CQ30: 1 | CR30: 0 | CS30: 0 | CT30: 0 | CU30: 0 | CV30: 0 | CW30: 0 | CX30: 0 | CY30: 0 | CZ30: 0 | DA30: 0 | DB30: 0 | DC30: 0 | DD30: 0 | DE30: 0 | DF30: 0 | DG30: 0 | DH30: 0 | DJ30: 0 | DK30: 0 | DL30: 0 | DM30: 0 | DN30: 0 | DO30: 0 | DP30: 0 | DQ30: 0 | DR30: 0 | DS30: 0 | DT30: 0 | DU30: 0 | DW30: 1 | DX30: 1 | DY30: 1 | DZ30: 1 | EA30: 1 | EB30: 1 | EC30: 1 | ED30: 1 | EE30: 1 | EF30: 1 | EI30: 1 | EJ30: 1 | EK30: 1 | EL30: 1 | EM30: 1 | EN30: 1 | EO30: 1 | EP30: 1 | EQ30: 1 | ER30: 1 | ES30: 1 | ET30: 1 | EU30: 1 | EW30: 24 | EX30: =(MID(D30,1,2)*1) -> 5 | EY30: 4 | EZ30: 6 | FA30: 7 | FB30: 9 | FC30: 0 | FD30: 1 | FE30: 3 | FF30: 0 | FG30: 0 | FH30: 0 | FI30: 0 | FJ30: 0 | FM30: 1 | FW30: 1 | FX30: 0 | FY30: 0 | FZ30: 1 | GA30: 1 | GE30: 0 | GF30: 0 | GG30: 0 | GH30: 1 | GL30: 0 | GM30: 0 | GN30: 0 | GR30: 1 | GS30: 0 | GW30: 1 | HA30: 0 | JA30: 0 | JB30: 0 | JC30: 0 | JD30: 0 | JE30: 0 | JF30: 0 | JG30: 0 | JH30: 0 | JI30: 0 | JJ30: 0 | JK30: 0 | JL30: 0 | JM30: 0 | JN30: 0 | JO30: 0 | JP30: 0 | JQ30: 0 | JR30: 0 | JS30: 0 | JT30: 0 | JU30: 0 | JV30: 0 | JW30: 0 | JX30: 0 | JY30: 0 | JZ30: 0 | KA30: 0 | KB30: 0 | KC30: 0 | KD30: 0 | KE30: 0 | KF30: 0 | KG30: 0 | KH30: 0 | KI30: 0 | KJ30: 0 | KK30: 0 | KL30: 0 | KM30: 0 | KN30: 0 | KO30: 0 | KP30: 0 | KQ30: 0 | KR30: 0 | KS30: 0 | KT30: 0 | KU30: 0 | KV30: 0 | KW30: 0
A31: 381 | B31: SAMEDI | C31: 2022-08-20 | D31: 1 | E31: 17 | F31: 21 | G31: 38 | H31: 46 | I31: 2 | J31: 6 | K31: g | L31: 0 | M31: =_xlfn.LET(_xlpm.comp,RIGHT(D31:H31,1),_xlfn._xlws.FILTER(D31:H31,_xlfn.XMATCH(_xlpm.comp,_xlpm.comp)<>_xlfn.XMATCH(_xlpm.comp,_xlpm.comp,,-1))) ->  | Q31: =COUNTIF(D30:H30,D31:H31) ->  | V31: =IF(AND(W31>69,W31<164,OR(X31={1;2;3;4})),1,0) -> 1 | W31: 123 | X31: =SUMPRODUCT(( MOD(D31:H31,2)>0)*1) -> 3 | Y31: 2 | Z31: 0 | AA31: 0 | AB31: 0 | AC31: 0 | AD31: 1 | AE31: 1 | AF31: 1 | AG31: 0 | AH31: 0 | AI31: 0 | AJ31: 0 | AK31: 0 | AL31: 0 | AM31: 0 | AN31: 0 | AO31: 1 | AP31: 0 | AQ31: 0 | AR31: 0 | AS31: 1 | AT31: 0 | AU31: 0 | AV31: 0 | AW31: 0 | AX31: 0 | AY31: 0 | AZ31: 0 | BA31: 0 | BB31: 0 | BC31: 0 | BD31: 0 | BE31: 0 | BF31: 0 | BG31: 0 | BH31: 0 | BI31: 0 | BJ31: 1 | BK31: 0 | BL31: 0 | BM31: 0 | BN31: 0 | BO31: 0 | BP31: 0 | BQ31: 0 | BR31: 1 | BS31: 0 | BT31: 0 | BU31: 0 | BV31: 1 | BW31: 1 | BX31: 1 | BY31: 1 | BZ31: 1 | CA31: 1 | CB31: 1 | CC31: 1 | CD31: 1 | CE31: 1 | CF31: 1 | CG31: 1 | CH31: 0 | CI31: 0 | CJ31: 0 | CK31: 0 | CL31: 0 | CM31: 0 | CN31: 0 | CO31: 0 | CP31: 0 | CQ31: 0 | CR31: 0 | CS31: 0 | CT31: 0 | CU31: 0 | CV31: 0 | CW31: 0 | CX31: 0 | CY31: 0 | CZ31: 0 | DA31: 0 | DB31: 0 | DC31: 0 | DD31: 0 | DE31: 0 | DF31: 0 | DG31: 0 | DH31: 0 | DJ31: 0 | DK31: 0 | DL31: 0 | DM31: 0 | DN31: 0 | DO31: 0 | DP31: 0 | DQ31: 0 | DR31: 0 | DS31: 0 | DT31: 0 | DU31: 0 | DW31: 1 | DX31: 1 | DY31: 1 | DZ31: 1 | EA31: 1 | EB31: 1 | EC31: 1 | ED31: 1 | EE31: 1 | EF31: 1 | EI31: 1 | EJ31: 1 | EK31: 1 | EL31: 1 | EM31: 1 | EN31: 1 | EO31: 1 | EP31: 1 | EQ31: 1 | ER31: 1 | ES31: 0 | ET31: 0 | EW31: 45 | EX31: =(MID(D31,1,2)*1) -> 1 | EY31: 7 | EZ31: 1 | FA31: 8 | FB31: 6 | FC31: 0 | FD31: 1 | FE31: 2 | FF31: 0 | FG31: 0 | FH31: 0 | FI31: 0 | FJ31: 0 | FW31: 1 | FX31: 1 | FY31: 1 | FZ31: 0 | GA31: 0 | GE31: 1 | GF31: 1 | GG31: 0 | GH31: 0 | GL31: 1 | GM31: 0 | GN31: 0 | GR31: 0 | GS31: 0 | GW31: 0 | HA31: 0 | JA31: 0 | JB31: 0 | JC31: 0 | JD31: 0 | JE31: 0 | JF31: 0 | JG31: 0 | JH31: 0 | JI31: 0 | JJ31: 0 | JK31: 0 | JL31: 0 | JM31: 0 | JN31: 0 | JO31: 0 | JP31: 0 | JQ31: 0 | JR31: 0 | JS31: 0 | JT31: 0 | JU31: 0 | JV31: 0 | JW31: 0 | JX31: 0 | JY31: 0 | JZ31: 0 | KA31: 0 | KB31: 0 | KC31: 0 | KD31: 0 | KE31: 0 | KF31: 0 | KG31: 0 | KH31: 0 | KI31: 0 | KJ31: 0 | KK31: 0 | KL31: 0 | KM31: 0 | KN31: 0 | KO31: 0 | KP31: 0 | KQ31: 0 | KR31: 0 | KS31: 0 | KT31: 0 | KU31: 0 | KV31: 0 | KW31: 0
A32: 380 | B32: LUNDI | C32: 2022-08-22 | D32: 2 | E32: 9 | F32: 39 | G32: 44 | H32: 46 | I32: 9 | J32: 6 | K32: g | L32: 0 | M32: =_xlfn.LET(_xlpm.comp,RIGHT(D32:H32,1),_xlfn._xlws.FILTER(D32:H32,_xlfn.XMATCH(_xlpm.comp,_xlpm.comp)<>_xlfn.XMATCH(_xlpm.comp,_xlpm.comp,,-1))) ->  | Q32: =COUNTIF(D31:H31,D32:H32) ->  | V32: =IF(AND(W32>69,W32<164,OR(X32={1;2;3;4})),1,0) -> 1 | W32: 140 | X32: =SUMPRODUCT(( MOD(D32:H32,2)>0)*1) -> 2 | Y32: 0 | Z32: 1 | AA32: 0 | AB32: 1 | AC32: 0 | AD32: 1 | AE32: 0 | AF32: 0 | AG32: 2 | AH32: 0 | AI32: =COUNTIF(($D32:$H32),AI$1) -> 0 | AJ32: 0 | AK32: 0 | AL32: 0 | AM32: 0 | AN32: 0 | AO32: 0 | AP32: 0 | AQ32: 0 | AR32: 0 | AS32: 0 | AT32: 0 | AU32: 0 | AV32: 0 | AW32: 0 | AX32: 0 | AY32: 0 | AZ32: 0 | BA32: 0 | BB32: 0 | BC32: 0 | BD32: 0 | BE32: 0 | BF32: 0 | BG32: 0 | BH32: 0 | BI32: 0 | BJ32: 0 | BK32: 1 | BL32: 0 | BM32: 0 | BN32: 0 | BO32: 0 | BP32: 1 | BQ32: 0 | BR32: 1 | BS32: 0 | BT32: 0 | BU32: 0 | BV32: 2 | BW32: 0 | BX32: 0 | BY32: 1 | BZ32: 2 | CB32: 1 | CC32: 0 | CD32: 0 | CE32: 1 | CF32: 1 | CG32: 0 | CH32: 0 | CI32: 0 | CJ32: 0 | CK32: 0 | CL32: 0 | CM32: 0 | CN32: 0 | CO32: 0 | CP32: 1 | CQ32: 0 | CR32: 0 | CS32: 0 | CT32: 0 | CU32: 0 | CV32: 0 | CW32: 0 | CX32: 0 | CY32: 0 | CZ32: 0 | DA32: 0 | DB32: 0 | DC32: 0 | DD32: 0 | DE32: 0 | DF32: 0 | DG32: 0 | DH32: 0 | DJ32: 0 | DK32: 0 | DL32: 0 | DM32: 0 | DN32: 0 | DO32: 0 | DP32: 0 | DQ32: 0 | DR32: 0 | DS32: 0 | DT32: 0 | DU32: 0 | DW32: 1 | DX32: 1 | DY32: 1 | DZ32: 1 | EA32: 1 | EB32: 1 | EC32: 1 | ED32: 1 | EE32: 1 | EF32: 1 | EI32: 1 | EJ32: 1 | EK32: 1 | EL32: 1 | EM32: 1 | EN32: 1 | EO32: 1 | EP32: 1 | EQ32: 1 | ER32: 1 | ES32: 0 | ET32: 1 | EW32: 44 | EX32: =(MID(D32,1,2)*1) -> 2 | EY32: =(MID(E32,1,1)*1) -> 9 | EZ32: 9 | FA32: 4 | FB32: 6 | FC32: 2 | FD32: 1 | FE32: 9 | FF32: 0 | FG32: 1 | FH32: 1 | FI32: 0 | FJ32: 0 | FW32: 0 | FX32: 1 | FY32: 1 | FZ32: 0 | GA32: 0 | GE32: 0 | GF32: 1 | GG32: 0 | GH32: 0 | GL32: 0 | GM32: 0 | GN32: 0 | GR32: 0 | GS32: 0 | GW32: 0 | HA32: 0 | JA32: 0 | JB32: 0 | JC32: 0 | JD32: 0 | JE32: 0 | JF32: 0 | JG32: 0 | JH32: 0 | JI32: 0 | JJ32: 0 | JK32: 0 | JL32: 0 | JM32: 0 | JN32: 0 | JO32: 0 | JP32: 0 | JQ32: 0 | JR32: 0 | JS32: 0 | JT32: 0 | JU32: 0 | JV32: 0 | JW32: 0 | JX32: 0 | JY32: 0 | JZ32: 0 | KA32: 0 | KB32: 0 | KC32: 0 | KD32: 0 | KE32: 0 | KF32: 0 | KG32: 0 | KH32: 0 | KI32: 0 | KJ32: 0 | KK32: 0 | KL32: 0 | KM32: 0 | KN32: 0 | KO32: 0 | KP32: 0 | KQ32: 0 | KR32: 0 | KS32: 0 | KT32: 0 | KU32: 0 | KV32: 0 | KW32: 0
A33: 379 | B33: MERCREDI | C33: 2022-08-24 | D33: 22 | E33: 27 | F33: 36 | G33: 39 | H33: 42 | I33: 10 | J33: 2 | K33: c | L33: 0 | M33: =_xlfn.LET(_xlpm.comp,RIGHT(D33:H33,1),_xlfn._xlws.FILTER(D33:H33,_xlfn.XMATCH(_xlpm.comp,_xlpm.comp)<>_xlfn.XMATCH(_xlpm.comp,_xlpm.comp,,-1))) ->  | Q33: =COUNTIF(D32:H32,D33:H33) ->  | V33: =IF(AND(W33>69,W33<164,OR(X33={1;2;3;4})),1,0) -> 0 | W33: 166 | X33: =SUMPRODUCT(( MOD(D33:H33,2)>0)*1) -> 2 | Y33: 0 | Z33: 2 | AA33: 0 | AB33: 0 | AC33: 0 | AD33: 1 | AE33: 1 | AF33: 0 | AG33: 1 | AH33: 0 | AI33: 0 | AJ33: 0 | AK33: 0 | AL33: 0 | AM33: 0 | AN33: 0 | AO33: 0 | AP33: 0 | AQ33: 0 | AR33: 0 | AS33: 0 | AT33: 1 | AU33: 0 | AV33: 0 | AW33: 0 | AX33: 0 | AY33: 1 | AZ33: 0 | BA33: 0 | BB33: 0 | BC33: 0 | BD33: 0 | BE33: 0 | BF33: 0 | BG33: 0 | BH33: 1 | BI33: 0 | BJ33: 0 | BK33: 1 | BL33: 0 | BM33: 0 | BN33: 1 | BO33: 0 | BP33: 0 | BQ33: 0 | BR33: 0 | BS33: 0 | BT33: 0 | BU33: 0 | BV33: 0 | BW33: 0 | BX33: 2 | BY33: 2 | BZ33: 1 | CB33: 0 | CC33: 0 | CD33: 1 | CE33: 1 | CF33: 1 | CG33: 0 | CH33: 0 | CI33: 0 | CJ33: 0 | CK33: 0 | CL33: 0 | CM33: 0 | CN33: 1 | CO33: 0 | CP33: 0 | CQ33: 0 | CR33: 0 | CS33: 0 | CT33: 0 | CU33: 0 | CV33: 0 | CW33: 0 | CX33: 0 | CY33: 0 | CZ33: 0 | DA33: 0 | DB33: 0 | DC33: 0 | DD33: 0 | DE33: 0 | DF33: 0 | DG33: 0 | DH33: 0 | DJ33: 0 | DK33: 0 | DL33: 0 | DM33: 0 | DN33: 0 | DO33: 0 | DP33: 0 | DQ33: 0 | DR33: 0 | DS33: 0 | DT33: 0 | DU33: 1 | DW33: 1 | DX33: 1 | DY33: 1 | DZ33: 1 | EA33: 1 | EB33: 1 | EC33: 1 | ED33: 1 | EE33: 1 | EF33: 0 | EI33: 1 | EJ33: 1 | EK33: 1 | EL33: 1 | EM33: 1 | EN33: 1 | EO33: 1 | EP33: 1 | EQ33: 1 | ER33: 0 | ES33: 0 | ET33: 0 | EW33: 20 | EX33: =(MID(D33,2,2)*1) -> 2 | EY33: 7 | EZ33: 6 | FA33: 9 | FB33: 2 | FC33: 0 | FD33: 1 | FE33: 0 | FF33: 0 | FG33: 0 | FH33: 0 | FI33: 0 | FJ33: =COUNTIF(FB33,FE33) -> 0 | FW33: 0 | FX33: 1 | FY33: 0 | FZ33: 1 | GA33: 0 | GE33: 0 | GF33: 0 | GG33: 0 | GH33: 0 | GL33: 0 | GM33: 0 | GN33: 0 | GR33: 0 | GS33: 0 | GW33: 0 | HA33: 1 | JA33: 0 | JB33: 0 | JC33: 0 | JD33: 0 | JE33: 0 | JF33: 0 | JG33: 0 | JH33: 0 | JI33: 0 | JJ33: 0 | JK33: 0 | JL33: 0 | JM33: 0 | JN33: 0 | JO33: 0 | JP33: 0 | JQ33: 0 | JR33: 0 | JS33: 0 | JT33: 0 | JU33: 0 | JV33: 0 | JW33: 0 | JX33: 0 | JY33: 0 | JZ33: 0 | KA33: 0 | KB33: 0 | KC33: 0 | KD33: 0 | KE33: 0 | KF33: 0 | KG33: 0 | KH33: 0 | KI33: 0 | KJ33: 0 | KK33: 0 | KL33: 0 | KM33: 0 | KN33: 0 | KO33: 0 | KP33: 0 | KQ33: 0 | KR33: 0 | KS33: 0 | KT33: 0 | KU33: 0 | KV33: 0 | KW33: 0
A34: 378 | B34: SAMEDI | C34: 2022-08-27 | D34: 11 | E34: 22 | F34: 32 | G34: 34 | H34: 39 | I34: 3 | J34: 9 | K34: j | L34: 0 | M34: =_xlfn.LET(_xlpm.comp,RIGHT(D34:H34,1),_xlfn._xlws.FILTER(D34:H34,_xlfn.XMATCH(_xlpm.comp,_xlpm.comp)<>_xlfn.XMATCH(_xlpm.comp,_xlpm.comp,,-1))) ->  | Q34: =COUNTIF(D33:H33,D34:H34) ->  | V34: =IF(AND(W34>69,W34<164,OR(X34={1;2;3;4})),1,0) -> 1 | W34: 138 | X34: =SUMPRODUCT(( MOD(D34:H34,2)>0)*1) -> 2 | Y34: 1 | Z34: 2 | AA34: 0 | AB34: 1 | AC34: 0 | AD34: 0 | AE34: 0 | AF34: 0 | AG34: 1 | AH34: 0 | AI34: 1 | AJ34: 0 | AK34: 0 | AL34: 0 | AM34: 0 | AN34: 0 | AO34: 0 | AP34: 0 | AQ34: 0 | AR34: 0 | AS34: 0 | AT34: 1 | AU34: 0 | AV34: 0 | AW34: 0 | AX34: 0 | AY34: 0 | AZ34: 0 | BA34: 0 | BB34: 0 | BC34: 0 | BD34: 1 | BE34: 0 | BF34: 1 | BG34: 0 | BH34: 0 | BI34: 0 | BJ34: 0 | BK34: 1 | BL34: 0 | BM34: 0 | BN34: 0 | BO34: 0 | BP34: 0 | BQ34: 0 | BR34: 0 | BS34: 0 | BT34: 0 | BU34: 0 | BV34: 0 | BW34: 1 | BX34: 1 | BY34: 3 | BZ34: 0 | CB34: 0 | CC34: 1 | CD34: 1 | CE34: 1 | CF34: 0 | CG34: 0 | CH34: 0 | CI34: 0 | CJ34: 0 | CK34: 0 | CL34: 0 | CM34: 0 | CN34: 0 | CO34: 0 | CP34: 0 | CQ34: 0 | CR34: 0 | CS34: 0 | CT34: 0 | CU34: 0 | CV34: 0 | CW34: 1 | CX34: 0 | CY34: 0 | CZ34: 0 | DA34: 0 | DB34: 0 | DC34: 0 | DD34: 0 | DE34: 0 | DF34: 0 | DG34: 0 | DH34: 0 | DJ34: 0 | DK34: 0 | DL34: 0 | DM34: 0 | DN34: 0 | DO34: 0 | DP34: 0 | DQ34: 0 | DR34: 0 | DS34: 0 | DT34: 0 | DU34: 0 | DW34: 1 | DX34: 1 | DY34: 1 | DZ34: 1 | EA34: 1 | EB34: 1 | EC34: 1 | ED34: 1 | EE34: 1 | EF34: 0 | EI34: 1 | EJ34: 1 | EK34: 1 | EL34: 1 | EM34: 1 | EN34: 1 | EO34: 1 | EP34: 1 | EQ34: 1 | ER34: 0 | ES34: 0 | ET34: 1 | EW34: 28 | EX34: =(MID(D34,2,2)*1) -> 1 | EY34: 2 | EZ34: 2 | FA34: 4 | FB34: 9 | FC34: 0 | FD34: 1 | FE34: 3 | FF34: 0 | FG34: 0 | FH34: 0 | FI34: 0 | FJ34: 0 | FW34: 1 | FX34: 0 | FY34: 0 | FZ34: 0 | GA34: 1 | GE34: 0 | GF34: 0 | GG34: 0 | GH34: 0 | GL34: 0 | GM34: 1 | GN34: 0 | GR34: 0 | GS34: 0 | GW34: 1 | HA34: 1 | JA34: 0 | JB34: 0 | JC34: 0 | JD34: 0 | JE34: 0 | JF34: 0 | JG34: 0 | JH34: 0 | JI34: 0 | JJ34: 0 | JK34: 0 | JL34: 0 | JM34: 0 | JN34: 0 | JO34: 0 | JP34: 0 | JQ34: 0 | JR34: 0 | JS34: 0 | JT34: 0 | JU34: 0 | JV34: 0 | JW34: 0 | JX34: 0 | JY34: 0 | JZ34: 0 | KA34: 0 | KB34: 0 | KC34: 0 | KD34: 0 | KE34: 0 | KF34: 0 | KG34: 0 | KH34: 0 | KI34: 0 | KJ34: 0 | KK34: 0 | KL34: 0 | KM34: 0 | KN34: 0 | KO34: 0 | KP34: 0 | KQ34: 0 | KR34: 0 | KS34: 0 | KT34: 0 | KU34: 0 | KV34: 0 | KW34: 0
A35: 377 | B35: LUNDI | C35: 2022-08-29 | D35: 5 | E35: 10 | F35: 22 | G35: 28 | H35: 34 | I35: 4 | J35: 4 | K35: e | L35: 0 | M35: =_xlfn.LET(_xlpm.comp,RIGHT(D35:H35,1),_xlfn._xlws.FILTER(D35:H35,_xlfn.XMATCH(_xlpm.comp,_xlpm.comp)<>_xlfn.XMATCH(_xlpm.comp,_xlpm.comp,,-1))) ->  | Q35: =COUNTIF(D34:H34,D35:H35) ->  | V35: =IF(AND(W35>69,W35<164,OR(X35={1;2;3;4})),1,0) -> 1 | W35: 99 | X35: =SUMPRODUCT(( MOD(D35:H35,2)>0)*1) -> 1 | Y35: 0 | Z35: 1 | AA35: 0 | AB35: 1 | AC35: 1 | AD35: 0 | AE35: 0 | AF35: 1 | AG35: 0 | AH35: 1 | AI35: 0 | AJ35: 0 | AK35: 0 | AL35: 0 | AM35: 0 | AN35: 0 | AO35: 0 | AP35: 0 | AQ35: 0 | AR35: 0 | AS35: 0 | AT35: 1 | AU35: 0 | AV35: 0 | AW35: 0 | AX35: 0 | AY35: 0 | AZ35: 1 | BA35: 0 | BB35: 0 | BC35: 0 | BD35: 0 | BE35: 0 | BF35: 1 | BG35: 0 | BH35: 0 | BI35: 0 | BJ35: 0 | BK35: 0 | BL35: 0 | BM35: 0 | BN35: 0 | BO35: 0 | BP35: 0 | BQ35: 0 | BR35: 0 | BS35: 0 | BT35: 0 | BU35: 0 | BV35: 1 | BW35: 1 | BX35: 2 | BY35: 1 | BZ35: 0 | CB35: 1 | CC35: 1 | CD35: 1 | CE35: 1 | CF35: 0 | CG35: 0 | CH35: 0 | CI35: 0 | CJ35: 0 | CK35: 0 | CL35: 1 | CM35: 0 | CN35: 0 | CO35: 0 | CP35: 0 | CQ35: 0 | CR35: 0 | CS35: 0 | CT35: 0 | CU35: 0 | CV35: 0 | CW35: 0 | CX35: 0 | CY35: 0 | CZ35: 0 | DA35: 0 | DB35: 0 | DC35: 0 | DD35: 0 | DE35: 0 | DF35: 0 | DG35: 0 | DH35: 0 | DJ35: 0 | DK35: 0 | DL35: 0 | DM35: 0 | DN35: 0 | DO35: 0 | DP35: 0 | DQ35: 0 | DR35: 0 | DS35: 0 | DT35: 0 | DU35: 0 | DW35: 1 | DX35: 1 | DY35: 1 | DZ35: 1 | EA35: 1 | EB35: 1 | EC35: 1 | ED35: 1 | EE35: 1 | EF35: 1 | EI35: 1 | EJ35: 1 | EK35: 1 | EL35: 1 | EM35: 1 | EN35: 1 | EO35: 1 | EP35: 1 | EQ35: 1 | ER35: 1 | ES35: 0 | ET35: 0 | EW35: 29 | EX35: =(MID(D35,1,2)*1) -> 5 | EY35: 0 | EZ35: 2 | FA35: 8 | FB35: 4 | FC35: 1 | FD35: 1 | FE35: 4 | FF35: 0 | FG35: 0 | FH35: 0 | FI35: 0 | FJ35: 1 | FW35: 1 | FX35: 0 | FY35: 0 | FZ35: 0 | GA35: 0 | GE35: 0 | GF35: 0 | GG35: 0 | GH35: 0 | GL35: 0 | GM35: 0 | GN35: 0 | GR35: 0 | GS35: 0 | GW35: 0 | HA35: 0 | JA35: 0 | JB35: 0 | JC35: 0 | JD35: 0 | JE35: 0 | JF35: 0 | JG35: 0 | JH35: 0 | JI35: 0 | JJ35: 0 | JK35: 0 | JL35: 0 | JM35: 0 | JN35: 0 | JO35: 0 | JP35: 0 | JQ35: 0 | JR35: 0 | JS35: 0 | JT35: 0 | JU35: 0 | JV35: 0 | JW35: 0 | JX35: 0 | JY35: 0 | JZ35: 0 | KA35: 0 | KB35: 0 | KC35: 0 | KD35: 0 | KE35: 0 | KF35: 0 | KG35: 0 | KH35: 0 | KI35: 0 | KJ35: 0 | KK35: 0 | KL35: 0 | KM35: 0 | KN35: 0 | KO35: 0 | KP35: 0 | KQ35: 0 | KR35: 0 | KS35: 0 | KT35: 0 | KU35: 0 | KV35: 0 | KW35: 0
A36: 376 | B36: MERCREDI | C36: 2022-08-31 | D36: 9 | E36: 10 | F36: 15 | G36: 39 | H36: 45 | I36: 7 | J36: 5 | K36: f | L36: 0 | M36: =_xlfn.LET(_xlpm.comp,RIGHT(D36:H36,1),_xlfn._xlws.FILTER(D36:H36,_xlfn.XMATCH(_xlpm.comp,_xlpm.comp)<>_xlfn.XMATCH(_xlpm.comp,_xlpm.comp,,-1))) ->  | Q36: =COUNTIF(D35:H35,D36:H36) ->  | V36: =IF(AND(W36>69,W36<164,OR(X36={1;2;3;4})),1,0) -> 1 | W36: 118 | X36: =SUMPRODUCT(( MOD(D36:H36,2)>0)*1) -> 4 | Y36: 0 | Z36: 0 | AA36: 0 | AB36: 0 | AC36: 2 | AD36: 0 | AE36: 0 | AF36: 0 | AG36: 2 | AH36: 1 | AI36: 0 | AJ36: 0 | AK36: 0 | AL36: 0 | AM36: 1 | AN36: 0 | AO36: 0 | AP36: 0 | AQ36: 0 | AR36: 0 | AS36: 0 | AT36: 0 | AU36: 0 | AV36: 0 | AW36: 0 | AX36: 0 | AY36: 0 | AZ36: 0 | BA36: 0 | BB36: 0 | BC36: 0 | BD36: 0 | BE36: 0 | BF36: 0 | BG36: 0 | BH36: 0 | BI36: 0 | BJ36: 0 | BK36: 1 | BL36: 0 | BM36: 0 | BN36: 0 | BO36: 0 | BP36: 0 | BQ36: 1 | BR36: 0 | BS36: 0 | BT36: 0 | BU36: 0 | BV36: 1 | BW36: 2 | BX36: 0 | BY36: 1 | BZ36: 1 | CB36: 1 | CC36: 1 | CD36: 0 | CE36: 1 | CF36: 1 | CG36: 0 | CH36: 0 | CI36: 0 | CJ36: 1 | CK36: 0 | CL36: 0 | CM36: 0 | CN36: 0 | CO36: 0 | CP36: 0 | CQ36: 0 | CR36: 0 | CS36: 0 | CT36: 0 | CU36: 0 | CV36: 0 | CW36: 0 | CX36: 0 | CY36: 0 | CZ36: 0 | DA36: 0 | DB36: 0 | DC36: 0 | DD36: 0 | DE36: 0 | DF36: 0 | DG36: 0 | DH36: 0 | DJ36: 0 | DK36: 0 | DL36: 0 | DM36: 0 | DN36: 0 | DO36: 0 | DP36: 0 | DQ36: 0 | DR36: 0 | DS36: 0 | DT36: 0 | DU36: 0 | DW36: 1 | DX36: 1 | DY36: 1 | DZ36: 1 | EA36: 1 | EB36: 1 | EC36: 1 | ED36: 1 | EE36: 1 | EF36: 1 | EI36: 1 | EJ36: 1 | EK36: 1 | EL36: 1 | EM36: 1 | EN36: 1 | EO36: 1 | EP36: 1 | EQ36: 1 | ER36: 1 | ES36: 0 | ET36: 1 | EU36: 1 | EW36: 36 | EX36: =(MID(D36,1,2)*1) -> 9 | EY36: 0 | EZ36: 5 | FA36: 9 | FB36: 5 | FC36: 0 | FD36: 1 | FE36: 7 | FF36: 0 | FG36: 0 | FH36: 0 | FI36: 0 | FJ36: 0 | FK36: 1 | FW36: 1 | FX36: 0 | FY36: 1 | FZ36: 1 | GA36: 1 | GE36: 0 | GF36: 0 | GG36: 1 | GH36: 1 | GL36: 1 | GM36: 0 | GN36: 1 | GR36: 1 | GS36: 0 | GW36: 1 | HA36: 0 | JA36: 0 | JB36: 0 | JC36: 0 | JD36: 0 | JE36: 0 | JF36: 0 | JG36: 0 | JH36: 0 | JI36: 0 | JJ36: 0 | JK36: 0 | JL36: 0 | JM36: 0 | JN36: 0 | JO36: 0 | JP36: 0 | JQ36: 0 | JR36: 0 | JS36: 0 | JT36: 0 | JU36: 0 | JV36: 0 | JW36: 0 | JX36: 0 | JY36: 0 | JZ36: 0 | KA36: 0 | KB36: 0 | KC36: 0 | KD36: 0 | KE36: 0 | KF36: 0 | KG36: 0 | KH36: 0 | KI36: 0 | KJ36: 0 | KK36: 0 | KL36: 0 | KM36: 0 | KN36: 0 | KO36: 0 | KP36: 0 | KQ36: 0 | KR36: 0 | KS36: 0 | KT36: 0 | KU36: 0 | KV36: 0 | KW36: 0
A37: 375 | B37: SAMEDI | C37: 2022-09-03 | D37: 24 | E37: 32 | F37: 35 | G37: 38 | H37: 44 | I37: 6 | J37: 4 | K37: e | L37: 0 | M37: =_xlfn.LET(_xlpm.comp,RIGHT(D37:H37,1),_xlfn._xlws.FILTER(D37:H37,_xlfn.XMATCH(_xlpm.comp,_xlpm.comp)<>_xlfn.XMATCH(_xlpm.comp,_xlpm.comp,,-1))) ->  | Q37: =COUNTIF(D36:H36,D37:H37) ->  | V37: =IF(AND(W37>69,W37<164,OR(X37={1;2;3;4})),1,0) -> 0 | W37: 173 | X37: =SUMPRODUCT(( MOD(D37:H37,2)>0)*1) -> 1 | Y37: 0 | Z37: 1 | AA37: 0 | AB37: 2 | AC37: 1 | AD37: 0 | AE37: 0 | AF37: 1 | AG37: 0 | AH37: 0 | AI37: 0 | AJ37: 0 | AK37: 0 | AL37: 0 | AM37: 0 | AN37: 0 | AO37: 0 | AP37: 0 | AQ37: 0 | AR37: 0 | AS37: 0 | AT37: 0 | AU37: 0 | AV37: 1 | AW37: 0 | AX37: 0 | AY37: 0 | AZ37: 0 | BA37: 0 | BB37: 0 | BC37: 0 | BD37: 1 | BE37: 0 | BF37: 0 | BG37: 1 | BH37: 0 | BI37: 0 | BJ37: 1 | BK37: 0 | BL37: 0 | BM37: 0 | BN37: 0 | BO37: 0 | BP37: 1 | BQ37: 0 | BR37: 0 | BS37: 0 | BT37: 0 | BU37: 0 | BV37: 0 | BW37: 0 | BX37: 1 | BY37: 3 | BZ37: 1 | CB37: 0 | CC37: 0 | CD37: 1 | CE37: 1 | CF37: 1 | CG37: 0 | CH37: 0 | CI37: 0 | CJ37: 0 | CK37: 0 | CL37: 0 | CM37: 0 | CN37: 1 | CO37: 0 | CP37: 0 | CQ37: 0 | CR37: 0 | CS37: 0 | CT37: 0 | CU37: 0 | CV37: 0 | CW37: 0 | CX37: 0 | CY37: 0 | CZ37: 0 | DA37: 0 | DB37: 0 | DC37: 0 | DD37: 0 | DE37: 0 | DF37: 0 | DG37: 0 | DH37: 0 | DJ37: 0 | DK37: 0 | DL37: 0 | DM37: 0 | DN37: 0 | DO37: 0 | DP37: 0 | DQ37: 0 | DR37: 0 | DS37: 0 | DT37: 0 | DU37: 0 | DW37: 1 | DX37: 1 | DY37: 1 | DZ37: 1 | EA37: 1 | EB37: 1 | EC37: 1 | ED37: 1 | EE37: 1 | EF37: 1 | EI37: 1 | EJ37: 1 | EK37: 1 | EL37: 1 | EM37: 1 | EN37: 1 | EO37: 1 | EP37: 1 | EQ37: 1 | ER37: 1 | ES37: 0 | ET37: 0 | EW37: 20 | EX37: =(MID(D37,2,2)*1) -> 4 | EY37: 2 | EZ37: 5 | FA37: 8 | FB37: 4 | FC37: 0 | FD37: 1 | FE37: 6 | FF37: 0 | FG37: 0 | FH37: 0 | FI37: 0 | FJ37: 0 | FW37: 0 | FX37: 0 | FY37: 1 | FZ37: 0 | GA37: 0 | GE37: 0 | GF37: 0 | GG37: 0 | GH37: 0 | GL37: 0 | GM37: 0 | GN37: 0 | GR37: 0 | GS37: 0 | GW37: 0 | HA37: 1 | JA37: 0 | JB37: 0 | JC37: 0 | JD37: 0 | JE37: 0 | JF37: 0 | JG37: 0 | JH37: 0 | JI37: 0 | JJ37: 0 | JK37: 0 | JL37: 0 | JM37: 0 | JN37: 0 | JO37: 0 | JP37: 0 | JQ37: 0 | JR37: 0 | JS37: 0 | JT37: 0 | JU37: 0 | JV37: 0 | JW37: 0 | JX37: 0 | JY37: 0 | JZ37: 0 | KA37: 0 | KB37: 0 | KC37: 0 | KD37: 0 | KE37: 0 | KF37: 0 | KG37: 0 | KH37: 0 | KI37: 0 | KJ37: 0 | KK37: 0 | KL37: 0 | KM37: 0 | KN37: 0 | KO37: 0 | KP37: 0 | KQ37: 0 | KR37: 0 | KS37: 0 | KT37: 0 | KU37: 0 | KV37: 0 | KW37: 0
A38: 374 | B38: LUNDI | C38: 2022-09-05 | D38: 1 | E38: 5 | F38: 27 | G38: 35 | H38: 40 | I38: 4 | J38: 0 | K38: a | L38: 0 | M38: =_xlfn.LET(_xlpm.comp,RIGHT(D38:H38,1),_xlfn._xlws.FILTER(D38:H38,_xlfn.XMATCH(_xlpm.comp,_xlpm.comp)<>_xlfn.XMATCH(_xlpm.comp,_xlpm.comp,,-1))) ->  | Q38: =COUNTIF(D37:H37,D38:H38) ->  | V38: =IF(AND(W38>69,W38<164,OR(X38={1;2;3;4})),1,0) -> 1 | W38: 108 | X38: =SUMPRODUCT(( MOD(D38:H38,2)>0)*1) -> 4 | Y38: 1 | Z38: 0 | AA38: 0 | AB38: 0 | AC38: 2 | AD38: 0 | AE38: 1 | AF38: 0 | AG38: 0 | AH38: 1 | AI38: 0 | AJ38: 0 | AK38: 0 | AL38: 0 | AM38: 0 | AN38: 0 | AO38: 0 | AP38: 0 | AQ38: 0 | AR38: 0 | AS38: 0 | AT38: 0 | AU38: 0 | AV38: 0 | AW38: 0 | AX38: 0 | AY38: 1 | AZ38: 0 | BA38: 0 | BB38: 0 | BC38: 0 | BD38: 0 | BE38: 0 | BF38: 0 | BG38: 1 | BH38: 0 | BI38: 0 | BJ38: 0 | BK38: 0 | BL38: 1 | BM38: 0 | BN38: 0 | BO38: 0 | BP38: 0 | BQ38: 0 | BR38: 0 | BS38: 0 | BT38: 0 | BU38: 0 | BV38: 2 | BW38: 0 | BX38: 1 | BY38: 1 | BZ38: 1 | CB38: 1 | CC38: 0 | CD38: 1 | CE38: 1 | CF38: 1 | CG38: 0 | CH38: 0 | CI38: 1 | CJ38: 0 | CK38: 0 | CL38: 0 | CM38: 0 | CN38: 0 | CO38: 0 | CP38: 0 | CQ38: 0 | CR38: 0 | CS38: 0 | CT38: 0 | CU38: 0 | CV38: 0 | CW38: 0 | CX38: 0 | CY38: 0 | CZ38: 0 | DA38: 0 | DB38: 0 | DC38: 0 | DD38: 0 | DE38: 0 | DF38: 0 | DG38: 0 | DH38: 0 | DJ38: 0 | DK38: 0 | DL38: 0 | DM38: 0 | DN38: 0 | DO38: 0 | DP38: 0 | DQ38: 0 | DR38: 0 | DS38: 0 | DT38: 0 | DU38: 0 | DW38: 1 | DX38: 1 | DY38: 1 | DZ38: 1 | EA38: 1 | EB38: 1 | EC38: 1 | ED38: 1 | EE38: 1 | EF38: 1 | EI38: 1 | EJ38: 1 | EK38: 1 | EL38: 1 | EM38: 1 | EN38: 1 | EO38: 1 | EP38: 1 | EQ38: 1 | ER38: 1 | ES38: 0 | ET38: 0 | EW38: 39 | EX38: =(MID(D38,1,2)*1) -> 1 | EY38: =(MID(E38,1,1)*1) -> 5 | EZ38: 7 | FA38: 5 | FB38: 0 | FC38: 0 | FD38: 1 | FE38: 4 | FF38: 0 | FG38: 0 | FH38: 0 | FI38: 0 | FJ38: 0 | FW38: 1 | FX38: 1 | FY38: 1 | FZ38: 1 | GA38: 0 | GE38: 1 | GF38: 1 | GG38: 1 | GH38: 0 | GL38: 1 | GM38: 0 | GN38: 0 | GR38: 1 | GS38: 0 | GW38: 0 | HA38: 0 | JA38: 0 | JB38: 0 | JC38: 0 | JD38: 0 | JE38: 0 | JF38: 0 | JG38: 0 | JH38: 0 | JI38: 0 | JJ38: 0 | JK38: 0 | JL38: 0 | JM38: 0 | JN38: 0 | JO38: 0 | JP38: 0 | JQ38: 0 | JR38: 0 | JS38: 0 | JT38: 0 | JU38: 0 | JV38: 0 | JW38: 0 | JX38: 0 | JY38: 0 | JZ38: 0 | KA38: 0 | KB38: 0 | KC38: 0 | KD38: 0 | KE38: 0 | KF38: 0 | KG38: 0 | KH38: 0 | KI38: 0 | KJ38: 0 | KK38: 0 | KL38: 0 | KM38: 0 | KN38: 0 | KO38: 0 | KP38: 0 | KQ38: 0 | KR38: 0 | KS38: 0 | KT38: 0 | KU38: 0 | KV38: 0 | KW38: 0
A39: 373 | B39: MERCREDI | C39: 2022-09-07 | D39: 3 | E39: 20 | F39: 29 | G39: 30 | H39: 35 | I39: 9 | J39: 5 | K39: f | L39: 0 | M39: =_xlfn.LET(_xlpm.comp,RIGHT(D39:H39,1),_xlfn._xlws.FILTER(D39:H39,_xlfn.XMATCH(_xlpm.comp,_xlpm.comp)<>_xlfn.XMATCH(_xlpm.comp,_xlpm.comp,,-1))) ->  | Q39: =COUNTIF(D38:H38,D39:H39) ->  | V39: =IF(AND(W39>69,W39<164,OR(X39={1;2;3;4})),1,0) -> 1 | W39: 117 | X39: =SUMPRODUCT(( MOD(D39:H39,2)>0)*1) -> 3 | Y39: 0 | Z39: 0 | AA39: 1 | AB39: 0 | AC39: 1 | AD39: 0 | AE39: 0 | AF39: 0 | AG39: 1 | AH39: 2 | AI39: 0 | AJ39: 0 | AK39: 0 | AL39: 0 | AM39: 0 | AN39: 0 | AO39: 0 | AP39: 0 | AQ39: 0 | AR39: 1 | AS39: 0 | AT39: 0 | AU39: 0 | AV39: 0 | AW39: 0 | AX39: 0 | AY39: 0 | AZ39: 0 | BA39: 1 | BB39: 1 | BC39: 0 | BD39: 0 | BE39: 0 | BF39: 0 | BG39: 1 | BH39: 0 | BI39: 0 | BJ39: 0 | BK39: 0 | BL39: 0 | BM39: 0 | BN39: 0 | BO39: 0 | BP39: 0 | BQ39: 0 | BR39: 0 | BS39: 0 | BT39: 0 | BU39: 0 | BV39: 1 | BW39: 0 | BX39: 2 | BY39: 2 | BZ39: 0 | CB39: 1 | CC39: 0 | CD39: 1 | CE39: 1 | CF39: 0 | CG39: 0 | CH39: 0 | CI39: 0 | CJ39: 0 | CK39: 0 | CL39: 0 | CM39: 1 | CN39: 0 | CO39: 0 | CP39: 0 | CQ39: 0 | CR39: 0 | CS39: 0 | CT39: 0 | CU39: 0 | CV39: 0 | CW39: 0 | CX39: 0 | CY39: 0 | CZ39: 0 | DA39: 0 | DB39: 0 | DC39: 0 | DD39: 0 | DE39: 0 | DF39: 0 | DG39: 0 | DH39: 0 | DJ39: 0 | DK39: 0 | DL39: 0 | DM39: 0 | DN39: 0 | DO39: 0 | DP39: 0 | DQ39: 0 | DR39: 0 | DS39: 0 | DT39: 0 | DU39: 0 | DW39: 1 | DX39: 1 | DY39: 1 | DZ39: 1 | EA39: 1 | EB39: 1 | EC39: 1 | ED39: 1 | EE39: 1 | EF39: 1 | EI39: 1 | EJ39: 1 | EK39: 1 | EL39: 1 | EM39: 1 | EN39: 1 | EO39: 1 | EP39: 1 | EQ39: 1 | ER39: 1 | ES39: 0 | ET39: 1 | EU39: 1 | EW39: 32 | EX39: =(MID(D39,1,2)*1) -> 3 | EY39: 0 | EZ39: 9 | FA39: 0 | FB39: 5 | FC39: 1 | FD39: 1 | FE39: 9 | FF39: 0 | FG39: 0 | FH39: 1 | FI39: 0 | FJ39: 0 | FM39: 1 | FW39: 1 | FX39: 0 | FY39: 1 | FZ39: 0 | GA39: 1 | GE39: 0 | GF39: 0 | GG39: 0 | GH39: 0 | GL39: 1 | GM39: 1 | GN39: 1 | GR39: 0 | GS39: 0 | GW39: 1 | HA39: 1 | JA39: 0 | JB39: 0 | JC39: 0 | JD39: 0 | JE39: 0 | JF39: 0 | JG39: 0 | JH39: 0 | JI39: 0 | JJ39: 0 | JK39: 0 | JL39: 0 | JM39: 0 | JN39: 0 | JO39: 0 | JP39: 0 | JQ39: 0 | JR39: 0 | JS39: 0 | JT39: 0 | JU39: 0 | JV39: 0 | JW39: 0 | JX39: 0 | JY39: 0 | JZ39: 0 | KA39: 0 | KB39: 0 | KC39: 0 | KD39: 0 | KE39: 0 | KF39: 0 | KG39: 0 | KH39: 0 | KI39: 0 | KJ39: 0 | KK39: 0 | KL39: 0 | KM39: 0 | KN39: 0 | KO39: 0 | KP39: 0 | KQ39: 0 | KR39: 0 | KS39: 0 | KT39: 0 | KU39: 0 | KV39: 0 | KW39: 0
A40: 372 | B40: SAMEDI | C40: 2022-09-10 | D40: 3 | E40: 8 | F40: 24 | G40: 25 | H40: 49 | I40: 5 | J40: 9 | K40: j | L40: 0 | M40: =_xlfn.LET(_xlpm.comp,RIGHT(D40:H40,1),_xlfn._xlws.FILTER(D40:H40,_xlfn.XMATCH(_xlpm.comp,_xlpm.comp)<>_xlfn.XMATCH(_xlpm.comp,_xlpm.comp,,-1))) ->  | Q40: =COUNTIF(D39:H39,D40:H40) ->  | V40: =IF(AND(W40>69,W40<164,OR(X40={1;2;3;4})),1,0) -> 1 | W40: 109 | X40: =SUMPRODUCT(( MOD(D40:H40,2)>0)*1) -> 3 | Y40: 0 | Z40: 0 | AA40: 1 | AB40: 1 | AC40: 1 | AD40: 0 | AE40: 0 | AF40: 1 | AG40: 1 | AH40: 0 | AI40: 0 | AJ40: 0 | AK40: 0 | AL40: 0 | AM40: 0 | AN40: 0 | AO40: 0 | AP40: 0 | AQ40: 0 | AR40: 0 | AS40: 0 | AT40: 0 | AU40: 0 | AV40: 1 | AW40: 1 | AX40: 0 | AY40: 0 | AZ40: 0 | BA40: 0 | BB40: 0 | BC40: 0 | BD40: 0 | BE40: 0 | BF40: 0 | BG40: 0 | BH40: 0 | BI40: 0 | BJ40: 0 | BK40: 0 | BL40: 0 | BM40: 0 | BN40: 0 | BO40: 0 | BP40: 0 | BQ40: 0 | BR40: 0 | BS40: 0 | BT40: 0 | BU40: 1 | BV40: 2 | BW40: 0 | BX40: 2 | BY40: 0 | BZ40: 1 | CB40: 1 | CC40: 0 | CD40: 1 | CE40: 0 | CF40: 1 | CG40: 0 | CH40: 0 | CI40: 0 | CJ40: 0 | CK40: 0 | CL40: 0 | CM40: 0 | CN40: 0 | CO40: 0 | CP40: 0 | CQ40: 0 | CR40: 0 | CS40: 0 | CT40: 0 | CU40: 0 | CV40: 1 | CW40: 0 | CX40: 0 | CY40: 0 | CZ40: 0 | DA40: 0 | DB40: 0 | DC40: 0 | DD40: 0 | DE40: 0 | DF40: 0 | DG40: 0 | DH40: 0 | DJ40: 0 | DK40: 0 | DL40: 0 | DM40: 0 | DN40: 0 | DO40: 0 | DP40: 0 | DQ40: 0 | DR40: 0 | DS40: 0 | DT40: 0 | DU40: 0 | DW40: 1 | DX40: 1 | DY40: 1 | DZ40: 1 | EA40: 1 | EB40: 1 | EC40: 1 | ED40: 1 | EE40: 1 | EF40: 1 | EI40: 1 | EJ40: 1 | EK40: 1 | EL40: 1 | EM40: 1 | EN40: 1 | EO40: 1 | EP40: 1 | EQ40: 1 | ER40: 1 | ES40: 0 | ET40: 1 | EU40: 1 | EW40: 46 | EX40: =(MID(D40,1,2)*1) -> 3 | EY40: =(MID(E40,1,1)*1) -> 8 | EZ40: 4 | FA40: 5 | FB40: 9 | FC40: 1 | FD40: 1 | FE40: 5 | FF40: 0 | FG40: 0 | FH40: 0 | FI40: 1 | FJ40: 0 | FM40: 1 | FW40: 1 | FX40: 0 | FY40: 0 | FZ40: 1 | GA40: 1 | GE40: 0 | GF40: 0 | GG40: 0 | GH40: 1 | GL40: 0 | GM40: 0 | GN40: 0 | GR40: 1 | GS40: 0 | GW40: 1 | HA40: 0 | JA40: 0 | JB40: 0 | JC40: 0 | JD40: 0 | JE40: 0 | JF40: 0 | JG40: 0 | JH40: 0 | JI40: 0 | JJ40: 0 | JK40: 0 | JL40: 0 | JM40: 0 | JN40: 0 | JO40: 0 | JP40: 0 | JQ40: 0 | JR40: 0 | JS40: 0 | JT40: 0 | JU40: 0 | JV40: 0 | JW40: 0 | JX40: 0 | JY40: 0 | JZ40: 0 | KA40: 0 | KB40: 0 | KC40: 0 | KD40: 0 | KE40: 0 | KF40: 0 | KG40: 0 | KH40: 0 | KI40: 0 | KJ40: 0 | KK40: 0 | KL40: 0 | KM40: 0 | KN40: 0 | KO40: 0 | KP40: 0 | KQ40: 0 | KR40: 0 | KS40: 0 | KT40: 0 | KU40: 0 | KV40: 0 | KW40: 0
A41: 371 | B41: LUNDI | C41: 2022-09-12 | D41: 4 | E41: 7 | F41: 20 | G41: 21 | H41: 49 | I41: 10 | J41: 9 | K41: j | L41: 0 | M41: =_xlfn.LET(_xlpm.comp,RIGHT(D41:H41,1),_xlfn._xlws.FILTER(D41:H41,_xlfn.XMATCH(_xlpm.comp,_xlpm.comp)<>_xlfn.XMATCH(_xlpm.comp,_xlpm.comp,,-1))) ->  | Q41: =COUNTIF(D40:H40,D41:H41) ->  | V41: =IF(AND(W41>69,W41<164,OR(X41={1;2;3;4})),1,0) -> 1 | W41: 101 | X41: =SUMPRODUCT(( MOD(D41:H41,2)>0)*1) -> 3 | Y41: 1 | Z41: 0 | AA41: 0 | AB41: 1 | AC41: 0 | AD41: 0 | AE41: 1 | AF41: 0 | AG41: 1 | AH41: 1 | AI41: 0 | AJ41: 0 | AK41: 0 | AL41: 0 | AM41: 0 | AN41: 0 | AO41: 0 | AP41: 0 | AQ41: 0 | AR41: 1 | AS41: 1 | AT41: 0 | AU41: 0 | AV41: 0 | AW41: 0 | AX41: 0 | AY41: 0 | AZ41: 0 | BA41: 0 | BB41: 0 | BC41: 0 | BD41: 0 | BE41: 0 | BF41: 0 | BG41: 0 | BH41: 0 | BI41: 0 | BJ41: 0 | BK41: 0 | BL41: 0 | BM41: 0 | BN41: 0 | BO41: 0 | BP41: 0 | BQ41: 0 | BR41: 0 | BS41: 0 | BT41: 0 | BU41: 1 | BV41: 2 | BW41: 0 | BX41: 2 | BY41: 0 | BZ41: 1 | CB41: 1 | CC41: 0 | CD41: 1 | CE41: 0 | CF41: 1 | CG41: 0 | CH41: 0 | CI41: 0 | CJ41: 0 | CK41: 0 | CL41: 0 | CM41: 0 | CN41: 0 | CO41: 0 | CP41: 0 | CQ41: 0 | CR41: 0 | CS41: 0 | CT41: 0 | CU41: 0 | CV41: 1 | CW41: 0 | CX41: 0 | CY41: 0 | CZ41: 0 | DA41: 0 | DB41: 0 | DC41: 0 | DD41: 0 | DE41: 0 | DF41: 0 | DG41: 0 | DH41: 0 | DJ41: 0 | DK41: 0 | DL41: 0 | DM41: 0 | DN41: 0 | DO41: 0 | DP41: 0 | DQ41: 0 | DR41: 0 | DS41: 0 | DT41: 0 | DU41: 1 | DW41: 1 | DX41: 1 | DY41: 1 | DZ41: 1 | EA41: 1 | EB41: 1 | EC41: 1 | ED41: 1 | EE41: 1 | EF41: 0 | EI41: 1 | EJ41: 1 | EK41: 1 | EL41: 1 | EM41: 1 | EN41: 1 | EO41: 1 | EP41: 1 | EQ41: 1 | ER41: 0 | ES41: 0 | ET41: 0 | EU41: 1 | EW41: 45 | EX41: =(MID(D41,1,2)*1) -> 4 | EY41: =(MID(E41,1,1)*1) -> 7 | EZ41: 0 | FA41: 1 | FB41: 9 | FC41: 1 | FD41: 1 | FE41: 0 | FF41: 0 | FG41: 0 | FH41: 1 | FI41: 0 | FJ41: 0 | FM41: 1 | FW41: 0 | FX41: 1 | FY41: 0 | FZ41: 1 | GA41: 1 | GE41: 0 | GF41: 0 | GG41: 0 | GH41: 1 | GL41: 0 | GM41: 0 | GN41: 0 | GR41: 0 | GS41: 1 | GW41: 0 | HA41: 0 | JA41: 0 | JB41: 0 | JC41: 0 | JD41: 0 | JE41: 0 | JF41: 0 | JG41: 0 | JH41: 0 | JI41: 0 | JJ41: 0 | JK41: 0 | JL41: 0 | JM41: 0 | JN41: 0 | JO41: 0 | JP41: 0 | JQ41: 0 | JR41: 0 | JS41: 0 | JT41: 0 | JU41: 0 | JV41: 0 | JW41: 0 | JX41: 0 | JY41: 0 | JZ41: 0 | KA41: 0 | KB41: 0 | KC41: 0 | KD41: 0 | KE41: 0 | KF41: 0 | KG41: 0 | KH41: 0 | KI41: 0 | KJ41: 0 | KK41: 0 | KL41: 0 | KM41: 0 | KN41: 0 | KO41: 0 | KP41: 0 | KQ41: 0 | KR41: 0 | KS41: 0 | KT41: 0 | KU41: 0 | KV41: 0 | KW41: 0
A42: 370 | B42: MERCREDI | C42: 2022-09-14 | D42: 10 | E42: 26 | F42: 38 | G42: 40 | H42: 45 | I42: 1 | J42: 5 | K42: f | L42: 0 | M42: =_xlfn.LET(_xlpm.comp,RIGHT(D42:H42,1),_xlfn._xlws.FILTER(D42:H42,_xlfn.XMATCH(_xlpm.comp,_xlpm.comp)<>_xlfn.XMATCH(_xlpm.comp,_xlpm.comp,,-1))) ->  | Q42: =COUNTIF(D41:H41,D42:H42) ->  | V42: =IF(AND(W42>69,W42<164,OR(X42={1;2;3;4})),1,0) -> 1 | W42: 159 | X42: =SUMPRODUCT(( MOD(D42:H42,2)>0)*1) -> 1 | Y42: 0 | Z42: 0 | AA42: 0 | AB42: 0 | AC42: 1 | AD42: 1 | AE42: 0 | AF42: 1 | AG42: 0 | AH42: 2 | AI42: =COUNTIF(($D42:$H42),AI$1) -> 0 | AJ42: 0 | AK42: 0 | AL42: 0 | AM42: 0 | AN42: 0 | AO42: 0 | AP42: 0 | AQ42: 0 | AR42: 0 | AS42: 0 | AT42: 0 | AU42: 0 | AV42: 0 | AW42: 0 | AX42: 1 | AY42: 0 | AZ42: 0 | BA42: 0 | BB42: 0 | BC42: 0 | BD42: 0 | BE42: 0 | BF42: 0 | BG42: 0 | BH42: 0 | BI42: 0 | BJ42: 1 | BK42: 0 | BL42: 1 | BM42: 0 | BN42: 0 | BO42: 0 | BP42: 0 | BQ42: 1 | BR42: 0 | BS42: 0 | BT42: 0 | BU42: 0 | BV42: 0 | BW42: 1 | BX42: 1 | BY42: 1 | BZ42: 2 | CB42: 0 | CC42: 1 | CD42: 1 | CE42: 1 | CF42: 1 | CG42: 0 | CH42: 1 | CI42: 0 | CJ42: 0 | CK42: 0 | CL42: 0 | CM42: 0 | CN42: 0 | CO42: 0 | CP42: 0 | CQ42: 0 | CR42: 0 | CS42: 0 | CT42: 0 | CU42: 0 | CV42: 0 | CW42: 0 | CX42: 0 | CY42: 0 | CZ42: 0 | DA42: 0 | DB42: 0 | DC42: 0 | DD42: 0 | DE42: 0 | DF42: 0 | DG42: 0 | DH42: 0 | DJ42: 0 | DK42: 0 | DL42: 0 | DM42: 0 | DN42: 0 | DO42: 0 | DP42: 0 | DQ42: 0 | DR42: 0 | DS42: 0 | DT42: 0 | DU42: 0 | DW42: 1 | DX42: 1 | DY42: 1 | DZ42: 1 | EA42: 1 | EB42: 1 | EC42: 1 | ED42: 1 | EE42: 1 | EF42: 0 | EI42: 1 | EJ42: 1 | EK42: 1 | EL42: 1 | EM42: 1 | EN42: 1 | EO42: 1 | EP42: 1 | EQ42: 1 | ER42: 0 | ES42: 0 | ET42: 1 | EW42: 35 | EX42: =(MID(D42,2,2)*1) -> 0 | EY42: 6 | EZ42: 8 | FA42: 0 | FB42: 5 | FC42: 0 | FD42: 1 | FE42: 1 | FF42: 0 | FG42: 0 | FH42: 0 | FI42: 0 | FJ42: 0 | FW42: 0 | FX42: 0 | FY42: 0 | FZ42: 0 | GA42: 1 | GE42: 0 | GF42: 0 | GG42: 0 | GH42: 0 | GL42: 0 | GM42: 1 | GN42: 0 | GR42: 0 | GS42: 0 | GW42: 0 | HA42: 0 | JA42: 0 | JB42: 0 | JC42: 0 | JD42: 0 | JE42: 0 | JF42: 0 | JG42: 0 | JH42: 0 | JI42: 0 | JJ42: 0 | JK42: 0 | JL42: 0 | JM42: 0 | JN42: 0 | JO42: 0 | JP42: 0 | JQ42: 0 | JR42: 0 | JS42: 0 | JT42: 0 | JU42: 0 | JV42: 0 | JW42: 0 | JX42: 0 | JY42: 0 | JZ42: 0 | KA42: 0 | KB42: 0 | KC42: 0 | KD42: 0 | KE42: 0 | KF42: 0 | KG42: 0 | KH42: 0 | KI42: 0 | KJ42: 0 | KK42: 0 | KL42: 0 | KM42: 0 | KN42: 0 | KO42: 0 | KP42: 0 | KQ42: 0 | KR42: 0 | KS42: 0 | KT42: 0 | KU42: 0 | KV42: 0 | KW42: 0
A43: 369 | B43: SAMEDI | C43: 2022-09-17 | D43: 1 | E43: 3 | F43: 12 | G43: 17 | H43: 20 | I43: 3 | J43: 0 | K43: a | L43: 0 | M43: =_xlfn.LET(_xlpm.comp,RIGHT(D43:H43,1),_xlfn._xlws.FILTER(D43:H43,_xlfn.XMATCH(_xlpm.comp,_xlpm.comp)<>_xlfn.XMATCH(_xlpm.comp,_xlpm.comp,,-1))) ->  | Q43: =COUNTIF(D42:H42,D43:H43) ->  | V43: =IF(AND(W43>69,W43<164,OR(X43={1;2;3;4})),1,0) -> 0 | W43: 53 | X43: =SUMPRODUCT(( MOD(D43:H43,2)>0)*1) -> 3 | Y43: 1 | Z43: 1 | AA43: 1 | AB43: 0 | AC43: 0 | AD43: 0 | AE43: 1 | AF43: 0 | AG43: 0 | AH43: 1 | AI43: 0 | AJ43: 1 | AK43: 0 | AL43: 0 | AM43: 0 | AN43: 0 | AO43: 1 | AP43: 0 | AQ43: 0 | AR43: 1 | AS43: 0 | AT43: 0 | AU43: 0 | AV43: 0 | AW43: 0 | AX43: 0 | AY43: 0 | AZ43: 0 | BA43: 0 | BB43: 0 | BC43: 0 | BD43: 0 | BE43: 0 | BF43: 0 | BG43: 0 | BH43: 0 | BI43: 0 | BJ43: 0 | BK43: 0 | BL43: 0 | BM43: 0 | BN43: 0 | BO43: 0 | BP43: 0 | BQ43: 0 | BR43: 0 | BS43: 0 | BT43: 0 | BU43: 0 | BV43: 2 | BW43: 2 | BX43: 1 | BY43: 0 | BZ43: 0 | CB43: 1 | CC43: 1 | CD43: 1 | CE43: 0 | CF43: 0 | CG43: 0 | CH43: 0 | CI43: 0 | CJ43: 0 | CK43: 0 | CL43: 0 | CM43: 0 | CN43: 0 | CO43: 0 | CP43: 0 | CQ43: 1 | CR43: 0 | CS43: 0 | CT43: 0 | CU43: 0 | CV43: 0 | CW43: 0 | CX43: 0 | CY43: 0 | CZ43: 0 | DA43: 0 | DB43: 0 | DC43: 0 | DD43: 0 | DE43: 0 | DF43: 0 | DG43: 0 | DH43: 0 | DJ43: 0 | DK43: 0 | DL43: 0 | DM43: 0 | DN43: 0 | DO43: 0 | DP43: 0 | DQ43: 0 | DR43: 0 | DS43: 0 | DT43: 0 | DU43: 0 | DW43: 1 | DX43: 1 | DY43: 1 | DZ43: 1 | EA43: 1 | EB43: 1 | EC43: 1 | ED43: 1 | EE43: 1 | EF43: 1 | EI43: 1 | EJ43: 1 | EK43: 1 | EL43: 1 | EM43: 1 | EN43: 1 | EO43: 1 | EP43: 1 | EQ43: 1 | ER43: 1 | ES43: 0 | ET43: 1 | EW43: 19 | EX43: =(MID(D43,1,2)*1) -> 1 | EY43: =(MID(E43,1,1)*1) -> 3 | EZ43: 2 | FA43: 7 | FB43: 0 | FC43: 1 | FD43: 1 | FE43: 3 | FF43: 0 | FG43: 1 | FH43: 0 | FI43: 0 | FJ43: 0 | FW43: 1 | FX43: 1 | FY43: 0 | FZ43: 1 | GA43: 0 | GE43: 1 | GF43: 0 | GG43: 0 | GH43: 0 | GL43: 0 | GM43: 0 | GN43: 0 | GR43: 1 | GS43: 0 | GW43: 0 | HA43: 0 | JA43: 0 | JB43: 0 | JC43: 0 | JD43: 0 | JE43: 0 | JF43: 0 | JG43: 0 | JH43: 0 | JI43: 0 | JJ43: 0 | JK43: 0 | JL43: 0 | JM43: 0 | JN43: 0 | JO43: 0 | JP43: 0 | JQ43: 0 | JR43: 0 | JS43: 0 | JT43: 0 | JU43: 0 | JV43: 0 | JW43: 0 | JX43: 0 | JY43: 0 | JZ43: 0 | KA43: 0 | KB43: 0 | KC43: 0 | KD43: 0 | KE43: 0 | KF43: 0 | KG43: 0 | KH43: 0 | KI43: 0 | KJ43: 0 | KK43: 0 | KL43: 0 | KM43: 0 | KN43: 0 | KO43: 0 | KP43: 0 | KQ43: 0 | KR43: 0 | KS43: 0 | KT43: 0 | KU43: 0 | KV43: 0 | KW43: 0
A44: 368 | B44: LUNDI | C44: 2022-09-19 | D44: 5 | E44: 7 | F44: 15 | G44: 33 | H44: 44 | I44: 1 | J44: 4 | K44: e | L44: 0 | M44: =_xlfn.LET(_xlpm.comp,RIGHT(D44:H44,1),_xlfn._xlws.FILTER(D44:H44,_xlfn.XMATCH(_xlpm.comp,_xlpm.comp)<>_xlfn.XMATCH(_xlpm.comp,_xlpm.comp,,-1))) ->  | Q44: =COUNTIF(D43:H43,D44:H44) ->  | V44: =IF(AND(W44>69,W44<164,OR(X44={1;2;3;4})),1,0) -> 1 | W44: 104 | X44: =SUMPRODUCT(( MOD(D44:H44,2)>0)*1) -> 4 | Y44: 0 | Z44: 0 | AA44: 1 | AB44: 1 | AC44: 2 | AD44: 0 | AE44: 1 | AF44: 0 | AG44: 0 | AH44: 0 | AI44: 0 | AJ44: 0 | AK44: 0 | AL44: 0 | AM44: 1 | AN44: 0 | AO44: 0 | AP44: 0 | AQ44: 0 | AR44: 0 | AS44: 0 | AT44: 0 | AU44: 0 | AV44: 0 | AW44: 0 | AX44: 0 | AY44: 0 | AZ44: 0 | BA44: 0 | BB44: 0 | BC44: 0 | BD44: 0 | BE44: 1 | BF44: 0 | BG44: 0 | BH44: 0 | BI44: 0 | BJ44: 0 | BK44: 0 | BL44: 0 | BM44: 0 | BN44: 0 | BO44: 0 | BP44: 1 | BQ44: 0 | BR44: 0 | BS44: 0 | BT44: 0 | BU44: 0 | BV44: 2 | BW44: 1 | BX44: 0 | BY44: 1 | BZ44: 1 | CB44: 1 | CC44: 1 | CD44: 0 | CE44: 1 | CF44: 1 | CG44: 0 | CH44: 0 | CI44: 0 | CJ44: 1 | CK44: 0 | CL44: 0 | CM44: 0 | CN44: 0 | CO44: 0 | CP44: 0 | CQ44: 0 | CR44: 0 | CS44: 0 | CT44: 0 | CU44: 0 | CV44: 0 | CW44: 0 | CX44: 0 | CY44: 0 | CZ44: 0 | DA44: 0 | DB44: 0 | DC44: 0 | DD44: 0 | DE44: 0 | DF44: 0 | DG44: 0 | DH44: 0 | DJ44: 0 | DK44: 0 | DL44: 0 | DM44: 0 | DN44: 0 | DO44: 0 | DP44: 0 | DQ44: 0 | DR44: 0 | DS44: 0 | DT44: 0 | DU44: 0 | DW44: 1 | DX44: 1 | DY44: 1 | DZ44: 1 | EA44: 1 | EB44: 1 | EC44: 1 | ED44: 1 | EE44: 1 | EF44: 1 | EI44: 1 | EJ44: 1 | EK44: 1 | EL44: 1 | EM44: 1 | EN44: 1 | EO44: 1 | EP44: 1 | EQ44: 1 | ER44: 1 | ES44: 0 | ET44: 1 | EW44: 39 | EX44: =(MID(D44,1,2)*1) -> 5 | EY44: =(MID(E44,1,1)*1) -> 7 | EZ44: 5 | FA44: 3 | FB44: 4 | FC44: 0 | FD44: 1 | FE44: 1 | FF44: 0 | FG44: 0 | FH44: 0 | FI44: 0 | FJ44: 0 | FW44: 1 | FX44: 1 | FY44: 1 | FZ44: 1 | GA44: 0 | GE44: 1 | GF44: 1 | GG44: 1 | GH44: 0 | GL44: 1 | GM44: 1 | GN44: 0 | GR44: 1 | GS44: 0 | GW44: 0 | HA44: 0 | JA44: 0 | JB44: 0 | JC44: 0 | JD44: 0 | JE44: 0 | JF44: 0 | JG44: 0 | JH44: 0 | JI44: 0 | JJ44: 0 | JK44: 0 | JL44: 0 | JM44: 0 | JN44: 0 | JO44: 0 | JP44: 0 | JQ44: 0 | JR44: 0 | JS44: 0 | JT44: 0 | JU44: 0 | JV44: 0 | JW44: 0 | JX44: 0 | JY44: 0 | JZ44: 0 | KA44: 0 | KB44: 0 | KC44: 0 | KD44: 0 | KE44: 0 | KF44: 0 | KG44: 0 | KH44: 0 | KI44: 0 | KJ44: 0 | KK44: 0 | KL44: 0 | KM44: 0 | KN44: 0 | KO44: 0 | KP44: 0 | KQ44: 0 | KR44: 0 | KS44: 0 | KT44: 0 | KU44: 0 | KV44: 0 | KW44: 0
A45: 367 | B45: MERCREDI | C45: 2022-09-21 | D45: 3 | E45: 9 | F45: 12 | G45: 22 | H45: 37 | I45: 10 | J45: 7 | K45: h | L45: 0 | M45: =_xlfn.LET(_xlpm.comp,RIGHT(D45:H45,1),_xlfn._xlws.FILTER(D45:H45,_xlfn.XMATCH(_xlpm.comp,_xlpm.comp)<>_xlfn.XMATCH(_xlpm.comp,_xlpm.comp,,-1))) ->  | Q45: =COUNTIF(D44:H44,D45:H45) ->  | V45: =IF(AND(W45>69,W45<164,OR(X45={1;2;3;4})),1,0) -> 1 | W45: 83 | X45: =SUMPRODUCT(( MOD(D45:H45,2)>0)*1) -> 3 | Y45: 0 | Z45: 2 | AA45: 1 | AB45: 0 | AC45: 0 | AD45: 0 | AE45: 1 | AF45: 0 | AG45: 1 | AH45: 0 | AI45: 0 | AJ45: 1 | AK45: 0 | AL45: 0 | AM45: 0 | AN45: 0 | AO45: 0 | AP45: 0 | AQ45: 0 | AR45: 0 | AS45: 0 | AT45: 1 | AU45: 0 | AV45: 0 | AW45: 0 | AX45: 0 | AY45: 0 | AZ45: 0 | BA45: 0 | BB45: 0 | BC45: 0 | BD45: 0 | BE45: 0 | BF45: 0 | BG45: 0 | BH45: 0 | BI45: 1 | BJ45: 0 | BK45: 0 | BL45: 0 | BM45: 0 | BN45: 0 | BO45: 0 | BP45: 0 | BQ45: 0 | BR45: 0 | BS45: 0 | BT45: 0 | BU45: 0 | BV45: 2 | BW45: 1 | BX45: 1 | BY45: 1 | BZ45: 0 | CB45: 1 | CC45: 1 | CD45: 1 | CE45: 1 | CF45: 0 | CG45: 0 | CH45: 0 | CI45: 0 | CJ45: 0 | CK45: 0 | CL45: 1 | CM45: 0 | CN45: 0 | CO45: 0 | CP45: 0 | CQ45: 0 | CR45: 0 | CS45: 0 | CT45: 0 | CU45: 0 | CV45: 0 | CW45: 0 | CX45: 0 | CY45: 0 | CZ45: 0 | DA45: 0 | DB45: 0 | DC45: 0 | DD45: 0 | DE45: 0 | DF45: 0 | DG45: 0 | DH45: 0 | DJ45: 0 | DK45: 0 | DL45: 0 | DM45: 0 | DN45: 0 | DO45: 0 | DP45: 0 | DQ45: 0 | DR45: 0 | DS45: 0 | DT45: 0 | DU45: 1 | DW45: 1 | DX45: 1 | DY45: 1 | DZ45: 1 | EA45: 1 | EB45: 1 | EC45: 1 | ED45: 1 | EE45: 1 | EF45: 0 | EI45: 1 | EJ45: 1 | EK45: 1 | EL45: 1 | EM45: 1 | EN45: 1 | EO45: 1 | EP45: 1 | EQ45: 1 | ER45: 0 | ES45: 0 | ET45: 0 | EW45: 34 | EX45: =(MID(D45,1,2)*1) -> 3 | EY45: =(MID(E45,1,1)*1) -> 9 | EZ45: 2 | FA45: 2 | FB45: 7 | FC45: 0 | FD45: 1 | FE45: 0 | FF45: 0 | FG45: 0 | FH45: 0 | FI45: 0 | FJ45: 0 | FW45: 1 | FX45: 1 | FY45: 0 | FZ45: 0 | GA45: 1 | GE45: 1 | GF45: 0 | GG45: 0 | GH45: 0 | GL45: 0 | GM45: 1 | GN45: 0 | GR45: 0 | GS45: 1 | GW45: 1 | HA45: 0 | JA45: 0 | JB45: 0 | JC45: 0 | JD45: 0 | JE45: 0 | JF45: 0 | JG45: 0 | JH45: 0 | JI45: 0 | JJ45: 0 | JK45: 0 | JL45: 0 | JM45: 0 | JN45: 0 | JO45: 0 | JP45: 0 | JQ45: 0 | JR45: 0 | JS45: 0 | JT45: 0 | JU45: 0 | JV45: 0 | JW45: 0 | JX45: 0 | JY45: 0 | JZ45: 0 | KA45: 0 | KB45: 0 | KC45: 0 | KD45: 0 | KE45: 0 | KF45: 0 | KG45: 0 | KH45: 0 | KI45: 0 | KJ45: 0 | KK45: 0 | KL45: 0 | KM45: 0 | KN45: 0 | KO45: 0 | KP45: 0 | KQ45: 0 | KR45: 0 | KS45: 0 | KT45: 0 | KU45: 0 | KV45: 0 | KW45: 0
A46: 366 | B46: SAMEDI | C46: 2022-09-24 | D46: 4 | E46: 6 | F46: 7 | G46: 25 | H46: 32 | I46: 10 | J46: 2 | K46: c | L46: 0 | M46: =_xlfn.LET(_xlpm.comp,RIGHT(D46:H46,1),_xlfn._xlws.FILTER(D46:H46,_xlfn.XMATCH(_xlpm.comp,_xlpm.comp)<>_xlfn.XMATCH(_xlpm.comp,_xlpm.comp,,-1))) ->  | Q46: =COUNTIF(D45:H45,D46:H46) ->  | V46: =IF(AND(W46>69,W46<164,OR(X46={1;2;3;4})),1,0) -> 1 | W46: 74 | X46: =SUMPRODUCT(( MOD(D46:H46,2)>0)*1) -> 2 | Y46: 0 | Z46: 1 | AA46: 0 | AB46: 1 | AC46: 1 | AD46: 1 | AE46: 1 | AF46: 0 | AG46: 0 | AH46: 0 | AI46: 0 | AJ46: 0 | AK46: 0 | AL46: 0 | AM46: 0 | AN46: 0 | AO46: 0 | AP46: 0 | AQ46: 0 | AR46: 0 | AS46: 0 | AT46: 0 | AU46: 0 | AV46: 0 | AW46: 1 | AX46: 0 | AY46: 0 | AZ46: 0 | BA46: 0 | BB46: 0 | BC46: 0 | BD46: 1 | BE46: 0 | BF46: 0 | BG46: 0 | BH46: 0 | BI46: 0 | BJ46: 0 | BK46: 0 | BL46: 0 | BM46: 0 | BN46: 0 | BO46: 0 | BP46: 0 | BQ46: 0 | BR46: 0 | BS46: 0 | BT46: 0 | BU46: 0 | BV46: 3 | BW46: 0 | BX46: 1 | BY46: 1 | BZ46: 0 | CB46: 1 | CC46: 0 | CD46: 1 | CE46: 1 | CF46: 0 | CG46: 0 | CH46: 0 | CI46: 0 | CJ46: 0 | CK46: 0 | CL46: 0 | CM46: 1 | CN46: 0 | CO46: 0 | CP46: 0 | CQ46: 0 | CR46: 0 | CS46: 0 | CT46: 0 | CU46: 0 | CV46: 0 | CW46: 0 | CX46: 0 | CY46: 0 | CZ46: 0 | DA46: 0 | DB46: 0 | DC46: 0 | DD46: 0 | DE46: 0 | DF46: 0 | DG46: 0 | DH46: 0 | DJ46: 0 | DK46: 0 | DL46: 0 | DM46: 0 | DN46: 0 | DO46: 0 | DP46: 0 | DQ46: 0 | DR46: 0 | DS46: 0 | DT46: 0 | DU46: 1 | DW46: 1 | DX46: 1 | DY46: 1 | DZ46: 1 | EA46: 1 | EB46: 1 | EC46: 1 | ED46: 1 | EE46: 1 | EF46: 1 | EI46: 1 | EJ46: 1 | EK46: 1 | EL46: 1 | EM46: 1 | EN46: 1 | EO46: 1 | EP46: 1 | EQ46: 1 | ER46: 1 | ES46: 1 | ET46: 0 | EU46: 1 | EW46: 28 | EX46: =(MID(D46,1,2)*1) -> 4 | EY46: =(MID(E46,1,1)*1) -> 6 | EZ46: =(MID(F46,1,1)*1) -> 7 | FA46: 5 | FB46: 2 | FC46: 0 | FD46: 1 | FE46: 0 | FF46: 0 | FG46: 0 | FH46: 0 | FI46: 0 | FJ46: 0 | FL46: 1 | FW46: 0 | FX46: 0 | FY46: 1 | FZ46: 1 | GA46: 0 | GE46: 0 | GF46: 0 | GG46: 1 | GH46: 0 | GL46: 0 | GM46: 0 | GN46: 0 | GR46: 0 | GS46: 0 | GW46: 0 | HA46: 0 | JA46: 0 | JB46: 0 | JC46: 0 | JD46: 0 | JE46: 0 | JF46: 0 | JG46: 0 | JH46: 0 | JI46: 0 | JJ46: 0 | JK46: 0 | JL46: 0 | JM46: 0 | JN46: 0 | JO46: 0 | JP46: 0 | JQ46: 0 | JR46: 0 | JS46: 0 | JT46: 0 | JU46: 0 | JV46: 0 | JW46: 0 | JX46: 0 | JY46: 0 | JZ46: 0 | KA46: 0 | KB46: 0 | KC46: 0 | KD46: 0 | KE46: 0 | KF46: 0 | KG46: 0 | KH46: 0 | KI46: 0 | KJ46: 0 | KK46: 0 | KL46: 0 | KM46: 0 | KN46: 0 | KO46: 0 | KP46: 0 | KQ46: 0 | KR46: 0 | KS46: 0 | KT46: 0 | KU46: 0 | KV46: 0 | KW46: 0
A47: 365 | B47: LUNDI | C47: 2022-09-26 | D47: 18 | E47: 29 | F47: 35 | G47: 39 | H47: 49 | I47: 1 | J47: 9 | K47: j | L47: 0 | M47: =_xlfn.LET(_xlpm.comp,RIGHT(D47:H47,1),_xlfn._xlws.FILTER(D47:H47,_xlfn.XMATCH(_xlpm.comp,_xlpm.comp)<>_xlfn.XMATCH(_xlpm.comp,_xlpm.comp,,-1))) ->  | Q47: =COUNTIF(D46:H46,D47:H47) ->  | V47: =IF(AND(W47>69,W47<164,OR(X47={1;2;3;4})),1,0) -> 0 | W47: 170 | X47: =SUMPRODUCT(( MOD(D47:H47,2)>0)*1) -> 4 | Y47: 0 | Z47: 0 | AA47: 0 | AB47: 0 | AC47: 1 | AD47: 0 | AE47: 0 | AF47: 1 | AG47: 3 | AH47: 0 | AI47: 0 | AJ47: 0 | AK47: 0 | AL47: 0 | AM47: 0 | AN47: 0 | AO47: 0 | AP47: 1 | AQ47: 0 | AR47: 0 | AS47: 0 | AT47: 0 | AU47: 0 | AV47: 0 | AW47: 0 | AX47: 0 | AY47: 0 | AZ47: 0 | BA47: 1 | BB47: 0 | BC47: 0 | BD47: 0 | BE47: 0 | BF47: 0 | BG47: 1 | BH47: 0 | BI47: 0 | BJ47: 0 | BK47: 1 | BL47: 0 | BM47: 0 | BN47: 0 | BO47: 0 | BP47: 0 | BQ47: 0 | BR47: 0 | BS47: 0 | BT47: 0 | BU47: 1 | BV47: 0 | BW47: 1 | BX47: 1 | BY47: 2 | BZ47: 1 | CB47: 0 | CC47: 1 | CD47: 1 | CE47: 1 | CF47: 1 | CG47: 0 | CH47: 1 | CI47: 0 | CJ47: 0 | CK47: 0 | CL47: 0 | CM47: 0 | CN47: 0 | CO47: 0 | CP47: 0 | CQ47: 0 | CR47: 0 | CS47: 0 | CT47: 0 | CU47: 0 | CV47: 0 | CW47: 0 | CX47: 0 | CY47: 0 | CZ47: 0 | DA47: 0 | DB47: 0 | DC47: 0 | DD47: 0 | DE47: 0 | DF47: 0 | DG47: 0 | DH47: 0 | DJ47: 0 | DK47: 0 | DL47: 0 | DM47: 0 | DN47: 0 | DO47: 0 | DP47: 0 | DQ47: 0 | DR47: 0 | DS47: 0 | DT47: 0 | DU47: 0 | DW47: 1 | DX47: 1 | DY47: 1 | DZ47: 1 | EA47: 1 | EB47: 1 | EC47: 1 | ED47: 1 | EE47: 1 | EF47: 0 | EI47: 1 | EJ47: 1 | EK47: 1 | EL47: 1 | EM47: 1 | EN47: 1 | EO47: 1 | EP47: 1 | EQ47: 1 | ER47: 0 | ES47: 0 | ET47: 1 | EW47: 31 | EX47: =(MID(D47,2,2)*1) -> 8 | EY47: 9 | EZ47: 5 | FA47: 9 | FB47: 9 | FC47: 0 | FD47: =IF(FE47<10,("1"),("0")) -> 1 | FE47: 1 | FF47: 0 | FG47: 0 | FH47: 0 | FI47: 0 | FJ47: 0 | FW47: 0 | FX47: 1 | FY47: 1 | FZ47: 1 | GA47: 1 | GE47: 0 | GF47: 1 | GG47: 1 | GH47: 1 | GL47: 0 | GM47: 0 | GN47: 1 | GR47: 0 | GS47: 1 | GW47: 0 | HA47: 0 | JA47: 0 | JB47: 0 | JC47: 0 | JD47: 0 | JE47: 0 | JF47: 0 | JG47: 0 | JH47: 0 | JI47: 0 | JJ47: 0 | JK47: 0 | JL47: 0 | JM47: 0 | JN47: 0 | JO47: 0 | JP47: 0 | JQ47: 0 | JR47: 0 | JS47: 0 | JT47: 0 | JU47: 0 | JV47: 0 | JW47: 0 | JX47: 0 | JY47: 0 | JZ47: 0 | KA47: 0 | KB47: 0 | KC47: 0 | KD47: 0 | KE47: 0 | KF47: 0 | KG47: 0 | KH47: 0 | KI47: 0 | KJ47: 0 | KK47: 0 | KL47: 0 | KM47: 0 | KN47: 0 | KO47: 0 | KP47: 0 | KQ47: 0 | KR47: 0 | KS47: 0 | KT47: 0 | KU47: 0 | KV47: 0 | KW47: 0
A48: 364 | B48: MERCREDI | C48: 2022-09-28 | D48: 12 | E48: 14 | F48: 26 | G48: 29 | H48: 39 | I48: 10 | J48: 9 | K48: j | L48: 0 | M48: =_xlfn.LET(_xlpm.comp,RIGHT(D48:H48,1),_xlfn._xlws.FILTER(D48:H48,_xlfn.XMATCH(_xlpm.comp,_xlpm.comp)<>_xlfn.XMATCH(_xlpm.comp,_xlpm.comp,,-1))) ->  | Q48: =COUNTIF(D47:H47,D48:H48) ->  | V48: =IF(AND(W48>69,W48<164,OR(X48={1;2;3;4})),1,0) -> 1 | W48: 120 | X48: =SUMPRODUCT(( MOD(D48:H48,2)>0)*1) -> 2 | Y48: 0 | Z48: 1 | AA48: 0 | AB48: 1 | AC48: 0 | AD48: 1 | AE48: 0 | AF48: 0 | AG48: 2 | AH48: 0 | AI48: 0 | AJ48: 1 | AK48: 0 | AL48: 1 | AM48: 0 | AN48: 0 | AO48: 0 | AP48: 0 | AQ48: 0 | AR48: 0 | AS48: 0 | AT48: 0 | AU48: 0 | AV48: 0 | AW48: 0 | AX48: 1 | AY48: 0 | AZ48: 0 | BA48: 1 | BB48: 0 | BC48: 0 | BD48: 0 | BE48: 0 | BF48: 0 | BG48: 0 | BH48: 0 | BI48: 0 | BJ48: 0 | BK48: 1 | BL48: 0 | BM48: 0 | BN48: 0 | BO48: 0 | BP48: 0 | BQ48: 0 | BR48: 0 | BS48: 0 | BT48: 0 | BU48: 0 | BV48: 0 | BW48: 2 | BX48: 2 | BY48: 1 | BZ48: 0 | CB48: 0 | CC48: 1 | CD48: 1 | CE48: 1 | CF48: 0 | CG48: 0 | CH48: 0 | CI48: 0 | CJ48: 0 | CK48: 0 | CL48: 0 | CM48: 0 | CN48: 0 | CO48: 0 | CP48: 0 | CQ48: 0 | CR48: 0 | CS48: 0 | CT48: 0 | CU48: 0 | CV48: 0 | CW48: 1 | CX48: 0 | CY48: 0 | CZ48: 0 | DA48: 0 | DB48: 0 | DC48: 0 | DD48: 0 | DE48: 0 | DF48: 0 | DG48: 0 | DH48: 0 | DJ48: 0 | DK48: 0 | DL48: 0 | DM48: 0 | DN48: 0 | DO48: 0 | DP48: 0 | DQ48: 0 | DR48: 0 | DS48: 0 | DT48: 0 | DU48: 1 | DW48: 1 | DX48: 1 | DY48: 1 | DZ48: 1 | EA48: 1 | EB48: 1 | EC48: 1 | ED48: 1 | EE48: 1 | EF48: 0 | EI48: 1 | EJ48: 1 | EK48: 1 | EL48: 1 | EM48: 1 | EN48: 1 | EO48: 1 | EP48: 1 | EQ48: 1 | ER48: 0 | ES48: 0 | ET48: 0 | EW48: 27 | EX48: =(MID(D48,2,2)*1) -> 2 | EY48: 4 | EZ48: 6 | FA48: 9 | FB48: 9 | FC48: 0 | FD48: 1 | FE48: 0 | FF48: 0 | FG48: 0 | FH48: 0 | FI48: 0 | FJ48: 0 | FW48: 0 | FX48: 0 | FY48: 0 | FZ48: 1 | GA48: 1 | GE48: 0 | GF48: 0 | GG48: 0 | GH48: 1 | GL48: 0 | GM48: 1 | GN48: 0 | GR48: 0 | GS48: 0 | GW48: 0 | HA48: 0 | JA48: 0 | JB48: 0 | JC48: 0 | JD48: 0 | JE48: 0 | JF48: 0 | JG48: 0 | JH48: 0 | JI48: 0 | JJ48: 0 | JK48: 0 | JL48: 0 | JM48: 0 | JN48: 0 | JO48: 0 | JP48: 0 | JQ48: 0 | JR48: 0 | JS48: 0 | JT48: 0 | JU48: 0 | JV48: 0 | JW48: 0 | JX48: 0 | JY48: 0 | JZ48: 0 | KA48: 0 | KB48: 0 | KC48: 0 | KD48: 0 | KE48: 0 | KF48: 0 | KG48: 0 | KH48: 0 | KI48: 0 | KJ48: 0 | KK48: 0 | KL48: 0 | KM48: 0 | KN48: 0 | KO48: 0 | KP48: 0 | KQ48: 0 | KR48: 0 | KS48: 0 | KT48: 0 | KU48: 0 | KV48: 0 | KW48: 0
A49: 363 | B49: SAMEDI | C49: 2022-10-01 | D49: 7 | E49: 8 | F49: 26 | G49: 35 | H49: 36 | I49: 2 | J49: 6 | K49: g | L49: 0 | M49: =_xlfn.LET(_xlpm.comp,RIGHT(D49:H49,1),_xlfn._xlws.FILTER(D49:H49,_xlfn.XMATCH(_xlpm.comp,_xlpm.comp)<>_xlfn.XMATCH(_xlpm.comp,_xlpm.comp,,-1))) ->  | Q49: =COUNTIF(D48:H48,D49:H49) ->  | V49: =IF(AND(W49>69,W49<164,OR(X49={1;2;3;4})),1,0) -> 1 | W49: 112 | X49: =SUMPRODUCT(( MOD(D49:H49,2)>0)*1) -> 2 | Y49: 0 | Z49: 0 | AA49: 0 | AB49: 0 | AC49: 1 | AD49: 2 | AE49: 1 | AF49: 1 | AG49: 0 | AH49: 0 | AI49: 0 | AJ49: 0 | AK49: 0 | AL49: 0 | AM49: 0 | AN49: 0 | AO49: 0 | AP49: 0 | AQ49: 0 | AR49: 0 | AS49: 0 | AT49: 0 | AU49: 0 | AV49: 0 | AW49: 0 | AX49: 1 | AY49: 0 | AZ49: 0 | BA49: 0 | BB49: 0 | BC49: 0 | BD49: =COUNTIF(($D49:$H49),BD$1) -> 0 | BE49: 0 | BF49: 0 | BG49: 1 | BH49: 1 | BI49: 0 | BJ49: 0 | BK49: 0 | BL49: 0 | BM49: 0 | BN49: 0 | BO49: 0 | BP49: 0 | BQ49: 0 | BR49: 0 | BS49: 0 | BT49: 0 | BU49: 0 | BV49: 2 | BW49: 0 | BX49: 1 | BY49: 2 | BZ49: 0 | CB49: 1 | CC49: 0 | CD49: 1 | CE49: 1 | CF49: 0 | CG49: 0 | CH49: 0 | CI49: 0 | CJ49: 0 | CK49: 0 | CL49: 0 | CM49: 1 | CN49: 0 | CO49: 0 | CP49: 0 | CQ49: 0 | CR49: 0 | CS49: 0 | CT49: 0 | CU49: 0 | CV49: 0 | CW49: 0 | CX49: 0 | CY49: 0 | CZ49: 0 | DA49: 0 | DB49: 0 | DC49: 0 | DD49: 0 | DE49: 0 | DF49: 0 | DG49: 0 | DH49: 0 | DJ49: 0 | DK49: 0 | DL49: 0 | DM49: 0 | DN49: 0 | DO49: 0 | DP49: 0 | DQ49: 0 | DR49: 0 | DS49: 0 | DT49: 0 | DU49: 0 | DW49: 1 | DX49: 1 | DY49: 1 | DZ49: 1 | EA49: 1 | EB49: 1 | EC49: 1 | ED49: 1 | EE49: 1 | EF49: 0 | EI49: 1 | EJ49: 1 | EK49: 1 | EL49: 1 | EM49: 1 | EN49: 1 | EO49: 1 | EP49: 1 | EQ49: 1 | ER49: 0 | ES49: 0 | ET49: 0 | EU49: 1 | EW49: 29 | EX49: =(MID(D49,1,2)*1) -> 7 | EY49: =(MID(E49,1,1)*1) -> 8 | EZ49: 6 | FA49: 5 | FB49: 6 | FC49: 0 | FD49: 1 | FE49: 2 | FF49: 0 | FG49: 0 | FH49: 0 | FI49: 0 | FJ49: 0 | FK49: 1 | FN49: 1 | FW49: 1 | FX49: 0 | FY49: 0 | FZ49: 1 | GA49: 0 | GE49: 0 | GF49: 0 | GG49: 0 | GH49: 0 | GL49: 0 | GM49: 0 | GN49: 0 | GR49: 1 | GS49: 0 | GW49: 0 | HA49: 0 | JA49: 0 | JB49: 0 | JC49: 0 | JD49: 0 | JE49: 0 | JF49: 0 | JG49: 0 | JH49: 0 | JI49: 0 | JJ49: 0 | JK49: 0 | JL49: 0 | JM49: 0 | JN49: 0 | JO49: 0 | JP49: 0 | JQ49: 0 | JR49: 0 | JS49: 0 | JT49: 0 | JU49: 0 | JV49: 0 | JW49: 0 | JX49: 0 | JY49: 0 | JZ49: 0 | KA49: 0 | KB49: 0 | KC49: 0 | KD49: 0 | KE49: 0 | KF49: 0 | KG49: 0 | KH49: 0 | KI49: 0 | KJ49: 0 | KK49: 0 | KL49: 0 | KM49: 0 | KN49: 0 | KO49: 0 | KP49: 0 | KQ49: 0 | KR49: 0 | KS49: 0 | KT49: 0 | KU49: 0 | KV49: 0 | KW49: 0
A50: 362 | B50: LUNDI | C50: 2022-10-03 | D50: 7 | E50: 20 | F50: 23 | G50: 31 | H50: 40 | I50: 1 | J50: 0 | K50: a | L50: 0 | M50: =_xlfn.LET(_xlpm.comp,RIGHT(D50:H50,1),_xlfn._xlws.FILTER(D50:H50,_xlfn.XMATCH(_xlpm.comp,_xlpm.comp)<>_xlfn.XMATCH(_xlpm.comp,_xlpm.comp,,-1))) ->  | Q50: =COUNTIF(D49:H49,D50:H50) ->  | V50: =IF(AND(W50>69,W50<164,OR(X50={1;2;3;4})),1,0) -> 1 | W50: 121 | X50: =SUMPRODUCT(( MOD(D50:H50,2)>0)*1) -> 3 | Y50: 1 | Z50: 0 | AA50: 1 | AB50: 0 | AC50: 0 | AD50: 0 | AE50: 1 | AF50: 0 | AG50: 0 | AH50: 2 | AI50: 0 | AJ50: 0 | AK50: 0 | AL50: 0 | AM50: 0 | AN50: 0 | AO50: 0 | AP50: 0 | AQ50: 0 | AR50: 1 | AS50: 0 | AT50: 0 | AU50: 1 | AV50: =COUNTIF(($D50:$H50),AV$1) -> 0 | AW50: 0 | AX50: 0 | AY50: 0 | AZ50: 0 | BA50: 0 | BB50: 0 | BC50: 1 | BD50: 0 | BE50: 0 | BF50: 0 | BG50: 0 | BH50: 0 | BI50: 0 | BJ50: 0 | BK50: 0 | BL50: 1 | BM50: 0 | BN50: 0 | BO50: 0 | BP50: 0 | BQ50: 0 | BR50: 0 | BS50: 0 | BT50: 0 | BU50: 0 | BV50: 1 | BW50: 0 | BX50: 2 | BY50: 1 | BZ50: 1 | CB50: 1 | CC50: 0 | CD50: 1 | CE50: 1 | CF50: 1 | CG50: 0 | CH50: 0 | CI50: 1 | CJ50: 0 | CK50: 0 | CL50: 0 | CM50: 0 | CN50: 0 | CO50: 0 | CP50: 0 | CQ50: 0 | CR50: 0 | CS50: 0 | CT50: 0 | CU50: 0 | CV50: 0 | CW50: 0 | CX50: 0 | CY50: 0 | CZ50: 0 | DA50: 0 | DB50: 0 | DC50: 0 | DD50: 0 | DE50: 0 | DF50: 0 | DG50: 0 | DH50: 0 | DJ50: 0 | DK50: 0 | DL50: 0 | DM50: 0 | DN50: 0 | DO50: 0 | DP50: 0 | DQ50: 0 | DR50: 0 | DS50: 0 | DT50: 0 | DU50: 0 | DW50: 1 | DX50: 1 | DY50: 1 | DZ50: 1 | EA50: 1 | EB50: 1 | EC50: 1 | ED50: 1 | EE50: 1 | EF50: 1 | EI50: 1 | EJ50: 1 | EK50: 1 | EL50: 1 | EM50: 1 | EN50: 1 | EO50: 1 | EP50: 1 | EQ50: 1 | ER50: 1 | ES50: 0 | ET50: 1 | EW50: 33 | EX50: =(MID(D50,1,2)*1) -> 7 | EY50: 0 | EZ50: 3 | FA50: 1 | FB50: 0 | FC50: 1 | FD50: 1 | FE50: 1 | FF50: 0 | FG50: 0 | FH50: 0 | FI50: 1 | FJ50: 0 | FW50: 1 | FX50: 0 | FY50: 1 | FZ50: 1 | GA50: 0 | GE50: 0 | GF50: 0 | GG50: 1 | GH50: 0 | GL50: 1 | GM50: 0 | GN50: 0 | GR50: 1 | GS50: 0 | GW50: 0 | HA50: 0 | JA50: 0 | JB50: 0 | JC50: 0 | JD50: 0 | JE50: 0 | JF50: 0 | JG50: 0 | JH50: 0 | JI50: 0 | JJ50: 0 | JK50: 0 | JL50: 0 | JM50: 0 | JN50: 0 | JO50: 0 | JP50: 0 | JQ50: 0 | JR50: 0 | JS50: 0 | JT50: 0 | JU50: 0 | JV50: 0 | JW50: 0 | JX50: 0 | JY50: 0 | JZ50: 0 | KA50: 0 | KB50: 0 | KC50: 0 | KD50: 0 | KE50: 0 | KF50: 0 | KG50: 0 | KH50: 0 | KI50: 0 | KJ50: 0 | KK50: 0 | KL50: 0 | KM50: 0 | KN50: 0 | KO50: 0 | KP50: 0 | KQ50: 0 | KR50: 0 | KS50: 0 | KT50: 0 | KU50: 0 | KV50: 0 | KW50: 0
A51: 361 | B51: MERCREDI | C51: 2022-10-05 | D51: 14 | E51: 23 | F51: 32 | G51: 35 | H51: 39 | I51: 7 | J51: 9 | K51: j | L51: 0 | M51: =_xlfn.LET(_xlpm.comp,RIGHT(D51:H51,1),_xlfn._xlws.FILTER(D51:H51,_xlfn.XMATCH(_xlpm.comp,_xlpm.comp)<>_xlfn.XMATCH(_xlpm.comp,_xlpm.comp,,-1))) ->  | Q51: =COUNTIF(D50:H50,D51:H51) ->  | V51: =IF(AND(W51>69,W51<164,OR(X51={1;2;3;4})),1,0) -> 1 | W51: 143 | X51: =SUMPRODUCT(( MOD(D51:H51,2)>0)*1) -> 3 | Y51: 0 | Z51: 1 | AA51: 1 | AB51: 1 | AC51: 1 | AD51: 0 | AE51: 0 | AF51: 0 | AG51: 1 | AH51: 0 | AI51: 0 | AJ51: 0 | AK51: 0 | AL51: 1 | AM51: 0 | AN51: 0 | AO51: 0 | AP51: 0 | AQ51: 0 | AR51: 0 | AS51: 0 | AT51: 0 | AU51: 1 | AV51: 0 | AW51: 0 | AX51: 0 | AY51: 0 | AZ51: 0 | BA51: 0 | BB51: 0 | BC51: 0 | BD51: 1 | BE51: 0 | BF51: 0 | BG51: 1 | BH51: 0 | BI51: 0 | BJ51: 0 | BK51: 1 | BL51: 0 | BM51: 0 | BN51: 0 | BO51: 0 | BP51: 0 | BQ51: 0 | BR51: 0 | BS51: 0 | BT51: 0 | BU51: 0 | BV51: 0 | BW51: 1 | BX51: 1 | BY51: 3 | BZ51: 0 | CB51: 0 | CC51: 1 | CD51: 1 | CE51: 1 | CF51: 0 | CG51: 0 | CH51: 0 | CI51: 0 | CJ51: 0 | CK51: 0 | CL51: 0 | CM51: 0 | CN51: 0 | CO51: 0 | CP51: 0 | CQ51: 0 | CR51: 0 | CS51: 0 | CT51: 0 | CU51: 0 | CV51: 0 | CW51: 1 | CX51: 0 | CY51: 0 | CZ51: 0 | DA51: 0 | DB51: 0 | DC51: 0 | DD51: 0 | DE51: 0 | DF51: 0 | DG51: 0 | DH51: 0 | DJ51: 0 | DK51: 0 | DL51: 0 | DM51: 0 | DN51: 0 | DO51: 0 | DP51: 0 | DQ51: 0 | DR51: 0 | DS51: 0 | DT51: 0 | DU51: 0 | DW51: 1 | DX51: 1 | DY51: 1 | DZ51: 1 | EA51: 1 | EB51: 1 | EC51: 1 | ED51: 1 | EE51: 1 | EF51: 1 | EI51: 1 | EJ51: 1 | EK51: 1 | EL51: 1 | EM51: 1 | EN51: 1 | EO51: 1 | EP51: 1 | EQ51: 1 | ER51: 1 | ES51: 0 | ET51: 1 | EW51: 25 | EX51: =(MID(D51,2,2)*1) -> 4 | EY51: 3 | EZ51: 2 | FA51: 5 | FB51: 9 | FC51: 0 | FD51: 1 | FE51: 7 | FF51: 0 | FG51: 0 | FH51: 0 | FI51: 0 | FJ51: 0 | FW51: 0 | FX51: 1 | FY51: 0 | FZ51: 1 | GA51: 1 | GE51: 0 | GF51: 0 | GG51: 0 | GH51: 1 | GL51: 0 | GM51: 0 | GN51: 0 | GR51: 0 | GS51: 1 | GW51: 0 | HA51: 0 | JA51: 0 | JB51: 0 | JC51: 0 | JD51: 0 | JE51: 0 | JF51: 0 | JG51: 0 | JH51: 0 | JI51: 0 | JJ51: 0 | JK51: 0 | JL51: 0 | JM51: 0 | JN51: 0 | JO51: 0 | JP51: 0 | JQ51: 0 | JR51: 0 | JS51: 0 | JT51: 0 | JU51: 0 | JV51: 0 | JW51: 0 | JX51: 0 | JY51: 0 | JZ51: 0 | KA51: 0 | KB51: 0 | KC51: 0 | KD51: 0 | KE51: 0 | KF51: 0 | KG51: 0 | KH51: 0 | KI51: 0 | KJ51: 0 | KK51: 0 | KL51: 0 | KM51: 0 | KN51: 0 | KO51: 0 | KP51: 0 | KQ51: 0 | KR51: 0 | KS51: 0 | KT51: 0 | KU51: 0 | KV51: 0 | KW51: 0
A52: 360 | B52: SAMEDI | C52: 2022-10-08 | D52: 16 | E52: 17 | F52: 20 | G52: 34 | H52: 48 | I52: 7 | J52: 8 | K52: i | L52: 0 | M52: =_xlfn.LET(_xlpm.comp,RIGHT(D52:H52,1),_xlfn._xlws.FILTER(D52:H52,_xlfn.XMATCH(_xlpm.comp,_xlpm.comp)<>_xlfn.XMATCH(_xlpm.comp,_xlpm.comp,,-1))) ->  | Q52: =COUNTIF(D51:H51,D52:H52) ->  | V52: =IF(AND(W52>69,W52<164,OR(X52={1;2;3;4})),1,0) -> 1 | W52: 135 | X52: =SUMPRODUCT(( MOD(D52:H52,2)>0)*1) -> 1 | Y52: 0 | Z52: 0 | AA52: 0 | AB52: 1 | AC52: 0 | AD52: 1 | AE52: 1 | AF52: 1 | AG52: 0 | AH52: 1 | AI52: =COUNTIF(($D52:$H52),AI$1) -> 0 | AJ52: 0 | AK52: 0 | AL52: 0 | AM52: 0 | AN52: 1 | AO52: 1 | AP52: 0 | AQ52: 0 | AR52: 1 | AS52: 0 | AT52: 0 | AU52: 0 | AV52: 0 | AW52: 0 | AX52: 0 | AY52: 0 | AZ52: 0 | BA52: 0 | BB52: 0 | BC52: 0 | BD52: 0 | BE52: 0 | BF52: 1 | BG52: 0 | BH52: 0 | BI52: 0 | BJ52: 0 | BK52: 0 | BL52: 0 | BM52: 0 | BN52: 0 | BO52: 0 | BP52: 0 | BQ52: 0 | BR52: 0 | BS52: 0 | BT52: 1 | BU52: 0 | BV52: 0 | BW52: 2 | BX52: 1 | BY52: 1 | BZ52: 1 | CB52: 0 | CC52: 1 | CD52: 1 | CE52: 1 | CF52: 1 | CG52: =COUNTIF(CB52,">0")*+(COUNTIF(CC52,">0")*+(COUNTIF(CD52,">0")*+(COUNTIF(CE52,">0")*+(COUNTIF(CF52,">0"))))) -> 0 | CH52: 1 | CI52: 0 | CJ52: 0 | CK52: 0 | CL52: =COUNTIF(CB52,">0")*+(COUNTIF(CC52,">0")*+(COUNTIF(CD52,">0")*+(COUNTIF(CE52,">0")*+(COUNTIF(CF52,"=0"))))) -> 0 | CM52: =COUNTIF(CB52,">0")*+(COUNTIF(CC52,"=0")*+(COUNTIF(CD52,">0")*+(COUNTIF(CE52,">0")*+(COUNTIF(CF52,"=0"))))) -> 0 | CN52: =COUNTIF(CB52,"=0")*+(COUNTIF(CC52,"=0")*+(COUNTIF(CD52,">0")*+(COUNTIF(CE52,">0")*+(COUNTIF(CF52,">0"))))) -> 0 | CO52: =COUNTIF(CB52,">0")*+(COUNTIF(CC52,">0")*+(COUNTIF(CD52,"=0")*+(COUNTIF(CE52,"=0")*+(COUNTIF(CF52,">0"))))) -> 0 | CP52: =COUNTIF(CB52,">0")*+(COUNTIF(CC52,"=0")*+(COUNTIF(CD52,"=0")*+(COUNTIF(CE52,">0")*+(COUNTIF(CF52,">0"))))) -> 0 | CQ52: =COUNTIF(CB52,">0")*+(COUNTIF(CC52,">0")*+(COUNTIF(CD52,">0")*+(COUNTIF(CE52,"=0")*+(COUNTIF(CF52,"=0"))))) -> 0 | CR52: =COUNTIF(CB52,"=0")*+(COUNTIF(CC52,">0")*+(COUNTIF(CD52,"=0")*+(COUNTIF(CE52,">0")*+(COUNTIF(CF52,">0"))))) -> 0 | CS52: =COUNTIF(CB52,"=0")*+(COUNTIF(CC52,"=0")*+(COUNTIF(CD52,">0")*+(COUNTIF(CE52,">0")*+(COUNTIF(CF52,"=0"))))) -> 0 | CT52: =COUNTIF(CB52,">0")*+(COUNTIF(CC52,">0")*+(COUNTIF(CD52,"=0")*+(COUNTIF(CE52,">0")*+(COUNTIF(CF52,"=0"))))) -> 0 | CU52: =COUNTIF(CB52,"=0")*+(COUNTIF(CC52,">0")*+(COUNTIF(CD52,"=0")*+(COUNTIF(CE52,"=0")*+(COUNTIF(CF52,">0"))))) -> 0 | CV52: =COUNTIF(CB52,">0")*+(COUNTIF(CC52,"=0")*+(COUNTIF(CD52,">0")*+(COUNTIF(CE52,"=0")*+(COUNTIF(CF52,">0"))))) -> 0 | CW52: =COUNTIF(CB52,"=0")*+(COUNTIF(CC52,">0")*+(COUNTIF(CD52,">0")*+(COUNTIF(CE52,">0")*+(COUNTIF(CF52,"=0"))))) -> 0 | CX52: =COUNTIF(CB52,"=0")*+(COUNTIF(CC52,">0")*+(COUNTIF(CD52,">0")*+(COUNTIF(CE52,"=0")*+(COUNTIF(CF52,">0"))))) -> 0 | CY52: =COUNTIF(CB52,">0")*+(COUNTIF(CC52,"=0")*+(COUNTIF(CD52,">0")*+(COUNTIF(CE52,"=0")*+(COUNTIF(CF52,"=0"))))) -> 0 | CZ52: =COUNTIF(CB52,"=0")*+(COUNTIF(CC52,">0")*+(COUNTIF(CD52,">0")*+(COUNTIF(CE52,"=0")*+(COUNTIF(CF52,"=0"))))) -> 0 | DA52: =COUNTIF(CB52,"=0")*+(COUNTIF(CC52,">0")*+(COUNTIF(CD52,"=0")*+(COUNTIF(CE52,"=0")*+(COUNTIF(CF52,"=0"))))) -> 0 | DB52: =COUNTIF(CB52,"=0")*+(COUNTIF(CC52,"=0")*+(COUNTIF(CD52,"=0")*+(COUNTIF(CE52,">0")*+(COUNTIF(CF52,">0"))))) -> 0 | DC52: =COUNTIF(CB52,"=0")*+(COUNTIF(CC52,">0")*+(COUNTIF(CD52,"=0")*+(COUNTIF(CE52,">0")*+(COUNTIF(CF52,"=0"))))) -> 0 | DD52: =COUNTIF(CB52,"=0")*+(COUNTIF(CC52,"=0")*+(COUNTIF(CD52,">0")*+(COUNTIF(CE52,"=0")*+(COUNTIF(CF52,">0"))))) -> 0 | DE52: =COUNTIF(CB52,">0")*+(COUNTIF(CC52,">0")*+(COUNTIF(CD52,"=0")*+(COUNTIF(CE52,"=0")*+(COUNTIF(CF52,"=0"))))) -> 0 | DF52: =COUNTIF(CB52,"=0")*+(COUNTIF(CC52,"=0")*+(COUNTIF(CD52,"=0")*+(COUNTIF(CE52,"=0")*+(COUNTIF(CF52,">0"))))) -> 0 | DG52: =COUNTIF(CB52,">0")*+(COUNTIF(CC52,"=0")*+(COUNTIF(CD52,"=0")*+(COUNTIF(CE52,"=0")*+(COUNTIF(CF52,">0"))))) -> 0 | DH52: =COUNTIF(CB52,"=0")*+(COUNTIF(CC52,"=0")*+(COUNTIF(CD52,"=0")*+(COUNTIF(CE52,">0")*+(COUNTIF(CF52,"=0"))))) -> 0 | DJ52: =COUNTIF(CB52,"=0")*+(COUNTIF(CC52,"=0")*+(COUNTIF(CD52,">0")*+(COUNTIF(CE52,"=0")*+(COUNTIF(CF52,"=0"))))) -> 0 | DK52: =COUNTIF(CB52,">0")*+(COUNTIF(CC52,"=0")*+(COUNTIF(CD52,"=0")*+(COUNTIF(CE52,">0")*+(COUNTIF(CF52,"=0"))))) -> 0 | DL52: 0 | DM52: 0 | DN52: 0 | DO52: 0 | DP52: 0 | DQ52: 0 | DR52: 0 | DS52: 0 | DT52: 0 | DU52: 0 | DW52: 1 | DX52: 1 | DY52: 1 | DZ52: 1 | EA52: 1 | EB52: 1 | EC52: 1 | ED52: 1 | EE52: 1 | EF52: 1 | EI52: 1 | EJ52: 1 | EK52: 1 | EL52: 1 | EM52: 1 | EN52: 1 | EO52: 1 | EP52: 1 | EQ52: 1 | ER52: 1 | ES52: 1 | ET52: 1 | EU52: 1 | EW52: 32 | EX52: =(MID(D52,2,2)*1) -> 6 | EY52: 7 | EZ52: 0 | FA52: 4 | FB52: 8 | FC52: 1 | FD52: 1 | FE52: 7 | FF52: 0 | FG52: 1 | FH52: 0 | FI52: 0 | FJ52: 0 | FK52: 1 | FW52: 0 | FX52: 1 | FY52: 0 | FZ52: 0 | GA52: 0 | GE52: 0 | GF52: 0 | GG52: 0 | GH52: 0 | GL52: 0 | GM52: 1 | GN52: 0 | GR52: 0 | GS52: 0 | GW52: 0 | HA52: 0 | JA52: 0 | JB52: 0 | JC52: 0 | JD52: 0 | JE52: 0 | JF52: 0 | JG52: 0 | JH52: 0 | JI52: 0 | JJ52: 0 | JK52: 0 | JL52: 0 | JM52: 0 | JN52: 0 | JO52: 0 | JP52: 0 | JQ52: 0 | JR52: 0 | JS52: 0 | JT52: 0 | JU52: 0 | JV52: 0 | JW52: 0 | JX52: 0 | JY52: 0 | JZ52: 0 | KA52: 0 | KB52: 0 | KC52: 0 | KD52: 0 | KE52: 0 | KF52: 0 | KG52: 0 | KH52: 0 | KI52: 0 | KJ52: 0 | KK52: 0 | KL52: 0 | KM52: 0 | KN52: 0 | KO52: 0 | KP52: 0 | KQ52: 0 | KR52: 0 | KS52: 0 | KT52: 0 | KU52: 0 | KV52: 0 | KW52: 0
A53: 359 | B53: LUNDI | C53: 2022-10-10 | D53: 13 | E53: 19 | F53: 32 | G53: 40 | H53: 46 | I53: 7 | J53: 6 | K53: g | L53: 0 | M53: =_xlfn.LET(_xlpm.comp,RIGHT(D53:H53,1),_xlfn._xlws.FILTER(D53:H53,_xlfn.XMATCH(_xlpm.comp,_xlpm.comp)<>_xlfn.XMATCH(_xlpm.comp,_xlpm.comp,,-1))) ->  | Q53: =COUNTIF(D52:H52,D53:H53) ->  | V53: =IF(AND(W53>69,W53<164,OR(X53={1;2;3;4})),1,0) -> 1 | W53: 150 | X53: =SUMPRODUCT(( MOD(D53:H53,2)>0)*1) -> 2 | Y53: =COUNTIF(EX53:FB53,$Y$1) -> 0 | Z53: =COUNTIF(EX53:FB53,Z$1) -> 1 | AA53: =COUNTIF(EX53:FB53,$AA$1) -> 1 | AB53: =COUNTIF(EX53:FB53,$AB$1) -> 0 | AC53: =COUNTIF(EX53:FB53,AC$1) -> 0 | AD53: =COUNTIF(EX53:FB53,AD$1) -> 1 | AE53: =COUNTIF(EX53:FB53,AE$1) -> 0 | AF53: =COUNTIF(EX53:FB53,AF$1) -> 0 | AG53: =COUNTIF(EX53:FB53,AG$1) -> 1 | AH53: =COUNTIF(EX53:FB53,AH$1) -> 1 | AI53: 0 | AJ53: 0 | AK53: 1 | AL53: 0 | AM53: 0 | AN53: 0 | AO53: 0 | AP53: 0 | AQ53: 1 | AR53: 0 | AS53: 0 | AT53: 0 | AU53: 0 | AV53: 0 | AW53: 0 | AX53: 0 | AY53: 0 | AZ53: 0 | BA53: 0 | BB53: 0 | BC53: 0 | BD53: 1 | BE53: 0 | BF53: 0 | BG53: 0 | BH53: 0 | BI53: 0 | BJ53: 0 | BK53: 0 | BL53: 1 | BM53: 0 | BN53: 0 | BO53: 0 | BP53: 0 | BQ53: 0 | BR53: 1 | BS53: 0 | BT53: 0 | BU53: 0 | BV53: 0 | BW53: 2 | BX53: 0 | BY53: 1 | BZ53: 2 | CA53: =IF((CB53+CC53+CD53+CE53+CF53)=5,"1","") ->  | CB53: =COUNTIF(BV53,">0") -> 0 | CC53: =COUNTIF(BW53,">0") -> 1 | CD53: =COUNTIF(BX53,">0") -> 0 | CE53: =COUNTIF(BY53,">0") -> 1 | CF53: =COUNTIF(BZ53,">0") -> 1 | CG53: 0 | CH53: 0 | CI53: 0 | CJ53: 0 | CK53: 0 | CL53: 0 | CM53: 0 | CN53: 0 | CO53: 0 | CP53: 0 | CQ53: 0 | CR53: 1 | CS53: 0 | CT53: 0 | CU53: 0 | CV53: 0 | CW53: 0 | CX53: 0 | CY53: 0 | CZ53: 0 | DA53: 0 | DB53: 0 | DC53: 0 | DD53: 0 | DE53: 0 | DF53: 0 | DG53: 0 | DH53: 0 | DJ53: 0 | DK53: 0 | DL53: =COUNTIF((I53),$DL$1) -> 0 | DM53: =COUNTIF((I53),$DM$1) -> 0 | DN53: =COUNTIF((I53),$DN$1) -> 0 | DO53: =COUNTIF((I53),$DO$1) -> 0 | DP53: =COUNTIF((I53),$DP$1) -> 0 | DQ53: =COUNTIF((I53),$DQ$1) -> 0 | DR53: =COUNTIF((I53),$DR$1) -> 0 | DS53: =COUNTIF((I53),$DS$1) -> 0 | DT53: =COUNTIF((I53),$DT$1) -> 0 | DU53: =COUNTIF((I53),$DU$1) -> 0 | DW53: 1 | DX53: 1 | DY53: 1 | DZ53: 1 | EA53: 1 | EB53: 1 | EC53: 1 | ED53: 1 | EE53: 1 | EF53: 1 | EI53: 1 | EJ53: 1 | EK53: 1 | EL53: 1 | EM53: 1 | EN53: 1 | EO53: 1 | EP53: 1 | EQ53: 1 | ER53: 1 | ES53: 1 | ET53: =SUMPRODUCT(( MOD(I53,2)>0)*1) -> 1 | EU53: =IF((E53=D53+1)+(F53=E53+1)+(G53=F53+1)+(H53=G53+1),("1")*1,("")) ->  | EV53: =IF((M53+N53+O53+P53)>0,("1"),("")) ->  | EW53: =H53-D53 -> 33 | EX53: =(MID(D53,2,2)*1) -> 3 | EY53: 9 | EZ53: 2 | FA53: 0 | FB53: 6 | FC53: 0 | FD53: 1 | FE53: =I53 -> 7 | FF53: 0 | FG53: 0 | FH53: 0 | FI53: 0 | FJ53: 0 | FK53: =IF(E53=D53+1,("1")*1,("")) ->  | FL53: =IF(F53=E53+1,("1")*1,("")) ->  | FM53: =IF(G53=F53+1,("1")*1,("")) ->  | FN53: =IF(H53=G53+1,("1")*1,("")) ->  | FW53: =SUMPRODUCT(( MOD(D53,2)>0)*1) -> 1 | FX53: =SUMPRODUCT(( MOD(E53,2)>0)*1) -> 1 | FY53: =SUMPRODUCT(( MOD(F53,2)>0)*1) -> 0 | FZ53: =SUMPRODUCT(( MOD(G53,2)>0)*1) -> 0 | GA53: =SUMPRODUCT(( MOD(H53,2)>0)*1) -> 0 | GE53: 1 | GF53: 0 | GG53: 0 | GH53: 0 | GL53: 0 | GM53: 0 | GN53: 0 | GR53: 0 | GS53: 0 | GW53: 0 | HA53: 0 | JA53: 0 | JB53: 0 | JC53: 0 | JD53: 0 | JE53: 0 | JF53: 0 | JG53: 0 | JH53: 0 | JI53: 0 | JJ53: 0 | JK53: 0 | JL53: 0 | JM53: 0 | JN53: 0 | JO53: 0 | JP53: 0 | JQ53: 0 | JR53: 0 | JS53: 0 | JT53: 0 | JU53: 0 | JV53: 0 | JW53: 0 | JX53: 0 | JY53: 0 | JZ53: 0 | KA53: 0 | KB53: 0 | KC53: 0 | KD53: 0 | KE53: 0 | KF53: 0 | KG53: 0 | KH53: 0 | KI53: 0 | KJ53: 0 | KK53: 0 | KL53: 0 | KM53: 0 | KN53: 0 | KO53: 0 | KP53: 0 | KQ53: 0 | KR53: 0 | KS53: 0 | KT53: 0 | KU53: 0 | KV53: 0 | KW53: 0
A54: 358 | B54: MERCREDI | C54: 2022-10-12 | D54: 7 | E54: 17 | F54: 39 | G54: 40 | H54: 44 | I54: 3 | J54: 4 | K54: e | L54: 0 | M54: =_xlfn.LET(_xlpm.comp,RIGHT(D54:H54,1),_xlfn._xlws.FILTER(D54:H54,_xlfn.XMATCH(_xlpm.comp,_xlpm.comp)<>_xlfn.XMATCH(_xlpm.comp,_xlpm.comp,,-1))) ->  | Q54: =COUNTIF(D53:H53,D54:H54) ->  | V54: =IF(AND(W54>69,W54<164,OR(X54={1;2;3;4})),1,0) -> 1 | W54: 147 | X54: =SUMPRODUCT(( MOD(D54:H54,2)>0)*1) -> 3 | Y54: 0 | Z54: 0 | AA54: 0 | AB54: 1 | AC54: 0 | AD54: 0 | AE54: 2 | AF54: 0 | AG54: 1 | AH54: 1 | AI54: 0 | AJ54: 0 | AK54: 0 | AL54: 0 | AM54: 0 | AN54: 0 | AO54: 1 | AP54: 0 | AQ54: 0 | AR54: 0 | AS54: 0 | AT54: 0 | AU54: 0 | AV54: 0 | AW54: 0 | AX54: 0 | AY54: 0 | AZ54: 0 | BA54: 0 | BB54: 0 | BC54: 0 | BD54: 0 | BE54: 0 | BF54: 0 | BG54: 0 | BH54: 0 | BI54: 0 | BJ54: 0 | BK54: 1 | BL54: 1 | BM54: 0 | BN54: 0 | BO54: 0 | BP54: 1 | BQ54: 0 | BR54: 0 | BS54: 0 | BT54: 0 | BU54: 0 | BV54: 1 | BW54: 1 | BX54: 0 | BY54: 1 | BZ54: 2 | CB54: 1 | CC54: 1 | CD54: 0 | CE54: 1 | CF54: 1 | CG54: 0 | CH54: 0 | CI54: 0 | CJ54: 1 | CK54: 0 | CL54: 0 | CM54: 0 | CN54: 0 | CO54: 0 | CP54: 0 | CQ54: 0 | CR54: 0 | CS54: 0 | CT54: 0 | CU54: 0 | CV54: 0 | CW54: 0 | CX54: 0 | CY54: 0 | CZ54: 0 | DA54: 0 | DB54: 0 | DC54: 0 | DD54: 0 | DE54: 0 | DF54: 0 | DG54: 0 | DH54: 0 | DJ54: 0 | DK54: 0 | DL54: 0 | DM54: 0 | DN54: 0 | DO54: 0 | DP54: 0 | DQ54: 0 | DR54: 0 | DS54: 0 | DT54: 0 | DU54: 0 | DW54: =COUNTIF(DL53,DL54) -> 1 | DX54: =COUNTIF(DM53,DM54) -> 1 | DY54: =COUNTIF(DN53,DN54) -> 1 | DZ54: =COUNTIF(DO53,DO54) -> 1 | EA54: =COUNTIF(DP53,DP54) -> 1 | EB54: =COUNTIF(DQ53,DQ54) -> 1 | EC54: =COUNTIF(DR53,DR54) -> 1 | ED54: =COUNTIF(DS53,DS54) -> 1 | EE54: =COUNTIF(DT53,DT54) -> 1 | EF54: =COUNTIF(DU53,DU54) -> 1 | EI54: 1 | EJ54: 1 | EK54: 1 | EL54: 1 | EM54: 1 | EN54: 1 | EO54: 1 | EP54: 1 | EQ54: 1 | ER54: 1 | ES54: =COUNTIF(I53,I54) -> 0 | ET54: 1 | EU54: 1 | EW54: 37 | EX54: =(MID(D54,1,2)*1) -> 7 | EY54: 7 | EZ54: 9 | FA54: 0 | FB54: 4 | FC54: 0 | FD54: 1 | FE54: 3 | FF54: 0 | FG54: 0 | FH54: 0 | FI54: 0 | FJ54: 0 | FM54: 1 | FW54: 1 | FX54: 1 | FY54: 1 | FZ54: 0 | GA54: 0 | GE54: 1 | GF54: 1 | GG54: 0 | GH54: 0 | GL54: 1 | GM54: 0 | GN54: 0 | GR54: 0 | GS54: 0 | GW54: 0 | HA54: 0 | JA54: =COUNTIF(D54,$JA$1)+(COUNTIF(E54,$JA$1)+(COUNTIF(F54,$JA$1)+(COUNTIF(G54,$JA$1)+(COUNTIF(H54,$JA$1))))) -> 0 | JB54: =COUNTIF(D54,$JB$1)+(COUNTIF(E54,$JB$1)+(COUNTIF(F54,$JB$1)+(COUNTIF(G54,$JB$1)+(COUNTIF(H54,$JB$1))))) -> 0 | JC54: =COUNTIF(D54,$JC$1)+(COUNTIF(E54,$JC$1)+(COUNTIF(F54,$JC$1)+(COUNTIF(G54,$JC$1)+(COUNTIF(H54,$JC$1))))) -> 0 | JD54: =COUNTIF(D54,$JD$1)+(COUNTIF(E54,$JD$1)+(COUNTIF(F54,$JD$1)+(COUNTIF(G54,$JD$1)+(COUNTIF(H54,$JD$1))))) -> 0 | JE54: =COUNTIF(D54,$JE$1)+(COUNTIF(E54,$JE$1)+(COUNTIF(F54,$JE$1)+(COUNTIF(G54,$JE$1)+(COUNTIF(H54,$JE$1))))) -> 0 | JF54: =COUNTIF(D54,$JF$1)+(COUNTIF(E54,$JF$1)+(COUNTIF(F54,$JF$1)+(COUNTIF(G54,$JF$1)+(COUNTIF(H54,$JF$1))))) -> 0 | JG54: =COUNTIF(D54,$JG$1)+(COUNTIF(E54,$JG$1)+(COUNTIF(F54,$JG$1)+(COUNTIF(G54,$JG$1)+(COUNTIF(H54,$JG$1))))) -> 0 | JH54: =COUNTIF(D54,$JH$1)+(COUNTIF(E54,$JH$1)+(COUNTIF(F54,$JH$1)+(COUNTIF(G54,$JH$1)+(COUNTIF(H54,$JH$1))))) -> 0 | JI54: =COUNTIF(D54,$JI$1)+(COUNTIF(E54,$JI$1)+(COUNTIF(F54,$JI$1)+(COUNTIF(G54,$JI$1)+(COUNTIF(H54,$JI$1))))) -> 0 | JJ54: =COUNTIF(D54,$JJ$1)+(COUNTIF(E54,$JJ$1)+(COUNTIF(F54,$JJ$1)+(COUNTIF(G54,$JJ$1)+(COUNTIF(H54,$JJ$1))))) -> 0 | JK54: =COUNTIF(D54,$JK$1)+(COUNTIF(E54,$JK$1)+(COUNTIF(F54,$JK$1)+(COUNTIF(G54,$JK$1)+(COUNTIF(H54,$JK$1))))) -> 0 | JL54: =COUNTIF(D54,$JL$1)+(COUNTIF(E54,$JL$1)+(COUNTIF(F54,$JL$1)+(COUNTIF(G54,$JL$1)+(COUNTIF(H54,$JL$1))))) -> 0 | JM54: =COUNTIF(D54,$JM$1)+(COUNTIF(E54,$JM$1)+(COUNTIF(F54,$JM$1)+(COUNTIF(G54,$JM$1)+(COUNTIF(H54,$JM$1))))) -> 0 | JN54: =COUNTIF(D54,$JN$1)+(COUNTIF(E54,$JN$1)+(COUNTIF(F54,$JN$1)+(COUNTIF(G54,$JN$1)+(COUNTIF(H54,$JN$1))))) -> 0 | JO54: =COUNTIF(D54,$JO$1)+(COUNTIF(E54,$JO$1)+(COUNTIF(F54,$JO$1)+(COUNTIF(G54,$JO$1)+(COUNTIF(H54,$JO$1))))) -> 0 | JP54: =COUNTIF(D54,$JP$1)+(COUNTIF(E54,$JP$1)+(COUNTIF(F54,$JP$1)+(COUNTIF(G54,$JP$1)+(COUNTIF(H54,$JP$1))))) -> 0 | JQ54: =COUNTIF(D54,$JQ$1)+(COUNTIF(E54,$JQ$1)+(COUNTIF(F54,$JQ$1)+(COUNTIF(G54,$JQ$1)+(COUNTIF(H54,$JQ$1))))) -> 0 | JR54: =COUNTIF(D54,$JR$1)+(COUNTIF(E54,$JR$1)+(COUNTIF(F54,$JR$1)+(COUNTIF(G54,$JR$1)+(COUNTIF(H54,$JR$1))))) -> 0 | JS54: =COUNTIF(D54,$JS$1)+(COUNTIF(E54,$JS$1)+(COUNTIF(F54,$JS$1)+(COUNTIF(G54,$JS$1)+(COUNTIF(H54,$JS$1))))) -> 0 | JT54: =COUNTIF(D54,$JT$1)+(COUNTIF(E54,$JT$1)+(COUNTIF(F54,$JT$1)+(COUNTIF(G54,$JT$1)+(COUNTIF(H54,$JT$1))))) -> 0 | JU54: =COUNTIF(D54,$JU$1)+(COUNTIF(E54,$JU$1)+(COUNTIF(F54,$JU$1)+(COUNTIF(G54,$JU$1)+(COUNTIF(H54,$JU$1))))) -> 0 | JV54: =COUNTIF(D54,$JV$1)+(COUNTIF(E54,$JV$1)+(COUNTIF(F54,$JV$1)+(COUNTIF(G54,$JV$1)+(COUNTIF(H54,$JV$1))))) -> 0 | JW54: =COUNTIF(D54,$JW$1)+(COUNTIF(E54,$JW$1)+(COUNTIF(F54,$JW$1)+(COUNTIF(G54,$JW$1)+(COUNTIF(H54,$JW$1))))) -> 0 | JX54: =COUNTIF(D54,$JX$1)+(COUNTIF(E54,$JX$1)+(COUNTIF(F54,$JX$1)+(COUNTIF(G54,$JX$1)+(COUNTIF(H54,$JX$1))))) -> 0 | JY54: =COUNTIF(D54,$JY$1)+(COUNTIF(E54,$JY$1)+(COUNTIF(F54,$JY$1)+(COUNTIF(G54,$JY$1)+(COUNTIF(H54,$JY$1))))) -> 0 | JZ54: =COUNTIF(D54,$JZ$1)+(COUNTIF(E54,$JZ$1)+(COUNTIF(F54,$JZ$1)+(COUNTIF(G54,$JZ$1)+(COUNTIF(H54,$JZ$1))))) -> 0 | KA54: =COUNTIF(D54,$KA$1)+(COUNTIF(E54,$KA$1)+(COUNTIF(F54,$KA$1)+(COUNTIF(G54,$KA$1)+(COUNTIF(H54,$KA$1))))) -> 0 | KB54: =COUNTIF(D54,$KB$1)+(COUNTIF(E54,$KB$1)+(COUNTIF(F54,$KB$1)+(COUNTIF(G54,$KB$1)+(COUNTIF(H54,$KB$1))))) -> 0 | KC54: =COUNTIF(D54,$KC$1)+(COUNTIF(E54,$KC$1)+(COUNTIF(F54,$KC$1)+(COUNTIF(G54,$KC$1)+(COUNTIF(H54,$KC$1))))) -> 0 | KD54: =COUNTIF(D54,$KD$1)+(COUNTIF(E54,$KD$1)+(COUNTIF(F54,$KD$1)+(COUNTIF(G54,$KD$1)+(COUNTIF(H54,$KD$1))))) -> 0 | KE54: =COUNTIF(D54,$KE$1)+(COUNTIF(E54,$KE$1)+(COUNTIF(F54,$KE$1)+(COUNTIF(G54,$KE$1)+(COUNTIF(H54,$KE$1))))) -> 0 | KF54: =COUNTIF(D54,$KF$1)+(COUNTIF(E54,$KF$1)+(COUNTIF(F54,$KF$1)+(COUNTIF(G54,$KF$1)+(COUNTIF(H54,$KF$1))))) -> 0 | KG54: =COUNTIF(D54,$KG$1)+(COUNTIF(E54,$KG$1)+(COUNTIF(F54,$KG$1)+(COUNTIF(G54,$KG$1)+(COUNTIF(H54,$KG$1))))) -> 0 | KH54: =COUNTIF(D54,$KH$1)+(COUNTIF(E54,$KH$1)+(COUNTIF(F54,$KH$1)+(COUNTIF(G54,$KH$1)+(COUNTIF(H54,$KH$1))))) -> 0 | KI54: =COUNTIF(D54,$KI$1)+(COUNTIF(E54,$KI$1)+(COUNTIF(F54,$KI$1)+(COUNTIF(G54,$KI$1)+(COUNTIF(H54,$KI$1))))) -> 0 | KJ54: 0 | KK54: 0 | KL54: 0 | KM54: 0 | KN54: =COUNTIF(D54,$KN$1)+(COUNTIF(E54,$KN$1)+(COUNTIF(F54,$KN$1)+(COUNTIF(G54,$KN$1)+(COUNTIF(H54,$KN$1))))) -> 0 | KO54: =COUNTIF(D54,$KO$1)+(COUNTIF(E54,$KO$1)+(COUNTIF(F54,$KO$1)+(COUNTIF(G54,$KO$1)+(COUNTIF(H54,$KO$1))))) -> 0 | KP54: =COUNTIF(D54,$KP$1)+(COUNTIF(E54,$KP$1)+(COUNTIF(F54,$KP$1)+(COUNTIF(G54,$KP$1)+(COUNTIF(H54,$KP$1))))) -> 0 | KQ54: =COUNTIF(D54,$KQ$1)+(COUNTIF(E54,$KQ$1)+(COUNTIF(F54,$KQ$1)+(COUNTIF(G54,$KQ$1)+(COUNTIF(H54,$KQ$1))))) -> 0 | KR54: =COUNTIF(D54,$KR$1)+(COUNTIF(E54,$KR$1)+(COUNTIF(F54,$KR$1)+(COUNTIF(G54,$KR$1)+(COUNTIF(H54,$KR$1))))) -> 0 | KS54: =COUNTIF(D54,$KS$1)+(COUNTIF(E54,$KS$1)+(COUNTIF(F54,$KS$1)+(COUNTIF(G54,$KS$1)+(COUNTIF(H54,$KS$1))))) -> 0 | KT54: 0 | KU54: 0 | KV54: =COUNTIF(D54,$KV$1)+(COUNTIF(E54,$KV$1)+(COUNTIF(F54,$KV$1)+(COUNTIF(G54,$KV$1)+(COUNTIF(H54,$KV$1))))) -> 0 | KW54: =COUNTIF(D54,$KW$1)+(COUNTIF(E54,$KW$1)+(COUNTIF(F54,$KW$1)+(COUNTIF(G54,$KW$1)+(COUNTIF(H54,$KW$1))))) -> 0
A55: 357 | B55: SAMEDI | C55: 2022-10-15 | D55: 16 | E55: 24 | F55: 27 | G55: 31 | H55: 46 | I55: 1 | J55: 6 | K55: g | L55: 0 | M55: =_xlfn.LET(_xlpm.comp,RIGHT(D55:H55,1),_xlfn._xlws.FILTER(D55:H55,_xlfn.XMATCH(_xlpm.comp,_xlpm.comp)<>_xlfn.XMATCH(_xlpm.comp,_xlpm.comp,,-1))) ->  | Q55: =COUNTIF(D54:H54,D55:H55) ->  | V55: =IF(AND(W55>69,W55<164,OR(X55={1;2;3;4})),1,0) -> 1 | W55: 144 | X55: =SUMPRODUCT(( MOD(D55:H55,2)>0)*1) -> 2 | Y55: 1 | Z55: 0 | AA55: 0 | AB55: 1 | AC55: 0 | AD55: 2 | AE55: 1 | AF55: 0 | AG55: 0 | AH55: 0 | AI55: 0 | AJ55: 0 | AK55: 0 | AL55: 0 | AM55: 0 | AN55: 1 | AO55: 0 | AP55: 0 | AQ55: 0 | AR55: 0 | AS55: 0 | AT55: 0 | AU55: 0 | AV55: 1 | AW55: 0 | AX55: 0 | AY55: 1 | AZ55: 0 | BA55: 0 | BB55: 0 | BC55: 1 | BD55: 0 | BE55: 0 | BF55: 0 | BG55: 0 | BH55: 0 | BI55: 0 | BJ55: 0 | BK55: 0 | BL55: 0 | BM55: 0 | BN55: 0 | BO55: 0 | BP55: 0 | BQ55: 0 | BR55: 1 | BS55: 0 | BT55: 0 | BU55: 0 | BV55: 0 | BW55: 1 | BX55: 2 | BY55: 1 | BZ55: 1 | CB55: 0 | CC55: 1 | CD55: 1 | CE55: 1 | CF55: 1 | CG55: 0 | CH55: 1 | CI55: 0 | CJ55: 0 | CK55: 0 | CL55: 0 | CM55: 0 | CN55: 0 | CO55: 0 | CP55: 0 | CQ55: 0 | CR55: 0 | CS55: 0 | CT55: 0 | CU55: 0 | CV55: 0 | CW55: 0 | CX55: 0 | CY55: 0 | CZ55: 0 | DA55: 0 | DB55: 0 | DC55: 0 | DD55: 0 | DE55: 0 | DF55: 0 | DG55: 0 | DH55: 0 | DJ55: 0 | DK55: 0 | DL55: 0 | DM55: 0 | DN55: 0 | DO55: 0 | DP55: 0 | DQ55: 0 | DR55: 0 | DS55: 0 | DT55: 0 | DU55: 0 | DW55: 1 | DX55: 1 | DY55: 1 | DZ55: 1 | EA55: 1 | EB55: 1 | EC55: 1 | ED55: 1 | EE55: 1 | EF55: 1 | EI55: 1 | EJ55: 1 | EK55: 1 | EL55: 1 | EM55: 1 | EN55: 1 | EO55: 1 | EP55: 1 | EQ55: 1 | ER55: 1 | ES55: 0 | ET55: 1 | EW55: 30 | EX55: =(MID(D55,2,2)*1) -> 6 | EY55: 4 | EZ55: 7 | FA55: 1 | FB55: 6 | FC55: 1 | FD55: 1 | FE55: 1 | FF55: 0 | FG55: 0 | FH55: 0 | FI55: 1 | FJ55: 0 | FW55: 0 | FX55: 0 | FY55: 1 | FZ55: 1 | GA55: 0 | GE55: 0 | GF55: 0 | GG55: 1 | GH55: 0 | GL55: 0 | GM55: 0 | GN55: 0 | GR55: 0 | GS55: 0 | GW55: 0 | HA55: 0 | JA55: 0 | JB55: 0 | JC55: 0 | JD55: 0 | JE55: 0 | JF55: 0 | JG55: 0 | JH55: 0 | JI55: 0 | JJ55: 0 | JK55: 0 | JL55: 0 | JM55: 0 | JN55: 0 | JO55: 0 | JP55: 0 | JQ55: 0 | JR55: 0 | JS55: 0 | JT55: 0 | JU55: 0 | JV55: 0 | JW55: 0 | JX55: 0 | JY55: 0 | JZ55: 0 | KA55: 0 | KB55: 0 | KC55: 0 | KD55: 0 | KE55: 0 | KF55: 0 | KG55: 0 | KH55: 0 | KI55: 0 | KJ55: 0 | KK55: 0 | KL55: 0 | KM55: 0 | KN55: 0 | KO55: 0 | KP55: 0 | KQ55: 0 | KR55: 0 | KS55: 0 | KT55: 0 | KU55: 0 | KV55: 0 | KW55: 0
A56: 356 | B56: LUNDI | C56: 2022-10-17 | D56: 16 | E56: 20 | F56: 38 | G56: 40 | H56: 49 | I56: 2 | J56: 9 | K56: j | L56: 0 | M56: =_xlfn.LET(_xlpm.comp,RIGHT(D56:H56,1),_xlfn._xlws.FILTER(D56:H56,_xlfn.XMATCH(_xlpm.comp,_xlpm.comp)<>_xlfn.XMATCH(_xlpm.comp,_xlpm.comp,,-1))) ->  | Q56: =COUNTIF(D55:H55,D56:H56) ->  | V56: =IF(AND(W56>69,W56<164,OR(X56={1;2;3;4})),1,0) -> 1 | W56: 163 | X56: =SUMPRODUCT(( MOD(D56:H56,2)>0)*1) -> 1 | Y56: 0 | Z56: 0 | AA56: 0 | AB56: 0 | AC56: 0 | AD56: 1 | AE56: 0 | AF56: 1 | AG56: 1 | AH56: 2 | AI56: 0 | AJ56: 0 | AK56: 0 | AL56: 0 | AM56: 0 | AN56: 1 | AO56: 0 | AP56: 0 | AQ56: 0 | AR56: 1 | AS56: 0 | AT56: 0 | AU56: 0 | AV56: 0 | AW56: 0 | AX56: 0 | AY56: 0 | AZ56: 0 | BA56: 0 | BB56: 0 | BC56: 0 | BD56: 0 | BE56: 0 | BF56: 0 | BG56: 0 | BH56: 0 | BI56: 0 | BJ56: 1 | BK56: 0 | BL56: 1 | BM56: 0 | BN56: 0 | BO56: 0 | BP56: 0 | BQ56: 0 | BR56: 0 | BS56: 0 | BT56: 0 | BU56: 1 | BV56: 0 | BW56: 1 | BX56: 1 | BY56: 1 | BZ56: 2 | CB56: 0 | CC56: 1 | CD56: 1 | CE56: 1 | CF56: 1 | CG56: 0 | CH56: 1 | CI56: 0 | CJ56: 0 | CK56: 0 | CL56: 0 | CM56: 0 | CN56: 0 | CO56: 0 | CP56: 0 | CQ56: 0 | CR56: 0 | CS56: 0 | CT56: 0 | CU56: 0 | CV56: 0 | CW56: 0 | CX56: 0 | CY56: 0 | CZ56: 0 | DA56: 0 | DB56: 0 | DC56: 0 | DD56: 0 | DE56: 0 | DF56: 0 | DG56: 0 | DH56: 0 | DJ56: 0 | DK56: 0 | DL56: 0 | DM56: 0 | DN56: 0 | DO56: 0 | DP56: 0 | DQ56: 0 | DR56: 0 | DS56: 0 | DT56: 0 | DU56: 0 | DW56: 1 | DX56: 1 | DY56: 1 | DZ56: 1 | EA56: 1 | EB56: 1 | EC56: 1 | ED56: 1 | EE56: 1 | EF56: 1 | EI56: 1 | EJ56: 1 | EK56: 1 | EL56: 1 | EM56: 1 | EN56: 1 | EO56: 1 | EP56: 1 | EQ56: 1 | ER56: 1 | ES56: 0 | ET56: 0 | EW56: 33 | EX56: =(MID(D56,2,2)*1) -> 6 | EY56: 0 | EZ56: 8 | FA56: 0 | FB56: 9 | FC56: 0 | FD56: 1 | FE56: 2 | FF56: 0 | FG56: 0 | FH56: 0 | FI56: 0 | FJ56: 0 | FW56: 0 | FX56: 0 | FY56: 0 | FZ56: 0 | GA56: 1 | GE56: 0 | GF56: 0 | GG56: 0 | GH56: 0 | GL56: 0 | GM56: 0 | GN56: 0 | GR56: 0 | GS56: 0 | GW56: 0 | HA56: 0 | JA56: 0 | JB56: 0 | JC56: 0 | JD56: 0 | JE56: 0 | JF56: 0 | JG56: 0 | JH56: 0 | JI56: 0 | JJ56: 0 | JK56: 0 | JL56: 0 | JM56: 0 | JN56: 0 | JO56: 0 | JP56: 0 | JQ56: 0 | JR56: 0 | JS56: 0 | JT56: 0 | JU56: 0 | JV56: 0 | JW56: 0 | JX56: 0 | JY56: 0 | JZ56: 0 | KA56: 0 | KB56: 0 | KC56: 0 | KD56: 0 | KE56: 0 | KF56: 0 | KG56: 0 | KH56: 0 | KI56: 0 | KJ56: 0 | KK56: 0 | KL56: 0 | KM56: 0 | KN56: 0 | KO56: 0 | KP56: 0 | KQ56: 0 | KR56: 0 | KS56: 0 | KT56: 0 | KU56: 0 | KV56: 0 | KW56: 0
A57: 355 | B57: MERCREDI | C57: 2022-10-19 | D57: 16 | E57: 25 | F57: 35 | G57: 38 | H57: 46 | I57: 8 | J57: 6 | K57: g | L57: 0 | M57: =_xlfn.LET(_xlpm.comp,RIGHT(D57:H57,1),_xlfn._xlws.FILTER(D57:H57,_xlfn.XMATCH(_xlpm.comp,_xlpm.comp)<>_xlfn.XMATCH(_xlpm.comp,_xlpm.comp,,-1))) ->  | Q57: =COUNTIF(D56:H56,D57:H57) ->  | V57: =IF(AND(W57>69,W57<164,OR(X57={1;2;3;4})),1,0) -> 1 | W57: 160 | X57: =SUMPRODUCT(( MOD(D57:H57,2)>0)*1) -> 2 | Y57: 0 | Z57: 0 | AA57: 0 | AB57: 0 | AC57: 2 | AD57: 2 | AE57: 0 | AF57: 1 | AG57: 0 | AH57: 0 | AI57: 0 | AJ57: 0 | AK57: 0 | AL57: 0 | AM57: 0 | AN57: 1 | AO57: 0 | AP57: 0 | AQ57: 0 | AR57: 0 | AS57: 0 | AT57: =COUNTIF(($D57:$H57),AT$1) -> 0 | AU57: 0 | AV57: 0 | AW57: 1 | AX57: 0 | AY57: 0 | AZ57: 0 | BA57: 0 | BB57: 0 | BC57: 0 | BD57: 0 | BE57: 0 | BF57: 0 | BG57: 1 | BH57: 0 | BI57: 0 | BJ57: 1 | BK57: 0 | BL57: 0 | BM57: 0 | BN57: 0 | BO57: 0 | BP57: 0 | BQ57: 0 | BR57: 1 | BS57: 0 | BT57: 0 | BU57: 0 | BV57: 0 | BW57: 1 | BX57: 1 | BY57: 2 | BZ57: 1 | CB57: 0 | CC57: 1 | CD57: 1 | CE57: 1 | CF57: 1 | CG57: 0 | CH57: 1 | CI57: 0 | CJ57: 0 | CK57: 0 | CL57: 0 | CM57: 0 | CN57: 0 | CO57: 0 | CP57: 0 | CQ57: 0 | CR57: 0 | CS57: 0 | CT57: 0 | CU57: 0 | CV57: 0 | CW57: 0 | CX57: 0 | CY57: 0 | CZ57: 0 | DA57: 0 | DB57: 0 | DC57: 0 | DD57: 0 | DE57: 0 | DF57: 0 | DG57: 0 | DH57: 0 | DJ57: 0 | DK57: 0 | DL57: 0 | DM57: 0 | DN57: 0 | DO57: 0 | DP57: 0 | DQ57: 0 | DR57: 0 | DS57: 0 | DT57: 0 | DU57: 0 | DW57: 1 | DX57: 1 | DY57: 1 | DZ57: 1 | EA57: 1 | EB57: 1 | EC57: 1 | ED57: 1 | EE57: 1 | EF57: 1 | EI57: 1 | EJ57: 1 | EK57: 1 | EL57: 1 | EM57: 1 | EN57: 1 | EO57: 1 | EP57: 1 | EQ57: 1 | ER57: 1 | ES57: 0 | ET57: 0 | EW57: 30 | EX57: =(MID(D57,2,2)*1) -> 6 | EY57: 5 | EZ57: 5 | FA57: 8 | FB57: 6 | FC57: 1 | FD57: 1 | FE57: 8 | FF57: 0 | FG57: 0 | FH57: 0 | FI57: 1 | FJ57: 0 | FW57: 0 | FX57: 1 | FY57: 1 | FZ57: 0 | GA57: 0 | GE57: 0 | GF57: 1 | GG57: 0 | GH57: 0 | GL57: 0 | GM57: 0 | GN57: 0 | GR57: 0 | GS57: 0 | GW57: 0 | HA57: 0 | JA57: 0 | JB57: 0 | JC57: 0 | JD57: 0 | JE57: 0 | JF57: 0 | JG57: 0 | JH57: 0 | JI57: 0 | JJ57: 0 | JK57: 0 | JL57: 0 | JM57: 0 | JN57: 0 | JO57: 0 | JP57: 0 | JQ57: 0 | JR57: 0 | JS57: 0 | JT57: 0 | JU57: 0 | JV57: 0 | JW57: 0 | JX57: 0 | JY57: 0 | JZ57: 0 | KA57: 0 | KB57: 0 | KC57: 0 | KD57: 0 | KE57: 0 | KF57: 0 | KG57: 0 | KH57: 0 | KI57: 0 | KJ57: 0 | KK57: 0 | KL57: 0 | KM57: 0 | KN57: 0 | KO57: 0 | KP57: 0 | KQ57: 0 | KR57: 0 | KS57: 0 | KT57: 0 | KU57: 0 | KV57: 0 | KW57: 0
A58: 354 | B58: SAMEDI | C58: 2022-10-22 | D58: 2 | E58: 7 | F58: 12 | G58: 25 | H58: 35 | I58: 10 | J58: 5 | K58: f | L58: 0 | M58: =_xlfn.LET(_xlpm.comp,RIGHT(D58:H58,1),_xlfn._xlws.FILTER(D58:H58,_xlfn.XMATCH(_xlpm.comp,_xlpm.comp)<>_xlfn.XMATCH(_xlpm.comp,_xlpm.comp,,-1))) ->  | Q58: =COUNTIF(D57:H57,D58:H58) ->  | V58: =IF(AND(W58>69,W58<164,OR(X58={1;2;3;4})),1,0) -> 1 | W58: 81 | X58: =SUMPRODUCT(( MOD(D58:H58,2)>0)*1) -> 3 | Y58: 0 | Z58: 2 | AA58: 0 | AB58: 0 | AC58: 2 | AD58: 0 | AE58: 1 | AF58: 0 | AG58: 0 | AH58: 0 | AI58: 0 | AJ58: 1 | AK58: 0 | AL58: 0 | AM58: 0 | AN58: 0 | AO58: 0 | AP58: 0 | AQ58: 0 | AR58: 0 | AS58: 0 | AT58: 0 | AU58: 0 | AV58: 0 | AW58: 1 | AX58: 0 | AY58: 0 | AZ58: 0 | BA58: 0 | BB58: 0 | BC58: 0 | BD58: 0 | BE58: 0 | BF58: 0 | BG58: 1 | BH58: 0 | BI58: 0 | BJ58: 0 | BK58: 0 | BL58: 0 | BM58: 0 | BN58: 0 | BO58: 0 | BP58: 0 | BQ58: 0 | BR58: 0 | BS58: 0 | BT58: 0 | BU58: 0 | BV58: 2 | BW58: 1 | BX58: 1 | BY58: 1 | BZ58: 0 | CB58: 1 | CC58: 1 | CD58: 1 | CE58: 1 | CF58: 0 | CG58: 0 | CH58: 0 | CI58: 0 | CJ58: 0 | CK58: 0 | CL58: 1 | CM58: 0 | CN58: 0 | CO58: 0 | CP58: 0 | CQ58: 0 | CR58: 0 | CS58: 0 | CT58: 0 | CU58: 0 | CV58: 0 | CW58: 0 | CX58: 0 | CY58: 0 | CZ58: 0 | DA58: 0 | DB58: 0 | DC58: 0 | DD58: 0 | DE58: 0 | DF58: 0 | DG58: 0 | DH58: 0 | DJ58: 0 | DK58: 0 | DL58: 0 | DM58: 0 | DN58: 0 | DO58: 0 | DP58: 0 | DQ58: 0 | DR58: 0 | DS58: 0 | DT58: 0 | DU58: 1 | DW58: 1 | DX58: 1 | DY58: 1 | DZ58: 1 | EA58: 1 | EB58: 1 | EC58: 1 | ED58: 1 | EE58: 1 | EF58: 0 | EI58: 1 | EJ58: 1 | EK58: 1 | EL58: 1 | EM58: 1 | EN58: 1 | EO58: 1 | EP58: 1 | EQ58: 1 | ER58: 0 | ES58: 0 | ET58: 0 | EW58: 33 | EX58: =(MID(D58,1,2)*1) -> 2 | EY58: =(MID(E58,1,1)*1) -> 7 | EZ58: 2 | FA58: 5 | FB58: 5 | FC58: 0 | FD58: 1 | FE58: 0 | FF58: 0 | FG58: 0 | FH58: 0 | FI58: 0 | FJ58: 0 | FW58: 0 | FX58: 1 | FY58: 0 | FZ58: 1 | GA58: 1 | GE58: 0 | GF58: 0 | GG58: 0 | GH58: 1 | GL58: 0 | GM58: 0 | GN58: 0 | GR58: 0 | GS58: 1 | GW58: 0 | HA58: 0 | JA58: 0 | JB58: 0 | JC58: 0 | JD58: 0 | JE58: 0 | JF58: 0 | JG58: 0 | JH58: 0 | JI58: 0 | JJ58: 0 | JK58: 0 | JL58: 0 | JM58: 0 | JN58: 0 | JO58: 0 | JP58: 0 | JQ58: 0 | JR58: 0 | JS58: 0 | JT58: 0 | JU58: 0 | JV58: 0 | JW58: 0 | JX58: 0 | JY58: 0 | JZ58: 0 | KA58: 0 | KB58: 0 | KC58: 0 | KD58: 0 | KE58: 0 | KF58: 0 | KG58: 0 | KH58: 0 | KI58: 0 | KJ58: 0 | KK58: 0 | KL58: 0 | KM58: 0 | KN58: 0 | KO58: 0 | KP58: 0 | KQ58: 0 | KR58: 0 | KS58: 0 | KT58: 0 | KU58: 0 | KV58: 0 | KW58: 0
A59: 353 | B59: LUNDI | C59: 2022-10-24 | D59: 28 | E59: 29 | F59: 33 | G59: 37 | H59: 43 | I59: 1 | J59: 3 | K59: d | L59: 0 | M59: =_xlfn.LET(_xlpm.comp,RIGHT(D59:H59,1),_xlfn._xlws.FILTER(D59:H59,_xlfn.XMATCH(_xlpm.comp,_xlpm.comp)<>_xlfn.XMATCH(_xlpm.comp,_xlpm.comp,,-1))) ->  | Q59: =COUNTIF(D58:H58,D59:H59) ->  | V59: =IF(AND(W59>69,W59<164,OR(X59={1;2;3;4})),1,0) -> 0 | W59: 170 | X59: =SUMPRODUCT(( MOD(D59:H59,2)>0)*1) -> 4 | Y59: 0 | Z59: 0 | AA59: 2 | AB59: 0 | AC59: 0 | AD59: 0 | AE59: 1 | AF59: 1 | AG59: 1 | AH59: 0 | AI59: 0 | AJ59: 0 | AK59: 0 | AL59: 0 | AM59: 0 | AN59: 0 | AO59: 0 | AP59: 0 | AQ59: 0 | AR59: 0 | AS59: 0 | AT59: 0 | AU59: 0 | AV59: 0 | AW59: 0 | AX59: 0 | AY59: 0 | AZ59: 1 | BA59: 1 | BB59: 0 | BC59: 0 | BD59: 0 | BE59: 1 | BF59: 0 | BG59: 0 | BH59: 0 | BI59: 1 | BJ59: 0 | BK59: 0 | BL59: 0 | BM59: 0 | BN59: 0 | BO59: 1 | BP59: 0 | BQ59: 0 | BR59: 0 | BS59: 0 | BT59: 0 | BU59: 0 | BV59: 0 | BW59: 0 | BX59: 2 | BY59: 2 | BZ59: 1 | CB59: 0 | CC59: 0 | CD59: 1 | CE59: 1 | CF59: 1 | CG59: 0 | CH59: 0 | CI59: 0 | CJ59: 0 | CK59: 0 | CL59: 0 | CM59: 0 | CN59: 1 | CO59: 0 | CP59: 0 | CQ59: 0 | CR59: 0 | CS59: 0 | CT59: 0 | CU59: 0 | CV59: 0 | CW59: 0 | CX59: 0 | CY59: 0 | CZ59: 0 | DA59: 0 | DB59: 0 | DC59: 0 | DD59: 0 | DE59: 0 | DF59: 0 | DG59: 0 | DH59: 0 | DJ59: 0 | DK59: 0 | DL59: 0 | DM59: 0 | DN59: 0 | DO59: 0 | DP59: 0 | DQ59: 0 | DR59: 0 | DS59: 0 | DT59: 0 | DU59: 0 | DW59: 1 | DX59: 1 | DY59: 1 | DZ59: 1 | EA59: 1 | EB59: 1 | EC59: 1 | ED59: 1 | EE59: 1 | EF59: 0 | EI59: 1 | EJ59: 1 | EK59: 1 | EL59: 1 | EM59: 1 | EN59: 1 | EO59: 1 | EP59: 1 | EQ59: 1 | ER59: 0 | ES59: 0 | ET59: 1 | EU59: 1 | EW59: 15 | EX59: =(MID(D59,2,2)*1) -> 8 | EY59: 9 | EZ59: 3 | FA59: 7 | FB59: 3 | FC59: 0 | FD59: 1 | FE59: 1 | FF59: 0 | FG59: 0 | FH59: 0 | FI59: 0 | FJ59: 0 | FK59: 1 | FW59: 0 | FX59: 1 | FY59: 1 | FZ59: 1 | GA59: 1 | GE59: 0 | GF59: 1 | GG59: 1 | GH59: 1 | GL59: 0 | GM59: 1 | GN59: 1 | GR59: 0 | GS59: 1 | GW59: 0 | HA59: 0 | JA59: 0 | JB59: 0 | JC59: 0 | JD59: 0 | JE59: 0 | JF59: 0 | JG59: 0 | JH59: 0 | JI59: 0 | JJ59: 0 | JK59: 0 | JL59: 0 | JM59: 0 | JN59: 0 | JO59: 0 | JP59: 0 | JQ59: 0 | JR59: 0 | JS59: 0 | JT59: 0 | JU59: 0 | JV59: 0 | JW59: 0 | JX59: 0 | JY59: 0 | JZ59: 0 | KA59: 0 | KB59: 0 | KC59: 0 | KD59: 0 | KE59: 0 | KF59: 0 | KG59: 0 | KH59: 0 | KI59: 0 | KJ59: 0 | KK59: 0 | KL59: 0 | KM59: 0 | KN59: 0 | KO59: 0 | KP59: 0 | KQ59: 0 | KR59: 0 | KS59: 0 | KT59: 0 | KU59: 0 | KV59: 0 | KW59: 0
A60: 352 | B60: MERCREDI | C60: 2022-10-26 | D60: 2 | E60: 4 | F60: 23 | G60: 30 | H60: 45 | I60: 5 | J60: 5 | K60: f | L60: 0 | M60: =_xlfn.LET(_xlpm.comp,RIGHT(D60:H60,1),_xlfn._xlws.FILTER(D60:H60,_xlfn.XMATCH(_xlpm.comp,_xlpm.comp)<>_xlfn.XMATCH(_xlpm.comp,_xlpm.comp,,-1))) ->  | Q60: =COUNTIF(D59:H59,D60:H60) ->  | V60: =IF(AND(W60>69,W60<164,OR(X60={1;2;3;4})),1,0) -> 1 | W60: 104 | X60: =SUMPRODUCT(( MOD(D60:H60,2)>0)*1) -> 2 | Y60: 0 | Z60: 1 | AA60: 1 | AB60: 1 | AC60: 1 | AD60: 0 | AE60: 0 | AF60: 0 | AG60: 0 | AH60: 1 | AI60: 0 | AJ60: 0 | AK60: 0 | AL60: 0 | AM60: 0 | AN60: 0 | AO60: 0 | AP60: 0 | AQ60: 0 | AR60: 0 | AS60: 0 | AT60: 0 | AU60: 1 | AV60: 0 | AW60: 0 | AX60: 0 | AY60: 0 | AZ60: 0 | BA60: 0 | BB60: 1 | BC60: 0 | BD60: 0 | BE60: 0 | BF60: 0 | BG60: 0 | BH60: 0 | BI60: 0 | BJ60: 0 | BK60: 0 | BL60: 0 | BM60: 0 | BN60: 0 | BO60: 0 | BP60: 0 | BQ60: 1 | BR60: 0 | BS60: 0 | BT60: 0 | BU60: 0 | BV60: 2 | BW60: 0 | BX60: 1 | BY60: 1 | BZ60: 1 | CB60: 1 | CC60: 0 | CD60: 1 | CE60: 1 | CF60: 1 | CG60: 0 | CH60: 0 | CI60: 1 | CJ60: 0 | CK60: 0 | CL60: 0 | CM60: 0 | CN60: 0 | CO60: 0 | CP60: 0 | CQ60: 0 | CR60: 0 | CS60: 0 | CT60: 0 | CU60: 0 | CV60: 0 | CW60: 0 | CX60: 0 | CY60: 0 | CZ60: 0 | DA60: 0 | DB60: 0 | DC60: 0 | DD60: 0 | DE60: 0 | DF60: 0 | DG60: 0 | DH60: 0 | DJ60: 0 | DK60: 0 | DL60: 0 | DM60: 0 | DN60: 0 | DO60: 0 | DP60: 0 | DQ60: 0 | DR60: 0 | DS60: 0 | DT60: 0 | DU60: 0 | DW60: 1 | DX60: 1 | DY60: 1 | DZ60: 1 | EA60: 1 | EB60: 1 | EC60: 1 | ED60: 1 | EE60: 1 | EF60: 1 | EI60: 1 | EJ60: 1 | EK60: 1 | EL60: 1 | EM60: 1 | EN60: 1 | EO60: 1 | EP60: 1 | EQ60: 1 | ER60: 1 | ES60: 0 | ET60: 1 | EW60: 43 | EX60: =(MID(D60,1,2)*1) -> 2 | EY60: =(MID(E60,1,1)*1) -> 4 | EZ60: 3 | FA60: 0 | FB60: 5 | FC60: 1 | FD60: 1 | FE60: 5 | FF60: 0 | FG60: 0 | FH60: 0 | FI60: 0 | FJ60: 1 | FW60: 0 | FX60: 0 | FY60: 1 | FZ60: 0 | GA60: 1 | GE60: 0 | GF60: 0 | GG60: 0 | GH60: 0 | GL60: 0 | GM60: 1 | GN60: 1 | GR60: 0 | GS60: 0 | GW60: 0 | HA60: =COUNTIF(FW60,GA60)*COUNTIF(FX60,FZ60) -> 0 | JA60: 0 | JB60: 0 | JC60: 0 | JD60: 0 | JE60: 0 | JF60: 0 | JG60: 0 | JH60: 0 | JI60: 0 | JJ60: 0 | JK60: 0 | JL60: 0 | JM60: 0 | JN60: 0 | JO60: 0 | JP60: 0 | JQ60: 0 | JR60: 0 | JS60: 0 | JT60: 0 | JU60: 0 | JV60: 0 | JW60: 0 | JX60: 0 | JY60: 0 | JZ60: 0 | KA60: 0 | KB60: 0 | KC60: 0 | KD60: 0 | KE60: 0 | KF60: 0 | KG60: 0 | KH60: 0 | KI60: 0 | KJ60: 0 | KK60: 0 | KL60: 0 | KM60: 0 | KN60: 0 | KO60: 0 | KP60: 0 | KQ60: 0 | KR60: 0 | KS60: 0 | KT60: 0 | KU60: 0 | KV60: 0 | KW60: 0
A61: 351 | B61: SAMEDI | C61: 2022-10-29 | D61: 26 | E61: 28 | F61: 33 | G61: 44 | H61: 48 | I61: 4 | J61: 8 | K61: i | L61: 0 | M61: =_xlfn.LET(_xlpm.comp,RIGHT(D61:H61,1),_xlfn._xlws.FILTER(D61:H61,_xlfn.XMATCH(_xlpm.comp,_xlpm.comp)<>_xlfn.XMATCH(_xlpm.comp,_xlpm.comp,,-1))) ->  | Q61: =COUNTIF(D60:H60,D61:H61) ->  | V61: =IF(AND(W61>69,W61<164,OR(X61={1;2;3;4})),1,0) -> 0 | W61: 179 | X61: =SUMPRODUCT(( MOD(D61:H61,2)>0)*1) -> 1 | Y61: 0 | Z61: 0 | AA61: 1 | AB61: 1 | AC61: 0 | AD61: 1 | AE61: 0 | AF61: 2 | AG61: 0 | AH61: 0 | AI61: 0 | AJ61: 0 | AK61: 0 | AL61: 0 | AM61: 0 | AN61: 0 | AO61: 0 | AP61: 0 | AQ61: 0 | AR61: 0 | AS61: 0 | AT61: 0 | AU61: 0 | AV61: 0 | AW61: 0 | AX61: 1 | AY61: 0 | AZ61: 1 | BA61: 0 | BB61: 0 | BC61: 0 | BD61: 0 | BE61: 1 | BF61: 0 | BG61: 0 | BH61: 0 | BI61: 0 | BJ61: 0 | BK61: 0 | BL61: 0 | BM61: 0 | BN61: 0 | BO61: 0 | BP61: 1 | BQ61: 0 | BR61: 0 | BS61: 0 | BT61: 1 | BU61: 0 | BV61: 0 | BW61: 0 | BX61: 2 | BY61: 1 | BZ61: 2 | CB61: 0 | CC61: 0 | CD61: 1 | CE61: 1 | CF61: 1 | CG61: 0 | CH61: 0 | CI61: 0 | CJ61: 0 | CK61: 0 | CL61: 0 | CM61: 0 | CN61: 1 | CO61: 0 | CP61: 0 | CQ61: 0 | CR61: 0 | CS61: 0 | CT61: 0 | CU61: 0 | CV61: 0 | CW61: 0 | CX61: 0 | CY61: 0 | CZ61: 0 | DA61: 0 | DB61: 0 | DC61: 0 | DD61: 0 | DE61: 0 | DF61: 0 | DG61: 0 | DH61: 0 | DJ61: 0 | DK61: 0 | DL61: 0 | DM61: 0 | DN61: 0 | DO61: 0 | DP61: 0 | DQ61: 0 | DR61: 0 | DS61: 0 | DT61: 0 | DU61: 0 | DW61: 1 | DX61: 1 | DY61: 1 | DZ61: 1 | EA61: 1 | EB61: 1 | EC61: 1 | ED61: 1 | EE61: 1 | EF61: 1 | EI61: 1 | EJ61: 1 | EK61: 1 | EL61: 1 | EM61: 1 | EN61: 1 | EO61: 1 | EP61: 1 | EQ61: 1 | ER61: 1 | ES61: 0 | ET61: 0 | EW61: 22 | EX61: =(MID(D61,2,2)*1) -> 6 | EY61: 8 | EZ61: 3 | FA61: 4 | FB61: 8 | FC61: 1 | FD61: 1 | FE61: 4 | FF61: 0 | FG61: 0 | FH61: 0 | FI61: 1 | FJ61: 0 | FW61: 0 | FX61: 0 | FY61: 1 | FZ61: 0 | GA61: 0 | GE61: 0 | GF61: 0 | GG61: 0 | GH61: 0 | GL61: 0 | GM61: 0 | GN61: 0 | GR61: 0 | GS61: 0 | GW61: 0 | HA61: 1 | JA61: 0 | JB61: 0 | JC61: 0 | JD61: 0 | JE61: 0 | JF61: 0 | JG61: 0 | JH61: 0 | JI61: 0 | JJ61: 0 | JK61: 0 | JL61: 0 | JM61: 0 | JN61: 0 | JO61: 0 | JP61: 0 | JQ61: 0 | JR61: 0 | JS61: 0 | JT61: 0 | JU61: 0 | JV61: 0 | JW61: 0 | JX61: 0 | JY61: 0 | JZ61: 0 | KA61: 0 | KB61: 0 | KC61: 0 | KD61: 0 | KE61: 0 | KF61: 0 | KG61: 0 | KH61: 0 | KI61: 0 | KJ61: 0 | KK61: 0 | KL61: 0 | KM61: 0 | KN61: 0 | KO61: 0 | KP61: 0 | KQ61: 0 | KR61: 0 | KS61: 0 | KT61: 0 | KU61: 0 | KV61: 0 | KW61: 0
A62: 350 | B62: LUNDI | C62: 2022-10-31 | D62: 4 | E62: 25 | F62: 34 | G62: 44 | H62: 45 | I62: 7 | J62: 5 | K62: f | L62: 2 | M62: =_xlfn.LET(_xlpm.comp,RIGHT(D62:H62,1),_xlfn._xlws.FILTER(D62:H62,_xlfn.XMATCH(_xlpm.comp,_xlpm.comp)<>_xlfn.XMATCH(_xlpm.comp,_xlpm.comp,,-1))) ->  | O62: 34 | P62: 44 | Q62: =COUNTIF(D61:H61,D62:H62) ->  | V62: =IF(AND(W62>69,W62<164,OR(X62={1;2;3;4})),1,0) -> 1 | W62: 152 | X62: =SUMPRODUCT(( MOD(D62:H62,2)>0)*1) -> 2 | Y62: 0 | Z62: 0 | AA62: 0 | AB62: 3 | AC62: 2 | AD62: 0 | AE62: 0 | AF62: 0 | AG62: 0 | AH62: 0 | AI62: =COUNTIF(($D62:$H62),AI$1) -> 0 | AJ62: 0 | AK62: 0 | AL62: 0 | AM62: 0 | AN62: 0 | AO62: 0 | AP62: 0 | AQ62: 0 | AR62: 0 | AS62: 0 | AT62: 0 | AU62: 0 | AV62: 0 | AW62: 1 | AX62: 0 | AY62: 0 | AZ62: 0 | BA62: 0 | BB62: 0 | BC62: 0 | BD62: 0 | BE62: 0 | BF62: 1 | BG62: 0 | BH62: 0 | BI62: 0 | BJ62: 0 | BK62: 0 | BL62: 0 | BM62: 0 | BN62: 0 | BO62: 0 | BP62: 1 | BQ62: 1 | BR62: 0 | BS62: 0 | BT62: 0 | BU62: 0 | BV62: 1 | BW62: 0 | BX62: 1 | BY62: 1 | BZ62: 2 | CB62: 1 | CC62: 0 | CD62: 1 | CE62: 1 | CF62: 1 | CG62: 0 | CH62: 0 | CI62: 1 | CJ62: 0 | CK62: 0 | CL62: 0 | CM62: 0 | CN62: 0 | CO62: 0 | CP62: 0 | CQ62: 0 | CR62: 0 | CS62: 0 | CT62: 0 | CU62: 0 | CV62: 0 | CW62: 0 | CX62: 0 | CY62: 0 | CZ62: 0 | DA62: 0 | DB62: 0 | DC62: 0 | DD62: 0 | DE62: 0 | DF62: 0 | DG62: 0 | DH62: 0 | DJ62: 0 | DK62: 0 | DL62: 0 | DM62: 0 | DN62: 0 | DO62: 0 | DP62: 0 | DQ62: 0 | DR62: 0 | DS62: 0 | DT62: 0 | DU62: 0 | DW62: 1 | DX62: 1 | DY62: 1 | DZ62: 1 | EA62: 1 | EB62: 1 | EC62: 1 | ED62: 1 | EE62: 1 | EF62: 1 | EI62: 1 | EJ62: 1 | EK62: 1 | EL62: 1 | EM62: 1 | EN62: 1 | EO62: 1 | EP62: 1 | EQ62: 1 | ER62: 1 | ES62: 0 | ET62: 1 | EU62: 1 | EW62: 41 | EX62: =(MID(D62,1,2)*1) -> 4 | EY62: 5 | EZ62: 4 | FA62: 4 | FB62: 5 | FC62: 0 | FD62: 1 | FE62: 7 | FF62: 0 | FG62: 0 | FH62: 0 | FI62: 0 | FJ62: 0 | FN62: 1 | FW62: 0 | FX62: 1 | FY62: 0 | FZ62: 0 | GA62: 1 | GE62: 0 | GF62: 0 | GG62: 0 | GH62: 0 | GL62: 0 | GM62: 0 | GN62: 0 | GR62: 0 | GS62: 1 | GW62: 0 | HA62: 0 | JA62: 0 | JB62: 0 | JC62: 0 | JD62: 0 | JE62: 0 | JF62: 0 | JG62: 0 | JH62: 0 | JI62: 0 | JJ62: 0 | JK62: 0 | JL62: 0 | JM62: 0 | JN62: 0 | JO62: 0 | JP62: 0 | JQ62: 0 | JR62: 0 | JS62: 0 | JT62: 0 | JU62: 0 | JV62: 0 | JW62: 0 | JX62: 0 | JY62: 0 | JZ62: 0 | KA62: 0 | KB62: 0 | KC62: 0 | KD62: 0 | KE62: 0 | KF62: 0 | KG62: 0 | KH62: 0 | KI62: 0 | KJ62: 0 | KK62: 0 | KL62: 0 | KM62: 0 | KN62: 0 | KO62: 0 | KP62: 0 | KQ62: 0 | KR62: 0 | KS62: 0 | KT62: 0 | KU62: 0 | KV62: 0 | KW62: 0
A63: 349 | B63: MERCREDI | C63: 2022-11-02 | D63: 4 | E63: 7 | F63: 26 | G63: 38 | H63: 45 | I63: 2 | J63: 5 | K63: f | L63: 0 | M63: =_xlfn.LET(_xlpm.comp,RIGHT(D63:H63,1),_xlfn._xlws.FILTER(D63:H63,_xlfn.XMATCH(_xlpm.comp,_xlpm.comp)<>_xlfn.XMATCH(_xlpm.comp,_xlpm.comp,,-1))) ->  | Q63: =COUNTIF(D62:H62,D63:H63) ->  | V63: =IF(AND(W63>69,W63<164,OR(X63={1;2;3;4})),1,0) -> 1 | W63: 120 | X63: =SUMPRODUCT(( MOD(D63:H63,2)>0)*1) -> 2 | Y63: 0 | Z63: 0 | AA63: 0 | AB63: 1 | AC63: 1 | AD63: 1 | AE63: 1 | AF63: 1 | AG63: 0 | AH63: 0 | AI63: 0 | AJ63: 0 | AK63: 0 | AL63: 0 | AM63: 0 | AN63: 0 | AO63: 0 | AP63: 0 | AQ63: 0 | AR63: 0 | AS63: 0 | AT63: 0 | AU63: 0 | AV63: 0 | AW63: 0 | AX63: 1 | AY63: 0 | AZ63: 0 | BA63: 0 | BB63: 0 | BC63: 0 | BD63: 0 | BE63: 0 | BF63: 0 | BG63: 0 | BH63: 0 | BI63: 0 | BJ63: 1 | BK63: 0 | BL63: 0 | BM63: 0 | BN63: 0 | BO63: 0 | BP63: 0 | BQ63: 1 | BR63: 0 | BS63: 0 | BT63: 0 | BU63: 0 | BV63: 2 | BW63: 0 | BX63: 1 | BY63: 1 | BZ63: 1 | CB63: 1 | CC63: 0 | CD63: 1 | CE63: 1 | CF63: 1 | CG63: 0 | CH63: 0 | CI63: 1 | CJ63: 0 | CK63: 0 | CL63: 0 | CM63: 0 | CN63: 0 | CO63: 0 | CP63: 0 | CQ63: 0 | CR63: 0 | CS63: 0 | CT63: 0 | CU63: 0 | CV63: 0 | CW63: 0 | CX63: 0 | CY63: 0 | CZ63: 0 | DA63: 0 | DB63: 0 | DC63: 0 | DD63: 0 | DE63: 0 | DF63: 0 | DG63: 0 | DH63: 0 | DJ63: 0 | DK63: 0 | DL63: 0 | DM63: 0 | DN63: 0 | DO63: 0 | DP63: 0 | DQ63: 0 | DR63: 0 | DS63: 0 | DT63: 0 | DU63: 0 | DW63: 1 | DX63: 1 | DY63: 1 | DZ63: 1 | EA63: 1 | EB63: 1 | EC63: 1 | ED63: 1 | EE63: 1 | EF63: 1 | EI63: 1 | EJ63: 1 | EK63: 1 | EL63: 1 | EM63: 1 | EN63: 1 | EO63: 1 | EP63: 1 | EQ63: 1 | ER63: 1 | ES63: 0 | ET63: 0 | EW63: 41 | EX63: 4 | EY63: =(MID(E63,1,1)*1) -> 7 | EZ63: 6 | FA63: 8 | FB63: 5 | FC63: 0 | FD63: 1 | FE63: 2 | FF63: 0 | FG63: 0 | FH63: 0 | FI63: 0 | FJ63: 0 | FW63: 0 | FX63: 1 | FY63: 0 | FZ63: 0 | GA63: 1 | GE63: 0 | GF63: 0 | GG63: 0 | GH63: 0 | GL63: 0 | GM63: 0 | GN63: 0 | GR63: 0 | GS63: 1 | GW63: 0 | HA63: 0 | JA63: 0 | JB63: 0 | JC63: 0 | JD63: 0 | JE63: 0 | JF63: 0 | JG63: 0 | JH63: 0 | JI63: 0 | JJ63: 0 | JK63: 0 | JL63: 0 | JM63: 0 | JN63: 0 | JO63: 0 | JP63: 0 | JQ63: 0 | JR63: 0 | JS63: 0 | JT63: 0 | JU63: 0 | JV63: 0 | JW63: 0 | JX63: 0 | JY63: 0 | JZ63: 0 | KA63: 0 | KB63: 0 | KC63: 0 | KD63: 0 | KE63: 0 | KF63: 0 | KG63: 0 | KH63: 0 | KI63: 0 | KJ63: 0 | KK63: 0 | KL63: 0 | KM63: 0 | KN63: 0 | KO63: 0 | KP63: 0 | KQ63: 0 | KR63: 0 | KS63: 0 | KT63: 0 | KU63: 0 | KV63: 0 | KW63: 0
A64: 348 | B64: SAMEDI | C64: 2022-11-05 | D64: 6 | E64: 23 | F64: 32 | G64: 38 | H64: 40 | I64: 10 | J64: 0 | K64: a | L64: 0 | M64: =_xlfn.LET(_xlpm.comp,RIGHT(D64:H64,1),_xlfn._xlws.FILTER(D64:H64,_xlfn.XMATCH(_xlpm.comp,_xlpm.comp)<>_xlfn.XMATCH(_xlpm.comp,_xlpm.comp,,-1))) ->  | Q64: =COUNTIF(D63:H63,D64:H64) ->  | V64: =IF(AND(W64>69,W64<164,OR(X64={1;2;3;4})),1,0) -> 1 | W64: 139 | X64: =SUMPRODUCT(( MOD(D64:H64,2)>0)*1) -> 1 | Y64: 0 | Z64: 1 | AA64: 1 | AB64: 0 | AC64: 0 | AD64: 1 | AE64: 0 | AF64: 1 | AG64: 0 | AH64: 1 | AI64: 0 | AJ64: 0 | AK64: 0 | AL64: 0 | AM64: 0 | AN64: 0 | AO64: 0 | AP64: 0 | AQ64: 0 | AR64: 0 | AS64: 0 | AT64: 0 | AU64: 1 | AV64: 0 | AW64: 0 | AX64: 0 | AY64: 0 | AZ64: 0 | BA64: 0 | BB64: 0 | BC64: 0 | BD64: 1 | BE64: 0 | BF64: 0 | BG64: 0 | BH64: 0 | BI64: 0 | BJ64: 1 | BK64: 0 | BL64: 1 | BM64: 0 | BN64: 0 | BO64: 0 | BP64: 0 | BQ64: 0 | BR64: 0 | BS64: 0 | BT64: 0 | BU64: 0 | BV64: 1 | BW64: 0 | BX64: 1 | BY64: 2 | BZ64: 1 | CB64: 1 | CC64: 0 | CD64: 1 | CE64: 1 | CF64: 1 | CG64: 0 | CH64: 0 | CI64: 1 | CJ64: 0 | CK64: 0 | CL64: 0 | CM64: 0 | CN64: 0 | CO64: 0 | CP64: 0 | CQ64: 0 | CR64: 0 | CS64: 0 | CT64: 0 | CU64: 0 | CV64: 0 | CW64: 0 | CX64: 0 | CY64: 0 | CZ64: 0 | DA64: 0 | DB64: 0 | DC64: 0 | DD64: 0 | DE64: 0 | DF64: 0 | DG64: 0 | DH64: 0 | DJ64: 0 | DK64: 0 | DL64: 0 | DM64: 0 | DN64: 0 | DO64: 0 | DP64: 0 | DQ64: 0 | DR64: 0 | DS64: 0 | DT64: 0 | DU64: 1 | DW64: 1 | DX64: 1 | DY64: 1 | DZ64: 1 | EA64: 1 | EB64: 1 | EC64: 1 | ED64: 1 | EE64: 1 | EF64: 0 | EI64: 1 | EJ64: 1 | EK64: 1 | EL64: 1 | EM64: 1 | EN64: 1 | EO64: 1 | EP64: 1 | EQ64: 1 | ER64: 0 | ES64: 0 | ET64: 0 | EW64: 34 | EX64: 6 | EY64: 3 | EZ64: 2 | FA64: 8 | FB64: 0 | FC64: 1 | FD64: 1 | FE64: 0 | FF64: 0 | FG64: 0 | FH64: 0 | FI64: 0 | FJ64: 1 | FW64: 0 | FX64: 1 | FY64: 0 | FZ64: 0 | GA64: 0 | GE64: 0 | GF64: 0 | GG64: 0 | GH64: 0 | GL64: 0 | GM64: 0 | GN64: 0 | GR64: 0 | GS64: 0 | GW64: 0 | HA64: 0 | JA64: 0 | JB64: 0 | JC64: 0 | JD64: 0 | JE64: 0 | JF64: 0 | JG64: 0 | JH64: 0 | JI64: 0 | JJ64: 0 | JK64: 0 | JL64: 0 | JM64: 0 | JN64: 0 | JO64: 0 | JP64: 0 | JQ64: 0 | JR64: 0 | JS64: 0 | JT64: 0 | JU64: 0 | JV64: 0 | JW64: 0 | JX64: 0 | JY64: 0 | JZ64: 0 | KA64: 0 | KB64: 0 | KC64: 0 | KD64: 0 | KE64: 0 | KF64: 0 | KG64: 0 | KH64: 0 | KI64: 0 | KJ64: 0 | KK64: 0 | KL64: 0 | KM64: 0 | KN64: 0 | KO64: 0 | KP64: 0 | KQ64: 0 | KR64: 0 | KS64: 0 | KT64: 0 | KU64: 0 | KV64: 0 | KW64: 0
A65: 347 | B65: LUNDI | C65: 2022-11-07 | D65: 8 | E65: 9 | F65: 24 | G65: 31 | H65: 40 | I65: 7 | J65: 0 | K65: a | L65: 0 | M65: =_xlfn.LET(_xlpm.comp,RIGHT(D65:H65,1),_xlfn._xlws.FILTER(D65:H65,_xlfn.XMATCH(_xlpm.comp,_xlpm.comp)<>_xlfn.XMATCH(_xlpm.comp,_xlpm.comp,,-1))) ->  | Q65: =COUNTIF(D64:H64,D65:H65) ->  | V65: =IF(AND(W65>69,W65<164,OR(X65={1;2;3;4})),1,0) -> 1 | W65: 112 | X65: =SUMPRODUCT(( MOD(D65:H65,2)>0)*1) -> 2 | Y65: 1 | Z65: 0 | AA65: 0 | AB65: 1 | AC65: 0 | AD65: 0 | AE65: 0 | AF65: 1 | AG65: 1 | AH65: 1 | AI65: 0 | AJ65: 0 | AK65: 0 | AL65: 0 | AM65: 0 | AN65: 0 | AO65: 0 | AP65: 0 | AQ65: 0 | AR65: 0 | AS65: 0 | AT65: 0 | AU65: 0 | AV65: 1 | AW65: 0 | AX65: 0 | AY65: 0 | AZ65: 0 | BA65: 0 | BB65: 0 | BC65: 1 | BD65: 0 | BE65: 0 | BF65: 0 | BG65: 0 | BH65: 0 | BI65: 0 | BJ65: 0 | BK65: 0 | BL65: 1 | BM65: 0 | BN65: 0 | BO65: 0 | BP65: 0 | BQ65: 0 | BR65: 0 | BS65: 0 | BT65: 0 | BU65: 0 | BV65: 2 | BW65: 0 | BX65: 1 | BY65: 1 | BZ65: 1 | CB65: 1 | CC65: 0 | CD65: 1 | CE65: 1 | CF65: 1 | CG65: 0 | CH65: 0 | CI65: 1 | CJ65: 0 | CK65: 0 | CL65: 0 | CM65: 0 | CN65: 0 | CO65: 0 | CP65: 0 | CQ65: 0 | CR65: 0 | CS65: 0 | CT65: 0 | CU65: 0 | CV65: 0 | CW65: 0 | CX65: 0 | CY65: 0 | CZ65: 0 | DA65: 0 | DB65: 0 | DC65: 0 | DD65: 0 | DE65: 0 | DF65: 0 | DG65: 0 | DH65: 0 | DJ65: 0 | DK65: 0 | DL65: 0 | DM65: 0 | DN65: 0 | DO65: 0 | DP65: 0 | DQ65: 0 | DR65: 0 | DS65: 0 | DT65: 0 | DU65: 0 | DW65: 1 | DX65: 1 | DY65: 1 | DZ65: 1 | EA65: 1 | EB65: 1 | EC65: 1 | ED65: 1 | EE65: 1 | EF65: 0 | EI65: 1 | EJ65: 1 | EK65: 1 | EL65: 1 | EM65: 1 | EN65: 1 | EO65: 1 | EP65: 1 | EQ65: 1 | ER65: 0 | ES65: 0 | ET65: 1 | EU65: 1 | EW65: 32 | EX65: 8 | EY65: =(MID(E65,1,1)*1) -> 9 | EZ65: =(MID(F65,2,1)*1) -> 4 | FA65: =(MID(G65,2,1)*1) -> 1 | FB65: =(MID(H65,2,1)*1) -> 0 | FC65: 0 | FD65: 1 | FE65: 7 | FF65: 0 | FG65: 0 | FH65: 0 | FI65: 0 | FJ65: 0 | FK65: 1 | FW65: 0 | FX65: 1 | FY65: 0 | FZ65: 1 | GA65: 0 | GE65: 0 | GF65: 0 | GG65: 0 | GH65: 0 | GL65: 0 | GM65: 0 | GN65: 0 | GR65: 0 | GS65: 0 | GW65: 0 | HA65: 1 | JA65: 0 | JB65: 0 | JC65: 0 | JD65: 0 | JE65: 0 | JF65: 0 | JG65: 0 | JH65: 0 | JI65: 0 | JJ65: 0 | JK65: 0 | JL65: 0 | JM65: 0 | JN65: 0 | JO65: 0 | JP65: 0 | JQ65: 0 | JR65: 0 | JS65: 0 | JT65: 0 | JU65: 0 | JV65: 0 | JW65: 0 | JX65: 0 | JY65: 0 | JZ65: 0 | KA65: 0 | KB65: 0 | KC65: 0 | KD65: 0 | KE65: 0 | KF65: 0 | KG65: 0 | KH65: 0 | KI65: 0 | KJ65: 0 | KK65: 0 | KL65: 0 | KM65: 0 | KN65: 0 | KO65: 0 | KP65: 0 | KQ65: 0 | KR65: 0 | KS65: 0 | KT65: 0 | KU65: 0 | KV65: 0 | KW65: 0
A66: =A67+1 -> 346 | B66: MERCREDI | C66: 2022-11-09 | D66: 1 | E66: 2 | F66: 15 | G66: 30 | H66: 41 | I66: 9 | J66: 1 | K66: b | L66: 0 | M66: =_xlfn.LET(_xlpm.comp,RIGHT(D66:H66,1),_xlfn._xlws.FILTER(D66:H66,_xlfn.XMATCH(_xlpm.comp,_xlpm.comp)<>_xlfn.XMATCH(_xlpm.comp,_xlpm.comp,,-1))) ->  | Q66: =COUNTIF(D65:H65,D66:H66) ->  | V66: =IF(AND(W66>69,W66<164,OR(X66={1;2;3;4})),1,0) -> 1 | W66: 89 | X66: =SUMPRODUCT(( MOD(D66:H66,2)>0)*1) -> 3 | Y66: 2 | Z66: 1 | AA66: 0 | AB66: 0 | AC66: 1 | AD66: 0 | AE66: 0 | AF66: 0 | AG66: 0 | AH66: 1 | AI66: 0 | AJ66: 0 | AK66: 0 | AL66: 0 | AM66: 1 | AN66: 0 | AO66: 0 | AP66: 0 | AQ66: 0 | AR66: 0 | AS66: 0 | AT66: 0 | AU66: 0 | AV66: 0 | AW66: 0 | AX66: 0 | AY66: 0 | AZ66: 0 | BA66: 0 | BB66: 1 | BC66: 0 | BD66: 0 | BE66: 0 | BF66: 0 | BG66: 0 | BH66: 0 | BI66: 0 | BJ66: 0 | BK66: 0 | BL66: 0 | BM66: 1 | BN66: 0 | BO66: 0 | BP66: 0 | BQ66: 0 | BR66: 0 | BS66: 0 | BT66: 0 | BU66: 0 | BV66: 2 | BW66: 1 | BX66: 0 | BY66: 1 | BZ66: 1 | CB66: 1 | CC66: 1 | CD66: 0 | CE66: 1 | CF66: 1 | CG66: 0 | CH66: 0 | CI66: 0 | CJ66: 1 | CK66: 0 | CL66: 0 | CM66: 0 | CN66: 0 | CO66: 0 | CP66: 0 | CQ66: 0 | CR66: 0 | CS66: 0 | CT66: 0 | CU66: 0 | CV66: 0 | CW66: 0 | CX66: 0 | CY66: 0 | CZ66: 0 | DA66: 0 | DB66: 0 | DC66: 0 | DD66: 0 | DE66: 0 | DF66: 0 | DG66: 0 | DH66: 0 | DJ66: 0 | DK66: 0 | DL66: 0 | DM66: 0 | DN66: 0 | DO66: 0 | DP66: 0 | DQ66: 0 | DR66: 0 | DS66: 0 | DT66: 0 | DU66: 0 | DW66: 1 | DX66: 1 | DY66: 1 | DZ66: 1 | EA66: 1 | EB66: 1 | EC66: 1 | ED66: 1 | EE66: 1 | EF66: 1 | EI66: 1 | EJ66: 1 | EK66: 1 | EL66: 1 | EM66: 1 | EN66: 1 | EO66: 1 | EP66: 1 | EQ66: 1 | ER66: 1 | ES66: 0 | ET66: 1 | EU66: 1 | EW66: 40 | EX66: 1 | EY66: =(MID(E66,1,1)*1) -> 2 | EZ66: 5 | FA66: 0 | FB66: 1 | FC66: 0 | FD66: 1 | FE66: 9 | FF66: 0 | FG66: 0 | FH66: 0 | FI66: 0 | FJ66: 0 | FK66: 1 | FW66: 1 | FX66: 0 | FY66: 1 | FZ66: 0 | GA66: 1 | GE66: 0 | GF66: 0 | GG66: 0 | GH66: 0 | GL66: 1 | GM66: 1 | GN66: 1 | GR66: 0 | GS66: 0 | GW66: 1 | HA66: 1 | JA66: 0 | JB66: 0 | JC66: 0 | JD66: 0 | JE66: 0 | JF66: 0 | JG66: 0 | JH66: 0 | JI66: 0 | JJ66: 0 | JK66: 0 | JL66: 0 | JM66: 0 | JN66: 0 | JO66: 0 | JP66: 0 | JQ66: 0 | JR66: 0 | JS66: 0 | JT66: 0 | JU66: 0 | JV66: 0 | JW66: 0 | JX66: 0 | JY66: 0 | JZ66: 0 | KA66: 0 | KB66: 0 | KC66: 0 | KD66: 0 | KE66: 0 | KF66: 0 | KG66: 0 | KH66: 0 | KI66: 0 | KJ66: 0 | KK66: 0 | KL66: 0 | KM66: 0 | KN66: 0 | KO66: 0 | KP66: 0 | KQ66: 0 | KR66: 0 | KS66: 0 | KT66: 0 | KU66: 0 | KV66: 0 | KW66: 0
A67: 345 | B67: SAMEDI | C67: 2022-11-12 | D67: 4 | E67: 14 | F67: 25 | G67: 34 | H67: 44 | I67: 7 | J67: 4 | K67: e | L67: 0 | M67: =_xlfn.LET(_xlpm.comp,RIGHT(D67:H67,1),_xlfn._xlws.FILTER(D67:H67,_xlfn.XMATCH(_xlpm.comp,_xlpm.comp)<>_xlfn.XMATCH(_xlpm.comp,_xlpm.comp,,-1))) ->  | Q67: =COUNTIF(D66:H66,D67:H67) ->  | V67: =IF(AND(W67>69,W67<164,OR(X67={1;2;3;4})),1,0) -> 1 | W67: =D67+E67+F67+G67+H67 -> 121 | X67: =SUMPRODUCT(( MOD(D67:H67,2)>0)*1) -> 1 | Y67: 0 | Z67: 0 | AA67: 0 | AB67: 4 | AC67: 1 | AD67: 0 | AE67: 0 | AF67: 0 | AG67: 0 | AH67: 0 | AI67: 0 | AJ67: 0 | AK67: 0 | AL67: 1 | AM67: 0 | AN67: 0 | AO67: 0 | AP67: 0 | AQ67: 0 | AR67: 0 | AS67: 0 | AT67: 0 | AU67: 0 | AV67: 0 | AW67: 1 | AX67: 0 | AY67: 0 | AZ67: 0 | BA67: 0 | BB67: 0 | BC67: 0 | BD67: 0 | BE67: 0 | BF67: 1 | BG67: 0 | BH67: 0 | BI67: 0 | BJ67: 0 | BK67: 0 | BL67: 0 | BM67: 0 | BN67: 0 | BO67: 0 | BP67: 1 | BQ67: 0 | BR67: 0 | BS67: 0 | BT67: 0 | BU67: 0 | BV67: =COUNTIF(D67:H67,"<10") -> 1 | BW67: =(COUNTIF(D67:H67,"<20")-BV67) -> 1 | BX67: =((COUNTIF(D67:H67,"<30")))-(BV67+BW67) -> 1 | BY67: =((COUNTIF(D67:H67,"<40")))-(BW67+BX67+BV67) -> 1 | BZ67: =((COUNTIF(D67:H67,"<50")))-(BX67+BY67+BW67+BV67) -> 1 | CA67: 1 | CB67: 1 | CC67: 1 | CD67: 1 | CE67: 1 | CF67: 1 | CG67: 1 | CH67: =COUNTIF(CB67,"=0")*+(COUNTIF(CC67,">0")*+(COUNTIF(CD67,">0")*+(COUNTIF(CE67,">0")*+(COUNTIF(CF67,">0"))))) -> 0 | CI67: =COUNTIF(CB67,">0")*+(COUNTIF(CC67,"=0")*+(COUNTIF(CD67,">0")*+(COUNTIF(CE67,">0")*+(COUNTIF(CF67,">0"))))) -> 0 | CJ67: =COUNTIF(CB67,">0")*+(COUNTIF(CC67,">0")*+(COUNTIF(CD67,"=0")*+(COUNTIF(CE67,">0")*+(COUNTIF(CF67,">0"))))) -> 0 | CK67: =COUNTIF(CB67,">0")*+(COUNTIF(CC67,">0")*+(COUNTIF(CD67,">0")*+(COUNTIF(CE67,"=0")*+(COUNTIF(CF67,">0"))))) -> 0 | CL67: 0 | CM67: 0 | CN67: 0 | CO67: 0 | CP67: 0 | CQ67: 0 | CR67: 0 | CS67: 0 | CT67: 0 | CU67: 0 | CV67: 0 | CW67: 0 | CX67: 0 | CY67: 0 | CZ67: 0 | DA67: 0 | DB67: 0 | DC67: 0 | DD67: 0 | DE67: 0 | DF67: 0 | DG67: 0 | DH67: 0 | DJ67: 0 | DK67: 0 | DL67: 0 | DM67: 0 | DN67: 0 | DO67: 0 | DP67: 0 | DQ67: 0 | DR67: 0 | DS67: 0 | DT67: 0 | DU67: 0 | DW67: 1 | DX67: 1 | DY67: 1 | DZ67: 1 | EA67: 1 | EB67: 1 | EC67: 1 | ED67: 1 | EE67: 1 | EF67: 1 | EI67: 1 | EJ67: 1 | EK67: 1 | EL67: 1 | EM67: 1 | EN67: 1 | EO67: 1 | EP67: 1 | EQ67: 1 | ER67: 1 | ES67: 0 | ET67: 1 | EW67: 40 | EX67: 4 | EY67: =(MID(E67,2,1)*1) -> 4 | EZ67: 5 | FA67: 4 | FB67: 4 | FC67: 0 | FD67: 1 | FE67: 7 | FF67: 0 | FG67: 0 | FH67: 0 | FI67: 0 | FJ67: 0 | FW67: 0 | FX67: 0 | FY67: 1 | FZ67: 0 | GA67: 0 | GE67: 0 | GF67: 0 | GG67: 0 | GH67: 0 | GL67: 0 | GM67: 0 | GN67: 0 | GR67: 0 | GS67: 0 | GW67: 0 | HA67: 1 | JA67: 0 | JB67: 0 | JC67: 0 | JD67: 0 | JE67: 0 | JF67: 0 | JG67: 0 | JH67: 0 | JI67: 0 | JJ67: 0 | JK67: 0 | JL67: 0 | JM67: 0 | JN67: 0 | JO67: 0 | JP67: 0 | JQ67: 0 | JR67: 0 | JS67: 0 | JT67: 0 | JU67: 0 | JV67: 0 | JW67: 0 | JX67: 0 | JY67: 0 | JZ67: 0 | KA67: 0 | KB67: 0 | KC67: 0 | KD67: 0 | KE67: 0 | KF67: 0 | KG67: 0 | KH67: 0 | KI67: 0 | KJ67: 0 | KK67: 0 | KL67: 0 | KM67: 0 | KN67: 0 | KO67: 0 | KP67: 0 | KQ67: 0 | KR67: 0 | KS67: 0 | KT67: 0 | KU67: 0 | KV67: 0 | KW67: 0
A68: 344 | B68: LUNDI | C68: 2022-11-14 | D68: 14 | E68: 23 | F68: 28 | G68: 34 | H68: 44 | I68: 5 | J68: =(MID(H68,2,1)*1) -> 4 | K68: e | L68: =COUNTIF(M68:P68,">0") -> 0 | M68: =_xlfn.LET(_xlpm.comp,RIGHT(D68:H68,1),_xlfn._xlws.FILTER(D68:H68,_xlfn.XMATCH(_xlpm.comp,_xlpm.comp)<>_xlfn.XMATCH(_xlpm.comp,_xlpm.comp,,-1))) ->  | Q68: =COUNTIF(D67:H67,D68:H68) ->  | V68: =IF(AND(W68>69,W68<164,OR(X68={1;2;3;4})),1,0) -> 1 | W68: 143 | X68: =SUMPRODUCT(( MOD(D68:H68,2)>0)*1) -> 1 | Y68: 0 | Z68: 0 | AA68: 1 | AB68: 3 | AC68: 0 | AD68: 0 | AE68: 0 | AF68: 1 | AG68: 0 | AH68: 0 | AI68: 0 | AJ68: 0 | AK68: 0 | AL68: 1 | AM68: 0 | AN68: 0 | AO68: 0 | AP68: 0 | AQ68: 0 | AR68: 0 | AS68: 0 | AT68: 0 | AU68: 1 | AV68: 0 | AW68: 0 | AX68: 0 | AY68: 0 | AZ68: 1 | BA68: 0 | BB68: 0 | BC68: 0 | BD68: 0 | BE68: 0 | BF68: 1 | BG68: 0 | BH68: 0 | BI68: 0 | BJ68: 0 | BK68: 0 | BL68: 0 | BM68: 0 | BN68: 0 | BO68: 0 | BP68: 1 | BQ68: 0 | BR68: 0 | BS68: 0 | BT68: 0 | BU68: 0 | BV68: 0 | BW68: 1 | BX68: 2 | BY68: 1 | BZ68: 1 | CB68: 0 | CC68: 1 | CD68: 1 | CE68: 1 | CF68: 1 | CG68: 0 | CH68: 1 | CI68: 0 | CJ68: 0 | CK68: 0 | CL68: 0 | CM68: 0 | CN68: 0 | CO68: 0 | CP68: 0 | CQ68: 0 | CR68: 0 | CS68: 0 | CT68: 0 | CU68: 0 | CV68: 0 | CW68: 0 | CX68: 0 | CY68: 0 | CZ68: 0 | DA68: 0 | DB68: 0 | DC68: 0 | DD68: 0 | DE68: 0 | DF68: 0 | DG68: 0 | DH68: 0 | DJ68: 0 | DK68: 0 | DL68: 0 | DM68: 0 | DN68: 0 | DO68: 0 | DP68: 0 | DQ68: 0 | DR68: 0 | DS68: 0 | DT68: 0 | DU68: 0 | DW68: 1 | DX68: 1 | DY68: 1 | DZ68: 1 | EA68: 1 | EB68: 1 | EC68: 1 | ED68: 1 | EE68: 1 | EF68: 1 | EI68: 1 | EJ68: 1 | EK68: 1 | EL68: 1 | EM68: 1 | EN68: 1 | EO68: 1 | EP68: 1 | EQ68: 1 | ER68: 1 | ES68: 0 | ET68: 1 | EW68: 30 | EX68: =(MID(D68,2,2)*1) -> 4 | EY68: 3 | EZ68: 8 | FA68: 4 | FB68: 4 | FC68: 0 | FD68: 1 | FE68: 5 | FF68: 0 | FG68: 0 | FH68: 0 | FI68: 0 | FJ68: 0 | FW68: 0 | FX68: 1 | FY68: 0 | FZ68: 0 | GA68: 0 | GE68: 0 | GF68: 0 | GG68: 0 | GH68: 0 | GL68: 0 | GM68: 0 | GN68: 0 | GR68: 0 | GS68: 0 | GW68: 0 | HA68: 0 | JA68: 0 | JB68: 0 | JC68: 0 | JD68: 0 | JE68: 0 | JF68: 0 | JG68: 0 | JH68: 0 | JI68: 0 | JJ68: 0 | JK68: 0 | JL68: 0 | JM68: 0 | JN68: 0 | JO68: 0 | JP68: 0 | JQ68: 0 | JR68: 0 | JS68: 0 | JT68: 0 | JU68: 0 | JV68: 0 | JW68: 0 | JX68: 0 | JY68: 0 | JZ68: 0 | KA68: 0 | KB68: 0 | KC68: 0 | KD68: 0 | KE68: 0 | KF68: 0 | KG68: 0 | KH68: 0 | KI68: 0 | KJ68: 0 | KK68: 0 | KL68: 0 | KM68: 0 | KN68: 0 | KO68: 0 | KP68: 0 | KQ68: 0 | KR68: 0 | KS68: 0 | KT68: 0 | KU68: 0 | KV68: 0 | KW68: 0
A69: 343 | B69: MERCREDI | C69: 2022-11-16 | D69: 1 | E69: 3 | F69: 8 | G69: 38 | H69: 48 | I69: 1 | J69: 8 | K69: i | L69: 0 | M69: =_xlfn.LET(_xlpm.comp,RIGHT(D69:H69,1),_xlfn._xlws.FILTER(D69:H69,_xlfn.XMATCH(_xlpm.comp,_xlpm.comp)<>_xlfn.XMATCH(_xlpm.comp,_xlpm.comp,,-1))) ->  | Q69: =COUNTIF(D68:H68,D69:H69) ->  | V69: =IF(AND(W69>69,W69<164,OR(X69={1;2;3;4})),1,0) -> 1 | W69: 98 | X69: =SUMPRODUCT(( MOD(D69:H69,2)>0)*1) -> 2 | Y69: 1 | Z69: 0 | AA69: 1 | AB69: 0 | AC69: 0 | AD69: 0 | AE69: 0 | AF69: 3 | AG69: 0 | AH69: 0 | AI69: 0 | AJ69: 0 | AK69: 0 | AL69: 0 | AM69: 0 | AN69: 0 | AO69: 0 | AP69: 0 | AQ69: 0 | AR69: 0 | AS69: 0 | AT69: 0 | AU69: 0 | AV69: 0 | AW69: 0 | AX69: 0 | AY69: 0 | AZ69: 0 | BA69: 0 | BB69: 0 | BC69: 0 | BD69: 0 | BE69: 0 | BF69: 0 | BG69: 0 | BH69: 0 | BI69: 0 | BJ69: 1 | BK69: 0 | BL69: 0 | BM69: 0 | BN69: 0 | BO69: 0 | BP69: 0 | BQ69: 0 | BR69: 0 | BS69: 0 | BT69: 1 | BU69: 0 | BV69: 3 | BW69: 0 | BX69: 0 | BY69: 1 | BZ69: 1 | CB69: 1 | CC69: 0 | CD69: 0 | CE69: 1 | CF69: 1 | CG69: 0 | CH69: 0 | CI69: 0 | CJ69: 0 | CK69: 0 | CL69: 0 | CM69: 0 | CN69: 0 | CO69: 0 | CP69: 1 | CQ69: 0 | CR69: 0 | CS69: 0 | CT69: 0 | CU69: 0 | CV69: 0 | CW69: 0 | CX69: 0 | CY69: 0 | CZ69: 0 | DA69: 0 | DB69: 0 | DC69: 0 | DD69: 0 | DE69: 0 | DF69: 0 | DG69: 0 | DH69: 0 | DJ69: 0 | DK69: 0 | DL69: 0 | DM69: 0 | DN69: 0 | DO69: 0 | DP69: 0 | DQ69: 0 | DR69: 0 | DS69: 0 | DT69: 0 | DU69: 0 | DW69: 1 | DX69: 1 | DY69: 1 | DZ69: 1 | EA69: 1 | EB69: 1 | EC69: 1 | ED69: 1 | EE69: 1 | EF69: 1 | EI69: 1 | EJ69: 1 | EK69: 1 | EL69: 1 | EM69: 1 | EN69: 1 | EO69: 1 | EP69: 1 | EQ69: 1 | ER69: 1 | ES69: 0 | ET69: 1 | EW69: 47 | EX69: =(MID(D69,1,2)*1) -> 1 | EY69: =(MID(E69,1,1)*1) -> 3 | EZ69: =(MID(F69,1,1)*1) -> 8 | FA69: 8 | FB69: 8 | FC69: 1 | FD69: 1 | FE69: 1 | FF69: =COUNTIF(EX69,FE69) -> 1 | FG69: =COUNTIF(EY69,FE69) -> 0 | FH69: =COUNTIF(EZ69,FE69) -> 0 | FI69: =COUNTIF(FA69,FE69) -> 0 | FJ69: 0 | FW69: 1 | FX69: 1 | FY69: 0 | FZ69: 0 | GA69: 0 | GE69: 1 | GF69: 0 | GG69: 0 | GH69: 0 | GL69: 0 | GM69: 0 | GN69: 0 | GR69: 0 | GS69: 0 | GW69: 0 | HA69: 0 | JA69: 0 | JB69: 0 | JC69: 0 | JD69: 0 | JE69: 0 | JF69: 0 | JG69: 0 | JH69: 0 | JI69: 0 | JJ69: 0 | JK69: 0 | JL69: 0 | JM69: 0 | JN69: 0 | JO69: 0 | JP69: 0 | JQ69: 0 | JR69: 0 | JS69: 0 | JT69: 0 | JU69: 0 | JV69: 0 | JW69: 0 | JX69: 0 | JY69: 0 | JZ69: 0 | KA69: 0 | KB69: 0 | KC69: 0 | KD69: 0 | KE69: 0 | KF69: 0 | KG69: 0 | KH69: 0 | KI69: 0 | KJ69: 0 | KK69: 0 | KL69: 0 | KM69: 0 | KN69: 0 | KO69: 0 | KP69: 0 | KQ69: 0 | KR69: 0 | KS69: 0 | KT69: =COUNTIF(D69,$KT$1)+(COUNTIF(E69,$KT$1)+(COUNTIF(F69,$KT$1)+(COUNTIF(G69,$KT$1)+(COUNTIF(H69,$KT$1))))) -> 0 | KU69: =COUNTIF(D69,$KU$1)+(COUNTIF(E69,$KU$1)+(COUNTIF(F69,$KU$1)+(COUNTIF(G69,$KU$1)+(COUNTIF(H69,$KU$1))))) -> 0 | KV69: 0 | KW69: 0
A70: 342 | B70: SAMEDI | C70: 2022-11-19 | D70: 1 | E70: 19 | F70: 24 | G70: 28 | H70: 40 | I70: 8 | J70: 0 | K70: a | L70: 0 | M70: =_xlfn.LET(_xlpm.comp,RIGHT(D70:H70,1),_xlfn._xlws.FILTER(D70:H70,_xlfn.XMATCH(_xlpm.comp,_xlpm.comp)<>_xlfn.XMATCH(_xlpm.comp,_xlpm.comp,,-1))) ->  | Q70: =COUNTIF(D69:H69,D70:H70) ->  | V70: =IF(AND(W70>69,W70<164,OR(X70={1;2;3;4})),1,0) -> 1 | W70: 112 | X70: =SUMPRODUCT(( MOD(D70:H70,2)>0)*1) -> 2 | Y70: 1 | Z70: 0 | AA70: 0 | AB70: 1 | AC70: 0 | AD70: 0 | AE70: 0 | AF70: 1 | AG70: 1 | AH70: 1 | AI70: 0 | AJ70: 0 | AK70: 0 | AL70: 0 | AM70: 0 | AN70: 0 | AO70: 0 | AP70: 0 | AQ70: 1 | AR70: 0 | AS70: 0 | AT70: 0 | AU70: 0 | AV70: 1 | AW70: 0 | AX70: 0 | AY70: 0 | AZ70: 1 | BA70: 0 | BB70: 0 | BC70: 0 | BD70: 0 | BE70: 0 | BF70: 0 | BG70: 0 | BH70: 0 | BI70: 0 | BJ70: 0 | BK70: 0 | BL70: 1 | BM70: 0 | BN70: 0 | BO70: 0 | BP70: 0 | BQ70: 0 | BR70: 0 | BS70: 0 | BT70: 0 | BU70: 0 | BV70: 1 | BW70: 1 | BX70: 2 | BY70: 0 | BZ70: 1 | CB70: 1 | CC70: 1 | CD70: 1 | CE70: 0 | CF70: 1 | CG70: 0 | CH70: 0 | CI70: 0 | CJ70: 0 | CK70: 1 | CL70: 0 | CM70: 0 | CN70: 0 | CO70: 0 | CP70: 0 | CQ70: 0 | CR70: 0 | CS70: 0 | CT70: 0 | CU70: 0 | CV70: 0 | CW70: 0 | CX70: 0 | CY70: 0 | CZ70: 0 | DA70: 0 | DB70: 0 | DC70: 0 | DD70: 0 | DE70: 0 | DF70: 0 | DG70: 0 | DH70: 0 | DJ70: 0 | DK70: 0 | DL70: 0 | DM70: 0 | DN70: 0 | DO70: 0 | DP70: 0 | DQ70: 0 | DR70: 0 | DS70: 0 | DT70: 0 | DU70: 0 | DW70: 1 | DX70: 1 | DY70: 1 | DZ70: 1 | EA70: 1 | EB70: 1 | EC70: 1 | ED70: 1 | EE70: 1 | EF70: 1 | EI70: 1 | EJ70: 1 | EK70: 1 | EL70: 1 | EM70: 1 | EN70: 1 | EO70: 1 | EP70: 1 | EQ70: 1 | ER70: 1 | ES70: 0 | ET70: 0 | EW70: 39 | EX70: =(MID(D70,1,2)*1) -> 1 | EY70: 9 | EZ70: 4 | FA70: 8 | FB70: 0 | FC70: 1 | FD70: 1 | FE70: 8 | FF70: 0 | FG70: 0 | FH70: 0 | FI70: 1 | FJ70: 0 | FW70: 1 | FX70: 1 | FY70: 0 | FZ70: 0 | GA70: 0 | GE70: =COUNTIF(FW70,">0")*AND(COUNTIF(FX70,">0")) -> 1 | GF70: =COUNTIF(FX70,">0")*AND(COUNTIF(FY70,">0")) -> 0 | GG70: =COUNTIF(FY70,">0")*AND(COUNTIF(FZ70,">0")) -> 0 | GH70: =COUNTIF(FZ70,">0")*AND(COUNTIF(GA70,">0")) -> 0 | GL70: =COUNTIF(FW70,">0")*AND(COUNTIF(FY70,">0")) -> 0 | GM70: =COUNTIF(FX69,">0")*AND(COUNTIF(FZ69,">0")) -> 0 | GN70: =COUNTIF(FY70,">0")*AND(COUNTIF(GA70,">0")) -> 0 | GR70: =COUNTIF(FW70,">0")*AND(COUNTIF(FZ70,">0")) -> 0 | GS70: =COUNTIF(FX70,">0")*AND(COUNTIF(GA70,">0")) -> 0 | GW70: =COUNTIF(FW70,">0")*AND(COUNTIF(GA70,">0")) -> 0 | HA70: 0 | JA70: 0 | JB70: 0 | JC70: 0 | JD70: 0 | JE70: 0 | JF70: 0 | JG70: 0 | JH70: 0 | JI70: 0 | JJ70: 0 | JK70: 0 | JL70: 0 | JM70: 0 | JN70: 0 | JO70: 0 | JP70: 0 | JQ70: 0 | JR70: 0 | JS70: 0 | JT70: 0 | JU70: 0 | JV70: 0 | JW70: 0 | JX70: 0 | JY70: 0 | JZ70: 0 | KA70: 0 | KB70: 0 | KC70: 0 | KD70: 0 | KE70: 0 | KF70: 0 | KG70: 0 | KH70: 0 | KI70: 0 | KJ70: 0 | KK70: 0 | KL70: 0 | KM70: 0 | KN70: 0 | KO70: 0 | KP70: 0 | KQ70: 0 | KR70: 0 | KS70: 0 | KT70: 0 | KU70: 0 | KV70: 0 | KW70: 0
A71: 341 | B71: LUNDI | C71: 2022-11-21 | D71: 15 | E71: 23 | F71: 33 | G71: 45 | H71: 47 | I71: 7 | J71: 7 | K71: h | L71: 0 | M71: =_xlfn.LET(_xlpm.comp,RIGHT(D71:H71,1),_xlfn._xlws.FILTER(D71:H71,_xlfn.XMATCH(_xlpm.comp,_xlpm.comp)<>_xlfn.XMATCH(_xlpm.comp,_xlpm.comp,,-1))) ->  | Q71: =COUNTIF(D70:H70,D71:H71) ->  | V71: =IF(AND(W71>69,W71<164,OR(X71={1;2;3;4})),1,0) -> 0 | W71: 163 | X71: =SUMPRODUCT(( MOD(D71:H71,2)>0)*1) -> 5 | Y71: 0 | Z71: 0 | AA71: 2 | AB71: 0 | AC71: 2 | AD71: 0 | AE71: 1 | AF71: 0 | AG71: 0 | AH71: 0 | AI71: 0 | AJ71: 0 | AK71: 0 | AL71: 0 | AM71: 1 | AN71: 0 | AO71: 0 | AP71: 0 | AQ71: 0 | AR71: 0 | AS71: 0 | AT71: 0 | AU71: 1 | AV71: 0 | AW71: 0 | AX71: 0 | AY71: 0 | AZ71: 0 | BA71: 0 | BB71: 0 | BC71: 0 | BD71: 0 | BE71: 1 | BF71: 0 | BG71: 0 | BH71: 0 | BI71: 0 | BJ71: 0 | BK71: 0 | BL71: 0 | BM71: 0 | BN71: 0 | BO71: 0 | BP71: 0 | BQ71: 1 | BR71: 0 | BS71: 1 | BT71: 0 | BU71: 0 | BV71: 0 | BW71: 1 | BX71: 1 | BY71: 1 | BZ71: 2 | CB71: 0 | CC71: 1 | CD71: 1 | CE71: 1 | CF71: 1 | CG71: 0 | CH71: 1 | CI71: 0 | CJ71: 0 | CK71: 0 | CL71: 0 | CM71: 0 | CN71: 0 | CO71: 0 | CP71: 0 | CQ71: 0 | CR71: 0 | CS71: 0 | CT71: 0 | CU71: 0 | CV71: 0 | CW71: 0 | CX71: 0 | CY71: 0 | CZ71: 0 | DA71: 0 | DB71: 0 | DC71: 0 | DD71: 0 | DE71: 0 | DF71: 0 | DG71: 0 | DH71: 0 | DJ71: 0 | DK71: 0 | DL71: 0 | DM71: 0 | DN71: 0 | DO71: 0 | DP71: 0 | DQ71: 0 | DR71: 0 | DS71: 0 | DT71: 0 | DU71: 0 | DW71: 1 | DX71: 1 | DY71: 1 | DZ71: 1 | EA71: 1 | EB71: 1 | EC71: 1 | ED71: 1 | EE71: 1 | EF71: 1 | EI71: 1 | EJ71: 1 | EK71: 1 | EL71: 1 | EM71: 1 | EN71: 1 | EO71: 1 | EP71: 1 | EQ71: 1 | ER71: 1 | ES71: 0 | ET71: 1 | EW71: 32 | EX71: =(MID(D71,2,2)*1) -> 5 | EY71: 3 | EZ71: 3 | FA71: 5 | FB71: 7 | FC71: 1 | FD71: 1 | FE71: 7 | FF71: 0 | FG71: 0 | FH71: 0 | FI71: 0 | FJ71: 1 | FW71: 1 | FX71: 1 | FY71: 1 | FZ71: 1 | GA71: 1 | GE71: 1 | GF71: 1 | GG71: 1 | GH71: 1 | GL71: 1 | GM71: 0 | GN71: 1 | GR71: 1 | GS71: 1 | GW71: 1 | HA71: 1 | JA71: 0 | JB71: 0 | JC71: 0 | JD71: 0 | JE71: 0 | JF71: 0 | JG71: 0 | JH71: 0 | JI71: 0 | JJ71: 0 | JK71: 0 | JL71: 0 | JM71: 0 | JN71: 0 | JO71: 0 | JP71: 0 | JQ71: 0 | JR71: 0 | JS71: 0 | JT71: 0 | JU71: 0 | JV71: 0 | JW71: 0 | JX71: 0 | JY71: 0 | JZ71: 0 | KA71: 0 | KB71: 0 | KC71: 0 | KD71: 0 | KE71: 0 | KF71: 0 | KG71: 0 | KH71: 0 | KI71: 0 | KJ71: 0 | KK71: 0 | KL71: 0 | KM71: 0 | KN71: 0 | KO71: 0 | KP71: 0 | KQ71: 0 | KR71: 0 | KS71: 0 | KT71: 0 | KU71: 0 | KV71: 0 | KW71: 0
A72: 340 | B72: MERCREDI | C72: 2022-11-23 | D72: 15 | E72: 19 | F72: 36 | G72: 45 | H72: 46 | I72: 4 | J72: 6 | K72: g | L72: 0 | M72: =_xlfn.LET(_xlpm.comp,RIGHT(D72:H72,1),_xlfn._xlws.FILTER(D72:H72,_xlfn.XMATCH(_xlpm.comp,_xlpm.comp)<>_xlfn.XMATCH(_xlpm.comp,_xlpm.comp,,-1))) ->  | Q72: =COUNTIF(D71:H71,D72:H72) ->  | V72: =IF(AND(W72>69,W72<164,OR(X72={1;2;3;4})),1,0) -> 1 | W72: 161 | X72: =SUMPRODUCT(( MOD(D72:H72,2)>0)*1) -> 3 | Y72: 0 | Z72: 0 | AA72: 0 | AB72: 0 | AC72: 2 | AD72: 2 | AE72: 0 | AF72: 0 | AG72: 1 | AH72: 0 | AI72: =COUNTIF(($D72:$H72),AI$1) -> 0 | AJ72: 0 | AK72: 0 | AL72: 0 | AM72: 1 | AN72: 0 | AO72: 0 | AP72: 0 | AQ72: 1 | AR72: 0 | AS72: 0 | AT72: 0 | AU72: 0 | AV72: 0 | AW72: 0 | AX72: 0 | AY72: 0 | AZ72: 0 | BA72: 0 | BB72: 0 | BC72: 0 | BD72: 0 | BE72: 0 | BF72: 0 | BG72: 0 | BH72: 1 | BI72: 0 | BJ72: 0 | BK72: 0 | BL72: 0 | BM72: 0 | BN72: 0 | BO72: 0 | BP72: 0 | BQ72: 1 | BR72: 1 | BS72: 0 | BT72: 0 | BU72: 0 | BV72: 0 | BW72: 2 | BX72: 0 | BY72: 1 | BZ72: 2 | CB72: 0 | CC72: 1 | CD72: 0 | CE72: 1 | CF72: 1 | CG72: 0 | CH72: 0 | CI72: 0 | CJ72: 0 | CK72: 0 | CL72: 0 | CM72: 0 | CN72: 0 | CO72: 0 | CP72: 0 | CQ72: 0 | CR72: 1 | CS72: 0 | CT72: 0 | CU72: 0 | CV72: 0 | CW72: 0 | CX72: 0 | CY72: 0 | CZ72: 0 | DA72: 0 | DB72: 0 | DC72: 0 | DD72: 0 | DE72: 0 | DF72: 0 | DG72: 0 | DH72: 0 | DJ72: 0 | DK72: 0 | DL72: 0 | DM72: 0 | DN72: 0 | DO72: 0 | DP72: 0 | DQ72: 0 | DR72: 0 | DS72: 0 | DT72: 0 | DU72: 0 | DW72: 1 | DX72: 1 | DY72: 1 | DZ72: 1 | EA72: 1 | EB72: 1 | EC72: 1 | ED72: 1 | EE72: 1 | EF72: 1 | EI72: 1 | EJ72: 1 | EK72: 1 | EL72: 1 | EM72: 1 | EN72: 1 | EO72: 1 | EP72: 1 | EQ72: 1 | ER72: 1 | ES72: 0 | ET72: 0 | EU72: 1 | EW72: 31 | EX72: =(MID(D72,2,2)*1) -> 5 | EY72: 9 | EZ72: 6 | FA72: 5 | FB72: 6 | FC72: 0 | FD72: 1 | FE72: 4 | FF72: 0 | FG72: 0 | FH72: 0 | FI72: 0 | FJ72: 0 | FN72: 1 | FW72: 1 | FX72: 1 | FY72: 0 | FZ72: 1 | GA72: 0 | GE72: 1 | GF72: 0 | GG72: 0 | GH72: 0 | GL72: 0 | GM72: 1 | GN72: 0 | GR72: 1 | GS72: 0 | GW72: 0 | HA72: 0 | JA72: 0 | JB72: 0 | JC72: 0 | JD72: 0 | JE72: 0 | JF72: 0 | JG72: 0 | JH72: 0 | JI72: 0 | JJ72: 0 | JK72: 0 | JL72: 0 | JM72: 0 | JN72: 0 | JO72: 0 | JP72: 0 | JQ72: 0 | JR72: 0 | JS72: 0 | JT72: 0 | JU72: 0 | JV72: 0 | JW72: 0 | JX72: 0 | JY72: 0 | JZ72: 0 | KA72: 0 | KB72: 0 | KC72: 0 | KD72: 0 | KE72: 0 | KF72: 0 | KG72: 0 | KH72: 0 | KI72: 0 | KJ72: 0 | KK72: 0 | KL72: 0 | KM72: 0 | KN72: 0 | KO72: 0 | KP72: 0 | KQ72: 0 | KR72: 0 | KS72: 0 | KT72: 0 | KU72: 0 | KV72: 0 | KW72: 0
A73: 339 | B73: SAMEDI | C73: 2022-11-26 | D73: 2 | E73: 5 | F73: 7 | G73: 23 | H73: 28 | I73: 5 | J73: 8 | K73: i | L73: 0 | M73: =_xlfn.LET(_xlpm.comp,RIGHT(D73:H73,1),_xlfn._xlws.FILTER(D73:H73,_xlfn.XMATCH(_xlpm.comp,_xlpm.comp)<>_xlfn.XMATCH(_xlpm.comp,_xlpm.comp,,-1))) ->  | Q73: =COUNTIF(D72:H72,D73:H73) ->  | V73: =IF(AND(W73>69,W73<164,OR(X73={1;2;3;4})),1,0) -> 0 | W73: 65 | X73: =SUMPRODUCT(( MOD(D73:H73,2)>0)*1) -> 3 | Y73: 0 | Z73: 1 | AA73: 1 | AB73: 0 | AC73: 1 | AD73: 0 | AE73: 1 | AF73: 1 | AG73: 0 | AH73: 0 | AI73: 0 | AJ73: 0 | AK73: 0 | AL73: 0 | AM73: 0 | AN73: 0 | AO73: 0 | AP73: 0 | AQ73: 0 | AR73: 0 | AS73: 0 | AT73: 0 | AU73: 1 | AV73: 0 | AW73: 0 | AX73: 0 | AY73: 0 | AZ73: 1 | BA73: 0 | BB73: 0 | BC73: 0 | BD73: 0 | BE73: 0 | BF73: 0 | BG73: 0 | BH73: 0 | BI73: 0 | BJ73: 0 | BK73: 0 | BL73: 0 | BM73: 0 | BN73: 0 | BO73: 0 | BP73: 0 | BQ73: 0 | BR73: 0 | BS73: 0 | BT73: 0 | BU73: 0 | BV73: 3 | BW73: 0 | BX73: 2 | BY73: 0 | BZ73: 0 | CB73: 1 | CC73: 0 | CD73: 1 | CE73: 0 | CF73: 0 | CG73: 0 | CH73: 0 | CI73: 0 | CJ73: 0 | CK73: 0 | CL73: 0 | CM73: 0 | CN73: 0 | CO73: 0 | CP73: 0 | CQ73: 0 | CR73: 0 | CS73: 0 | CT73: 0 | CU73: 0 | CV73: 0 | CW73: 0 | CX73: 0 | CY73: 1 | CZ73: 0 | DA73: 0 | DB73: 0 | DC73: 0 | DD73: 0 | DE73: 0 | DF73: 0 | DG73: 0 | DH73: 0 | DJ73: 0 | DK73: 0 | DL73: 0 | DM73: 0 | DN73: 0 | DO73: 0 | DP73: 0 | DQ73: 0 | DR73: 0 | DS73: 0 | DT73: 0 | DU73: 0 | DW73: 1 | DX73: 1 | DY73: 1 | DZ73: 1 | EA73: 1 | EB73: 1 | EC73: 1 | ED73: 1 | EE73: 1 | EF73: 1 | EI73: 1 | EJ73: 1 | EK73: 1 | EL73: 1 | EM73: 1 | EN73: 1 | EO73: 1 | EP73: 1 | EQ73: 1 | ER73: 1 | ES73: 0 | ET73: 1 | EW73: 26 | EX73: =(MID(D73,1,2)*1) -> 2 | EY73: =(MID(E73,1,1)*1) -> 5 | EZ73: =(MID(F73,1,1)*1) -> 7 | FA73: 3 | FB73: 8 | FC73: 1 | FD73: 1 | FE73: 5 | FF73: 0 | FG73: 1 | FH73: 0 | FI73: 0 | FJ73: 0 | FW73: 0 | FX73: 1 | FY73: 1 | FZ73: 1 | GA73: 0 | GE73: 0 | GF73: 1 | GG73: 1 | GH73: 0 | GL73: 0 | GM73: 1 | GN73: 0 | GR73: 0 | GS73: 0 | GW73: 0 | HA73: 1 | JA73: 0 | JB73: 0 | JC73: 0 | JD73: 0 | JE73: 0 | JF73: 0 | JG73: 0 | JH73: 0 | JI73: 0 | JJ73: 0 | JK73: 0 | JL73: 0 | JM73: 0 | JN73: 0 | JO73: 0 | JP73: 0 | JQ73: 0 | JR73: 0 | JS73: 0 | JT73: 0 | JU73: 0 | JV73: 0 | JW73: 0 | JX73: 0 | JY73: 0 | JZ73: 0 | KA73: 0 | KB73: 0 | KC73: 0 | KD73: 0 | KE73: 0 | KF73: 0 | KG73: 0 | KH73: 0 | KI73: 0 | KJ73: 0 | KK73: 0 | KL73: 0 | KM73: 0 | KN73: 0 | KO73: 0 | KP73: 0 | KQ73: 0 | KR73: 0 | KS73: 0 | KT73: 0 | KU73: 0 | KV73: 0 | KW73: 0
A74: 338 | B74: LUNDI | C74: 2022-11-28 | D74: 2 | E74: 9 | F74: 13 | G74: 24 | H74: 46 | I74: 6 | J74: 6 | K74: g | L74: 0 | M74: =_xlfn.LET(_xlpm.comp,RIGHT(D74:H74,1),_xlfn._xlws.FILTER(D74:H74,_xlfn.XMATCH(_xlpm.comp,_xlpm.comp)<>_xlfn.XMATCH(_xlpm.comp,_xlpm.comp,,-1))) ->  | Q74: =COUNTIF(D73:H73,D74:H74) ->  | V74: =IF(AND(W74>69,W74<164,OR(X74={1;2;3;4})),1,0) -> 1 | W74: 94 | X74: =SUMPRODUCT(( MOD(D74:H74,2)>0)*1) -> 2 | Y74: 0 | Z74: 1 | AA74: 1 | AB74: 1 | AC74: 0 | AD74: 1 | AE74: 0 | AF74: 0 | AG74: 1 | AH74: 0 | AI74: 0 | AJ74: 0 | AK74: 1 | AL74: 0 | AM74: 0 | AN74: 0 | AO74: 0 | AP74: 0 | AQ74: 0 | AR74: 0 | AS74: 0 | AT74: 0 | AU74: 0 | AV74: 1 | AW74: 0 | AX74: 0 | AY74: 0 | AZ74: 0 | BA74: 0 | BB74: 0 | BC74: 0 | BD74: 0 | BE74: 0 | BF74: 0 | BG74: 0 | BH74: 0 | BI74: 0 | BJ74: 0 | BK74: 0 | BL74: 0 | BM74: 0 | BN74: 0 | BO74: 0 | BP74: 0 | BQ74: 0 | BR74: 1 | BS74: 0 | BT74: 0 | BU74: 0 | BV74: 2 | BW74: 1 | BX74: 1 | BY74: 0 | BZ74: 1 | CB74: 1 | CC74: 1 | CD74: 1 | CE74: 0 | CF74: 1 | CG74: 0 | CH74: 0 | CI74: 0 | CJ74: 0 | CK74: 1 | CL74: 0 | CM74: 0 | CN74: 0 | CO74: 0 | CP74: 0 | CQ74: 0 | CR74: 0 | CS74: 0 | CT74: 0 | CU74: 0 | CV74: 0 | CW74: 0 | CX74: 0 | CY74: 0 | CZ74: 0 | DA74: 0 | DB74: 0 | DC74: 0 | DD74: 0 | DE74: 0 | DF74: 0 | DG74: 0 | DH74: 0 | DJ74: 0 | DK74: 0 | DL74: 0 | DM74: 0 | DN74: 0 | DO74: 0 | DP74: 0 | DQ74: 0 | DR74: 0 | DS74: 0 | DT74: 0 | DU74: 0 | DW74: 1 | DX74: 1 | DY74: 1 | DZ74: 1 | EA74: 1 | EB74: 1 | EC74: 1 | ED74: 1 | EE74: 1 | EF74: 1 | EI74: 1 | EJ74: 1 | EK74: 1 | EL74: 1 | EM74: 1 | EN74: 1 | EO74: 1 | EP74: 1 | EQ74: 1 | ER74: 1 | ES74: 0 | ET74: 0 | EW74: 44 | EX74: =(MID(D74,1,2)*1) -> 2 | EY74: =(MID(E74,1,1)*1) -> 9 | EZ74: 3 | FA74: 4 | FB74: 6 | FC74: 1 | FD74: 1 | FE74: 6 | FF74: 0 | FG74: 0 | FH74: 0 | FI74: 0 | FJ74: 1 | FW74: 0 | FX74: 1 | FY74: 1 | FZ74: 0 | GA74: 0 | GE74: 0 | GF74: 1 | GG74: 0 | GH74: 0 | GL74: 0 | GM74: 1 | GN74: 0 | GR74: 0 | GS74: 0 | GW74: 0 | HA74: 0 | JA74: 0 | JB74: 0 | JC74: 0 | JD74: 0 | JE74: 0 | JF74: 0 | JG74: 0 | JH74: 0 | JI74: 0 | JJ74: 0 | JK74: 0 | JL74: 0 | JM74: 0 | JN74: 0 | JO74: 0 | JP74: 0 | JQ74: 0 | JR74: 0 | JS74: 0 | JT74: 0 | JU74: 0 | JV74: 0 | JW74: 0 | JX74: 0 | JY74: 0 | JZ74: 0 | KA74: 0 | KB74: 0 | KC74: 0 | KD74: 0 | KE74: 0 | KF74: 0 | KG74: 0 | KH74: 0 | KI74: 0 | KJ74: 0 | KK74: 0 | KL74: 0 | KM74: 0 | KN74: 0 | KO74: 0 | KP74: 0 | KQ74: 0 | KR74: 0 | KS74: 0 | KT74: 0 | KU74: 0 | KV74: 0 | KW74: 0
A75: 337 | B75: MERCREDI | C75: 2022-11-30 | D75: 18 | E75: 28 | F75: 30 | G75: 44 | H75: 49 | I75: 5 | J75: 9 | K75: j | L75: 0 | M75: =_xlfn.LET(_xlpm.comp,RIGHT(D75:H75,1),_xlfn._xlws.FILTER(D75:H75,_xlfn.XMATCH(_xlpm.comp,_xlpm.comp)<>_xlfn.XMATCH(_xlpm.comp,_xlpm.comp,,-1))) ->  | Q75: =COUNTIF(D74:H74,D75:H75) ->  | V75: =IF(AND(W75>69,W75<164,OR(X75={1;2;3;4})),1,0) -> 0 | W75: 169 | X75: =SUMPRODUCT(( MOD(D75:H75,2)>0)*1) -> 1 | Y75: 0 | Z75: 0 | AA75: 0 | AB75: 1 | AC75: 0 | AD75: 0 | AE75: 0 | AF75: 2 | AG75: 1 | AH75: 1 | AI75: 0 | AJ75: 0 | AK75: 0 | AL75: 0 | AM75: 0 | AN75: 0 | AO75: 0 | AP75: 1 | AQ75: 0 | AR75: 0 | AS75: 0 | AT75: 0 | AU75: 0 | AV75: 0 | AW75: 0 | AX75: 0 | AY75: 0 | AZ75: 1 | BA75: 0 | BB75: 1 | BC75: 0 | BD75: 0 | BE75: 0 | BF75: 0 | BG75: 0 | BH75: 0 | BI75: =COUNTIF((D75:H75),BI$1) -> 0 | BJ75: =COUNTIF((D75:H75),BJ$1) -> 0 | BK75: =COUNTIF((D75:H75),BK$1) -> 0 | BL75: =COUNTIF((D75:H75),BL$1) -> 0 | BM75: =COUNTIF((D75:H75),BM$1) -> 0 | BN75: =COUNTIF((D75:H75),BN$1) -> 0 | BO75: =COUNTIF((D75:H75),BO$1) -> 0 | BP75: =COUNTIF((D75:H75),BP$1) -> 1 | BQ75: =COUNTIF((D75:H75),BQ$1) -> 0 | BR75: =COUNTIF((D75:H75),BR$1) -> 0 | BS75: =COUNTIF((D75:H75),BS$1) -> 0 | BT75: =COUNTIF((D75:H75),BT$1) -> 0 | BU75: =COUNTIF((D75:H75),BU$1) -> 1 | BV75: 0 | BW75: 1 | BX75: 1 | BY75: 1 | BZ75: 2 | CB75: 0 | CC75: 1 | CD75: 1 | CE75: 1 | CF75: 1 | CG75: 0 | CH75: 1 | CI75: 0 | CJ75: 0 | CK75: 0 | CL75: 0 | CM75: 0 | CN75: 0 | CO75: 0 | CP75: 0 | CQ75: 0 | CR75: 0 | CS75: 0 | CT75: 0 | CU75: 0 | CV75: 0 | CW75: 0 | CX75: 0 | CY75: 0 | CZ75: 0 | DA75: 0 | DB75: 0 | DC75: 0 | DD75: 0 | DE75: 0 | DF75: 0 | DG75: 0 | DH75: 0 | DJ75: 0 | DK75: 0 | DL75: 0 | DM75: 0 | DN75: 0 | DO75: 0 | DP75: 0 | DQ75: 0 | DR75: 0 | DS75: 0 | DT75: 0 | DU75: 0 | DW75: 1 | DX75: 1 | DY75: 1 | DZ75: 1 | EA75: 1 | EB75: 1 | EC75: 1 | ED75: 1 | EE75: 1 | EF75: 1 | EI75: 1 | EJ75: 1 | EK75: 1 | EL75: 1 | EM75: 1 | EN75: 1 | EO75: 1 | EP75: 1 | EQ75: 1 | ER75: 1 | ES75: 0 | ET75: 1 | EW75: 31 | EX75: =(MID(D75,2,2)*1) -> 8 | EY75: 8 | EZ75: 0 | FA75: 4 | FB75: 9 | FC75: 0 | FD75: 1 | FE75: 5 | FF75: 0 | FG75: 0 | FH75: 0 | FI75: 0 | FJ75: 0 | FW75: 0 | FX75: 0 | FY75: 0 | FZ75: 0 | GA75: 1 | GE75: 0 | GF75: 0 | GG75: 0 | GH75: 0 | GL75: 0 | GM75: 0 | GN75: 0 | GR75: 0 | GS75: 0 | GW75: 0 | HA75: 0 | JA75: 0 | JB75: 0 | JC75: 0 | JD75: 0 | JE75: 0 | JF75: 0 | JG75: 0 | JH75: 0 | JI75: 0 | JJ75: 0 | JK75: 0 | JL75: 0 | JM75: 0 | JN75: 0 | JO75: 0 | JP75: 0 | JQ75: 0 | JR75: 0 | JS75: 0 | JT75: 0 | JU75: 0 | JV75: 0 | JW75: 0 | JX75: 0 | JY75: 0 | JZ75: 0 | KA75: 0 | KB75: 0 | KC75: 0 | KD75: 0 | KE75: 0 | KF75: 0 | KG75: 0 | KH75: 0 | KI75: 0 | KJ75: =COUNTIF(D75,$KJ$1)+(COUNTIF(E75,$KJ$1)+(COUNTIF(F75,$KJ$1)+(COUNTIF(G75,$KJ$1)+(COUNTIF(H75,$KJ$1))))) -> 0 | KK75: =COUNTIF(D75,$KK$1)+(COUNTIF(E75,$KK$1)+(COUNTIF(F75,$KK$1)+(COUNTIF(G75,$KK$1)+(COUNTIF(H75,$KK$1))))) -> 0 | KL75: =COUNTIF(D75,$KL$1)+(COUNTIF(E75,$KL$1)+(COUNTIF(F75,$KL$1)+(COUNTIF(G75,$KL$1)+(COUNTIF(H75,$KL$1))))) -> 0 | KM75: =COUNTIF(D75,$KM$1)+(COUNTIF(E75,$KM$1)+(COUNTIF(F75,$KM$1)+(COUNTIF(G75,$KM$1)+(COUNTIF(H75,$KM$1))))) -> 0 | KN75: 0 | KO75: 0 | KP75: 0 | KQ75: 0 | KR75: 0 | KS75: 0 | KT75: 0 | KU75: 0 | KV75: 0 | KW75: 0
A76: 336 | B76: SAMEDI | C76: 2022-12-03 | D76: 19 | E76: 26 | F76: 27 | G76: 32 | H76: 34 | I76: 9 | J76: 4 | K76: e | L76: 0 | M76: =_xlfn.LET(_xlpm.comp,RIGHT(D76:H76,1),_xlfn._xlws.FILTER(D76:H76,_xlfn.XMATCH(_xlpm.comp,_xlpm.comp)<>_xlfn.XMATCH(_xlpm.comp,_xlpm.comp,,-1))) ->  | Q76: =COUNTIF(D75:H75,D76:H76) ->  | V76: =IF(AND(W76>69,W76<164,OR(X76={1;2;3;4})),1,0) -> 1 | W76: 138 | X76: =SUMPRODUCT(( MOD(D76:H76,2)>0)*1) -> 2 | Y76: 0 | Z76: 1 | AA76: 0 | AB76: 1 | AC76: 0 | AD76: 1 | AE76: 1 | AF76: 0 | AG76: 1 | AH76: 0 | AI76: 0 | AJ76: 0 | AK76: 0 | AL76: 0 | AM76: 0 | AN76: 0 | AO76: 0 | AP76: 0 | AQ76: 1 | AR76: 0 | AS76: 0 | AT76: 0 | AU76: 0 | AV76: 0 | AW76: 0 | AX76: 1 | AY76: 1 | AZ76: 0 | BA76: 0 | BB76: 0 | BC76: 0 | BD76: 1 | BE76: 0 | BF76: 1 | BG76: 0 | BH76: 0 | BI76: 0 | BJ76: 0 | BK76: 0 | BL76: 0 | BM76: 0 | BN76: 0 | BO76: 0 | BP76: 0 | BQ76: 0 | BR76: 0 | BS76: 0 | BT76: 0 | BU76: 0 | BV76: 0 | BW76: 1 | BX76: 2 | BY76: 2 | BZ76: 0 | CB76: 0 | CC76: 1 | CD76: 1 | CE76: 1 | CF76: 0 | CG76: 0 | CH76: 0 | CI76: 0 | CJ76: 0 | CK76: 0 | CL76: 0 | CM76: 0 | CN76: 0 | CO76: 0 | CP76: 0 | CQ76: 0 | CR76: 0 | CS76: 0 | CT76: 0 | CU76: 0 | CV76: 0 | CW76: 1 | CX76: 0 | CY76: 0 | CZ76: 0 | DA76: 0 | DB76: 0 | DC76: 0 | DD76: 0 | DE76: 0 | DF76: 0 | DG76: 0 | DH76: 0 | DJ76: 0 | DK76: 0 | DL76: 0 | DM76: 0 | DN76: 0 | DO76: 0 | DP76: 0 | DQ76: 0 | DR76: 0 | DS76: 0 | DT76: 0 | DU76: 0 | DW76: 1 | DX76: 1 | DY76: 1 | DZ76: 1 | EA76: 1 | EB76: 1 | EC76: 1 | ED76: 1 | EE76: 1 | EF76: 1 | EI76: 1 | EJ76: 1 | EK76: 1 | EL76: 1 | EM76: 1 | EN76: 1 | EO76: 1 | EP76: 1 | EQ76: 1 | ER76: 1 | ES76: 0 | ET76: 1 | EU76: 1 | EW76: 15 | EX76: =(MID(D76,2,2)*1) -> 9 | EY76: 6 | EZ76: 7 | FA76: 2 | FB76: 4 | FC76: 1 | FD76: 1 | FE76: 9 | FF76: 1 | FG76: 0 | FH76: 0 | FI76: 0 | FJ76: 0 | FL76: 1 | FW76: 1 | FX76: 0 | FY76: 1 | FZ76: 0 | GA76: 0 | GE76: 0 | GF76: 0 | GG76: 0 | GH76: 0 | GL76: 1 | GM76: 0 | GN76: 0 | GR76: 0 | GS76: 0 | GW76: 0 | HA76: 0 | JA76: 0 | JB76: 0 | JC76: 0 | JD76: 0 | JE76: 0 | JF76: 0 | JG76: 0 | JH76: 0 | JI76: 0 | JJ76: 0 | JK76: 0 | JL76: 0 | JM76: 0 | JN76: 0 | JO76: 0 | JP76: 0 | JQ76: 0 | JR76: 0 | JS76: 0 | JT76: 0 | JU76: 0 | JV76: 0 | JW76: 0 | JX76: 0 | JY76: 0 | JZ76: 0 | KA76: 0 | KB76: 0 | KC76: 0 | KD76: 0 | KE76: 0 | KF76: 0 | KG76: 0 | KH76: 0 | KI76: 0 | KJ76: 0 | KK76: 0 | KL76: 0 | KM76: 0 | KN76: 0 | KO76: 0 | KP76: 0 | KQ76: 0 | KR76: 0 | KS76: 0 | KT76: 0 | KU76: 0 | KV76: 0 | KW76: 0
A77: 335 | B77: LUNDI | C77: 2022-12-05 | D77: 9 | E77: 17 | F77: 24 | G77: 36 | H77: 45 | I77: 7 | J77: 5 | K77: f | L77: 0 | M77: =_xlfn.LET(_xlpm.comp,RIGHT(D77:H77,1),_xlfn._xlws.FILTER(D77:H77,_xlfn.XMATCH(_xlpm.comp,_xlpm.comp)<>_xlfn.XMATCH(_xlpm.comp,_xlpm.comp,,-1))) ->  | Q77: =COUNTIF(D76:H76,D77:H77) ->  | V77: =IF(AND(W77>69,W77<164,OR(X77={1;2;3;4})),1,0) -> 1 | W77: 131 | X77: =SUMPRODUCT(( MOD(D77:H77,2)>0)*1) -> 3 | Y77: 0 | Z77: 0 | AA77: 0 | AB77: 1 | AC77: 1 | AD77: 1 | AE77: 1 | AF77: 0 | AG77: 1 | AH77: 0 | AI77: 0 | AJ77: 0 | AK77: 0 | AL77: 0 | AM77: 0 | AN77: 0 | AO77: 1 | AP77: 0 | AQ77: 0 | AR77: 0 | AS77: 0 | AT77: =COUNTIF(($D77:$H77),AT$1) -> 0 | AU77: 0 | AV77: 1 | AW77: 0 | AX77: 0 | AY77: 0 | AZ77: 0 | BA77: 0 | BB77: 0 | BC77: 0 | BD77: 0 | BE77: 0 | BF77: 0 | BG77: 0 | BH77: 1 | BI77: 0 | BJ77: 0 | BK77: 0 | BL77: 0 | BM77: 0 | BN77: 0 | BO77: 0 | BP77: 0 | BQ77: 1 | BR77: 0 | BS77: 0 | BT77: 0 | BU77: 0 | BV77: 1 | BW77: 1 | BX77: 1 | BY77: 1 | BZ77: 1 | CA77: 1 | CB77: 1 | CC77: 1 | CD77: 1 | CE77: 1 | CF77: 1 | CG77: 1 | CH77: 0 | CI77: 0 | CJ77: 0 | CK77: 0 | CL77: 0 | CM77: 0 | CN77: 0 | CO77: 0 | CP77: 0 | CQ77: 0 | CR77: 0 | CS77: 0 | CT77: 0 | CU77: 0 | CV77: 0 | CW77: 0 | CX77: 0 | CY77: 0 | CZ77: 0 | DA77: 0 | DB77: 0 | DC77: 0 | DD77: 0 | DE77: 0 | DF77: 0 | DG77: 0 | DH77: 0 | DJ77: 0 | DK77: 0 | DL77: 0 | DM77: 0 | DN77: 0 | DO77: 0 | DP77: 0 | DQ77: 0 | DR77: 0 | DS77: 0 | DT77: 0 | DU77: 0 | DW77: 1 | DX77: 1 | DY77: 1 | DZ77: 1 | EA77: 1 | EB77: 1 | EC77: 1 | ED77: 1 | EE77: 1 | EF77: 1 | EI77: 1 | EJ77: 1 | EK77: 1 | EL77: 1 | EM77: 1 | EN77: 1 | EO77: 1 | EP77: 1 | EQ77: 1 | ER77: 1 | ES77: 0 | ET77: 1 | EW77: 36 | EX77: =(MID(D77,1,2)*1) -> 9 | EY77: 7 | EZ77: 4 | FA77: 6 | FB77: 5 | FC77: 1 | FD77: 1 | FE77: 7 | FF77: 0 | FG77: 1 | FH77: 0 | FI77: 0 | FJ77: 0 | FW77: 1 | FX77: 1 | FY77: 0 | FZ77: 0 | GA77: 1 | GE77: 1 | GF77: 0 | GG77: 0 | GH77: 0 | GL77: 0 | GM77: 0 | GN77: 0 | GR77: 0 | GS77: 1 | GW77: 1 | HA77: 0 | JA77: 0 | JB77: 0 | JC77: 0 | JD77: 0 | JE77: 0 | JF77: 0 | JG77: 0 | JH77: 0 | JI77: 0 | JJ77: 0 | JK77: 0 | JL77: 0 | JM77: 0 | JN77: 0 | JO77: 0 | JP77: 0 | JQ77: 0 | JR77: 0 | JS77: 0 | JT77: 0 | JU77: 0 | JV77: 0 | JW77: 0 | JX77: 0 | JY77: 0 | JZ77: 0 | KA77: 0 | KB77: 0 | KC77: 0 | KD77: 0 | KE77: 0 | KF77: 0 | KG77: 0 | KH77: 0 | KI77: 0 | KJ77: 0 | KK77: 0 | KL77: 0 | KM77: 0 | KN77: 0 | KO77: 0 | KP77: 0 | KQ77: 0 | KR77: 0 | KS77: 0 | KT77: 0 | KU77: 0 | KV77: 0 | KW77: 0
A78: 334 | B78: MERCREDI | C78: 2022-12-07 | D78: 2 | E78: 10 | F78: 12 | G78: 15 | H78: 38 | I78: 5 | J78: 8 | K78: i | L78: 0 | M78: =_xlfn.LET(_xlpm.comp,RIGHT(D78:H78,1),_xlfn._xlws.FILTER(D78:H78,_xlfn.XMATCH(_xlpm.comp,_xlpm.comp)<>_xlfn.XMATCH(_xlpm.comp,_xlpm.comp,,-1))) ->  | Q78: =COUNTIF(D77:H77,D78:H78) ->  | V78: =IF(AND(W78>69,W78<164,OR(X78={1;2;3;4})),1,0) -> 1 | W78: 77 | X78: =SUMPRODUCT(( MOD(D78:H78,2)>0)*1) -> 1 | Y78: 0 | Z78: 2 | AA78: 0 | AB78: 0 | AC78: 1 | AD78: 0 | AE78: 0 | AF78: 1 | AG78: 0 | AH78: 1 | AI78: 0 | AJ78: 1 | AK78: 0 | AL78: 0 | AM78: 1 | AN78: 0 | AO78: 0 | AP78: 0 | AQ78: 0 | AR78: 0 | AS78: 0 | AT78: 0 | AU78: 0 | AV78: 0 | AW78: 0 | AX78: 0 | AY78: 0 | AZ78: 0 | BA78: 0 | BB78: 0 | BC78: 0 | BD78: 0 | BE78: 0 | BF78: 0 | BG78: 0 | BH78: 0 | BI78: 0 | BJ78: 1 | BK78: 0 | BL78: 0 | BM78: 0 | BN78: 0 | BO78: 0 | BP78: 0 | BQ78: 0 | BR78: 0 | BS78: 0 | BT78: 0 | BU78: 0 | BV78: 1 | BW78: 3 | BX78: 0 | BY78: 1 | BZ78: 0 | CB78: 1 | CC78: 1 | CD78: 0 | CE78: 1 | CF78: 0 | CG78: 0 | CH78: 0 | CI78: 0 | CJ78: 0 | CK78: 0 | CL78: 0 | CM78: 0 | CN78: 0 | CO78: 0 | CP78: 0 | CQ78: 0 | CR78: 0 | CS78: 0 | CT78: 1 | CU78: 0 | CV78: 0 | CW78: 0 | CX78: 0 | CY78: 0 | CZ78: 0 | DA78: 0 | DB78: 0 | DC78: 0 | DD78: 0 | DE78: 0 | DF78: 0 | DG78: 0 | DH78: 0 | DJ78: 0 | DK78: 0 | DL78: 0 | DM78: 0 | DN78: 0 | DO78: 0 | DP78: 0 | DQ78: 0 | DR78: 0 | DS78: 0 | DT78: 0 | DU78: 0 | DW78: 1 | DX78: 1 | DY78: 1 | DZ78: 1 | EA78: 1 | EB78: 1 | EC78: 1 | ED78: 1 | EE78: 1 | EF78: 1 | EI78: 1 | EJ78: 1 | EK78: 1 | EL78: 1 | EM78: 1 | EN78: 1 | EO78: 1 | EP78: 1 | EQ78: 1 | ER78: 1 | ES78: 0 | ET78: 1 | EW78: 36 | EX78: 2 | EY78: 0 | EZ78: 2 | FA78: 5 | FB78: 8 | FC78: 1 | FD78: 1 | FE78: 5 | FF78: 0 | FG78: 0 | FH78: 0 | FI78: 1 | FJ78: 0 | FW78: 0 | FX78: 0 | FY78: 0 | FZ78: 1 | GA78: 0 | GE78: 0 | GF78: 0 | GG78: 0 | GH78: 0 | GL78: 0 | GM78: 0 | GN78: 0 | GR78: 0 | GS78: 0 | GW78: 0 | HA78: 0 | JA78: 0 | JB78: 0 | JC78: 0 | JD78: 0 | JE78: 0 | JF78: 0 | JG78: 0 | JH78: 0 | JI78: 0 | JJ78: 0 | JK78: 0 | JL78: 0 | JM78: 0 | JN78: 0 | JO78: 0 | JP78: 0 | JQ78: 0 | JR78: 0 | JS78: 0 | JT78: 0 | JU78: 0 | JV78: 0 | JW78: 0 | JX78: 0 | JY78: 0 | JZ78: 0 | KA78: 0 | KB78: 0 | KC78: 0 | KD78: 0 | KE78: 0 | KF78: 0 | KG78: 0 | KH78: 0 | KI78: 0 | KJ78: 0 | KK78: 0 | KL78: 0 | KM78: 0 | KN78: 0 | KO78: 0 | KP78: 0 | KQ78: 0 | KR78: 0 | KS78: 0 | KT78: 0 | KU78: 0 | KV78: 0 | KW78: 0
A79: 333 | B79: SAMEDI | C79: 2022-12-10 | D79: 6 | E79: 13 | F79: 27 | G79: 29 | H79: 43 | I79: 2 | J79: 3 | K79: d | L79: 0 | M79: =_xlfn.LET(_xlpm.comp,RIGHT(D79:H79,1),_xlfn._xlws.FILTER(D79:H79,_xlfn.XMATCH(_xlpm.comp,_xlpm.comp)<>_xlfn.XMATCH(_xlpm.comp,_xlpm.comp,,-1))) ->  | Q79: =COUNTIF(D78:H78,D79:H79) ->  | V79: =IF(AND(W79>69,W79<164,OR(X79={1;2;3;4})),1,0) -> 1 | W79: 118 | X79: =SUMPRODUCT(( MOD(D79:H79,2)>0)*1) -> 4 | Y79: 0 | Z79: 0 | AA79: 2 | AB79: 0 | AC79: 0 | AD79: 1 | AE79: 1 | AF79: 0 | AG79: 1 | AH79: 0 | AI79: 0 | AJ79: 0 | AK79: 1 | AL79: 0 | AM79: 0 | AN79: 0 | AO79: 0 | AP79: 0 | AQ79: 0 | AR79: 0 | AS79: 0 | AT79: 0 | AU79: 0 | AV79: 0 | AW79: 0 | AX79: 0 | AY79: 1 | AZ79: 0 | BA79: 1 | BB79: 0 | BC79: 0 | BD79: 0 | BE79: 0 | BF79: 0 | BG79: 0 | BH79: 0 | BI79: 0 | BJ79: 0 | BK79: 0 | BL79: 0 | BM79: 0 | BN79: 0 | BO79: 1 | BP79: 0 | BQ79: 0 | BR79: 0 | BS79: 0 | BT79: 0 | BU79: 0 | BV79: 1 | BW79: 1 | BX79: 2 | BY79: 0 | BZ79: 1 | CB79: 1 | CC79: 1 | CD79: 1 | CE79: 0 | CF79: 1 | CG79: 0 | CH79: 0 | CI79: 0 | CJ79: 0 | CK79: 1 | CL79: 0 | CM79: 0 | CN79: 0 | CO79: 0 | CP79: 0 | CQ79: 0 | CR79: 0 | CS79: 0 | CT79: 0 | CU79: 0 | CV79: 0 | CW79: 0 | CX79: 0 | CY79: 0 | CZ79: 0 | DA79: 0 | DB79: 0 | DC79: 0 | DD79: 0 | DE79: 0 | DF79: 0 | DG79: 0 | DH79: 0 | DJ79: 0 | DK79: 0 | DL79: 0 | DM79: 0 | DN79: 0 | DO79: 0 | DP79: 0 | DQ79: 0 | DR79: 0 | DS79: 0 | DT79: 0 | DU79: 0 | DW79: 1 | DX79: 1 | DY79: 1 | DZ79: 1 | EA79: 1 | EB79: 1 | EC79: 1 | ED79: 1 | EE79: 1 | EF79: 1 | EI79: 1 | EJ79: 1 | EK79: 1 | EL79: 1 | EM79: 1 | EN79: 1 | EO79: 1 | EP79: 1 | EQ79: 1 | ER79: 1 | ES79: 0 | ET79: 0 | EW79: 37 | EX79: 6 | EY79: 3 | EZ79: 7 | FA79: 9 | FB79: 3 | FC79: 0 | FD79: 1 | FE79: 2 | FF79: 0 | FG79: 0 | FH79: 0 | FI79: 0 | FJ79: 0 | FW79: 0 | FX79: 1 | FY79: 1 | FZ79: 1 | GA79: 1 | GE79: 0 | GF79: 1 | GG79: 1 | GH79: 1 | GL79: 0 | GM79: 0 | GN79: 1 | GR79: 0 | GS79: 1 | GW79: 0 | HA79: 0 | JA79: 0 | JB79: 0 | JC79: 0 | JD79: 0 | JE79: 0 | JF79: 0 | JG79: 0 | JH79: 0 | JI79: 0 | JJ79: 0 | JK79: 0 | JL79: 0 | JM79: 0 | JN79: 0 | JO79: 0 | JP79: 0 | JQ79: 0 | JR79: 0 | JS79: 0 | JT79: 0 | JU79: 0 | JV79: 0 | JW79: 0 | JX79: 0 | JY79: 0 | JZ79: 0 | KA79: 0 | KB79: 0 | KC79: 0 | KD79: 0 | KE79: 0 | KF79: 0 | KG79: 0 | KH79: 0 | KI79: 0 | KJ79: 0 | KK79: 0 | KL79: 0 | KM79: 0 | KN79: 0 | KO79: 0 | KP79: 0 | KQ79: 0 | KR79: 0 | KS79: 0 | KT79: 0 | KU79: 0 | KV79: 0 | KW79: 0
A80: 332 | B80: LUNDI | C80: 2022-12-12 | D80: 2 | E80: 25 | F80: 35 | G80: 46 | H80: 47 | I80: 10 | J80: 7 | K80: h | L80: 0 | M80: =_xlfn.LET(_xlpm.comp,RIGHT(D80:H80,1),_xlfn._xlws.FILTER(D80:H80,_xlfn.XMATCH(_xlpm.comp,_xlpm.comp)<>_xlfn.XMATCH(_xlpm.comp,_xlpm.comp,,-1))) ->  | Q80: =COUNTIF(D79:H79,D80:H80) ->  | V80: =IF(AND(W80>69,W80<164,OR(X80={1;2;3;4})),1,0) -> 1 | W80: 155 | X80: =SUMPRODUCT(( MOD(D80:H80,2)>0)*1) -> 3 | Y80: 0 | Z80: 1 | AA80: 0 | AB80: 0 | AC80: 2 | AD80: 1 | AE80: 1 | AF80: 0 | AG80: 0 | AH80: 0 | AI80: 0 | AJ80: 0 | AK80: 0 | AL80: 0 | AM80: 0 | AN80: 0 | AO80: 0 | AP80: 0 | AQ80: 0 | AR80: 0 | AS80: 0 | AT80: 0 | AU80: 0 | AV80: 0 | AW80: 1 | AX80: 0 | AY80: 0 | AZ80: 0 | BA80: 0 | BB80: 0 | BC80: 0 | BD80: 0 | BE80: 0 | BF80: 0 | BG80: 1 | BH80: 0 | BI80: 0 | BJ80: 0 | BK80: 0 | BL80: 0 | BM80: 0 | BN80: 0 | BO80: 0 | BP80: 0 | BQ80: 0 | BR80: 1 | BS80: 1 | BT80: 0 | BU80: 0 | BV80: 1 | BW80: 0 | BX80: 1 | BY80: 1 | BZ80: 2 | CB80: 1 | CC80: 0 | CD80: 1 | CE80: 1 | CF80: 1 | CG80: 0 | CH80: 0 | CI80: 1 | CJ80: 0 | CK80: 0 | CL80: 0 | CM80: 0 | CN80: 0 | CO80: 0 | CP80: 0 | CQ80: 0 | CR80: 0 | CS80: 0 | CT80: 0 | CU80: 0 | CV80: 0 | CW80: 0 | CX80: 0 | CY80: 0 | CZ80: 0 | DA80: 0 | DB80: 0 | DC80: 0 | DD80: 0 | DE80: 0 | DF80: 0 | DG80: 0 | DH80: 0 | DJ80: 0 | DK80: 0 | DL80: 0 | DM80: 0 | DN80: 0 | DO80: 0 | DP80: 0 | DQ80: 0 | DR80: 0 | DS80: 0 | DT80: 0 | DU80: 1 | DW80: 1 | DX80: 1 | DY80: 1 | DZ80: 1 | EA80: 1 | EB80: 1 | EC80: 1 | ED80: 1 | EE80: 1 | EF80: 0 | EI80: 1 | EJ80: 1 | EK80: 1 | EL80: 1 | EM80: 1 | EN80: 1 | EO80: 1 | EP80: 1 | EQ80: 1 | ER80: 0 | ES80: 0 | ET80: 0 | EU80: 1 | EW80: 45 | EX80: 2 | EY80: 5 | EZ80: 5 | FA80: 6 | FB80: 7 | FC80: 0 | FD80: 1 | FE80: 0 | FF80: 0 | FG80: 0 | FH80: 0 | FI80: 0 | FJ80: 0 | FN80: 1 | FW80: 0 | FX80: 1 | FY80: 1 | FZ80: 0 | GA80: 1 | GE80: 0 | GF80: 1 | GG80: 0 | GH80: 0 | GL80: 0 | GM80: 1 | GN80: 1 | GR80: 0 | GS80: 1 | GW80: 0 | HA80: 0 | JA80: 0 | JB80: 0 | JC80: 0 | JD80: 0 | JE80: 0 | JF80: 0 | JG80: 0 | JH80: 0 | JI80: 0 | JJ80: 0 | JK80: 0 | JL80: 0 | JM80: 0 | JN80: 0 | JO80: 0 | JP80: 0 | JQ80: 0 | JR80: 0 | JS80: 0 | JT80: 0 | JU80: 0 | JV80: 0 | JW80: 0 | JX80: 0 | JY80: 0 | JZ80: 0 | KA80: 0 | KB80: 0 | KC80: 0 | KD80: 0 | KE80: 0 | KF80: 0 | KG80: 0 | KH80: 0 | KI80: 0 | KJ80: 0 | KK80: 0 | KL80: 0 | KM80: 0 | KN80: 0 | KO80: 0 | KP80: 0 | KQ80: 0 | KR80: 0 | KS80: 0 | KT80: 0 | KU80: 0 | KV80: 0 | KW80: 0
A81: 331 | B81: MERCREDI | C81: 2022-12-14 | D81: 4 | E81: 6 | F81: 15 | G81: 20 | H81: 37 | I81: 10 | J81: 7 | K81: h | L81: 0 | M81: =_xlfn.LET(_xlpm.comp,RIGHT(D81:H81,1),_xlfn._xlws.FILTER(D81:H81,_xlfn.XMATCH(_xlpm.comp,_xlpm.comp)<>_xlfn.XMATCH(_xlpm.comp,_xlpm.comp,,-1))) ->  | Q81: =COUNTIF(D80:H80,D81:H81) ->  | V81: =IF(AND(W81>69,W81<164,OR(X81={1;2;3;4})),1,0) -> 1 | W81: 82 | X81: =SUMPRODUCT(( MOD(D81:H81,2)>0)*1) -> 2 | Y81: 0 | Z81: 0 | AA81: 0 | AB81: 1 | AC81: 1 | AD81: 1 | AE81: 1 | AF81: 0 | AG81: 0 | AH81: 1 | AI81: 0 | AJ81: 0 | AK81: 0 | AL81: 0 | AM81: 1 | AN81: 0 | AO81: 0 | AP81: 0 | AQ81: 0 | AR81: 1 | AS81: 0 | AT81: 0 | AU81: 0 | AV81: 0 | AW81: 0 | AX81: 0 | AY81: 0 | AZ81: 0 | BA81: 0 | BB81: 0 | BC81: =COUNTIF(($D81:$H81),BC$1) -> 0 | BD81: 0 | BE81: 0 | BF81: 0 | BG81: 0 | BH81: 0 | BI81: 1 | BJ81: 0 | BK81: 0 | BL81: 0 | BM81: 0 | BN81: 0 | BO81: 0 | BP81: 0 | BQ81: 0 | BR81: 0 | BS81: 0 | BT81: 0 | BU81: 0 | BV81: 2 | BW81: 1 | BX81: 1 | BY81: 1 | BZ81: 0 | CB81: 1 | CC81: 1 | CD81: 1 | CE81: 1 | CF81: 0 | CG81: 0 | CH81: 0 | CI81: 0 | CJ81: 0 | CK81: 0 | CL81: 1 | CM81: 0 | CN81: 0 | CO81: 0 | CP81: 0 | CQ81: 0 | CR81: 0 | CS81: 0 | CT81: 0 | CU81: 0 | CV81: 0 | CW81: 0 | CX81: 0 | CY81: 0 | CZ81: 0 | DA81: 0 | DB81: 0 | DC81: 0 | DD81: 0 | DE81: 0 | DF81: 0 | DG81: 0 | DH81: 0 | DJ81: 0 | DK81: 0 | DL81: 0 | DM81: 0 | DN81: 0 | DO81: 0 | DP81: 0 | DQ81: 0 | DR81: 0 | DS81: 0 | DT81: 0 | DU81: 1 | DW81: 1 | DX81: 1 | DY81: 1 | DZ81: 1 | EA81: 1 | EB81: 1 | EC81: 1 | ED81: 1 | EE81: 1 | EF81: 1 | EI81: =COUNTIF(DW81,"=1") -> 1 | EJ81: =COUNTIF(DX81,"=1") -> 1 | EK81: =COUNTIF(DY81,"=1") -> 1 | EL81: =COUNTIF(DZ81,"=1") -> 1 | EM81: =COUNTIF(EA81,"=1") -> 1 | EN81: =COUNTIF(EB81,"=1") -> 1 | EO81: =COUNTIF(EC81,"=1") -> 1 | EP81: =COUNTIF(ED81,"=1") -> 1 | EQ81: =COUNTIF(EE81,"=1") -> 1 | ER81: =COUNTIF(EF81,"=1") -> 1 | ES81: 1 | ET81: 0 | EW81: 33 | EX81: 4 | EY81: =(MID(E81,1,1)*1) -> 6 | EZ81: 5 | FA81: 0 | FB81: 7 | FC81: 1 | FD81: 1 | FE81: 0 | FF81: 0 | FG81: 0 | FH81: 0 | FI81: 1 | FJ81: 0 | FW81: 0 | FX81: 0 | FY81: 1 | FZ81: 0 | GA81: 1 | GE81: 0 | GF81: 0 | GG81: 0 | GH81: 0 | GL81: 0 | GM81: 0 | GN81: 1 | GR81: 0 | GS81: 0 | GW81: 0 | HA81: 0 | JA81: 0 | JB81: 0 | JC81: 0 | JD81: 0 | JE81: 0 | JF81: 0 | JG81: 0 | JH81: 0 | JI81: 0 | JJ81: 0 | JK81: 0 | JL81: 0 | JM81: 0 | JN81: 0 | JO81: 0 | JP81: 0 | JQ81: 0 | JR81: 0 | JS81: 0 | JT81: 0 | JU81: 0 | JV81: 0 | JW81: 0 | JX81: 0 | JY81: 0 | JZ81: 0 | KA81: 0 | KB81: 0 | KC81: 0 | KD81: 0 | KE81: 0 | KF81: 0 | KG81: 0 | KH81: 0 | KI81: 0 | KJ81: 0 | KK81: 0 | KL81: 0 | KM81: 0 | KN81: 0 | KO81: 0 | KP81: 0 | KQ81: 0 | KR81: 0 | KS81: 0 | KT81: 0 | KU81: 0 | KV81: 0 | KW81: 0
A82: 330 | B82: SAMEDI | C82: 2022-12-17 | D82: 8 | E82: 23 | F82: 27 | G82: 42 | H82: 46 | I82: 3 | J82: 6 | K82: g | L82: 0 | M82: =_xlfn.LET(_xlpm.comp,RIGHT(D82:H82,1),_xlfn._xlws.FILTER(D82:H82,_xlfn.XMATCH(_xlpm.comp,_xlpm.comp)<>_xlfn.XMATCH(_xlpm.comp,_xlpm.comp,,-1))) ->  | Q82: =COUNTIF(D81:H81,D82:H82) ->  | V82: =IF(AND(W82>69,W82<164,OR(X82={1;2;3;4})),1,0) -> 1 | W82: 146 | X82: =SUMPRODUCT(( MOD(D82:H82,2)>0)*1) -> 2 | Y82: 0 | Z82: 1 | AA82: 1 | AB82: 0 | AC82: 0 | AD82: 1 | AE82: 1 | AF82: 1 | AG82: 0 | AH82: 0 | AI82: =COUNTIF(($D82:$H82),AI$1) -> 0 | AJ82: 0 | AK82: 0 | AL82: 0 | AM82: 0 | AN82: 0 | AO82: 0 | AP82: 0 | AQ82: 0 | AR82: 0 | AS82: 0 | AT82: 0 | AU82: 1 | AV82: =COUNTIF(($D82:$H82),AV$1) -> 0 | AW82: 0 | AX82: 0 | AY82: 1 | AZ82: 0 | BA82: 0 | BB82: 0 | BC82: 0 | BD82: 0 | BE82: 0 | BF82: 0 | BG82: 0 | BH82: 0 | BI82: 0 | BJ82: 0 | BK82: 0 | BL82: 0 | BM82: 0 | BN82: 1 | BO82: 0 | BP82: 0 | BQ82: 0 | BR82: 1 | BS82: 0 | BT82: 0 | BU82: 0 | BV82: 1 | BW82: 0 | BX82: 2 | BY82: 0 | BZ82: 2 | CB82: 1 | CC82: 0 | CD82: 1 | CE82: 0 | CF82: 1 | CG82: 0 | CH82: 0 | CI82: 0 | CJ82: 0 | CK82: 0 | CL82: 0 | CM82: 0 | CN82: 0 | CO82: 0 | CP82: 0 | CQ82: 0 | CR82: 0 | CS82: 0 | CT82: 0 | CU82: 0 | CV82: 1 | CW82: 0 | CX82: 0 | CY82: 0 | CZ82: 0 | DA82: 0 | DB82: 0 | DC82: 0 | DD82: 0 | DE82: 0 | DF82: 0 | DG82: 0 | DH82: 0 | DJ82: 0 | DK82: 0 | DL82: 0 | DM82: 0 | DN82: 0 | DO82: 0 | DP82: 0 | DQ82: 0 | DR82: 0 | DS82: 0 | DT82: 0 | DU82: 0 | DW82: 1 | DX82: 1 | DY82: 1 | DZ82: 1 | EA82: 1 | EB82: 1 | EC82: 1 | ED82: 1 | EE82: 1 | EF82: 0 | EI82: 1 | EJ82: 1 | EK82: 1 | EL82: 1 | EM82: 1 | EN82: 1 | EO82: 1 | EP82: 1 | EQ82: 1 | ER82: 0 | ES82: 0 | ET82: 1 | EW82: 38 | EX82: 8 | EY82: 3 | EZ82: 7 | FA82: 2 | FB82: 6 | FC82: 1 | FD82: 1 | FE82: 3 | FF82: 0 | FG82: 1 | FH82: 0 | FI82: 0 | FJ82: 0 | FW82: 0 | FX82: 1 | FY82: 1 | FZ82: 0 | GA82: 0 | GE82: 0 | GF82: 1 | GG82: 0 | GH82: 0 | GL82: 0 | GM82: 0 | GN82: 0 | GR82: 0 | GS82: 0 | GW82: 0 | HA82: 0 | JA82: 0 | JB82: 0 | JC82: 0 | JD82: 0 | JE82: 0 | JF82: 0 | JG82: 0 | JH82: 0 | JI82: 0 | JJ82: 0 | JK82: 0 | JL82: 0 | JM82: 0 | JN82: 0 | JO82: 0 | JP82: 0 | JQ82: 0 | JR82: 0 | JS82: 0 | JT82: 0 | JU82: 0 | JV82: 0 | JW82: 0 | JX82: 0 | JY82: 0 | JZ82: 0 | KA82: 0 | KB82: 0 | KC82: 0 | KD82: 0 | KE82: 0 | KF82: 0 | KG82: 0 | KH82: 0 | KI82: 0 | KJ82: 0 | KK82: 0 | KL82: 0 | KM82: 0 | KN82: 0 | KO82: 0 | KP82: 0 | KQ82: 0 | KR82: 0 | KS82: 0 | KT82: 0 | KU82: 0 | KV82: 0 | KW82: 0
A83: 329 | B83: LUNDI | C83: 2022-12-19 | D83: 6 | E83: 31 | F83: 35 | G83: 36 | H83: 43 | I83: 4 | J83: 3 | K83: d | L83: 0 | M83: =_xlfn.LET(_xlpm.comp,RIGHT(D83:H83,1),_xlfn._xlws.FILTER(D83:H83,_xlfn.XMATCH(_xlpm.comp,_xlpm.comp)<>_xlfn.XMATCH(_xlpm.comp,_xlpm.comp,,-1))) ->  | Q83: =COUNTIF(D82:H82,D83:H83) ->  | V83: =IF(AND(W83>69,W83<164,OR(X83={1;2;3;4})),1,0) -> 1 | W83: 151 | X83: =SUMPRODUCT(( MOD(D83:H83,2)>0)*1) -> 3 | Y83: 1 | Z83: 0 | AA83: 1 | AB83: 0 | AC83: 1 | AD83: 2 | AE83: 0 | AF83: 0 | AG83: 0 | AH83: 0 | AI83: 0 | AJ83: 0 | AK83: 0 | AL83: 0 | AM83: 0 | AN83: 0 | AO83: 0 | AP83: 0 | AQ83: 0 | AR83: 0 | AS83: 0 | AT83: 0 | AU83: 0 | AV83: 0 | AW83: 0 | AX83: 0 | AY83: 0 | AZ83: 0 | BA83: 0 | BB83: 0 | BC83: 1 | BD83: 0 | BE83: 0 | BF83: 0 | BG83: 1 | BH83: 1 | BI83: 0 | BJ83: 0 | BK83: 0 | BL83: 0 | BM83: 0 | BN83: 0 | BO83: 1 | BP83: 0 | BQ83: 0 | BR83: 0 | BS83: 0 | BT83: 0 | BU83: 0 | BV83: 1 | BW83: 0 | BX83: 0 | BY83: 3 | BZ83: 1 | CB83: 1 | CC83: 0 | CD83: 0 | CE83: 1 | CF83: 1 | CG83: 0 | CH83: 0 | CI83: 0 | CJ83: 0 | CK83: 0 | CL83: 0 | CM83: 0 | CN83: 0 | CO83: 0 | CP83: 1 | CQ83: 0 | CR83: 0 | CS83: 0 | CT83: 0 | CU83: 0 | CV83: 0 | CW83: 0 | CX83: 0 | CY83: 0 | CZ83: 0 | DA83: 0 | DB83: 0 | DC83: 0 | DD83: 0 | DE83: 0 | DF83: 0 | DG83: 0 | DH83: 0 | DJ83: 0 | DK83: 0 | DL83: 0 | DM83: 0 | DN83: 0 | DO83: 0 | DP83: 0 | DQ83: 0 | DR83: 0 | DS83: 0 | DT83: 0 | DU83: 0 | DW83: 1 | DX83: 1 | DY83: 1 | DZ83: 1 | EA83: 1 | EB83: 1 | EC83: 1 | ED83: 1 | EE83: 1 | EF83: 1 | EI83: 1 | EJ83: 1 | EK83: 1 | EL83: 1 | EM83: 1 | EN83: 1 | EO83: 1 | EP83: 1 | EQ83: 1 | ER83: 1 | ES83: 0 | ET83: 0 | EU83: 1 | EW83: 37 | EX83: 6 | EY83: 1 | EZ83: 5 | FA83: 6 | FB83: 3 | FC83: 0 | FD83: 1 | FE83: 4 | FF83: 0 | FG83: 0 | FH83: 0 | FI83: 0 | FJ83: 0 | FM83: 1 | FW83: 0 | FX83: 1 | FY83: 1 | FZ83: 0 | GA83: 1 | GE83: 0 | GF83: 1 | GG83: 0 | GH83: 0 | GL83: 0 | GM83: 0 | GN83: 1 | GR83: 0 | GS83: 1 | GW83: 0 | HA83: 0 | JA83: 0 | JB83: 0 | JC83: 0 | JD83: 0 | JE83: 0 | JF83: 0 | JG83: 0 | JH83: 0 | JI83: 0 | JJ83: 0 | JK83: 0 | JL83: 0 | JM83: 0 | JN83: 0 | JO83: 0 | JP83: 0 | JQ83: 0 | JR83: 0 | JS83: 0 | JT83: 0 | JU83: 0 | JV83: 0 | JW83: 0 | JX83: 0 | JY83: 0 | JZ83: 0 | KA83: 0 | KB83: 0 | KC83: 0 | KD83: 0 | KE83: 0 | KF83: 0 | KG83: 0 | KH83: 0 | KI83: 0 | KJ83: 0 | KK83: 0 | KL83: 0 | KM83: 0 | KN83: 0 | KO83: 0 | KP83: 0 | KQ83: 0 | KR83: 0 | KS83: 0 | KT83: 0 | KU83: 0 | KV83: 0 | KW83: 0
A84: 328 | B84: MERCREDI | C84: 2022-12-21 | D84: 11 | E84: 12 | F84: 15 | G84: 21 | H84: 22 | I84: 7 | J84: 2 | K84: c | L84: 0 | M84: =_xlfn.LET(_xlpm.comp,RIGHT(D84:H84,1),_xlfn._xlws.FILTER(D84:H84,_xlfn.XMATCH(_xlpm.comp,_xlpm.comp)<>_xlfn.XMATCH(_xlpm.comp,_xlpm.comp,,-1))) ->  | Q84: =COUNTIF(D83:H83,D84:H84) ->  | V84: =IF(AND(W84>69,W84<164,OR(X84={1;2;3;4})),1,0) -> 1 | W84: 81 | X84: =SUMPRODUCT(( MOD(D84:H84,2)>0)*1) -> 3 | Y84: 2 | Z84: 2 | AA84: 0 | AB84: 0 | AC84: 1 | AD84: 0 | AE84: 0 | AF84: 0 | AG84: 0 | AH84: 0 | AI84: 1 | AJ84: 1 | AK84: 0 | AL84: 0 | AM84: 1 | AN84: 0 | AO84: 0 | AP84: 0 | AQ84: 0 | AR84: 0 | AS84: 1 | AT84: 1 | AU84: 0 | AV84: 0 | AW84: 0 | AX84: 0 | AY84: 0 | AZ84: 0 | BA84: 0 | BB84: 0 | BC84: 0 | BD84: 0 | BE84: 0 | BF84: 0 | BG84: 0 | BH84: 0 | BI84: 0 | BJ84: 0 | BK84: 0 | BL84: 0 | BM84: 0 | BN84: 0 | BO84: 0 | BP84: 0 | BQ84: 0 | BR84: 0 | BS84: 0 | BT84: 0 | BU84: 0 | BV84: 0 | BW84: 3 | BX84: 2 | BY84: 0 | BZ84: 0 | CB84: 0 | CC84: 1 | CD84: 1 | CE84: 0 | CF84: 0 | CG84: 0 | CH84: 0 | CI84: 0 | CJ84: 0 | CK84: 0 | CL84: 0 | CM84: 0 | CN84: 0 | CO84: 0 | CP84: 0 | CQ84: 0 | CR84: 0 | CS84: 0 | CT84: 0 | CU84: 0 | CV84: 0 | CW84: 0 | CX84: 0 | CY84: 0 | CZ84: 1 | DA84: 0 | DB84: 0 | DC84: 0 | DD84: 0 | DE84: 0 | DF84: 0 | DG84: 0 | DH84: 0 | DJ84: 0 | DK84: 0 | DL84: 0 | DM84: 0 | DN84: 0 | DO84: 0 | DP84: 0 | DQ84: 0 | DR84: 0 | DS84: 0 | DT84: 0 | DU84: 0 | DW84: 1 | DX84: 1 | DY84: 1 | DZ84: 1 | EA84: 1 | EB84: 1 | EC84: 1 | ED84: 1 | EE84: 1 | EF84: 1 | EI84: 1 | EJ84: 1 | EK84: 1 | EL84: 1 | EM84: 1 | EN84: 1 | EO84: 1 | EP84: 1 | EQ84: 1 | ER84: 1 | ES84: 0 | ET84: 1 | EU84: 1 | EW84: 11 | EX84: =(MID(D84,2,2)*1) -> 1 | EY84: 2 | EZ84: 5 | FA84: 1 | FB84: 2 | FC84: 0 | FD84: 1 | FE84: 7 | FF84: 0 | FG84: 0 | FH84: 0 | FI84: 0 | FJ84: 0 | FK84: 1 | FN84: 1 | FW84: 1 | FX84: 0 | FY84: 1 | FZ84: 1 | GA84: 0 | GE84: 0 | GF84: 0 | GG84: 1 | GH84: 0 | GL84: 1 | GM84: 0 | GN84: 0 | GR84: 1 | GS84: 0 | GW84: 0 | HA84: 0 | JA84: 0 | JB84: 0 | JC84: 0 | JD84: 0 | JE84: 0 | JF84: 0 | JG84: 0 | JH84: 0 | JI84: 0 | JJ84: 0 | JK84: 0 | JL84: 0 | JM84: 0 | JN84: 0 | JO84: 0 | JP84: 0 | JQ84: 0 | JR84: 0 | JS84: 0 | JT84: 0 | JU84: 0 | JV84: 0 | JW84: 0 | JX84: 0 | JY84: 0 | JZ84: 0 | KA84: 0 | KB84: 0 | KC84: 0 | KD84: 0 | KE84: 0 | KF84: 0 | KG84: 0 | KH84: 0 | KI84: 0 | KJ84: 0 | KK84: 0 | KL84: 0 | KM84: 0 | KN84: 0 | KO84: 0 | KP84: 0 | KQ84: 0 | KR84: 0 | KS84: 0 | KT84: 0 | KU84: 0 | KV84: 0 | KW84: 0
A85: 327 | B85: SAMEDI | C85: 2022-12-24 | D85: 6 | E85: 12 | F85: 41 | G85: 46 | H85: 47 | I85: 6 | J85: 7 | K85: h | L85: 0 | M85: =_xlfn.LET(_xlpm.comp,RIGHT(D85:H85,1),_xlfn._xlws.FILTER(D85:H85,_xlfn.XMATCH(_xlpm.comp,_xlpm.comp)<>_xlfn.XMATCH(_xlpm.comp,_xlpm.comp,,-1))) ->  | Q85: =COUNTIF(D84:H84,D85:H85) ->  | V85: =IF(AND(W85>69,W85<164,OR(X85={1;2;3;4})),1,0) -> 1 | W85: 152 | X85: =SUMPRODUCT(( MOD(D85:H85,2)>0)*1) -> 2 | Y85: 1 | Z85: 1 | AA85: 0 | AB85: 0 | AC85: 0 | AD85: 2 | AE85: 1 | AF85: 0 | AG85: 0 | AH85: 0 | AI85: 0 | AJ85: 1 | AK85: 0 | AL85: 0 | AM85: 0 | AN85: 0 | AO85: =COUNTIF(($D85:$H85),AO$1) -> 0 | AP85: 0 | AQ85: 0 | AR85: 0 | AS85: 0 | AT85: 0 | AU85: 0 | AV85: 0 | AW85: 0 | AX85: 0 | AY85: 0 | AZ85: 0 | BA85: 0 | BB85: 0 | BC85: 0 | BD85: 0 | BE85: 0 | BF85: 0 | BG85: 0 | BH85: 0 | BI85: 0 | BJ85: 0 | BK85: 0 | BL85: 0 | BM85: 1 | BN85: 0 | BO85: 0 | BP85: 0 | BQ85: 0 | BR85: 1 | BS85: 1 | BT85: 0 | BU85: 0 | BV85: 1 | BW85: 1 | BX85: 0 | BY85: 0 | BZ85: 3 | CB85: 1 | CC85: 1 | CD85: 0 | CE85: 0 | CF85: 1 | CG85: 0 | CH85: 0 | CI85: 0 | CJ85: 0 | CK85: 0 | CL85: 0 | CM85: 0 | CN85: 0 | CO85: 1 | CP85: 0 | CQ85: 0 | CR85: 0 | CS85: 0 | CT85: 0 | CU85: 0 | CV85: 0 | CW85: 0 | CX85: 0 | CY85: 0 | CZ85: 0 | DA85: 0 | DB85: 0 | DC85: 0 | DD85: 0 | DE85: 0 | DF85: 0 | DG85: 0 | DH85: 0 | DJ85: 0 | DK85: 0 | DL85: 0 | DM85: 0 | DN85: 0 | DO85: 0 | DP85: 0 | DQ85: 0 | DR85: 0 | DS85: 0 | DT85: 0 | DU85: 0 | DW85: 1 | DX85: 1 | DY85: 1 | DZ85: 1 | EA85: 1 | EB85: 1 | EC85: 1 | ED85: 1 | EE85: 1 | EF85: 1 | EI85: 1 | EJ85: 1 | EK85: 1 | EL85: 1 | EM85: 1 | EN85: 1 | EO85: 1 | EP85: 1 | EQ85: 1 | ER85: 1 | ES85: 0 | ET85: 0 | EU85: 1 | EW85: 41 | EX85: =(MID(D85,1,2)*1) -> 6 | EY85: 2 | EZ85: 1 | FA85: 6 | FB85: 7 | FC85: 2 | FD85: 1 | FE85: 6 | FF85: 1 | FG85: 0 | FH85: 0 | FI85: 1 | FJ85: 0 | FN85: 1 | FW85: 0 | FX85: 0 | FY85: 1 | FZ85: 0 | GA85: 1 | GE85: 0 | GF85: 0 | GG85: 0 | GH85: 0 | GL85: 0 | GM85: 0 | GN85: 1 | GR85: 0 | GS85: 0 | GW85: 0 | HA85: 0 | JA85: 0 | JB85: 0 | JC85: 0 | JD85: 0 | JE85: 0 | JF85: 0 | JG85: 0 | JH85: 0 | JI85: 0 | JJ85: 0 | JK85: 0 | JL85: 0 | JM85: 0 | JN85: 0 | JO85: 0 | JP85: 0 | JQ85: 0 | JR85: 0 | JS85: 0 | JT85: 0 | JU85: 0 | JV85: 0 | JW85: 0 | JX85: 0 | JY85: 0 | JZ85: 0 | KA85: 0 | KB85: 0 | KC85: 0 | KD85: 0 | KE85: 0 | KF85: 0 | KG85: 0 | KH85: 0 | KI85: 0 | KJ85: 0 | KK85: 0 | KL85: 0 | KM85: 0 | KN85: 0 | KO85: 0 | KP85: 0 | KQ85: 0 | KR85: 0 | KS85: 0 | KT85: 0 | KU85: 0 | KV85: 0 | KW85: 0
A86: 326 | B86: LUNDI | C86: 2022-12-26 | D86: 6 | E86: 23 | F86: 32 | G86: 48 | H86: 49 | I86: 4 | J86: 9 | K86: j | L86: 0 | M86: =_xlfn.LET(_xlpm.comp,RIGHT(D86:H86,1),_xlfn._xlws.FILTER(D86:H86,_xlfn.XMATCH(_xlpm.comp,_xlpm.comp)<>_xlfn.XMATCH(_xlpm.comp,_xlpm.comp,,-1))) ->  | Q86: =COUNTIF(D85:H85,D86:H86) ->  | V86: =IF(AND(W86>69,W86<164,OR(X86={1;2;3;4})),1,0) -> 1 | W86: 158 | X86: =SUMPRODUCT(( MOD(D86:H86,2)>0)*1) -> 2 | Y86: 0 | Z86: 1 | AA86: 1 | AB86: 0 | AC86: 0 | AD86: 1 | AE86: 0 | AF86: 1 | AG86: 1 | AH86: 0 | AI86: 0 | AJ86: 0 | AK86: 0 | AL86: 0 | AM86: 0 | AN86: 0 | AO86: 0 | AP86: 0 | AQ86: 0 | AR86: 0 | AS86: 0 | AT86: 0 | AU86: 1 | AV86: 0 | AW86: 0 | AX86: 0 | AY86: 0 | AZ86: 0 | BA86: 0 | BB86: 0 | BC86: 0 | BD86: 1 | BE86: 0 | BF86: 0 | BG86: 0 | BH86: 0 | BI86: 0 | BJ86: 0 | BK86: 0 | BL86: 0 | BM86: 0 | BN86: 0 | BO86: 0 | BP86: 0 | BQ86: 0 | BR86: 0 | BS86: 0 | BT86: 1 | BU86: 1 | BV86: 1 | BW86: 0 | BX86: 1 | BY86: 1 | BZ86: 2 | CB86: 1 | CC86: 0 | CD86: 1 | CE86: 1 | CF86: 1 | CG86: 0 | CH86: 0 | CI86: 1 | CJ86: 0 | CK86: 0 | CL86: 0 | CM86: 0 | CN86: 0 | CO86: 0 | CP86: 0 | CQ86: 0 | CR86: 0 | CS86: 0 | CT86: 0 | CU86: 0 | CV86: 0 | CW86: 0 | CX86: 0 | CY86: 0 | CZ86: 0 | DA86: 0 | DB86: 0 | DC86: 0 | DD86: 0 | DE86: 0 | DF86: 0 | DG86: 0 | DH86: 0 | DJ86: 0 | DK86: 0 | DL86: 0 | DM86: 0 | DN86: 0 | DO86: 0 | DP86: 0 | DQ86: 0 | DR86: 0 | DS86: 0 | DT86: 0 | DU86: 0 | DW86: 1 | DX86: 1 | DY86: 1 | DZ86: 1 | EA86: 1 | EB86: 1 | EC86: 1 | ED86: 1 | EE86: 1 | EF86: 1 | EI86: 1 | EJ86: 1 | EK86: 1 | EL86: 1 | EM86: 1 | EN86: 1 | EO86: 1 | EP86: 1 | EQ86: 1 | ER86: 1 | ES86: 0 | ET86: 0 | EU86: 1 | EW86: 43 | EX86: =(MID(D86,1,2)*1) -> 6 | EY86: 3 | EZ86: 2 | FA86: 8 | FB86: 9 | FC86: 0 | FD86: 1 | FE86: 4 | FF86: 0 | FG86: 0 | FH86: 0 | FI86: 0 | FJ86: 0 | FN86: 1 | FW86: 0 | FX86: 1 | FY86: 0 | FZ86: 0 | GA86: 1 | GE86: 0 | GF86: 0 | GG86: 0 | GH86: 0 | GL86: 0 | GM86: 0 | GN86: 0 | GR86: 0 | GS86: 1 | GW86: 0 | HA86: 0 | JA86: 0 | JB86: 0 | JC86: 0 | JD86: 0 | JE86: 0 | JF86: 0 | JG86: 0 | JH86: 0 | JI86: 0 | JJ86: 0 | JK86: 0 | JL86: 0 | JM86: 0 | JN86: 0 | JO86: 0 | JP86: 0 | JQ86: 0 | JR86: 0 | JS86: 0 | JT86: 0 | JU86: 0 | JV86: 0 | JW86: 0 | JX86: 0 | JY86: 0 | JZ86: 0 | KA86: 0 | KB86: 0 | KC86: 0 | KD86: 0 | KE86: 0 | KF86: 0 | KG86: 0 | KH86: 0 | KI86: 0 | KJ86: 0 | KK86: 0 | KL86: 0 | KM86: 0 | KN86: 0 | KO86: 0 | KP86: 0 | KQ86: 0 | KR86: 0 | KS86: 0 | KT86: 0 | KU86: 0 | KV86: 0 | KW86: 0
A87: 325 | B87: MERCREDI | C87: 2022-12-28 | D87: 1 | E87: 3 | F87: 8 | G87: 29 | H87: 35 | I87: 8 | J87: 5 | K87: f | L87: 0 | M87: =_xlfn.LET(_xlpm.comp,RIGHT(D87:H87,1),_xlfn._xlws.FILTER(D87:H87,_xlfn.XMATCH(_xlpm.comp,_xlpm.comp)<>_xlfn.XMATCH(_xlpm.comp,_xlpm.comp,,-1))) ->  | Q87: =COUNTIF(D86:H86,D87:H87) ->  | V87: =IF(AND(W87>69,W87<164,OR(X87={1;2;3;4})),1,0) -> 1 | W87: 76 | X87: =SUMPRODUCT(( MOD(D87:H87,2)>0)*1) -> 4 | Y87: 1 | Z87: 0 | AA87: 1 | AB87: 0 | AC87: 1 | AD87: 0 | AE87: 0 | AF87: 1 | AG87: 1 | AH87: 0 | AI87: 0 | AJ87: 0 | AK87: 0 | AL87: 0 | AM87: 0 | AN87: 0 | AO87: 0 | AP87: 0 | AQ87: 0 | AR87: 0 | AS87: 0 | AT87: 0 | AU87: 0 | AV87: 0 | AW87: 0 | AX87: 0 | AY87: 0 | AZ87: 0 | BA87: 1 | BB87: 0 | BC87: 0 | BD87: 0 | BE87: 0 | BF87: 0 | BG87: 1 | BH87: 0 | BI87: 0 | BJ87: 0 | BK87: 0 | BL87: 0 | BM87: 0 | BN87: 0 | BO87: 0 | BP87: 0 | BQ87: 0 | BR87: 0 | BS87: 0 | BT87: 0 | BU87: 0 | BV87: 3 | BW87: 0 | BX87: 1 | BY87: 1 | BZ87: 0 | CB87: 1 | CC87: 0 | CD87: 1 | CE87: 1 | CF87: 0 | CG87: 0 | CH87: 0 | CI87: 0 | CJ87: 0 | CK87: 0 | CL87: 0 | CM87: 1 | CN87: 0 | CO87: 0 | CP87: 0 | CQ87: 0 | CR87: 0 | CS87: 0 | CT87: 0 | CU87: 0 | CV87: 0 | CW87: 0 | CX87: 0 | CY87: 0 | CZ87: 0 | DA87: 0 | DB87: 0 | DC87: 0 | DD87: 0 | DE87: 0 | DF87: 0 | DG87: 0 | DH87: 0 | DJ87: 0 | DK87: 0 | DL87: 0 | DM87: 0 | DN87: 0 | DO87: 0 | DP87: 0 | DQ87: 0 | DR87: 0 | DS87: 0 | DT87: 0 | DU87: 0 | DW87: 1 | DX87: 1 | DY87: 1 | DZ87: 1 | EA87: 1 | EB87: 1 | EC87: 1 | ED87: 1 | EE87: 1 | EF87: 1 | EI87: 1 | EJ87: 1 | EK87: 1 | EL87: 1 | EM87: 1 | EN87: 1 | EO87: 1 | EP87: 1 | EQ87: 1 | ER87: 1 | ES87: 0 | ET87: 0 | EW87: 34 | EX87: =(MID(D87,1,2)*1) -> 1 | EY87: =(MID(E87,1,1)*1) -> 3 | EZ87: =(MID(F87,1,1)*1) -> 8 | FA87: 9 | FB87: 5 | FC87: 1 | FD87: 1 | FE87: 8 | FF87: 0 | FG87: 0 | FH87: 1 | FI87: 0 | FJ87: 0 | FW87: 1 | FX87: 1 | FY87: 0 | FZ87: 1 | GA87: 1 | GE87: 1 | GF87: 0 | GG87: 0 | GH87: 1 | GL87: 0 | GM87: 0 | GN87: 0 | GR87: 1 | GS87: 1 | GW87: 1 | HA87: 1 | JA87: 0 | JB87: 0 | JC87: 0 | JD87: 0 | JE87: 0 | JF87: 0 | JG87: 0 | JH87: 0 | JI87: 0 | JJ87: 0 | JK87: 0 | JL87: 0 | JM87: 0 | JN87: 0 | JO87: 0 | JP87: 0 | JQ87: 0 | JR87: 0 | JS87: 0 | JT87: 0 | JU87: 0 | JV87: 0 | JW87: 0 | JX87: 0 | JY87: 0 | JZ87: 0 | KA87: 0 | KB87: 0 | KC87: 0 | KD87: 0 | KE87: 0 | KF87: 0 | KG87: 0 | KH87: 0 | KI87: 0 | KJ87: 0 | KK87: 0 | KL87: 0 | KM87: 0 | KN87: 0 | KO87: 0 | KP87: 0 | KQ87: 0 | KR87: 0 | KS87: 0 | KT87: 0 | KU87: 0 | KV87: 0 | KW87: 0
A88: 324 | B88: SAMEDI | C88: 2022-12-31 | D88: 11 | E88: 16 | F88: 23 | G88: 35 | H88: 39 | I88: 8 | J88: 9 | K88: j | L88: 0 | M88: =_xlfn.LET(_xlpm.comp,RIGHT(D88:H88,1),_xlfn._xlws.FILTER(D88:H88,_xlfn.XMATCH(_xlpm.comp,_xlpm.comp)<>_xlfn.XMATCH(_xlpm.comp,_xlpm.comp,,-1))) ->  | Q88: =COUNTIF(D87:H87,D88:H88) ->  | V88: =IF(AND(W88>69,W88<164,OR(X88={1;2;3;4})),1,0) -> 1 | W88: 124 | X88: =SUMPRODUCT(( MOD(D88:H88,2)>0)*1) -> 4 | Y88: 1 | Z88: 0 | AA88: 1 | AB88: 0 | AC88: 1 | AD88: 1 | AE88: 0 | AF88: 0 | AG88: 1 | AH88: 0 | AI88: 1 | AJ88: 0 | AK88: 0 | AL88: 0 | AM88: 0 | AN88: 1 | AO88: 0 | AP88: 0 | AQ88: 0 | AR88: 0 | AS88: 0 | AT88: 0 | AU88: 1 | AV88: 0 | AW88: 0 | AX88: 0 | AY88: 0 | AZ88: 0 | BA88: 0 | BB88: 0 | BC88: 0 | BD88: 0 | BE88: 0 | BF88: 0 | BG88: 1 | BH88: 0 | BI88: 0 | BJ88: 0 | BK88: 1 | BL88: 0 | BM88: 0 | BN88: 0 | BO88: 0 | BP88: 0 | BQ88: 0 | BR88: 0 | BS88: 0 | BT88: 0 | BU88: 0 | BV88: 0 | BW88: 2 | BX88: 1 | BY88: 2 | BZ88: 0 | CB88: 0 | CC88: 1 | CD88: 1 | CE88: 1 | CF88: 0 | CG88: 0 | CH88: 0 | CI88: 0 | CJ88: 0 | CK88: 0 | CL88: 0 | CM88: 0 | CN88: 0 | CO88: 0 | CP88: 0 | CQ88: 0 | CR88: 0 | CS88: 0 | CT88: 0 | CU88: 0 | CV88: 0 | CW88: 1 | CX88: 0 | CY88: 0 | CZ88: 0 | DA88: 0 | DB88: 0 | DC88: 0 | DD88: 0 | DE88: 0 | DF88: 0 | DG88: 0 | DH88: 0 | DJ88: 0 | DK88: 0 | DL88: 0 | DM88: 0 | DN88: 0 | DO88: 0 | DP88: 0 | DQ88: 0 | DR88: 0 | DS88: 0 | DT88: 0 | DU88: 0 | DW88: 1 | DX88: 1 | DY88: 1 | DZ88: 1 | EA88: 1 | EB88: 1 | EC88: 1 | ED88: 1 | EE88: 1 | EF88: 1 | EI88: 1 | EJ88: 1 | EK88: 1 | EL88: 1 | EM88: 1 | EN88: 1 | EO88: 1 | EP88: 1 | EQ88: 1 | ER88: 1 | ES88: 1 | ET88: 0 | EW88: 28 | EX88: =(MID(D88,2,2)*1) -> 1 | EY88: 6 | EZ88: 3 | FA88: 5 | FB88: 9 | FC88: 0 | FD88: 1 | FE88: 8 | FF88: 0 | FG88: 0 | FH88: 0 | FI88: 0 | FJ88: 0 | FW88: 1 | FX88: 0 | FY88: 1 | FZ88: 1 | GA88: 1 | GE88: 0 | GF88: 0 | GG88: 1 | GH88: 1 | GL88: 1 | GM88: 1 | GN88: 1 | GR88: 1 | GS88: 0 | GW88: 1 | HA88: 0 | JA88: 0 | JB88: 0 | JC88: 0 | JD88: 0 | JE88: 0 | JF88: 0 | JG88: 0 | JH88: 0 | JI88: 0 | JJ88: 0 | JK88: 0 | JL88: 0 | JM88: 0 | JN88: 0 | JO88: 0 | JP88: 0 | JQ88: 0 | JR88: 0 | JS88: 0 | JT88: 0 | JU88: 0 | JV88: 0 | JW88: 0 | JX88: 0 | JY88: 0 | JZ88: 0 | KA88: 0 | KB88: 0 | KC88: 0 | KD88: 0 | KE88: 0 | KF88: 0 | KG88: 0 | KH88: 0 | KI88: 0 | KJ88: 0 | KK88: 0 | KL88: 0 | KM88: 0 | KN88: 0 | KO88: 0 | KP88: 0 | KQ88: 0 | KR88: 0 | KS88: 0 | KT88: 0 | KU88: 0 | KV88: 0 | KW88: 0
A89: 323 | B89: LUNDI | C89: 2023-01-02 | D89: 1 | E89: 39 | F89: 41 | G89: 45 | H89: 49 | I89: 5 | J89: 9 | K89: j | L89: 0 | M89: =_xlfn.LET(_xlpm.comp,RIGHT(D89:H89,1),_xlfn._xlws.FILTER(D89:H89,_xlfn.XMATCH(_xlpm.comp,_xlpm.comp)<>_xlfn.XMATCH(_xlpm.comp,_xlpm.comp,,-1))) ->  | Q89: =COUNTIF(D88:H88,D89:H89) ->  | V89: =IF(AND(W89>69,W89<164,OR(X89={1;2;3;4})),1,0) -> 0 | W89: 175 | X89: =SUMPRODUCT(( MOD(D89:H89,2)>0)*1) -> 5 | Y89: 2 | Z89: 0 | AA89: 0 | AB89: 0 | AC89: 1 | AD89: 0 | AE89: 0 | AF89: 0 | AG89: 2 | AH89: 0 | AI89: 0 | AJ89: 0 | AK89: 0 | AL89: 0 | AM89: 0 | AN89: 0 | AO89: 0 | AP89: 0 | AQ89: 0 | AR89: 0 | AS89: 0 | AT89: 0 | AU89: 0 | AV89: 0 | AW89: 0 | AX89: 0 | AY89: 0 | AZ89: 0 | BA89: 0 | BB89: 0 | BC89: 0 | BD89: 0 | BE89: 0 | BF89: 0 | BG89: 0 | BH89: 0 | BI89: 0 | BJ89: 0 | BK89: 1 | BL89: 0 | BM89: 1 | BN89: 0 | BO89: 0 | BP89: 0 | BQ89: 1 | BR89: 0 | BS89: 0 | BT89: 0 | BU89: 1 | BV89: 1 | BW89: 0 | BX89: 0 | BY89: 1 | BZ89: 3 | CB89: 1 | CC89: 0 | CD89: 0 | CE89: 1 | CF89: 1 | CG89: 0 | CH89: 0 | CI89: 0 | CJ89: 0 | CK89: 0 | CL89: 0 | CM89: 0 | CN89: 0 | CO89: 0 | CP89: 1 | CQ89: 0 | CR89: 0 | CS89: 0 | CT89: 0 | CU89: 0 | CV89: 0 | CW89: 0 | CX89: 0 | CY89: 0 | CZ89: 0 | DA89: 0 | DB89: 0 | DC89: 0 | DD89: 0 | DE89: 0 | DF89: 0 | DG89: 0 | DH89: 0 | DJ89: 0 | DK89: 0 | DL89: 0 | DM89: 0 | DN89: 0 | DO89: 0 | DP89: 0 | DQ89: 0 | DR89: 0 | DS89: 0 | DT89: 0 | DU89: 0 | DW89: 1 | DX89: 1 | DY89: 1 | DZ89: 1 | EA89: 1 | EB89: 1 | EC89: 1 | ED89: 1 | EE89: 1 | EF89: 1 | EI89: 1 | EJ89: 1 | EK89: 1 | EL89: 1 | EM89: 1 | EN89: 1 | EO89: 1 | EP89: 1 | EQ89: 1 | ER89: 1 | ES89: 0 | ET89: 1 | EW89: 48 | EX89: =(MID(D89,1,2)*1) -> 1 | EY89: 9 | EZ89: 1 | FA89: 5 | FB89: 9 | FC89: 1 | FD89: 1 | FE89: 5 | FF89: 0 | FG89: 0 | FH89: 0 | FI89: 1 | FJ89: 0 | FW89: 1 | FX89: 1 | FY89: 1 | FZ89: 1 | GA89: 1 | GE89: 1 | GF89: 1 | GG89: 1 | GH89: 1 | GL89: 1 | GM89: 0 | GN89: 1 | GR89: 1 | GS89: 1 | GW89: 1 | HA89: 1 | JA89: 0 | JB89: 0 | JC89: 0 | JD89: 0 | JE89: 0 | JF89: 0 | JG89: 0 | JH89: 0 | JI89: 0 | JJ89: 0 | JK89: 0 | JL89: 0 | JM89: 0 | JN89: 0 | JO89: 0 | JP89: 0 | JQ89: 0 | JR89: 0 | JS89: 0 | JT89: 0 | JU89: 0 | JV89: 0 | JW89: 0 | JX89: 0 | JY89: 0 | JZ89: 0 | KA89: 0 | KB89: 0 | KC89: 0 | KD89: 0 | KE89: 0 | KF89: 0 | KG89: 0 | KH89: 0 | KI89: 0 | KJ89: 0 | KK89: 0 | KL89: 0 | KM89: 0 | KN89: 0 | KO89: 0 | KP89: 0 | KQ89: 0 | KR89: 0 | KS89: 0 | KT89: 0 | KU89: 0 | KV89: 0 | KW89: 0
A90: 322 | B90: MERCREDI | C90: 2023-01-04 | D90: 3 | E90: 5 | F90: 25 | G90: 38 | H90: 49 | I90: 10 | J90: 9 | K90: j | L90: 0 | M90: =_xlfn.LET(_xlpm.comp,RIGHT(D90:H90,1),_xlfn._xlws.FILTER(D90:H90,_xlfn.XMATCH(_xlpm.comp,_xlpm.comp)<>_xlfn.XMATCH(_xlpm.comp,_xlpm.comp,,-1))) ->  | Q90: =COUNTIF(D89:H89,D90:H90) ->  | V90: =IF(AND(W90>69,W90<164,OR(X90={1;2;3;4})),1,0) -> 1 | W90: 120 | X90: =SUMPRODUCT(( MOD(D90:H90,2)>0)*1) -> 4 | Y90: 0 | Z90: 0 | AA90: 1 | AB90: 0 | AC90: 2 | AD90: 0 | AE90: 0 | AF90: 1 | AG90: 1 | AH90: 0 | AI90: 0 | AJ90: 0 | AK90: 0 | AL90: 0 | AM90: 0 | AN90: 0 | AO90: 0 | AP90: 0 | AQ90: 0 | AR90: 0 | AS90: 0 | AT90: 0 | AU90: 0 | AV90: 0 | AW90: 1 | AX90: 0 | AY90: 0 | AZ90: 0 | BA90: 0 | BB90: 0 | BC90: 0 | BD90: 0 | BE90: 0 | BF90: 0 | BG90: 0 | BH90: 0 | BI90: 0 | BJ90: 1 | BK90: 0 | BL90: 0 | BM90: 0 | BN90: 0 | BO90: 0 | BP90: 0 | BQ90: 0 | BR90: 0 | BS90: 0 | BT90: 0 | BU90: 1 | BV90: 2 | BW90: 0 | BX90: 1 | BY90: 1 | BZ90: 1 | CB90: 1 | CC90: 0 | CD90: 1 | CE90: 1 | CF90: 1 | CG90: 0 | CH90: 0 | CI90: 1 | CJ90: 0 | CK90: 0 | CL90: 0 | CM90: 0 | CN90: 0 | CO90: 0 | CP90: 0 | CQ90: 0 | CR90: 0 | CS90: 0 | CT90: 0 | CU90: 0 | CV90: 0 | CW90: 0 | CX90: 0 | CY90: 0 | CZ90: 0 | DA90: 0 | DB90: 0 | DC90: 0 | DD90: 0 | DE90: 0 | DF90: 0 | DG90: 0 | DH90: 0 | DJ90: 0 | DK90: 0 | DL90: 0 | DM90: 0 | DN90: 0 | DO90: 0 | DP90: 0 | DQ90: 0 | DR90: 0 | DS90: 0 | DT90: 0 | DU90: 1 | DW90: 1 | DX90: 1 | DY90: 1 | DZ90: 1 | EA90: 1 | EB90: 1 | EC90: 1 | ED90: 1 | EE90: 1 | EF90: 0 | EI90: 1 | EJ90: 1 | EK90: 1 | EL90: 1 | EM90: 1 | EN90: 1 | EO90: 1 | EP90: 1 | EQ90: 1 | ER90: 0 | ES90: 0 | ET90: 0 | EW90: 46 | EX90: =(MID(D90,1,2)*1) -> 3 | EY90: =(MID(E90,1,1)*1) -> 5 | EZ90: 5 | FA90: 8 | FB90: 9 | FC90: =COUNTIF(EX90:FB90,FE90) -> 0 | FD90: 1 | FE90: 0 | FF90: 0 | FG90: 0 | FH90: 0 | FI90: 0 | FJ90: 0 | FW90: 1 | FX90: 1 | FY90: 1 | FZ90: 0 | GA90: 1 | GE90: 1 | GF90: 1 | GG90: 0 | GH90: 0 | GL90: 1 | GM90: 1 | GN90: 1 | GR90: 0 | GS90: 1 | GW90: 1 | HA90: 0 | JA90: 0 | JB90: 0 | JC90: 0 | JD90: 0 | JE90: 0 | JF90: 0 | JG90: 0 | JH90: 0 | JI90: 0 | JJ90: 0 | JK90: 0 | JL90: 0 | JM90: 0 | JN90: 0 | JO90: 0 | JP90: 0 | JQ90: 0 | JR90: 0 | JS90: 0 | JT90: 0 | JU90: 0 | JV90: 0 | JW90: 0 | JX90: 0 | JY90: 0 | JZ90: 0 | KA90: 0 | KB90: 0 | KC90: 0 | KD90: 0 | KE90: 0 | KF90: 0 | KG90: 0 | KH90: 0 | KI90: 0 | KJ90: 0 | KK90: 0 | KL90: 0 | KM90: 0 | KN90: 0 | KO90: 0 | KP90: 0 | KQ90: 0 | KR90: 0 | KS90: 0 | KT90: 0 | KU90: 0 | KV90: 0 | KW90: 0
A91: 321 | B91: SAMEDI | C91: 2023-01-07 | D91: 7 | E91: 8 | F91: 21 | G91: 34 | H91: 43 | I91: 6 | J91: 3 | K91: d | L91: 0 | M91: =_xlfn.LET(_xlpm.comp,RIGHT(D91:H91,1),_xlfn._xlws.FILTER(D91:H91,_xlfn.XMATCH(_xlpm.comp,_xlpm.comp)<>_xlfn.XMATCH(_xlpm.comp,_xlpm.comp,,-1))) ->  | Q91: =COUNTIF(D90:H90,D91:H91) ->  | V91: =IF(AND(W91>69,W91<164,OR(X91={1;2;3;4})),1,0) -> 1 | W91: 113 | X91: =SUMPRODUCT(( MOD(D91:H91,2)>0)*1) -> 3 | Y91: 1 | Z91: 0 | AA91: 1 | AB91: 1 | AC91: 0 | AD91: 0 | AE91: 1 | AF91: 1 | AG91: 0 | AH91: 0 | AI91: 0 | AJ91: 0 | AK91: 0 | AL91: 0 | AM91: 0 | AN91: 0 | AO91: 0 | AP91: 0 | AQ91: 0 | AR91: 0 | AS91: 1 | AT91: 0 | AU91: 0 | AV91: =COUNTIF(($D91:$H91),AV$1) -> 0 | AW91: 0 | AX91: 0 | AY91: 0 | AZ91: 0 | BA91: 0 | BB91: 0 | BC91: 0 | BD91: 0 | BE91: 0 | BF91: 1 | BG91: 0 | BH91: 0 | BI91: 0 | BJ91: 0 | BK91: 0 | BL91: 0 | BM91: 0 | BN91: 0 | BO91: 1 | BP91: 0 | BQ91: 0 | BR91: 0 | BS91: 0 | BT91: 0 | BU91: 0 | BV91: 2 | BW91: 0 | BX91: 1 | BY91: 1 | BZ91: 1 | CB91: 1 | CC91: 0 | CD91: 1 | CE91: 1 | CF91: 1 | CG91: 0 | CH91: 0 | CI91: 1 | CJ91: 0 | CK91: 0 | CL91: 0 | CM91: 0 | CN91: 0 | CO91: 0 | CP91: 0 | CQ91: 0 | CR91: 0 | CS91: 0 | CT91: 0 | CU91: 0 | CV91: 0 | CW91: 0 | CX91: 0 | CY91: 0 | CZ91: 0 | DA91: 0 | DB91: 0 | DC91: 0 | DD91: 0 | DE91: 0 | DF91: 0 | DG91: 0 | DH91: 0 | DJ91: 0 | DK91: 0 | DL91: 0 | DM91: 0 | DN91: 0 | DO91: 0 | DP91: 0 | DQ91: 0 | DR91: 0 | DS91: 0 | DT91: 0 | DU91: 0 | DW91: 1 | DX91: 1 | DY91: 1 | DZ91: 1 | EA91: 1 | EB91: 1 | EC91: 1 | ED91: 1 | EE91: 1 | EF91: 0 | EI91: 1 | EJ91: 1 | EK91: 1 | EL91: 1 | EM91: 1 | EN91: 1 | EO91: 1 | EP91: 1 | EQ91: 1 | ER91: 0 | ES91: 0 | ET91: 0 | EU91: 1 | EW91: 36 | EX91: =(MID(D91,1,2)*1) -> 7 | EY91: =(MID(E91,1,1)*1) -> 8 | EZ91: 1 | FA91: 4 | FB91: 3 | FC91: 0 | FD91: 1 | FE91: 6 | FF91: 0 | FG91: 0 | FH91: 0 | FI91: 0 | FJ91: 0 | FK91: 1 | FW91: 1 | FX91: 0 | FY91: 1 | FZ91: 0 | GA91: 1 | GE91: 0 | GF91: 0 | GG91: 0 | GH91: 0 | GL91: 1 | GM91: 0 | GN91: 1 | GR91: 0 | GS91: 0 | GW91: 1 | HA91: 1 | JA91: 0 | JB91: 0 | JC91: 0 | JD91: 0 | JE91: 0 | JF91: 0 | JG91: 0 | JH91: 0 | JI91: 0 | JJ91: 0 | JK91: 0 | JL91: 0 | JM91: 0 | JN91: 0 | JO91: 0 | JP91: 0 | JQ91: 0 | JR91: 0 | JS91: 0 | JT91: 0 | JU91: 0 | JV91: 0 | JW91: 0 | JX91: 0 | JY91: 0 | JZ91: 0 | KA91: 0 | KB91: 0 | KC91: 0 | KD91: 0 | KE91: 0 | KF91: 0 | KG91: 0 | KH91: 0 | KI91: 0 | KJ91: 0 | KK91: 0 | KL91: 0 | KM91: 0 | KN91: 0 | KO91: 0 | KP91: 0 | KQ91: 0 | KR91: 0 | KS91: 0 | KT91: 0 | KU91: 0 | KV91: 0 | KW91: 0
A92: 320 | B92: LUNDI | C92: 2023-01-09 | D92: 1 | E92: 20 | F92: 30 | G92: 38 | H92: 48 | I92: 3 | J92: 8 | K92: i | L92: 0 | M92: =_xlfn.LET(_xlpm.comp,RIGHT(D92:H92,1),_xlfn._xlws.FILTER(D92:H92,_xlfn.XMATCH(_xlpm.comp,_xlpm.comp)<>_xlfn.XMATCH(_xlpm.comp,_xlpm.comp,,-1))) ->  | Q92: =COUNTIF(D91:H91,D92:H92) ->  | V92: =IF(AND(W92>69,W92<164,OR(X92={1;2;3;4})),1,0) -> 1 | W92: 137 | X92: =SUMPRODUCT(( MOD(D92:H92,2)>0)*1) -> 1 | Y92: 1 | Z92: 0 | AA92: 0 | AB92: 0 | AC92: 0 | AD92: 0 | AE92: 0 | AF92: 2 | AG92: 0 | AH92: 2 | AI92: 0 | AJ92: 0 | AK92: 0 | AL92: 0 | AM92: 0 | AN92: 0 | AO92: 0 | AP92: 0 | AQ92: 0 | AR92: 1 | AS92: 0 | AT92: 0 | AU92: 0 | AV92: 0 | AW92: 0 | AX92: 0 | AY92: 0 | AZ92: 0 | BA92: 0 | BB92: 1 | BC92: 0 | BD92: 0 | BE92: 0 | BF92: 0 | BG92: 0 | BH92: 0 | BI92: 0 | BJ92: 1 | BK92: 0 | BL92: 0 | BM92: 0 | BN92: 0 | BO92: 0 | BP92: 0 | BQ92: 0 | BR92: 0 | BS92: 0 | BT92: 1 | BU92: 0 | BV92: 1 | BW92: 0 | BX92: 1 | BY92: 2 | BZ92: 1 | CB92: 1 | CC92: 0 | CD92: 1 | CE92: 1 | CF92: 1 | CG92: 0 | CH92: 0 | CI92: 1 | CJ92: 0 | CK92: 0 | CL92: 0 | CM92: 0 | CN92: 0 | CO92: 0 | CP92: 0 | CQ92: 0 | CR92: 0 | CS92: 0 | CT92: 0 | CU92: 0 | CV92: 0 | CW92: 0 | CX92: 0 | CY92: 0 | CZ92: 0 | DA92: 0 | DB92: 0 | DC92: 0 | DD92: 0 | DE92: 0 | DF92: 0 | DG92: 0 | DH92: 0 | DJ92: 0 | DK92: 0 | DL92: 0 | DM92: 0 | DN92: 0 | DO92: 0 | DP92: 0 | DQ92: 0 | DR92: 0 | DS92: 0 | DT92: 0 | DU92: 0 | DW92: 1 | DX92: 1 | DY92: 1 | DZ92: 1 | EA92: 1 | EB92: 1 | EC92: 1 | ED92: 1 | EE92: 1 | EF92: 1 | EI92: 1 | EJ92: 1 | EK92: 1 | EL92: 1 | EM92: 1 | EN92: 1 | EO92: 1 | EP92: 1 | EQ92: 1 | ER92: 1 | ES92: 0 | ET92: 1 | EW92: 47 | EX92: =(MID(D92,1,2)*1) -> 1 | EY92: 0 | EZ92: 0 | FA92: 8 | FB92: 8 | FC92: 0 | FD92: 1 | FE92: 3 | FF92: 0 | FG92: 0 | FH92: 0 | FI92: 0 | FJ92: 0 | FW92: 1 | FX92: 0 | FY92: 0 | FZ92: 0 | GA92: 0 | GE92: 0 | GF92: 0 | GG92: 0 | GH92: 0 | GL92: 0 | GM92: 0 | GN92: 0 | GR92: 0 | GS92: 0 | GW92: 0 | HA92: 0 | JA92: 0 | JB92: 0 | JC92: 0 | JD92: 0 | JE92: 0 | JF92: 0 | JG92: 0 | JH92: 0 | JI92: 0 | JJ92: 0 | JK92: 0 | JL92: 0 | JM92: 0 | JN92: 0 | JO92: 0 | JP92: 0 | JQ92: 0 | JR92: 0 | JS92: 0 | JT92: 0 | JU92: 0 | JV92: 0 | JW92: 0 | JX92: 0 | JY92: 0 | JZ92: 0 | KA92: 0 | KB92: 0 | KC92: 0 | KD92: 0 | KE92: 0 | KF92: 0 | KG92: 0 | KH92: 0 | KI92: 0 | KJ92: 0 | KK92: 0 | KL92: 0 | KM92: 0 | KN92: 0 | KO92: 0 | KP92: 0 | KQ92: 0 | KR92: 0 | KS92: 0 | KT92: 0 | KU92: 0 | KV92: 0 | KW92: 0
A93: 319 | B93: MERCREDI | C93: 2023-01-11 | D93: 3 | E93: 8 | F93: 16 | G93: 17 | H93: 47 | I93: 9 | J93: 7 | K93: h | L93: 0 | M93: =_xlfn.LET(_xlpm.comp,RIGHT(D93:H93,1),_xlfn._xlws.FILTER(D93:H93,_xlfn.XMATCH(_xlpm.comp,_xlpm.comp)<>_xlfn.XMATCH(_xlpm.comp,_xlpm.comp,,-1))) ->  | Q93: =COUNTIF(D92:H92,D93:H93) ->  | V93: =IF(AND(W93>69,W93<164,OR(X93={1;2;3;4})),1,0) -> 1 | W93: 91 | X93: =SUMPRODUCT(( MOD(D93:H93,2)>0)*1) -> 3 | Y93: 0 | Z93: 0 | AA93: 1 | AB93: 0 | AC93: 0 | AD93: 1 | AE93: 2 | AF93: 1 | AG93: 0 | AH93: 0 | AI93: 0 | AJ93: 0 | AK93: 0 | AL93: 0 | AM93: 0 | AN93: 1 | AO93: 1 | AP93: 0 | AQ93: 0 | AR93: 0 | AS93: 0 | AT93: 0 | AU93: 0 | AV93: 0 | AW93: 0 | AX93: 0 | AY93: 0 | AZ93: 0 | BA93: 0 | BB93: 0 | BC93: 0 | BD93: 0 | BE93: 0 | BF93: 0 | BG93: 0 | BH93: 0 | BI93: 0 | BJ93: 0 | BK93: 0 | BL93: 0 | BM93: 0 | BN93: 0 | BO93: 0 | BP93: 0 | BQ93: 0 | BR93: 0 | BS93: 1 | BT93: 0 | BU93: 0 | BV93: 2 | BW93: 2 | BX93: 0 | BY93: 0 | BZ93: 1 | CB93: 1 | CC93: 1 | CD93: 0 | CE93: 0 | CF93: 1 | CG93: 0 | CH93: 0 | CI93: 0 | CJ93: 0 | CK93: 0 | CL93: 0 | CM93: 0 | CN93: 0 | CO93: 1 | CP93: 0 | CQ93: 0 | CR93: 0 | CS93: 0 | CT93: 0 | CU93: 0 | CV93: 0 | CW93: 0 | CX93: 0 | CY93: 0 | CZ93: 0 | DA93: 0 | DB93: 0 | DC93: 0 | DD93: 0 | DE93: 0 | DF93: 0 | DG93: 0 | DH93: 0 | DJ93: 0 | DK93: 0 | DL93: 0 | DM93: 0 | DN93: 0 | DO93: 0 | DP93: 0 | DQ93: 0 | DR93: 0 | DS93: 0 | DT93: 0 | DU93: 0 | DW93: 1 | DX93: 1 | DY93: 1 | DZ93: 1 | EA93: 1 | EB93: 1 | EC93: 1 | ED93: 1 | EE93: 1 | EF93: 1 | EI93: 1 | EJ93: 1 | EK93: 1 | EL93: 1 | EM93: 1 | EN93: 1 | EO93: 1 | EP93: 1 | EQ93: 1 | ER93: 1 | ES93: 0 | ET93: 1 | EU93: 1 | EW93: 44 | EX93: =(MID(D93,1,2)*1) -> 3 | EY93: =(MID(E93,1,1)*1) -> 8 | EZ93: 6 | FA93: 7 | FB93: 7 | FC93: 0 | FD93: 1 | FE93: 9 | FF93: 0 | FG93: 0 | FH93: 0 | FI93: 0 | FJ93: 0 | FM93: 1 | FW93: 1 | FX93: 0 | FY93: 0 | FZ93: 1 | GA93: 1 | GE93: 0 | GF93: 0 | GG93: 0 | GH93: 1 | GL93: 0 | GM93: 0 | GN93: 0 | GR93: 1 | GS93: 0 | GW93: 1 | HA93: 0 | JA93: 0 | JB93: 0 | JC93: 0 | JD93: 0 | JE93: 0 | JF93: 0 | JG93: 0 | JH93: 0 | JI93: 0 | JJ93: 0 | JK93: 0 | JL93: 0 | JM93: 0 | JN93: 0 | JO93: 0 | JP93: 0 | JQ93: 0 | JR93: 0 | JS93: 0 | JT93: 0 | JU93: 0 | JV93: 0 | JW93: 0 | JX93: 0 | JY93: 0 | JZ93: 0 | KA93: 0 | KB93: 0 | KC93: 0 | KD93: 0 | KE93: 0 | KF93: 0 | KG93: 0 | KH93: 0 | KI93: 0 | KJ93: 0 | KK93: 0 | KL93: 0 | KM93: 0 | KN93: 0 | KO93: 0 | KP93: 0 | KQ93: 0 | KR93: 0 | KS93: 0 | KT93: 0 | KU93: 0 | KV93: 0 | KW93: 0
A94: 318 | B94: SAMEDI | C94: 2023-01-14 | D94: 13 | E94: 14 | F94: 22 | G94: 36 | H94: 40 | I94: 9 | J94: 0 | K94: a | L94: 0 | M94: =_xlfn.LET(_xlpm.comp,RIGHT(D94:H94,1),_xlfn._xlws.FILTER(D94:H94,_xlfn.XMATCH(_xlpm.comp,_xlpm.comp)<>_xlfn.XMATCH(_xlpm.comp,_xlpm.comp,,-1))) ->  | Q94: =COUNTIF(D93:H93,D94:H94) ->  | V94: =IF(AND(W94>69,W94<164,OR(X94={1;2;3;4})),1,0) -> 1 | W94: 125 | X94: =SUMPRODUCT(( MOD(D94:H94,2)>0)*1) -> 1 | Y94: 0 | Z94: 1 | AA94: 1 | AB94: 1 | AC94: 0 | AD94: 1 | AE94: 0 | AF94: 0 | AG94: 0 | AH94: 1 | AI94: 0 | AJ94: 0 | AK94: 1 | AL94: 1 | AM94: 0 | AN94: 0 | AO94: 0 | AP94: 0 | AQ94: 0 | AR94: 0 | AS94: 0 | AT94: 1 | AU94: 0 | AV94: 0 | AW94: 0 | AX94: 0 | AY94: 0 | AZ94: 0 | BA94: 0 | BB94: 0 | BC94: 0 | BD94: 0 | BE94: 0 | BF94: 0 | BG94: 0 | BH94: 1 | BI94: 0 | BJ94: 0 | BK94: 0 | BL94: 1 | BM94: 0 | BN94: 0 | BO94: 0 | BP94: 0 | BQ94: 0 | BR94: 0 | BS94: 0 | BT94: 0 | BU94: 0 | BV94: 0 | BW94: 2 | BX94: 1 | BY94: 1 | BZ94: 1 | CB94: 0 | CC94: 1 | CD94: 1 | CE94: 1 | CF94: 1 | CG94: 0 | CH94: 1 | CI94: 0 | CJ94: 0 | CK94: 0 | CL94: 0 | CM94: 0 | CN94: 0 | CO94: 0 | CP94: 0 | CQ94: 0 | CR94: 0 | CS94: 0 | CT94: 0 | CU94: 0 | CV94: 0 | CW94: 0 | CX94: 0 | CY94: 0 | CZ94: 0 | DA94: 0 | DB94: 0 | DC94: 0 | DD94: 0 | DE94: 0 | DF94: 0 | DG94: 0 | DH94: 0 | DJ94: 0 | DK94: 0 | DL94: 0 | DM94: 0 | DN94: 0 | DO94: 0 | DP94: 0 | DQ94: 0 | DR94: 0 | DS94: 0 | DT94: 0 | DU94: 0 | DW94: 1 | DX94: 1 | DY94: 1 | DZ94: 1 | EA94: 1 | EB94: 1 | EC94: 1 | ED94: 1 | EE94: 1 | EF94: 1 | EI94: 1 | EJ94: 1 | EK94: 1 | EL94: 1 | EM94: 1 | EN94: 1 | EO94: 1 | EP94: 1 | EQ94: 1 | ER94: 1 | ES94: 1 | ET94: 1 | EU94: 1 | EW94: 27 | EX94: =(MID(D94,2,2)*1) -> 3 | EY94: 4 | EZ94: 2 | FA94: 6 | FB94: 0 | FC94: 0 | FD94: 1 | FE94: 9 | FF94: 0 | FG94: 0 | FH94: 0 | FI94: 0 | FJ94: 0 | FK94: 1 | FW94: 1 | FX94: 0 | FY94: 0 | FZ94: 0 | GA94: 0 | GE94: 0 | GF94: 0 | GG94: 0 | GH94: 0 | GL94: 0 | GM94: 0 | GN94: 0 | GR94: 0 | GS94: 0 | GW94: 0 | HA94: 0 | JA94: 0 | JB94: 0 | JC94: 0 | JD94: 0 | JE94: 0 | JF94: 0 | JG94: 0 | JH94: 0 | JI94: 0 | JJ94: 0 | JK94: 0 | JL94: 0 | JM94: 0 | JN94: 0 | JO94: 0 | JP94: 0 | JQ94: 0 | JR94: 0 | JS94: 0 | JT94: 0 | JU94: 0 | JV94: 0 | JW94: 0 | JX94: 0 | JY94: 0 | JZ94: 0 | KA94: 0 | KB94: 0 | KC94: 0 | KD94: 0 | KE94: 0 | KF94: 0 | KG94: 0 | KH94: 0 | KI94: 0 | KJ94: 0 | KK94: 0 | KL94: 0 | KM94: 0 | KN94: 0 | KO94: 0 | KP94: 0 | KQ94: 0 | KR94: 0 | KS94: 0 | KT94: 0 | KU94: 0 | KV94: 0 | KW94: 0
A95: 317 | B95: LUNDI | C95: 2023-01-16 | D95: 5 | E95: 10 | F95: 19 | G95: 28 | H95: 31 | I95: 4 | J95: 1 | K95: b | L95: 0 | M95: =_xlfn.LET(_xlpm.comp,RIGHT(D95:H95,1),_xlfn._xlws.FILTER(D95:H95,_xlfn.XMATCH(_xlpm.comp,_xlpm.comp)<>_xlfn.XMATCH(_xlpm.comp,_xlpm.comp,,-1))) ->  | Q95: =COUNTIF(D94:H94,D95:H95) ->  | V95: =IF(AND(W95>69,W95<164,OR(X95={1;2;3;4})),1,0) -> 1 | W95: 93 | X95: =SUMPRODUCT(( MOD(D95:H95,2)>0)*1) -> 3 | Y95: 1 | Z95: 0 | AA95: 0 | AB95: 0 | AC95: 1 | AD95: 0 | AE95: 0 | AF95: 1 | AG95: 1 | AH95: 1 | AI95: 0 | AJ95: 0 | AK95: 0 | AL95: 0 | AM95: 0 | AN95: 0 | AO95: 0 | AP95: 0 | AQ95: 1 | AR95: 0 | AS95: 0 | AT95: 0 | AU95: 0 | AV95: 0 | AW95: 0 | AX95: 0 | AY95: 0 | AZ95: 1 | BA95: 0 | BB95: 0 | BC95: 1 | BD95: 0 | BE95: 0 | BF95: 0 | BG95: 0 | BH95: 0 | BI95: 0 | BJ95: 0 | BK95: 0 | BL95: 0 | BM95: 0 | BN95: 0 | BO95: 0 | BP95: 0 | BQ95: 0 | BR95: 0 | BS95: 0 | BT95: 0 | BU95: 0 | BV95: 1 | BW95: 2 | BX95: 1 | BY95: 1 | BZ95: 0 | CB95: 1 | CC95: 1 | CD95: 1 | CE95: 1 | CF95: 0 | CG95: 0 | CH95: 0 | CI95: 0 | CJ95: 0 | CK95: 0 | CL95: 1 | CM95: 0 | CN95: 0 | CO95: 0 | CP95: 0 | CQ95: 0 | CR95: 0 | CS95: 0 | CT95: 0 | CU95: 0 | CV95: 0 | CW95: 0 | CX95: 0 | CY95: 0 | CZ95: 0 | DA95: 0 | DB95: 0 | DC95: 0 | DD95: 0 | DE95: 0 | DF95: 0 | DG95: 0 | DH95: 0 | DJ95: 0 | DK95: 0 | DL95: 0 | DM95: 0 | DN95: 0 | DO95: 0 | DP95: 0 | DQ95: 0 | DR95: 0 | DS95: 0 | DT95: 0 | DU95: 0 | DW95: 1 | DX95: 1 | DY95: 1 | DZ95: 1 | EA95: 1 | EB95: 1 | EC95: 1 | ED95: 1 | EE95: 1 | EF95: 1 | EI95: 1 | EJ95: 1 | EK95: 1 | EL95: 1 | EM95: 1 | EN95: 1 | EO95: 1 | EP95: 1 | EQ95: 1 | ER95: 1 | ES95: 0 | ET95: 0 | EW95: 26 | EX95: =(MID(D95,1,2)*1) -> 5 | EY95: 0 | EZ95: 9 | FA95: 8 | FB95: 1 | FC95: 0 | FD95: 1 | FE95: 4 | FF95: 0 | FG95: 0 | FH95: 0 | FI95: 0 | FJ95: 0 | FW95: 1 | FX95: 0 | FY95: 1 | FZ95: 0 | GA95: 1 | GE95: 0 | GF95: 0 | GG95: 0 | GH95: 0 | GL95: 1 | GM95: 0 | GN95: 1 | GR95: 0 | GS95: 0 | GW95: 1 | HA95: 1 | JA95: 0 | JB95: 0 | JC95: 0 | JD95: 0 | JE95: 0 | JF95: 0 | JG95: 0 | JH95: 0 | JI95: 0 | JJ95: 0 | JK95: 0 | JL95: 0 | JM95: 0 | JN95: 0 | JO95: 0 | JP95: 0 | JQ95: 0 | JR95: 0 | JS95: 0 | JT95: 0 | JU95: 0 | JV95: 0 | JW95: 0 | JX95: 0 | JY95: 0 | JZ95: 0 | KA95: 0 | KB95: 0 | KC95: 0 | KD95: 0 | KE95: 0 | KF95: 0 | KG95: 0 | KH95: 0 | KI95: 0 | KJ95: 0 | KK95: 0 | KL95: 0 | KM95: 0 | KN95: 0 | KO95: 0 | KP95: 0 | KQ95: 0 | KR95: 0 | KS95: 0 | KT95: 0 | KU95: 0 | KV95: 0 | KW95: 0
A96: 316 | B96: MERCREDI | C96: 2023-01-18 | D96: 7 | E96: 11 | F96: 35 | G96: 39 | H96: 48 | I96: 8 | J96: 8 | K96: i | L96: 0 | M96: =_xlfn.LET(_xlpm.comp,RIGHT(D96:H96,1),_xlfn._xlws.FILTER(D96:H96,_xlfn.XMATCH(_xlpm.comp,_xlpm.comp)<>_xlfn.XMATCH(_xlpm.comp,_xlpm.comp,,-1))) ->  | Q96: =COUNTIF(D95:H95,D96:H96) ->  | V96: =IF(AND(W96>69,W96<164,OR(X96={1;2;3;4})),1,0) -> 1 | W96: 140 | X96: =SUMPRODUCT(( MOD(D96:H96,2)>0)*1) -> 4 | Y96: 1 | Z96: 0 | AA96: 0 | AB96: 0 | AC96: 1 | AD96: 0 | AE96: 1 | AF96: 1 | AG96: 1 | AH96: 0 | AI96: 1 | AJ96: 0 | AK96: 0 | AL96: 0 | AM96: 0 | AN96: 0 | AO96: 0 | AP96: 0 | AQ96: 0 | AR96: 0 | AS96: 0 | AT96: 0 | AU96: 0 | AV96: 0 | AW96: 0 | AX96: 0 | AY96: 0 | AZ96: 0 | BA96: 0 | BB96: 0 | BC96: 0 | BD96: 0 | BE96: 0 | BF96: 0 | BG96: 1 | BH96: 0 | BI96: 0 | BJ96: 0 | BK96: 1 | BL96: 0 | BM96: 0 | BN96: 0 | BO96: 0 | BP96: 0 | BQ96: 0 | BR96: 0 | BS96: 0 | BT96: 1 | BU96: 0 | BV96: 1 | BW96: 1 | BX96: 0 | BY96: 2 | BZ96: 1 | CB96: 1 | CC96: 1 | CD96: 0 | CE96: 1 | CF96: 1 | CG96: 0 | CH96: 0 | CI96: 0 | CJ96: 1 | CK96: 0 | CL96: 0 | CM96: 0 | CN96: 0 | CO96: 0 | CP96: 0 | CQ96: 0 | CR96: 0 | CS96: 0 | CT96: 0 | CU96: 0 | CV96: 0 | CW96: 0 | CX96: 0 | CY96: 0 | CZ96: 0 | DA96: 0 | DB96: 0 | DC96: 0 | DD96: 0 | DE96: 0 | DF96: 0 | DG96: 0 | DH96: 0 | DJ96: 0 | DK96: 0 | DL96: 0 | DM96: 0 | DN96: 0 | DO96: 0 | DP96: 0 | DQ96: 0 | DR96: 0 | DS96: 0 | DT96: 0 | DU96: 0 | DW96: 1 | DX96: 1 | DY96: 1 | DZ96: 1 | EA96: 1 | EB96: 1 | EC96: 1 | ED96: 1 | EE96: 1 | EF96: 1 | EI96: 1 | EJ96: 1 | EK96: 1 | EL96: 1 | EM96: 1 | EN96: 1 | EO96: 1 | EP96: 1 | EQ96: 1 | ER96: 1 | ES96: 0 | ET96: 0 | EW96: 41 | EX96: =(MID(D96,1,2)*1) -> 7 | EY96: 1 | EZ96: 5 | FA96: 9 | FB96: 8 | FC96: 1 | FD96: 1 | FE96: 8 | FF96: 0 | FG96: 0 | FH96: 0 | FI96: 0 | FJ96: 1 | FW96: 1 | FX96: 1 | FY96: 1 | FZ96: 1 | GA96: 0 | GE96: 1 | GF96: 1 | GG96: 1 | GH96: 0 | GL96: 1 | GM96: 0 | GN96: 0 | GR96: 1 | GS96: 0 | GW96: 0 | HA96: 0 | JA96: 0 | JB96: 0 | JC96: 0 | JD96: 0 | JE96: 0 | JF96: 0 | JG96: 0 | JH96: 0 | JI96: 0 | JJ96: 0 | JK96: 0 | JL96: 0 | JM96: 0 | JN96: 0 | JO96: 0 | JP96: 0 | JQ96: 0 | JR96: 0 | JS96: 0 | JT96: 0 | JU96: 0 | JV96: 0 | JW96: 0 | JX96: 0 | JY96: 0 | JZ96: 0 | KA96: 0 | KB96: 0 | KC96: 0 | KD96: 0 | KE96: 0 | KF96: 0 | KG96: 0 | KH96: 0 | KI96: 0 | KJ96: 0 | KK96: 0 | KL96: 0 | KM96: 0 | KN96: 0 | KO96: 0 | KP96: 0 | KQ96: 0 | KR96: 0 | KS96: 0 | KT96: 0 | KU96: 0 | KV96: 0 | KW96: 0
A97: 315 | B97: SAMEDI | C97: 2023-01-21 | D97: 4 | E97: 18 | F97: 24 | G97: 41 | H97: 45 | I97: 6 | J97: 5 | K97: f | L97: 0 | M97: =_xlfn.LET(_xlpm.comp,RIGHT(D97:H97,1),_xlfn._xlws.FILTER(D97:H97,_xlfn.XMATCH(_xlpm.comp,_xlpm.comp)<>_xlfn.XMATCH(_xlpm.comp,_xlpm.comp,,-1))) ->  | Q97: =COUNTIF(D96:H96,D97:H97) ->  | V97: =IF(AND(W97>69,W97<164,OR(X97={1;2;3;4})),1,0) -> 1 | W97: 132 | X97: =SUMPRODUCT(( MOD(D97:H97,2)>0)*1) -> 2 | Y97: 1 | Z97: 0 | AA97: 0 | AB97: 2 | AC97: 1 | AD97: 0 | AE97: 0 | AF97: 1 | AG97: 0 | AH97: 0 | AI97: =COUNTIF(($D97:$H97),AI$1) -> 0 | AJ97: 0 | AK97: 0 | AL97: 0 | AM97: 0 | AN97: 0 | AO97: 0 | AP97: 1 | AQ97: 0 | AR97: 0 | AS97: 0 | AT97: =COUNTIF(($D97:$H97),AT$1) -> 0 | AU97: 0 | AV97: 1 | AW97: 0 | AX97: 0 | AY97: 0 | AZ97: 0 | BA97: 0 | BB97: 0 | BC97: 0 | BD97: 0 | BE97: 0 | BF97: 0 | BG97: 0 | BH97: 0 | BI97: 0 | BJ97: 0 | BK97: 0 | BL97: 0 | BM97: 1 | BN97: 0 | BO97: 0 | BP97: 0 | BQ97: 1 | BR97: 0 | BS97: 0 | BT97: 0 | BU97: 0 | BV97: 1 | BW97: 1 | BX97: 1 | BY97: 0 | BZ97: 2 | CB97: 1 | CC97: 1 | CD97: 1 | CE97: 0 | CF97: 1 | CG97: 0 | CH97: 0 | CI97: 0 | CJ97: 0 | CK97: 1 | CL97: 0 | CM97: 0 | CN97: 0 | CO97: 0 | CP97: 0 | CQ97: 0 | CR97: 0 | CS97: 0 | CT97: 0 | CU97: 0 | CV97: 0 | CW97: 0 | CX97: 0 | CY97: 0 | CZ97: 0 | DA97: 0 | DB97: 0 | DC97: 0 | DD97: 0 | DE97: 0 | DF97: 0 | DG97: 0 | DH97: 0 | DJ97: 0 | DK97: 0 | DL97: 0 | DM97: 0 | DN97: 0 | DO97: 0 | DP97: 0 | DQ97: 0 | DR97: 0 | DS97: 0 | DT97: 0 | DU97: 0 | DW97: 1 | DX97: 1 | DY97: 1 | DZ97: 1 | EA97: 1 | EB97: 1 | EC97: 1 | ED97: 1 | EE97: 1 | EF97: 1 | EI97: 1 | EJ97: 1 | EK97: 1 | EL97: 1 | EM97: 1 | EN97: 1 | EO97: 1 | EP97: 1 | EQ97: 1 | ER97: 1 | ES97: 0 | ET97: 0 | EW97: 41 | EX97: =(MID(D97,1,2)*1) -> 4 | EY97: 8 | EZ97: 4 | FA97: 1 | FB97: 5 | FC97: 0 | FD97: 1 | FE97: 6 | FF97: 0 | FG97: 0 | FH97: 0 | FI97: 0 | FJ97: =COUNTIF(FB97,FE97) -> 0 | FW97: 0 | FX97: 0 | FY97: 0 | FZ97: 1 | GA97: 1 | GE97: 0 | GF97: 0 | GG97: 0 | GH97: 1 | GL97: 0 | GM97: 1 | GN97: 0 | GR97: 0 | GS97: 0 | GW97: 0 | HA97: 0 | JA97: 0 | JB97: 0 | JC97: 0 | JD97: 0 | JE97: 0 | JF97: 0 | JG97: 0 | JH97: 0 | JI97: 0 | JJ97: 0 | JK97: 0 | JL97: 0 | JM97: 0 | JN97: 0 | JO97: 0 | JP97: 0 | JQ97: 0 | JR97: 0 | JS97: 0 | JT97: 0 | JU97: 0 | JV97: 0 | JW97: 0 | JX97: 0 | JY97: 0 | JZ97: 0 | KA97: 0 | KB97: 0 | KC97: 0 | KD97: 0 | KE97: 0 | KF97: 0 | KG97: 0 | KH97: 0 | KI97: 0 | KJ97: 0 | KK97: 0 | KL97: 0 | KM97: 0 | KN97: 0 | KO97: 0 | KP97: 0 | KQ97: 0 | KR97: 0 | KS97: 0 | KT97: 0 | KU97: 0 | KV97: 0 | KW97: 0
A98: 314 | B98: LUNDI | C98: 2023-01-23 | D98: 6 | E98: 10 | F98: 28 | G98: 32 | H98: 35 | I98: 9 | J98: 5 | K98: f | L98: 0 | M98: =_xlfn.LET(_xlpm.comp,RIGHT(D98:H98,1),_xlfn._xlws.FILTER(D98:H98,_xlfn.XMATCH(_xlpm.comp,_xlpm.comp)<>_xlfn.XMATCH(_xlpm.comp,_xlpm.comp,,-1))) ->  | Q98: =COUNTIF(D97:H97,D98:H98) ->  | V98: =IF(AND(W98>69,W98<164,OR(X98={1;2;3;4})),1,0) -> 1 | W98: 111 | X98: =SUMPRODUCT(( MOD(D98:H98,2)>0)*1) -> 1 | Y98: 0 | Z98: 1 | AA98: 0 | AB98: 0 | AC98: 1 | AD98: 1 | AE98: 0 | AF98: 1 | AG98: 0 | AH98: 1 | AI98: 0 | AJ98: 0 | AK98: 0 | AL98: 0 | AM98: 0 | AN98: 0 | AO98: 0 | AP98: 0 | AQ98: 0 | AR98: 0 | AS98: 0 | AT98: 0 | AU98: 0 | AV98: 0 | AW98: 0 | AX98: 0 | AY98: 0 | AZ98: 1 | BA98: 0 | BB98: 0 | BC98: 0 | BD98: 1 | BE98: 0 | BF98: 0 | BG98: 1 | BH98: 0 | BI98: 0 | BJ98: 0 | BK98: 0 | BL98: 0 | BM98: 0 | BN98: 0 | BO98: 0 | BP98: 0 | BQ98: 0 | BR98: 0 | BS98: 0 | BT98: 0 | BU98: 0 | BV98: 1 | BW98: 1 | BX98: 1 | BY98: 2 | BZ98: 0 | CB98: 1 | CC98: 1 | CD98: 1 | CE98: 1 | CF98: 0 | CG98: 0 | CH98: 0 | CI98: 0 | CJ98: 0 | CK98: 0 | CL98: 1 | CM98: 0 | CN98: 0 | CO98: 0 | CP98: 0 | CQ98: 0 | CR98: 0 | CS98: 0 | CT98: 0 | CU98: 0 | CV98: 0 | CW98: 0 | CX98: 0 | CY98: 0 | CZ98: 0 | DA98: 0 | DB98: 0 | DC98: 0 | DD98: 0 | DE98: 0 | DF98: 0 | DG98: 0 | DH98: 0 | DJ98: 0 | DK98: 0 | DL98: 0 | DM98: 0 | DN98: 0 | DO98: 0 | DP98: 0 | DQ98: 0 | DR98: 0 | DS98: 0 | DT98: 0 | DU98: 0 | DW98: 1 | DX98: 1 | DY98: 1 | DZ98: 1 | EA98: 1 | EB98: 1 | EC98: 1 | ED98: 1 | EE98: 1 | EF98: 1 | EI98: 1 | EJ98: 1 | EK98: 1 | EL98: 1 | EM98: 1 | EN98: 1 | EO98: 1 | EP98: 1 | EQ98: 1 | ER98: 1 | ES98: 0 | ET98: 1 | EW98: 29 | EX98: =(MID(D98,1,2)*1) -> 6 | EY98: 0 | EZ98: 8 | FA98: 2 | FB98: 5 | FC98: 0 | FD98: 1 | FE98: 9 | FF98: 0 | FG98: 0 | FH98: 0 | FI98: 0 | FJ98: 0 | FW98: 0 | FX98: 0 | FY98: 0 | FZ98: 0 | GA98: 1 | GE98: 0 | GF98: 0 | GG98: 0 | GH98: 0 | GL98: 0 | GM98: 0 | GN98: 0 | GR98: 0 | GS98: 0 | GW98: 0 | HA98: 0 | JA98: 0 | JB98: 0 | JC98: 0 | JD98: 0 | JE98: 0 | JF98: 0 | JG98: 0 | JH98: 0 | JI98: 0 | JJ98: 0 | JK98: 0 | JL98: 0 | JM98: 0 | JN98: 0 | JO98: 0 | JP98: 0 | JQ98: 0 | JR98: 0 | JS98: 0 | JT98: 0 | JU98: 0 | JV98: 0 | JW98: 0 | JX98: 0 | JY98: 0 | JZ98: 0 | KA98: 0 | KB98: 0 | KC98: 0 | KD98: 0 | KE98: 0 | KF98: 0 | KG98: 0 | KH98: 0 | KI98: 0 | KJ98: 0 | KK98: 0 | KL98: 0 | KM98: 0 | KN98: 0 | KO98: 0 | KP98: 0 | KQ98: 0 | KR98: 0 | KS98: 0 | KT98: 0 | KU98: 0 | KV98: 0 | KW98: 0
A99: 313 | B99: MERCREDI | C99: 2023-01-25 | D99: 18 | E99: 21 | F99: 26 | G99: 32 | H99: 44 | I99: 10 | J99: 4 | K99: e | L99: 0 | M99: =_xlfn.LET(_xlpm.comp,RIGHT(D99:H99,1),_xlfn._xlws.FILTER(D99:H99,_xlfn.XMATCH(_xlpm.comp,_xlpm.comp)<>_xlfn.XMATCH(_xlpm.comp,_xlpm.comp,,-1))) ->  | Q99: =COUNTIF(D98:H98,D99:H99) ->  | V99: =IF(AND(W99>69,W99<164,OR(X99={1;2;3;4})),1,0) -> 1 | W99: 141 | X99: =SUMPRODUCT(( MOD(D99:H99,2)>0)*1) -> 1 | Y99: 1 | Z99: 1 | AA99: 0 | AB99: 1 | AC99: 0 | AD99: 1 | AE99: 0 | AF99: 1 | AG99: 0 | AH99: 0 | AI99: 0 | AJ99: 0 | AK99: 0 | AL99: 0 | AM99: 0 | AN99: 0 | AO99: 0 | AP99: 1 | AQ99: 0 | AR99: 0 | AS99: 1 | AT99: 0 | AU99: 0 | AV99: 0 | AW99: 0 | AX99: 1 | AY99: 0 | AZ99: 0 | BA99: 0 | BB99: 0 | BC99: 0 | BD99: 1 | BE99: 0 | BF99: 0 | BG99: 0 | BH99: =COUNTIF((D99:H99),BH$1) -> 0 | BI99: 0 | BJ99: 0 | BK99: 0 | BL99: 0 | BM99: 0 | BN99: 0 | BO99: 0 | BP99: 1 | BQ99: 0 | BR99: 0 | BS99: 0 | BT99: 0 | BU99: 0 | BV99: 0 | BW99: 1 | BX99: 2 | BY99: 1 | BZ99: 1 | CB99: 0 | CC99: 1 | CD99: 1 | CE99: 1 | CF99: 1 | CG99: 0 | CH99: 1 | CI99: 0 | CJ99: 0 | CK99: 0 | CL99: 0 | CM99: 0 | CN99: 0 | CO99: 0 | CP99: 0 | CQ99: 0 | CR99: 0 | CS99: 0 | CT99: 0 | CU99: 0 | CV99: 0 | CW99: 0 | CX99: 0 | CY99: 0 | CZ99: 0 | DA99: 0 | DB99: 0 | DC99: 0 | DD99: 0 | DE99: 0 | DF99: 0 | DG99: 0 | DH99: 0 | DJ99: 0 | DK99: 0 | DL99: 0 | DM99: 0 | DN99: 0 | DO99: 0 | DP99: 0 | DQ99: 0 | DR99: 0 | DS99: 0 | DT99: 0 | DU99: 1 | DW99: 1 | DX99: 1 | DY99: 1 | DZ99: 1 | EA99: 1 | EB99: 1 | EC99: 1 | ED99: 1 | EE99: 1 | EF99: 0 | EI99: 1 | EJ99: 1 | EK99: 1 | EL99: 1 | EM99: 1 | EN99: 1 | EO99: 1 | EP99: 1 | EQ99: 1 | ER99: 0 | ES99: 0 | ET99: 0 | EW99: 26 | EX99: =(MID(D99,2,2)*1) -> 8 | EY99: 1 | EZ99: 6 | FA99: 2 | FB99: 4 | FC99: 0 | FD99: 1 | FE99: 0 | FF99: 0 | FG99: 0 | FH99: 0 | FI99: 0 | FJ99: 0 | FW99: 0 | FX99: 1 | FY99: 0 | FZ99: 0 | GA99: 0 | GE99: 0 | GF99: 0 | GG99: 0 | GH99: 0 | GL99: 0 | GM99: 0 | GN99: 0 | GR99: 0 | GS99: 0 | GW99: 0 | HA99: 0 | JA99: 0 | JB99: 0 | JC99: 0 | JD99: 0 | JE99: 0 | JF99: 0 | JG99: 0 | JH99: 0 | JI99: 0 | JJ99: 0 | JK99: 0 | JL99: 0 | JM99: 0 | JN99: 0 | JO99: 0 | JP99: 0 | JQ99: 0 | JR99: 0 | JS99: 0 | JT99: 0 | JU99: 0 | JV99: 0 | JW99: 0 | JX99: 0 | JY99: 0 | JZ99: 0 | KA99: 0 | KB99: 0 | KC99: 0 | KD99: 0 | KE99: 0 | KF99: 0 | KG99: 0 | KH99: 0 | KI99: 0 | KJ99: 0 | KK99: 0 | KL99: 0 | KM99: 0 | KN99: 0 | KO99: 0 | KP99: 0 | KQ99: 0 | KR99: 0 | KS99: 0 | KT99: 0 | KU99: 0 | KV99: 0 | KW99: 0
A100: 312 | B100: SAMEDI | C100: 2023-01-28 | D100: 5 | E100: 15 | F100: 30 | G100: 44 | H100: 45 | I100: 5 | J100: 5 | K100: f | L100: 0 | M100: =_xlfn.LET(_xlpm.comp,RIGHT(D100:H100,1),_xlfn._xlws.FILTER(D100:H100,_xlfn.XMATCH(_xlpm.comp,_xlpm.comp)<>_xlfn.XMATCH(_xlpm.comp,_xlpm.comp,,-1))) ->  | Q100: =COUNTIF(D99:H99,D100:H100) ->  | V100: =IF(AND(W100>69,W100<164,OR(X100={1;2;3;4})),1,0) -> 1 | W100: 139 | X100: =SUMPRODUCT(( MOD(D100:H100,2)>0)*1) -> 3 | Y100: 0 | Z100: 0 | AA100: 0 | AB100: 1 | AC100: 3 | AD100: 0 | AE100: 0 | AF100: 0 | AG100: 0 | AH100: 1 | AI100: 0 | AJ100: 0 | AK100: 0 | AL100: 0 | AM100: 1 | AN100: 0 | AO100: 0 | AP100: 0 | AQ100: 0 | AR100: 0 | AS100: 0 | AT100: 0 | AU100: 0 | AV100: 0 | AW100: 0 | AX100: 0 | AY100: 0 | AZ100: 0 | BA100: 0 | BB100: 1 | BC100: 0 | BD100: 0 | BE100: 0 | BF100: 0 | BG100: 0 | BH100: 0 | BI100: 0 | BJ100: 0 | BK100: 0 | BL100: 0 | BM100: 0 | BN100: 0 | BO100: 0 | BP100: 1 | BQ100: 1 | BR100: 0 | BS100: 0 | BT100: 0 | BU100: 0 | BV100: 1 | BW100: 1 | BX100: 0 | BY100: 1 | BZ100: 2 | CB100: 1 | CC100: 1 | CD100: 0 | CE100: 1 | CF100: 1 | CG100: 0 | CH100: 0 | CI100: 0 | CJ100: 1 | CK100: 0 | CL100: 0 | CM100: 0 | CN100: 0 | CO100: 0 | CP100: 0 | CQ100: 0 | CR100: 0 | CS100: 0 | CT100: 0 | CU100: 0 | CV100: 0 | CW100: 0 | CX100: 0 | CY100: 0 | CZ100: 0 | DA100: 0 | DB100: 0 | DC100: 0 | DD100: 0 | DE100: 0 | DF100: 0 | DG100: 0 | DH100: 0 | DJ100: 0 | DK100: 0 | DL100: 0 | DM100: 0 | DN100: 0 | DO100: 0 | DP100: 0 | DQ100: 0 | DR100: 0 | DS100: 0 | DT100: 0 | DU100: 0 | DW100: 1 | DX100: 1 | DY100: 1 | DZ100: 1 | EA100: 1 | EB100: 1 | EC100: 1 | ED100: 1 | EE100: 1 | EF100: 0 | EI100: 1 | EJ100: 1 | EK100: 1 | EL100: 1 | EM100: 1 | EN100: 1 | EO100: 1 | EP100: 1 | EQ100: 1 | ER100: 0 | ES100: 0 | ET100: 1 | EU100: 1 | EW100: 40 | EX100: =(MID(D100,1,2)*1) -> 5 | EY100: 5 | EZ100: 0 | FA100: 4 | FB100: 5 | FC100: 3 | FD100: 1 | FE100: 5 | FF100: 1 | FG100: 1 | FH100: 0 | FI100: 0 | FJ100: 1 | FN100: 1 | FW100: 1 | FX100: 1 | FY100: 0 | FZ100: 0 | GA100: 1 | GE100: 1 | GF100: 0 | GG100: 0 | GH100: 0 | GL100: 0 | GM100: 0 | GN100: 0 | GR100: 0 | GS100: 1 | GW100: 1 | HA100: 0 | JA100: 0 | JB100: 0 | JC100: 0 | JD100: 0 | JE100: 0 | JF100: 0 | JG100: 0 | JH100: 0 | JI100: 0 | JJ100: 0 | JK100: 0 | JL100: 0 | JM100: 0 | JN100: 0 | JO100: 0 | JP100: 0 | JQ100: 0 | JR100: 0 | JS100: 0 | JT100: 0 | JU100: 0 | JV100: 0 | JW100: 0 | JX100: 0 | JY100: 0 | JZ100: 0 | KA100: 0 | KB100: 0 | KC100: 0 | KD100: 0 | KE100: 0 | KF100: 0 | KG100: 0 | KH100: 0 | KI100: 0 | KJ100: 0 | KK100: 0 | KL100: 0 | KM100: 0 | KN100: 0 | KO100: 0 | KP100: 0 | KQ100: 0 | KR100: 0 | KS100: 0 | KT100: 0 | KU100: 0 | KV100: 0 | KW100: 0
A101: 311 | B101: LUNDI | C101: 2023-01-30 | D101: 8 | E101: 27 | F101: 30 | G101: 34 | H101: 35 | I101: 5 | J101: 5 | K101: f | L101: 0 | M101: =_xlfn.LET(_xlpm.comp,RIGHT(D101:H101,1),_xlfn._xlws.FILTER(D101:H101,_xlfn.XMATCH(_xlpm.comp,_xlpm.comp)<>_xlfn.XMATCH(_xlpm.comp,_xlpm.comp,,-1))) ->  | Q101: =COUNTIF(D100:H100,D101:H101) ->  | V101: =IF(AND(W101>69,W101<164,OR(X101={1;2;3;4})),1,0) -> 1 | W101: 134 | X101: =SUMPRODUCT(( MOD(D101:H101,2)>0)*1) -> 2 | Y101: 0 | Z101: 0 | AA101: 0 | AB101: 1 | AC101: 1 | AD101: 0 | AE101: 1 | AF101: 1 | AG101: 0 | AH101: 1 | AI101: 0 | AJ101: 0 | AK101: 0 | AL101: 0 | AM101: 0 | AN101: 0 | AO101: 0 | AP101: 0 | AQ101: 0 | AR101: 0 | AS101: 0 | AT101: 0 | AU101: 0 | AV101: 0 | AW101: 0 | AX101: 0 | AY101: 1 | AZ101: 0 | BA101: 0 | BB101: 1 | BC101: 0 | BD101: 0 | BE101: 0 | BF101: 1 | BG101: 1 | BH101: 0 | BI101: 0 | BJ101: 0 | BK101: 0 | BL101: 0 | BM101: 0 | BN101: 0 | BO101: 0 | BP101: 0 | BQ101: 0 | BR101: 0 | BS101: 0 | BT101: 0 | BU101: 0 | BV101: 1 | BW101: 0 | BX101: 1 | BY101: 3 | BZ101: 0 | CB101: 1 | CC101: 0 | CD101: 1 | CE101: 1 | CF101: 0 | CG101: 0 | CH101: 0 | CI101: 0 | CJ101: 0 | CK101: 0 | CL101: 0 | CM101: 1 | CN101: 0 | CO101: 0 | CP101: 0 | CQ101: 0 | CR101: 0 | CS101: 0 | CT101: 0 | CU101: 0 | CV101: 0 | CW101: 0 | CX101: 0 | CY101: 0 | CZ101: 0 | DA101: 0 | DB101: 0 | DC101: 0 | DD101: 0 | DE101: 0 | DF101: 0 | DG101: 0 | DH101: 0 | DJ101: 0 | DK101: 0 | DL101: 0 | DM101: 0 | DN101: 0 | DO101: 0 | DP101: 0 | DQ101: 0 | DR101: 0 | DS101: 0 | DT101: 0 | DU101: 0 | DW101: 1 | DX101: 1 | DY101: 1 | DZ101: 1 | EA101: 1 | EB101: 1 | EC101: 1 | ED101: 1 | EE101: 1 | EF101: 1 | EI101: 1 | EJ101: 1 | EK101: 1 | EL101: 1 | EM101: 1 | EN101: 1 | EO101: 1 | EP101: 1 | EQ101: 1 | ER101: 1 | ES101: 1 | ET101: 1 | EU101: 1 | EW101: 27 | EX101: =(MID(D101,1,2)*1) -> 8 | EY101: 7 | EZ101: 0 | FA101: 4 | FB101: 5 | FC101: 1 | FD101: 1 | FE101: 5 | FF101: 0 | FG101: 0 | FH101: 0 | FI101: 0 | FJ101: 1 | FN101: 1 | FW101: 0 | FX101: 1 | FY101: 0 | FZ101: 0 | GA101: 1 | GE101: 0 | GF101: 0 | GG101: 0 | GH101: 0 | GL101: 0 | GM101: 0 | GN101: 0 | GR101: 0 | GS101: 1 | GW101: 0 | HA101: 0 | JA101: 0 | JB101: 0 | JC101: 0 | JD101: 0 | JE101: 0 | JF101: 0 | JG101: 0 | JH101: 0 | JI101: 0 | JJ101: 0 | JK101: 0 | JL101: 0 | JM101: 0 | JN101: 0 | JO101: 0 | JP101: 0 | JQ101: 0 | JR101: 0 | JS101: 0 | JT101: 0 | JU101: 0 | JV101: 0 | JW101: 0 | JX101: 0 | JY101: 0 | JZ101: 0 | KA101: 0 | KB101: 0 | KC101: 0 | KD101: 0 | KE101: 0 | KF101: 0 | KG101: 0 | KH101: 0 | KI101: 0 | KJ101: 0 | KK101: 0 | KL101: 0 | KM101: 0 | KN101: 0 | KO101: 0 | KP101: 0 | KQ101: 0 | KR101: 0 | KS101: 0 | KT101: 0 | KU101: 0 | KV101: 0 | KW101: 0
A102: 310 | B102: MERCREDI | C102: 2023-02-01 | D102: 9 | E102: 12 | F102: 35 | G102: 38 | H102: 48 | I102: 5 | J102: 8 | K102: i | L102: 0 | M102: =_xlfn.LET(_xlpm.comp,RIGHT(D102:H102,1),_xlfn._xlws.FILTER(D102:H102,_xlfn.XMATCH(_xlpm.comp,_xlpm.comp)<>_xlfn.XMATCH(_xlpm.comp,_xlpm.comp,,-1))) ->  | Q102: =COUNTIF(D101:H101,D102:H102) ->  | V102: =IF(AND(W102>69,W102<164,OR(X102={1;2;3;4})),1,0) -> 1 | W102: 142 | X102: =SUMPRODUCT(( MOD(D102:H102,2)>0)*1) -> 2 | Y102: 0 | Z102: 1 | AA102: 0 | AB102: 0 | AC102: 1 | AD102: 0 | AE102: 0 | AF102: 2 | AG102: 1 | AH102: 0 | AI102: 0 | AJ102: 1 | AK102: 0 | AL102: 0 | AM102: 0 | AN102: 0 | AO102: 0 | AP102: 0 | AQ102: 0 | AR102: 0 | AS102: 0 | AT102: 0 | AU102: 0 | AV102: 0 | AW102: 0 | AX102: 0 | AY102: 0 | AZ102: 0 | BA102: 0 | BB102: 0 | BC102: 0 | BD102: 0 | BE102: 0 | BF102: 0 | BG102: 1 | BH102: 0 | BI102: 0 | BJ102: 1 | BK102: 0 | BL102: 0 | BM102: 0 | BN102: 0 | BO102: 0 | BP102: 0 | BQ102: 0 | BR102: 0 | BS102: 0 | BT102: 1 | BU102: 0 | BV102: 1 | BW102: 1 | BX102: 0 | BY102: 2 | BZ102: 1 | CB102: 1 | CC102: 1 | CD102: 0 | CE102: 1 | CF102: 1 | CG102: 0 | CH102: 0 | CI102: 0 | CJ102: 1 | CK102: 0 | CL102: 0 | CM102: 0 | CN102: 0 | CO102: 0 | CP102: 0 | CQ102: 0 | CR102: 0 | CS102: 0 | CT102: 0 | CU102: 0 | CV102: 0 | CW102: 0 | CX102: 0 | CY102: 0 | CZ102: 0 | DA102: 0 | DB102: 0 | DC102: 0 | DD102: 0 | DE102: 0 | DF102: 0 | DG102: 0 | DH102: 0 | DJ102: 0 | DK102: 0 | DL102: 0 | DM102: 0 | DN102: 0 | DO102: 0 | DP102: 0 | DQ102: 0 | DR102: 0 | DS102: 0 | DT102: 0 | DU102: 0 | DW102: 1 | DX102: 1 | DY102: 1 | DZ102: 1 | EA102: 1 | EB102: 1 | EC102: 1 | ED102: 1 | EE102: 1 | EF102: 1 | EI102: 1 | EJ102: 1 | EK102: 1 | EL102: 1 | EM102: 1 | EN102: 1 | EO102: 1 | EP102: 1 | EQ102: 1 | ER102: 1 | ES102: 1 | ET102: 1 | EW102: 39 | EX102: =(MID(D102,1,2)*1) -> 9 | EY102: 2 | EZ102: 5 | FA102: 8 | FB102: 8 | FC102: 1 | FD102: 1 | FE102: 5 | FF102: 0 | FG102: 0 | FH102: 1 | FI102: 0 | FJ102: 0 | FW102: 1 | FX102: 0 | FY102: 1 | FZ102: 0 | GA102: 0 | GE102: 0 | GF102: 0 | GG102: 0 | GH102: 0 | GL102: 1 | GM102: 0 | GN102: 0 | GR102: 0 | GS102: 0 | GW102: 0 | HA102: 0 | JA102: 0 | JB102: 0 | JC102: 0 | JD102: 0 | JE102: 0 | JF102: 0 | JG102: 0 | JH102: 0 | JI102: 0 | JJ102: 0 | JK102: 0 | JL102: 0 | JM102: 0 | JN102: 0 | JO102: 0 | JP102: 0 | JQ102: 0 | JR102: 0 | JS102: 0 | JT102: 0 | JU102: 0 | JV102: 0 | JW102: 0 | JX102: 0 | JY102: 0 | JZ102: 0 | KA102: 0 | KB102: 0 | KC102: 0 | KD102: 0 | KE102: 0 | KF102: 0 | KG102: 0 | KH102: 0 | KI102: 0 | KJ102: 0 | KK102: 0 | KL102: 0 | KM102: 0 | KN102: 0 | KO102: 0 | KP102: 0 | KQ102: 0 | KR102: 0 | KS102: 0 | KT102: 0 | KU102: 0 | KV102: 0 | KW102: 0
A103: 309 | B103: SAMEDI | C103: 2023-02-04 | D103: 13 | E103: 16 | F103: 26 | G103: 31 | H103: 42 | I103: 2 | J103: 2 | K103: c | L103: 0 | M103: =_xlfn.LET(_xlpm.comp,RIGHT(D103:H103,1),_xlfn._xlws.FILTER(D103:H103,_xlfn.XMATCH(_xlpm.comp,_xlpm.comp)<>_xlfn.XMATCH(_xlpm.comp,_xlpm.comp,,-1))) ->  | Q103: =COUNTIF(D102:H102,D103:H103) ->  | V103: =IF(AND(W103>69,W103<164,OR(X103={1;2;3;4})),1,0) -> 1 | W103: 128 | X103: =SUMPRODUCT(( MOD(D103:H103,2)>0)*1) -> 2 | Y103: 1 | Z103: 1 | AA103: 1 | AB103: 0 | AC103: 0 | AD103: 2 | AE103: 0 | AF103: 0 | AG103: 0 | AH103: 0 | AI103: 0 | AJ103: 0 | AK103: 1 | AL103: 0 | AM103: 0 | AN103: 1 | AO103: 0 | AP103: 0 | AQ103: 0 | AR103: 0 | AS103: 0 | AT103: 0 | AU103: 0 | AV103: 0 | AW103: 0 | AX103: 1 | AY103: 0 | AZ103: 0 | BA103: 0 | BB103: 0 | BC103: 1 | BD103: 0 | BE103: 0 | BF103: 0 | BG103: 0 | BH103: 0 | BI103: 0 | BJ103: 0 | BK103: 0 | BL103: 0 | BM103: 0 | BN103: 1 | BO103: 0 | BP103: 0 | BQ103: 0 | BR103: 0 | BS103: 0 | BT103: 0 | BU103: 0 | BV103: 0 | BW103: 2 | BX103: 1 | BY103: 1 | BZ103: 1 | CB103: 0 | CC103: 1 | CD103: 1 | CE103: 1 | CF103: 1 | CG103: 0 | CH103: 1 | CI103: 0 | CJ103: 0 | CK103: 0 | CL103: 0 | CM103: 0 | CN103: 0 | CO103: 0 | CP103: 0 | CQ103: 0 | CR103: 0 | CS103: 0 | CT103: 0 | CU103: 0 | CV103: 0 | CW103: 0 | CX103: 0 | CY103: 0 | CZ103: 0 | DA103: 0 | DB103: 0 | DC103: 0 | DD103: 0 | DE103: 0 | DF103: 0 | DG103: 0 | DH103: 0 | DJ103: 0 | DK103: 0 | DL103: 0 | DM103: 0 | DN103: 0 | DO103: 0 | DP103: 0 | DQ103: 0 | DR103: 0 | DS103: 0 | DT103: 0 | DU103: 0 | DW103: 1 | DX103: 1 | DY103: 1 | DZ103: 1 | EA103: 1 | EB103: 1 | EC103: 1 | ED103: 1 | EE103: 1 | EF103: 1 | EI103: 1 | EJ103: 1 | EK103: 1 | EL103: 1 | EM103: 1 | EN103: 1 | EO103: 1 | EP103: 1 | EQ103: 1 | ER103: 1 | ES103: 0 | ET103: 0 | EW103: 29 | EX103: =(MID(D103,2,2)*1) -> 3 | EY103: 6 | EZ103: 6 | FA103: 1 | FB103: 2 | FC103: 1 | FD103: 1 | FE103: 2 | FF103: 0 | FG103: 0 | FH103: 0 | FI103: 0 | FJ103: 1 | FW103: 1 | FX103: 0 | FY103: 0 | FZ103: 1 | GA103: 0 | GE103: 0 | GF103: 0 | GG103: 0 | GH103: 0 | GL103: 0 | GM103: 0 | GN103: 0 | GR103: 1 | GS103: 0 | GW103: 0 | HA103: 0 | JA103: 0 | JB103: 0 | JC103: 0 | JD103: 0 | JE103: 0 | JF103: 0 | JG103: 0 | JH103: 0 | JI103: 0 | JJ103: 0 | JK103: 0 | JL103: 0 | JM103: 0 | JN103: 0 | JO103: 0 | JP103: 0 | JQ103: 0 | JR103: 0 | JS103: 0 | JT103: 0 | JU103: 0 | JV103: 0 | JW103: 0 | JX103: 0 | JY103: 0 | JZ103: 0 | KA103: 0 | KB103: 0 | KC103: 0 | KD103: 0 | KE103: 0 | KF103: 0 | KG103: 0 | KH103: 0 | KI103: 0 | KJ103: 0 | KK103: 0 | KL103: 0 | KM103: 0 | KN103: 0 | KO103: 0 | KP103: 0 | KQ103: 0 | KR103: 0 | KS103: 0 | KT103: 0 | KU103: 0 | KV103: 0 | KW103: 0
A104: 308 | B104: LUNDI | C104: 2023-02-06 | D104: 5 | E104: 6 | F104: 13 | G104: 21 | H104: 32 | I104: 3 | J104: 2 | K104: c | L104: 0 | M104: =_xlfn.LET(_xlpm.comp,RIGHT(D104:H104,1),_xlfn._xlws.FILTER(D104:H104,_xlfn.XMATCH(_xlpm.comp,_xlpm.comp)<>_xlfn.XMATCH(_xlpm.comp,_xlpm.comp,,-1))) ->  | Q104: =COUNTIF(D103:H103,D104:H104) ->  | V104: =IF(AND(W104>69,W104<164,OR(X104={1;2;3;4})),1,0) -> 1 | W104: 77 | X104: =SUMPRODUCT(( MOD(D104:H104,2)>0)*1) -> 3 | Y104: 1 | Z104: 1 | AA104: 1 | AB104: 0 | AC104: 1 | AD104: 1 | AE104: 0 | AF104: 0 | AG104: 0 | AH104: 0 | AI104: 0 | AJ104: 0 | AK104: 1 | AL104: 0 | AM104: 0 | AN104: 0 | AO104: 0 | AP104: 0 | AQ104: 0 | AR104: 0 | AS104: 1 | AT104: 0 | AU104: 0 | AV104: 0 | AW104: 0 | AX104: 0 | AY104: 0 | AZ104: 0 | BA104: 0 | BB104: 0 | BC104: 0 | BD104: 1 | BE104: 0 | BF104: 0 | BG104: 0 | BH104: 0 | BI104: 0 | BJ104: 0 | BK104: 0 | BL104: 0 | BM104: 0 | BN104: 0 | BO104: 0 | BP104: 0 | BQ104: 0 | BR104: 0 | BS104: 0 | BT104: 0 | BU104: 0 | BV104: 2 | BW104: 1 | BX104: 1 | BY104: 1 | BZ104: 0 | CB104: 1 | CC104: 1 | CD104: 1 | CE104: 1 | CF104: 0 | CG104: 0 | CH104: 0 | CI104: 0 | CJ104: 0 | CK104: 0 | CL104: 1 | CM104: 0 | CN104: 0 | CO104: 0 | CP104: 0 | CQ104: 0 | CR104: 0 | CS104: 0 | CT104: 0 | CU104: 0 | CV104: 0 | CW104: 0 | CX104: 0 | CY104: 0 | CZ104: 0 | DA104: 0 | DB104: 0 | DC104: 0 | DD104: 0 | DE104: 0 | DF104: 0 | DG104: 0 | DH104: 0 | DJ104: 0 | DK104: 0 | DL104: 0 | DM104: 0 | DN104: 0 | DO104: 0 | DP104: 0 | DQ104: 0 | DR104: 0 | DS104: 0 | DT104: 0 | DU104: 0 | DW104: 1 | DX104: 1 | DY104: 1 | DZ104: 1 | EA104: 1 | EB104: 1 | EC104: 1 | ED104: 1 | EE104: 1 | EF104: 1 | EI104: 1 | EJ104: 1 | EK104: 1 | EL104: 1 | EM104: 1 | EN104: 1 | EO104: 1 | EP104: 1 | EQ104: 1 | ER104: 1 | ES104: 0 | ET104: 1 | EU104: 1 | EW104: 27 | EX104: =(MID(D104,1,2)*1) -> 5 | EY104: =(MID(E104,1,1)*1) -> 6 | EZ104: 3 | FA104: 1 | FB104: 2 | FC104: 1 | FD104: 1 | FE104: 3 | FF104: 0 | FG104: 0 | FH104: 1 | FI104: 0 | FJ104: 0 | FK104: 1 | FW104: 1 | FX104: 0 | FY104: 1 | FZ104: 1 | GA104: 0 | GE104: 0 | GF104: 0 | GG104: 1 | GH104: 0 | GL104: 1 | GM104: 0 | GN104: 0 | GR104: 1 | GS104: 0 | GW104: 0 | HA104: 0 | JA104: 0 | JB104: 0 | JC104: 0 | JD104: 0 | JE104: 0 | JF104: 0 | JG104: 0 | JH104: 0 | JI104: 0 | JJ104: 0 | JK104: 0 | JL104: 0 | JM104: 0 | JN104: 0 | JO104: 0 | JP104: 0 | JQ104: 0 | JR104: 0 | JS104: 0 | JT104: 0 | JU104: 0 | JV104: 0 | JW104: 0 | JX104: 0 | JY104: 0 | JZ104: 0 | KA104: 0 | KB104: 0 | KC104: 0 | KD104: 0 | KE104: 0 | KF104: 0 | KG104: 0 | KH104: 0 | KI104: 0 | KJ104: 0 | KK104: 0 | KL104: 0 | KM104: 0 | KN104: 0 | KO104: 0 | KP104: 0 | KQ104: 0 | KR104: 0 | KS104: 0 | KT104: 0 | KU104: 0 | KV104: 0 | KW104: 0
A105: 307 | B105: MERCREDI | C105: 2023-02-08 | D105: 16 | E105: 21 | F105: 24 | G105: 34 | H105: 44 | I105: 7 | J105: 4 | K105: e | L105: 0 | M105: =_xlfn.LET(_xlpm.comp,RIGHT(D105:H105,1),_xlfn._xlws.FILTER(D105:H105,_xlfn.XMATCH(_xlpm.comp,_xlpm.comp)<>_xlfn.XMATCH(_xlpm.comp,_xlpm.comp,,-1))) ->  | Q105: =COUNTIF(D104:H104,D105:H105) ->  | V105: =IF(AND(W105>69,W105<164,OR(X105={1;2;3;4})),1,0) -> 1 | W105: 139 | X105: =SUMPRODUCT(( MOD(D105:H105,2)>0)*1) -> 1 | Y105: 1 | Z105: 0 | AA105: 0 | AB105: 3 | AC105: 0 | AD105: 1 | AE105: 0 | AF105: 0 | AG105: 0 | AH105: 0 | AI105: 0 | AJ105: 0 | AK105: 0 | AL105: 0 | AM105: 0 | AN105: 1 | AO105: 0 | AP105: 0 | AQ105: 0 | AR105: 0 | AS105: 1 | AT105: 0 | AU105: 0 | AV105: 1 | AW105: 0 | AX105: 0 | AY105: 0 | AZ105: 0 | BA105: 0 | BB105: 0 | BC105: 0 | BD105: 0 | BE105: 0 | BF105: 1 | BG105: 0 | BH105: 0 | BI105: 0 | BJ105: 0 | BK105: 0 | BL105: 0 | BM105: 0 | BN105: 0 | BO105: 0 | BP105: 1 | BQ105: 0 | BR105: 0 | BS105: 0 | BT105: 0 | BU105: 0 | BV105: 0 | BW105: 1 | BX105: 2 | BY105: 1 | BZ105: 1 | CB105: 0 | CC105: 1 | CD105: 1 | CE105: 1 | CF105: 1 | CG105: 0 | CH105: 1 | CI105: 0 | CJ105: 0 | CK105: 0 | CL105: 0 | CM105: 0 | CN105: 0 | CO105: 0 | CP105: 0 | CQ105: 0 | CR105: 0 | CS105: 0 | CT105: 0 | CU105: 0 | CV105: 0 | CW105: 0 | CX105: 0 | CY105: 0 | CZ105: 0 | DA105: 0 | DB105: 0 | DC105: 0 | DD105: 0 | DE105: 0 | DF105: 0 | DG105: 0 | DH105: 0 | DJ105: 0 | DK105: 0 | DL105: 0 | DM105: 0 | DN105: 0 | DO105: 0 | DP105: 0 | DQ105: 0 | DR105: 0 | DS105: 0 | DT105: 0 | DU105: 0 | DW105: 1 | DX105: 1 | DY105: 1 | DZ105: 1 | EA105: 1 | EB105: 1 | EC105: 1 | ED105: 1 | EE105: 1 | EF105: 1 | EI105: 1 | EJ105: 1 | EK105: 1 | EL105: 1 | EM105: 1 | EN105: 1 | EO105: 1 | EP105: 1 | EQ105: 1 | ER105: 1 | ES105: 0 | ET105: 1 | EW105: 28 | EX105: =(MID(D105,2,2)*1) -> 6 | EY105: 1 | EZ105: 4 | FA105: 4 | FB105: 4 | FC105: 0 | FD105: 1 | FE105: 7 | FF105: 0 | FG105: 0 | FH105: 0 | FI105: 0 | FJ105: 0 | FW105: 0 | FX105: 1 | FY105: 0 | FZ105: 0 | GA105: 0 | GE105: 0 | GF105: 0 | GG105: 0 | GH105: 0 | GL105: 0 | GM105: 0 | GN105: 0 | GR105: 0 | GS105: 0 | GW105: 0 | HA105: 0 | JA105: 0 | JB105: 0 | JC105: 0 | JD105: 0 | JE105: 0 | JF105: 0 | JG105: 0 | JH105: 0 | JI105: 0 | JJ105: 0 | JK105: 0 | JL105: 0 | JM105: 0 | JN105: 0 | JO105: 0 | JP105: 0 | JQ105: 0 | JR105: 0 | JS105: 0 | JT105: 0 | JU105: 0 | JV105: 0 | JW105: 0 | JX105: 0 | JY105: 0 | JZ105: 0 | KA105: 0 | KB105: 0 | KC105: 0 | KD105: 0 | KE105: 0 | KF105: 0 | KG105: 0 | KH105: 0 | KI105: 0 | KJ105: 0 | KK105: 0 | KL105: 0 | KM105: 0 | KN105: 0 | KO105: 0 | KP105: 0 | KQ105: 0 | KR105: 0 | KS105: 0 | KT105: 0 | KU105: 0 | KV105: 0 | KW105: 0
A106: 306 | B106: SAMEDI | C106: 2023-02-11 | D106: 9 | E106: 15 | F106: 43 | G106: 45 | H106: 47 | I106: 9 | J106: 7 | K106: h | L106: 0 | M106: =_xlfn.LET(_xlpm.comp,RIGHT(D106:H106,1),_xlfn._xlws.FILTER(D106:H106,_xlfn.XMATCH(_xlpm.comp,_xlpm.comp)<>_xlfn.XMATCH(_xlpm.comp,_xlpm.comp,,-1))) ->  | Q106: =COUNTIF(D105:H105,D106:H106) ->  | V106: =IF(AND(W106>69,W106<164,OR(X106={1;2;3;4})),1,0) -> 0 | W106: 159 | X106: =SUMPRODUCT(( MOD(D106:H106,2)>0)*1) -> 5 | Y106: 0 | Z106: 0 | AA106: 1 | AB106: 0 | AC106: 2 | AD106: 0 | AE106: 1 | AF106: 0 | AG106: 1 | AH106: 0 | AI106: 0 | AJ106: 0 | AK106: 0 | AL106: 0 | AM106: 1 | AN106: 0 | AO106: 0 | AP106: 0 | AQ106: 0 | AR106: 0 | AS106: 0 | AT106: 0 | AU106: 0 | AV106: 0 | AW106: 0 | AX106: 0 | AY106: 0 | AZ106: 0 | BA106: 0 | BB106: 0 | BC106: 0 | BD106: 0 | BE106: 0 | BF106: 0 | BG106: 0 | BH106: 0 | BI106: 0 | BJ106: 0 | BK106: 0 | BL106: 0 | BM106: 0 | BN106: 0 | BO106: 1 | BP106: 0 | BQ106: 1 | BR106: 0 | BS106: 1 | BT106: 0 | BU106: 0 | BV106: 1 | BW106: 1 | BX106: 0 | BY106: 0 | BZ106: 3 | CB106: 1 | CC106: 1 | CD106: 0 | CE106: 0 | CF106: 1 | CG106: 0 | CH106: 0 | CI106: 0 | CJ106: 0 | CK106: 0 | CL106: 0 | CM106: 0 | CN106: 0 | CO106: 1 | CP106: 0 | CQ106: 0 | CR106: 0 | CS106: 0 | CT106: 0 | CU106: 0 | CV106: 0 | CW106: 0 | CX106: 0 | CY106: 0 | CZ106: 0 | DA106: 0 | DB106: 0 | DC106: 0 | DD106: 0 | DE106: 0 | DF106: 0 | DG106: 0 | DH106: 0 | DJ106: 0 | DK106: 0 | DL106: 0 | DM106: 0 | DN106: 0 | DO106: 0 | DP106: 0 | DQ106: 0 | DR106: 0 | DS106: 0 | DT106: 0 | DU106: 0 | DW106: 1 | DX106: 1 | DY106: 1 | DZ106: 1 | EA106: 1 | EB106: 1 | EC106: 1 | ED106: 1 | EE106: 1 | EF106: 1 | EI106: 1 | EJ106: 1 | EK106: 1 | EL106: 1 | EM106: 1 | EN106: 1 | EO106: 1 | EP106: 1 | EQ106: 1 | ER106: 1 | ES106: 0 | ET106: 1 | EW106: 38 | EX106: =(MID(D106,1,2)*1) -> 9 | EY106: 5 | EZ106: 3 | FA106: 5 | FB106: 7 | FC106: 1 | FD106: 1 | FE106: 9 | FF106: 1 | FG106: 0 | FH106: 0 | FI106: 0 | FJ106: 0 | FW106: 1 | FX106: 1 | FY106: 1 | FZ106: 1 | GA106: 1 | GE106: 1 | GF106: 1 | GG106: 1 | GH106: 1 | GL106: 1 | GM106: 0 | GN106: 1 | GR106: 1 | GS106: 1 | GW106: 1 | HA106: 1 | JA106: 0 | JB106: 0 | JC106: 0 | JD106: 0 | JE106: 0 | JF106: 0 | JG106: 0 | JH106: 0 | JI106: 0 | JJ106: 0 | JK106: 0 | JL106: 0 | JM106: 0 | JN106: 0 | JO106: 0 | JP106: 0 | JQ106: 0 | JR106: 0 | JS106: 0 | JT106: 0 | JU106: 0 | JV106: 0 | JW106: 0 | JX106: 0 | JY106: 0 | JZ106: 0 | KA106: 0 | KB106: 0 | KC106: 0 | KD106: 0 | KE106: 0 | KF106: 0 | KG106: 0 | KH106: 0 | KI106: 0 | KJ106: 0 | KK106: 0 | KL106: 0 | KM106: 0 | KN106: 0 | KO106: 0 | KP106: 0 | KQ106: 0 | KR106: 0 | KS106: 0 | KT106: 0 | KU106: 0 | KV106: 0 | KW106: 0
A107: 305 | B107: LUNDI | C107: 2023-02-13 | D107: 8 | E107: 20 | F107: 27 | G107: 33 | H107: 35 | I107: 2 | J107: 5 | K107: f | L107: 0 | M107: =_xlfn.LET(_xlpm.comp,RIGHT(D107:H107,1),_xlfn._xlws.FILTER(D107:H107,_xlfn.XMATCH(_xlpm.comp,_xlpm.comp)<>_xlfn.XMATCH(_xlpm.comp,_xlpm.comp,,-1))) ->  | Q107: =COUNTIF(D106:H106,D107:H107) ->  | V107: =IF(AND(W107>69,W107<164,OR(X107={1;2;3;4})),1,0) -> 1 | W107: 123 | X107: =SUMPRODUCT(( MOD(D107:H107,2)>0)*1) -> 3 | Y107: 0 | Z107: 0 | AA107: 1 | AB107: 0 | AC107: 1 | AD107: 0 | AE107: 1 | AF107: 1 | AG107: 0 | AH107: 1 | AI107: 0 | AJ107: 0 | AK107: 0 | AL107: 0 | AM107: 0 | AN107: 0 | AO107: 0 | AP107: 0 | AQ107: 0 | AR107: 1 | AS107: 0 | AT107: 0 | AU107: 0 | AV107: =COUNTIF(($D107:$H107),AV$1) -> 0 | AW107: 0 | AX107: 0 | AY107: 1 | AZ107: 0 | BA107: 0 | BB107: 0 | BC107: 0 | BD107: 0 | BE107: 1 | BF107: 0 | BG107: 1 | BH107: 0 | BI107: 0 | BJ107: 0 | BK107: 0 | BL107: 0 | BM107: 0 | BN107: 0 | BO107: 0 | BP107: 0 | BQ107: 0 | BR107: 0 | BS107: 0 | BT107: 0 | BU107: 0 | BV107: 1 | BW107: 0 | BX107: 2 | BY107: 2 | BZ107: 0 | CB107: 1 | CC107: 0 | CD107: 1 | CE107: 1 | CF107: 0 | CG107: 0 | CH107: 0 | CI107: 0 | CJ107: 0 | CK107: 0 | CL107: 0 | CM107: 1 | CN107: 0 | CO107: 0 | CP107: 0 | CQ107: 0 | CR107: 0 | CS107: 0 | CT107: 0 | CU107: 0 | CV107: 0 | CW107: 0 | CX107: 0 | CY107: 0 | CZ107: 0 | DA107: 0 | DB107: 0 | DC107: 0 | DD107: 0 | DE107: 0 | DF107: 0 | DG107: 0 | DH107: 0 | DJ107: 0 | DK107: 0 | DL107: 0 | DM107: 0 | DN107: 0 | DO107: 0 | DP107: 0 | DQ107: 0 | DR107: 0 | DS107: 0 | DT107: 0 | DU107: 0 | DW107: 1 | DX107: 1 | DY107: 1 | DZ107: 1 | EA107: 1 | EB107: 1 | EC107: 1 | ED107: 1 | EE107: 1 | EF107: 1 | EI107: 1 | EJ107: 1 | EK107: 1 | EL107: 1 | EM107: 1 | EN107: 1 | EO107: 1 | EP107: 1 | EQ107: 1 | ER107: 1 | ES107: 0 | ET107: 0 | EW107: 27 | EX107: =(MID(D107,1,2)*1) -> 8 | EY107: 0 | EZ107: 7 | FA107: 3 | FB107: 5 | FC107: 0 | FD107: 1 | FE107: 2 | FF107: 0 | FG107: 0 | FH107: 0 | FI107: 0 | FJ107: 0 | FW107: 0 | FX107: 0 | FY107: 1 | FZ107: 1 | GA107: 1 | GE107: 0 | GF107: 0 | GG107: 1 | GH107: 1 | GL107: 0 | GM107: 1 | GN107: 1 | GR107: 0 | GS107: 0 | GW107: 0 | HA107: 0 | JA107: 0 | JB107: 0 | JC107: 0 | JD107: 0 | JE107: 0 | JF107: 0 | JG107: 0 | JH107: 0 | JI107: 0 | JJ107: 0 | JK107: 0 | JL107: 0 | JM107: 0 | JN107: 0 | JO107: 0 | JP107: 0 | JQ107: 0 | JR107: 0 | JS107: 0 | JT107: 0 | JU107: 0 | JV107: 0 | JW107: 0 | JX107: 0 | JY107: 0 | JZ107: 0 | KA107: 0 | KB107: 0 | KC107: 0 | KD107: 0 | KE107: 0 | KF107: 0 | KG107: 0 | KH107: 0 | KI107: 0 | KJ107: 0 | KK107: 0 | KL107: 0 | KM107: 0 | KN107: 0 | KO107: 0 | KP107: 0 | KQ107: 0 | KR107: 0 | KS107: 0 | KT107: 0 | KU107: 0 | KV107: 0 | KW107: 0
A108: 304 | B108: MERCREDI | C108: 2023-02-15 | D108: 5 | E108: 20 | F108: 24 | G108: 28 | H108: 44 | I108: 6 | J108: 4 | K108: e | L108: 0 | M108: =_xlfn.LET(_xlpm.comp,RIGHT(D108:H108,1),_xlfn._xlws.FILTER(D108:H108,_xlfn.XMATCH(_xlpm.comp,_xlpm.comp)<>_xlfn.XMATCH(_xlpm.comp,_xlpm.comp,,-1))) ->  | Q108: =COUNTIF(D107:H107,D108:H108) ->  | V108: =IF(AND(W108>69,W108<164,OR(X108={1;2;3;4})),1,0) -> 1 | W108: 121 | X108: =SUMPRODUCT(( MOD(D108:H108,2)>0)*1) -> 1 | Y108: 0 | Z108: 0 | AA108: 0 | AB108: 2 | AC108: 1 | AD108: 0 | AE108: 0 | AF108: 1 | AG108: 0 | AH108: 1 | AI108: 0 | AJ108: 0 | AK108: 0 | AL108: 0 | AM108: 0 | AN108: 0 | AO108: 0 | AP108: 0 | AQ108: 0 | AR108: 1 | AS108: 0 | AT108: 0 | AU108: 0 | AV108: 1 | AW108: 0 | AX108: 0 | AY108: 0 | AZ108: 1 | BA108: 0 | BB108: 0 | BC108: 0 | BD108: 0 | BE108: 0 | BF108: 0 | BG108: 0 | BH108: 0 | BI108: 0 | BJ108: 0 | BK108: 0 | BL108: 0 | BM108: 0 | BN108: 0 | BO108: 0 | BP108: 1 | BQ108: 0 | BR108: 0 | BS108: 0 | BT108: 0 | BU108: 0 | BV108: 1 | BW108: 0 | BX108: 3 | BY108: 0 | BZ108: 1 | CB108: 1 | CC108: 0 | CD108: 1 | CE108: 0 | CF108: 1 | CG108: 0 | CH108: 0 | CI108: 0 | CJ108: 0 | CK108: 0 | CL108: 0 | CM108: 0 | CN108: 0 | CO108: 0 | CP108: 0 | CQ108: 0 | CR108: 0 | CS108: 0 | CT108: 0 | CU108: 0 | CV108: 1 | CW108: 0 | CX108: 0 | CY108: 0 | CZ108: 0 | DA108: 0 | DB108: 0 | DC108: 0 | DD108: 0 | DE108: 0 | DF108: 0 | DG108: 0 | DH108: 0 | DJ108: 0 | DK108: 0 | DL108: 0 | DM108: 0 | DN108: 0 | DO108: 0 | DP108: 0 | DQ108: 0 | DR108: 0 | DS108: 0 | DT108: 0 | DU108: 0 | DW108: 1 | DX108: 1 | DY108: 1 | DZ108: 1 | EA108: 1 | EB108: 1 | EC108: 1 | ED108: 1 | EE108: 1 | EF108: 1 | EI108: 1 | EJ108: 1 | EK108: 1 | EL108: 1 | EM108: 1 | EN108: 1 | EO108: 1 | EP108: 1 | EQ108: 1 | ER108: 1 | ES108: 0 | ET108: 0 | EW108: 39 | EX108: =(MID(D108,1,2)*1) -> 5 | EY108: 0 | EZ108: 4 | FA108: 8 | FB108: 4 | FC108: 0 | FD108: 1 | FE108: 6 | FF108: 0 | FG108: 0 | FH108: 0 | FI108: 0 | FJ108: 0 | FW108: 1 | FX108: 0 | FY108: 0 | FZ108: 0 | GA108: 0 | GE108: 0 | GF108: 0 | GG108: 0 | GH108: 0 | GL108: 0 | GM108: 0 | GN108: 0 | GR108: 0 | GS108: 0 | GW108: 0 | HA108: 0 | JA108: 0 | JB108: 0 | JC108: 0 | JD108: 0 | JE108: 0 | JF108: 0 | JG108: 0 | JH108: 0 | JI108: 0 | JJ108: 0 | JK108: 0 | JL108: 0 | JM108: 0 | JN108: 0 | JO108: 0 | JP108: 0 | JQ108: 0 | JR108: 0 | JS108: 0 | JT108: 0 | JU108: 0 | JV108: 0 | JW108: 0 | JX108: 0 | JY108: 0 | JZ108: 0 | KA108: 0 | KB108: 0 | KC108: 0 | KD108: 0 | KE108: 0 | KF108: 0 | KG108: 0 | KH108: 0 | KI108: 0 | KJ108: 0 | KK108: 0 | KL108: 0 | KM108: 0 | KN108: 0 | KO108: 0 | KP108: 0 | KQ108: 0 | KR108: 0 | KS108: 0 | KT108: 0 | KU108: 0 | KV108: 0 | KW108: 0
A109: 303 | B109: SAMEDI | C109: 2023-02-18 | D109: 1 | E109: 5 | F109: 12 | G109: 13 | H109: 24 | I109: 9 | J109: 4 | K109: e | L109: 0 | M109: =_xlfn.LET(_xlpm.comp,RIGHT(D109:H109,1),_xlfn._xlws.FILTER(D109:H109,_xlfn.XMATCH(_xlpm.comp,_xlpm.comp)<>_xlfn.XMATCH(_xlpm.comp,_xlpm.comp,,-1))) ->  | Q109: =COUNTIF(D108:H108,D109:H109) ->  | V109: =IF(AND(W109>69,W109<164,OR(X109={1;2;3;4})),1,0) -> 0 | W109: 55 | X109: =SUMPRODUCT(( MOD(D109:H109,2)>0)*1) -> 3 | Y109: 1 | Z109: 1 | AA109: 1 | AB109: 1 | AC109: 1 | AD109: 0 | AE109: 0 | AF109: 0 | AG109: 0 | AH109: 0 | AI109: 0 | AJ109: 1 | AK109: 1 | AL109: 0 | AM109: 0 | AN109: 0 | AO109: 0 | AP109: 0 | AQ109: 0 | AR109: 0 | AS109: 0 | AT109: 0 | AU109: 0 | AV109: 1 | AW109: 0 | AX109: 0 | AY109: 0 | AZ109: 0 | BA109: 0 | BB109: 0 | BC109: 0 | BD109: 0 | BE109: 0 | BF109: 0 | BG109: 0 | BH109: 0 | BI109: 0 | BJ109: 0 | BK109: 0 | BL109: 0 | BM109: 0 | BN109: 0 | BO109: 0 | BP109: 0 | BQ109: 0 | BR109: 0 | BS109: 0 | BT109: 0 | BU109: 0 | BV109: 2 | BW109: 2 | BX109: 1 | BY109: 0 | BZ109: 0 | CB109: 1 | CC109: 1 | CD109: 1 | CE109: 0 | CF109: 0 | CG109: 0 | CH109: 0 | CI109: 0 | CJ109: 0 | CK109: 0 | CL109: 0 | CM109: 0 | CN109: 0 | CO109: 0 | CP109: 0 | CQ109: 1 | CR109: 0 | CS109: 0 | CT109: 0 | CU109: 0 | CV109: 0 | CW109: 0 | CX109: 0 | CY109: 0 | CZ109: 0 | DA109: 0 | DB109: 0 | DC109: 0 | DD109: 0 | DE109: 0 | DF109: 0 | DG109: 0 | DH109: 0 | DJ109: 0 | DK109: 0 | DL109: 0 | DM109: 0 | DN109: 0 | DO109: 0 | DP109: 0 | DQ109: 0 | DR109: 0 | DS109: 0 | DT109: 0 | DU109: 0 | DW109: 1 | DX109: 1 | DY109: 1 | DZ109: 1 | EA109: 1 | EB109: 1 | EC109: 1 | ED109: 1 | EE109: 1 | EF109: 1 | EI109: 1 | EJ109: 1 | EK109: 1 | EL109: 1 | EM109: 1 | EN109: 1 | EO109: 1 | EP109: 1 | EQ109: 1 | ER109: 1 | ES109: 0 | ET109: 1 | EU109: 1 | EW109: 23 | EX109: =(MID(D109,1,2)*1) -> 1 | EY109: =(MID(E109,1,1)*1) -> 5 | EZ109: 2 | FA109: 3 | FB109: 4 | FC109: 0 | FD109: 1 | FE109: 9 | FF109: 0 | FG109: 0 | FH109: 0 | FI109: 0 | FJ109: 0 | FM109: 1 | FW109: 1 | FX109: 1 | FY109: 0 | FZ109: 1 | GA109: 0 | GE109: 1 | GF109: 0 | GG109: 0 | GH109: 0 | GL109: 0 | GM109: 0 | GN109: 0 | GR109: 1 | GS109: 0 | GW109: 0 | HA109: 0 | JA109: 0 | JB109: 0 | JC109: 0 | JD109: 0 | JE109: 0 | JF109: 0 | JG109: 0 | JH109: 0 | JI109: 0 | JJ109: 0 | JK109: 0 | JL109: 0 | JM109: 0 | JN109: 0 | JO109: 0 | JP109: 0 | JQ109: 0 | JR109: 0 | JS109: 0 | JT109: 0 | JU109: 0 | JV109: 0 | JW109: 0 | JX109: 0 | JY109: 0 | JZ109: 0 | KA109: 0 | KB109: 0 | KC109: 0 | KD109: 0 | KE109: 0 | KF109: 0 | KG109: 0 | KH109: 0 | KI109: 0 | KJ109: 0 | KK109: 0 | KL109: 0 | KM109: 0 | KN109: 0 | KO109: 0 | KP109: 0 | KQ109: 0 | KR109: 0 | KS109: 0 | KT109: 0 | KU109: 0 | KV109: 0 | KW109: 0
A110: 302 | B110: LUNDI | C110: 2023-02-20 | D110: 16 | E110: 22 | F110: 35 | G110: 41 | H110: 43 | I110: 7 | J110: 3 | K110: d | L110: 0 | M110: =_xlfn.LET(_xlpm.comp,RIGHT(D110:H110,1),_xlfn._xlws.FILTER(D110:H110,_xlfn.XMATCH(_xlpm.comp,_xlpm.comp)<>_xlfn.XMATCH(_xlpm.comp,_xlpm.comp,,-1))) ->  | Q110: =COUNTIF(D109:H109,D110:H110) ->  | V110: =IF(AND(W110>69,W110<164,OR(X110={1;2;3;4})),1,0) -> 1 | W110: 157 | X110: =SUMPRODUCT(( MOD(D110:H110,2)>0)*1) -> 3 | Y110: 1 | Z110: 1 | AA110: 1 | AB110: 0 | AC110: 1 | AD110: 1 | AE110: 0 | AF110: 0 | AG110: 0 | AH110: 0 | AI110: 0 | AJ110: 0 | AK110: 0 | AL110: 0 | AM110: 0 | AN110: 1 | AO110: 0 | AP110: 0 | AQ110: 0 | AR110: 0 | AS110: 0 | AT110: 1 | AU110: 0 | AV110: 0 | AW110: 0 | AX110: 0 | AY110: 0 | AZ110: 0 | BA110: 0 | BB110: 0 | BC110: 0 | BD110: 0 | BE110: 0 | BF110: 0 | BG110: 1 | BH110: 0 | BI110: 0 | BJ110: 0 | BK110: 0 | BL110: 0 | BM110: 1 | BN110: 0 | BO110: 1 | BP110: 0 | BQ110: 0 | BR110: 0 | BS110: 0 | BT110: 0 | BU110: 0 | BV110: 0 | BW110: 1 | BX110: 1 | BY110: 1 | BZ110: 2 | CB110: 0 | CC110: 1 | CD110: 1 | CE110: 1 | CF110: 1 | CG110: 0 | CH110: 1 | CI110: 0 | CJ110: 0 | CK110: 0 | CL110: 0 | CM110: 0 | CN110: 0 | CO110: 0 | CP110: 0 | CQ110: 0 | CR110: 0 | CS110: 0 | CT110: 0 | CU110: 0 | CV110: 0 | CW110: 0 | CX110: 0 | CY110: 0 | CZ110: 0 | DA110: 0 | DB110: 0 | DC110: 0 | DD110: 0 | DE110: 0 | DF110: 0 | DG110: 0 | DH110: 0 | DJ110: 0 | DK110: 0 | DL110: 0 | DM110: 0 | DN110: 0 | DO110: 0 | DP110: 0 | DQ110: 0 | DR110: 0 | DS110: 0 | DT110: 0 | DU110: 0 | DW110: 1 | DX110: 1 | DY110: 1 | DZ110: 1 | EA110: 1 | EB110: 1 | EC110: 1 | ED110: 1 | EE110: 1 | EF110: 1 | EI110: 1 | EJ110: 1 | EK110: 1 | EL110: 1 | EM110: 1 | EN110: 1 | EO110: 1 | EP110: 1 | EQ110: 1 | ER110: 1 | ES110: 0 | ET110: 1 | EW110: 27 | EX110: =(MID(D110,2,2)*1) -> 6 | EY110: 2 | EZ110: 5 | FA110: 1 | FB110: 3 | FC110: 0 | FD110: 1 | FE110: 7 | FF110: 0 | FG110: 0 | FH110: 0 | FI110: 0 | FJ110: 0 | FW110: 0 | FX110: 0 | FY110: 1 | FZ110: 1 | GA110: 1 | GE110: 0 | GF110: 0 | GG110: 1 | GH110: 1 | GL110: 0 | GM110: 1 | GN110: 1 | GR110: 0 | GS110: 0 | GW110: 0 | HA110: 0 | JA110: 0 | JB110: 0 | JC110: 0 | JD110: 0 | JE110: 0 | JF110: 0 | JG110: 0 | JH110: 0 | JI110: 0 | JJ110: 0 | JK110: 0 | JL110: 0 | JM110: 0 | JN110: 0 | JO110: 0 | JP110: 0 | JQ110: 0 | JR110: 0 | JS110: 0 | JT110: 0 | JU110: 0 | JV110: 0 | JW110: 0 | JX110: 0 | JY110: 0 | JZ110: 0 | KA110: 0 | KB110: 0 | KC110: 0 | KD110: 0 | KE110: 0 | KF110: 0 | KG110: 0 | KH110: 0 | KI110: 0 | KJ110: 0 | KK110: 0 | KL110: 0 | KM110: 0 | KN110: 0 | KO110: 0 | KP110: 0 | KQ110: 0 | KR110: 0 | KS110: 0 | KT110: 0 | KU110: 0 | KV110: 0 | KW110: 0
A111: 301 | B111: MERCREDI | C111: 2023-02-22 | D111: 3 | E111: 24 | F111: 31 | G111: 35 | H111: 37 | I111: 4 | J111: 7 | K111: h | L111: 0 | M111: =_xlfn.LET(_xlpm.comp,RIGHT(D111:H111,1),_xlfn._xlws.FILTER(D111:H111,_xlfn.XMATCH(_xlpm.comp,_xlpm.comp)<>_xlfn.XMATCH(_xlpm.comp,_xlpm.comp,,-1))) ->  | Q111: =COUNTIF(D110:H110,D111:H111) ->  | V111: =IF(AND(W111>69,W111<164,OR(X111={1;2;3;4})),1,0) -> 1 | W111: 130 | X111: =SUMPRODUCT(( MOD(D111:H111,2)>0)*1) -> 4 | Y111: 1 | Z111: 0 | AA111: 1 | AB111: 1 | AC111: 1 | AD111: 0 | AE111: 1 | AF111: 0 | AG111: 0 | AH111: 0 | AI111: 0 | AJ111: 0 | AK111: 0 | AL111: 0 | AM111: 0 | AN111: 0 | AO111: 0 | AP111: 0 | AQ111: 0 | AR111: 0 | AS111: 0 | AT111: 0 | AU111: 0 | AV111: 1 | AW111: 0 | AX111: 0 | AY111: 0 | AZ111: 0 | BA111: 0 | BB111: 0 | BC111: 1 | BD111: 0 | BE111: 0 | BF111: 0 | BG111: 1 | BH111: 0 | BI111: 1 | BJ111: 0 | BK111: 0 | BL111: 0 | BM111: 0 | BN111: 0 | BO111: 0 | BP111: 0 | BQ111: 0 | BR111: 0 | BS111: 0 | BT111: 0 | BU111: 0 | BV111: 1 | BW111: 0 | BX111: 1 | BY111: 3 | BZ111: 0 | CB111: 1 | CC111: 0 | CD111: 1 | CE111: 1 | CF111: 0 | CG111: 0 | CH111: 0 | CI111: 0 | CJ111: 0 | CK111: 0 | CL111: 0 | CM111: 1 | CN111: 0 | CO111: 0 | CP111: 0 | CQ111: 0 | CR111: 0 | CS111: 0 | CT111: 0 | CU111: 0 | CV111: 0 | CW111: 0 | CX111: 0 | CY111: 0 | CZ111: 0 | DA111: 0 | DB111: 0 | DC111: 0 | DD111: 0 | DE111: 0 | DF111: 0 | DG111: 0 | DH111: 0 | DJ111: 0 | DK111: 0 | DL111: 0 | DM111: 0 | DN111: 0 | DO111: 0 | DP111: 0 | DQ111: 0 | DR111: 0 | DS111: 0 | DT111: 0 | DU111: 0 | DW111: 1 | DX111: 1 | DY111: 1 | DZ111: 1 | EA111: 1 | EB111: 1 | EC111: 1 | ED111: 1 | EE111: 1 | EF111: 1 | EI111: 1 | EJ111: 1 | EK111: 1 | EL111: 1 | EM111: 1 | EN111: 1 | EO111: 1 | EP111: 1 | EQ111: 1 | ER111: 1 | ES111: 0 | ET111: 0 | EW111: 34 | EX111: =(MID(D111,1,2)*1) -> 3 | EY111: 4 | EZ111: 1 | FA111: 5 | FB111: 7 | FC111: 1 | FD111: =IF(FE111<10,("1"),("0")) -> 1 | FE111: 4 | FF111: 0 | FG111: 1 | FH111: 0 | FI111: 0 | FJ111: 0 | FW111: 1 | FX111: 0 | FY111: 1 | FZ111: 1 | GA111: 1 | GE111: 0 | GF111: 0 | GG111: 1 | GH111: 1 | GL111: 1 | GM111: 0 | GN111: 1 | GR111: 1 | GS111: 0 | GW111: 1 | HA111: 0 | JA111: 0 | JB111: 0 | JC111: 0 | JD111: 0 | JE111: 0 | JF111: 0 | JG111: 0 | JH111: 0 | JI111: 0 | JJ111: 0 | JK111: 0 | JL111: 0 | JM111: 0 | JN111: 0 | JO111: 0 | JP111: 0 | JQ111: 0 | JR111: 0 | JS111: 0 | JT111: 0 | JU111: 0 | JV111: 0 | JW111: 0 | JX111: 0 | JY111: 0 | JZ111: 0 | KA111: 0 | KB111: 0 | KC111: 0 | KD111: 0 | KE111: 0 | KF111: 0 | KG111: 0 | KH111: 0 | KI111: 0 | KJ111: 0 | KK111: 0 | KL111: 0 | KM111: 0 | KN111: 0 | KO111: 0 | KP111: 0 | KQ111: 0 | KR111: 0 | KS111: 0 | KT111: 0 | KU111: 0 | KV111: 0 | KW111: 0
